Workbook

Sheet Info
A1: Normalisation
A3: Sheets in the document
A4: Calculation template | B4: Shows how the robust estimation mean and limits are calculated for one sample.
A5: Calculation VPA | B5: Shows how the robust estimation mean and limits are calculated for all samples in the VPA experiment.
A6: Component "X" | B6: Shows the Median, Count, MAD, ~STD, and robust estimation mean and limits for all samples in the "X" experiment.
A7: Background information
B8: Normalisation is required in LC-MS proteomics experiments to calibrate data between different sample runs. This corrects for systematic experimental variation when running samples (for example, differences in sample loading). The key underlying assumption is that most peptide ions do not change in abundance (the abundance distributions do not alter globally), and hence recalibration to globally adjust all runs to be on the 'same scale' is appropriate. Progenesis QI for proteomics uses ratiometric data in log space, along with a median and mean absolute deviation outlier filtering approach, to calculate the scalar factor.
A9: Definitions
A10: Normalisation reference (REF) | B10: One run is automatically selected by Progenesis QI as the normalisation reference. This is the target against which all samples are normalized.
A11: Ratio | B11: The ratio of the value of the peptide ion abundance in that run to the value in the normalisation reference.
A12: Log10(Ratio) | B12: Log transformation is applied to convert the ratiometric data from a skewed to a normal distribution.
A13: Median | B13: Median of the Log10(Ratio).
A14: Absolute Deviation | B14: The absolute value of the diffrence between the Log10(Ratio) and the median.
A15: MAD | B15: Median of the Absolute Deviation.
A16: ~STD | B16: Estimate of the standard deviviation. (=1.4826 * MAD)
A17: Log10(Upper) | B17: The robust upper estimation limit. (= Median + 3 * (~STD))
A18: Log10(Lower) | B18: The robust lower estimation limit. (=Median - 3 * (~STD))
A19: Within limits | B19: Check if the Loh10(Ratio) lies within the robust etimation limits.
A20: Log10(Norm Factor) | B20: The average of all the Log10(Ratio) that lie within the robust estimation limits.
A21: Count | B21: Number of peptides used for normalisation.
A22: Exclusion (EXCL) | B22: Samples with an estimated standard deviation (~STD) greater than 0,4 were exluded from the analysis.

Sheet Calculation template
A1: Target Sample | B1: Normalisation Reference (REF) | C1: Ratio | D1: Log10(Ratio) | E1: Absolute Deviation | F1: Within limits
A2: H2O_D2 | B2: 02_A | H2: Median
A3: 9625.905547 | B3: 22621.23026 | C3: =IF(AND(A3>0, B3>0),B3/A3, "") -> 2.350036592 | D3: =IF(C3<>"",LOG10(C3),"") -> 0.3710746246 | E3: =IF(D3<>"", ABS(D3-H$3),"") -> 0.07426924036 | F3: =IF(AND(D3<>"",D3>H$18, D3<H$15), D3,"") -> 0.3710746246 | H3: =MEDIAN(D:D) -> 0.2968053842
A4: 5280.048418 | B4: 12054.72729 | C4: =IF(AND(A4>0, B4>0),B4/A4, "") -> 2.283071354 | D4: =IF(C4<>"",LOG10(C4),"") -> 0.3585194848 | E4: =IF(D4<>"", ABS(D4-H$3),"") -> 0.06171410061 | F4: =IF(AND(D4<>"",D4>H$18, D4<H$15), D4,"") -> 0.3585194848
A5: 5956.116995 | B5: 9804.473301 | C5: 1.64611832 | D5: 0.2164610483 | E5: =IF(D5<>"", ABS(D5-H$3),"") -> 0.08034433593 | F5: =IF(AND(D5<>"",D5>H$18, D5<H$15), D5,"") -> 0.2164610483 | H5: Count
A6: 4964.931869 | B6: 11229.09226 | C6: 2.261681037 | D6: 0.3544313568 | E6: 0.05762597256 | F6: 0.3544313568 | H6: =COUNT(D:D) -> 199
A7: 3942.226908 | B7: 8476.564816 | C7: 2.150197088 | D7: 0.3324782693 | E7: 0.03567288506 | F7: 0.3324782693
A8: 2483.898561 | B8: 7677.707122 | C8: 3.090990608 | D8: 0.4900976854 | E8: 0.1932923012 | F8: 0.4900976854 | H8: MAD
A9: 4422.056547 | B9: 5935.07534 | C9: 1.342152747 | D9: 0.1278019445 | E9: 0.1690034397 | F9: 0.1278019445 | H9: =MEDIAN(E:E) -> 0.1642543436
A10: 4142.550823 | B10: 4064.983433 | C10: 0.9812754523 | D10: -0.008209065369 | E10: 0.3050144496 | F10: =IF(AND(D10<>"",D10>H$18, D10<H$15), D10,"") -> -0.008209065369
A11: 11.51411704 | B11: 89.02959442 | C11: 7.732212039 | D11: 0.8883037551 | E11: 0.5914983709 | F11: =IF(AND(D11<>"",D11>H$18, D11<H$15), D11,"") -> 0.8883037551 | H11: ~STD
A12: 2748.499591 | B12: 3715.486502 | C12: =IF(AND(A12>0, B12>0),B12/A12, "") -> 1.35182356 | D12: =IF(C12<>"",LOG10(C12),"") -> 0.1309200113 | E12: 0.165885373 | F12: 0.1309200113 | H12: =1.4826*H9 -> 0.2435234898
A13: 3290.788854 | B13: 5874.852131 | C13: 1.785241288 | D13: 0.2516969223 | E13: =IF(D13<>"", ABS(D13-H$3),"") -> 0.04510846197 | F13: 0.2516969223
A14: 1611.996914 | B14: 3548.161059 | C14: 2.201096683 | D14: 0.3426391193 | E14: 0.04583373502 | F14: =IF(AND(D14<>"",D14>H$18, D14<H$15), D14,"") -> 0.3426391193 | H14: Log10(Upper)
A15: 1990.736892 | B15: 3270.903347 | C15: 1.643061602 | D15: 0.2156538464 | E15: 0.08115153779 | F15: 0.2156538464 | H15: =H3+3*H12 -> 1.027375854
A16: 1224.165798 | B16: 3125.636631 | C16: 2.553278841 | D16: 0.4070982463 | E16: 0.110292862 | F16: 0.4070982463
A17: 1854.573567 | B17: 2725.031882 | C17: 1.469357663 | D17: 0.1671275222 | E17: 0.1296778621 | F17: 0.1671275222 | H17: Log10(Lower)
A18: 1392.553291 | B18: 3959.517895 | C18: 2.843351074 | D18: 0.4538304862 | E18: 0.1570251019 | F18: 0.4538304862 | H18: =H3-3*H12 -> -0.4337650852
A19: 1913.397641 | B19: 5047.157671 | C19: 2.637798628 | D19: 0.421241638 | E19: 0.1244362538 | F19: 0.421241638
A20: 1074.659787 | B20: 1580.513158 | C20: 1.470710244 | D20: 0.1675271175 | E20: 0.1292782667 | F20: 0.1675271175 | H20: Log10(Norm Factor)
A21: 1175.479089 | B21: 2212.603052 | C21: 1.882298948 | D21: 0.2746885995 | E21: 0.02211678472 | F21: 0.2746885995 | H21: =AVERAGE(F:F) -> 0.28543501
A22: 1960.509817 | B22: 3738.798843 | C22: 1.907054385 | D22: 0.2803630784 | E22: 0.0164423058 | F22: 0.2803630784
A23: 673.7898275 | B23: 973.4442081 | C23: 1.444729749 | D23: 0.1597866155 | E23: 0.1370187687 | F23: 0.1597866155
A24: 1596.885302 | B24: 3006.630996 | C24: 1.882809612 | D24: 0.2748064068 | E24: 0.02199897748 | F24: 0.2748064068
A25: 1158.30937 | B25: 1429.236369 | C25: 1.23389865 | D25: 0.09127948921 | E25: 0.205525895 | F25: 0.09127948921
A26: 852.9879447 | B26: 1827.498732 | C26: 2.142467245 | D26: 0.330914191 | E26: 0.03410880673 | F26: 0.330914191
A27: 792.0125121 | B27: 2345.228193 | C27: 2.961099928 | D27: 0.4714530637 | E27: 0.1746476795 | F27: 0.4714530637
A28: 2409.069811 | B28: 3782.330845 | C28: 1.570037875 | D28: 0.1959101292 | E28: 0.100895255 | F28: 0.1959101292
A29: 840.4004127 | B29: 1779.917999 | C29: 2.117940415 | D29: 0.3259137378 | E29: 0.02910835355 | F29: 0.3259137378
A30: 336.6101232 | B30: 1113.795577 | C30: 3.308859421 | D30: 0.5196783162 | E30: 0.222872932 | F30: 0.5196783162
A31: 877.1397695 | B31: 2109.351892 | C31: 2.404807039 | D31: 0.3810802345 | E31: 0.08427485027 | F31: 0.3810802345
A32: 398.0077199 | B32: 1025.410766 | C32: 2.576358988 | D32: 0.4110063771 | E32: 0.1142009929 | F32: 0.4110063771
A33: 624.1009292 | B33: 1397.347832 | C33: 2.238977329 | D33: 0.3500496962 | E33: 0.05324431195 | F33: 0.3500496962
A34: 750.0775128 | B34: 1036.30636 | C34: 1.381599025 | D34: 0.140382018 | E34: 0.1564233663 | F34: 0.140382018
A35: 732.6970519 | B35: 1654.097085 | C35: 2.257545708 | D35: 0.3536365522 | E35: 0.05683116799 | F35: 0.3536365522
A36: 538.7082379 | B36: 620.6047428 | C36: 1.152023858 | D36: 0.06146147345 | E36: 0.2353439108 | F36: 0.06146147345
A37: 4117.964963 | B37: 2524.262313 | C37: 0.6129878071 | D37: -0.2125481639 | E37: 0.5093535482 | F37: -0.2125481639
A38: 791.4941824 | B38: 975.3636225 | C38: 1.232306749 | D38: 0.09071882684 | E38: 0.2060865574 | F38: 0.09071882684
A39: 379.44076 | B39: 1096.992629 | C39: 2.89107746 | D39: 0.4610597278 | E39: 0.1642543436 | F39: 0.4610597278
A40: 258.2681352 | B40: 528.2289176 | C40: 2.045273286 | D40: 0.310751346 | E40: 0.01394596179 | F40: 0.310751346
A41: 176.7398636 | B41: 952.0846008 | C41: 5.386926195 | D41: 0.7313410254 | E41: 0.4345356412 | F41: 0.7313410254
A42: 575.1592116 | B42: 687.8428554 | C42: 1.195917307 | D42: 0.07770115092 | E42: 0.2191042333 | F42: 0.07770115092
A43: 1381.236876 | B43: 1994.845957 | C43: 1.444246089 | D43: 0.1596412002 | E43: 0.137164184 | F43: 0.1596412002
A44: 410.5196036 | B44: 719.9542845 | C44: 1.75376347 | D44: 0.2439710197 | E44: 0.05283436456 | F44: 0.2439710197
A45: 1337.108557 | B45: 1306.882421 | C45: 0.9773944042 | D45: -0.009930151713 | E45: 0.3067355359 | F45: -0.009930151713
A46: 444.9145745 | B46: 982.1761693 | C46: 2.207561239 | D46: 0.34391276 | E46: 0.04710737575 | F46: 0.34391276
A47: 634.6411283 | B47: 1116.118683 | C47: 1.758661128 | D47: 0.2451821645 | E47: 0.05162321977 | F47: 0.2451821645
A48: 159.4276232 | B48: 468.4618998 | C48: 2.938398569 | D48: 0.4681107038 | E48: 0.1713053195 | F48: 0.4681107038
A49: 285.9746737 | B49: 1204.238082 | C49: 4.210995562 | D49: 0.6243847837 | E49: 0.3275793994 | F49: 0.6243847837
A50: 160.8899658 | B50: 454.4568911 | C50: 2.82464409 | D50: 0.4509637338 | E50: 0.1541583495 | F50: 0.4509637338
A51: 900.7805384 | B51: 1153.767425 | C51: 1.280852967 | D51: 0.1074992786 | E51: 0.1893061057 | F51: 0.1074992786
A52: 298.0195897 | B52: 539.9660518 | C52: 1.811847511 | D52: 0.2581216437 | E52: 0.03868374056 | F52: 0.2581216437
A53: 143.2183567 | B53: 375.4709268 | C53: 2.621667609 | D53: 0.4185776283 | E53: 0.1217722441 | F53: 0.4185776283
A54: 1441.571757 | B54: 1687.712792 | C54: 1.170744907 | D54: 0.0684622771 | E54: 0.2283431071 | F54: 0.0684622771
A55: 78.48602948 | B55: 114.2010732 | C55: 1.455049694 | D55: 0.1628778259 | E55: 0.1339275584 | F55: 0.1628778259
A56: 273.7237005 | B56: 658.4244956 | C56: 2.40543473 | D56: 0.381193577 | E56: 0.08438819279 | F56: 0.381193577
A57: 161.5968309 | B57: 293.2319615 | C57: 1.814589803 | D57: 0.258778466 | E57: 0.03802691826 | F57: 0.258778466
A58: 112.1194413 | B58: 357.1580475 | C58: 3.185513978 | D58: 0.5031795151 | E58: 0.2063741309 | F58: 0.5031795151
A59: 274.0294094 | B59: 421.5052213 | C59: 1.538175126 | D59: 0.1870057841 | E59: 0.1097996002 | F59: 0.1870057841
A60: 148.0623139 | B60: 180.7045128 | C60: 1.220462574 | D60: 0.08652446615 | E60: 0.2102809181 | F60: 0.08652446615
A61: 137.2536368 | B61: 494.1048647 | C61: 3.599940055 | D61: 0.5562952691 | E61: 0.2594898848 | F61: 0.5562952691
A62: 448.7626812 | B62: 674.1678638 | C62: 1.502281478 | D62: 0.1767513126 | E62: 0.1200540716 | F62: 0.1767513126
A63: 85.74647907 | B63: 441.6960188 | C63: 5.151185489 | D63: 0.7119071887 | E63: 0.4151018045 | F63: 0.7119071887
A64: 341.415162 | B64: 566.0793502 | C64: 1.658038111 | D64: 0.2195945088 | E64: 0.0772108754 | F64: 0.2195945088
A65: 198.1034231 | B65: 335.3813101 | C65: 1.692960702 | D65: 0.228646877 | E65: 0.06815850721 | F65: 0.228646877
A66: 77.3280614 | B66: 156.1195048 | C66: 2.018924333 | D66: 0.3051200423 | E66: 0.008314658106 | F66: 0.3051200423
A67: 87.3987163 | B67: 130.7744037 | C67: =IF(AND(A67>0, B67>0),B67/A67, "") -> 1.496296619 | D67: 0.1750176946 | E67: =IF(D67<>"", ABS(D67-H$3),"") -> 0.1217876896 | F67: 0.1750176946
A68: 251.6057206 | B68: 1053.276501 | C68: 4.186218414 | D68: =IF(C68<>"",LOG10(C68),"") -> 0.6218218837 | E68: 0.3250164994 | F68: =IF(AND(D68<>"",D68>H$18, D68<H$15), D68,"") -> 0.6218218837
A69: 71.69919357 | B69: 106.8860421 | C69: 1.490756545 | D69: 0.1734067248 | E69: 0.1233986594 | F69: 0.1734067248
A70: 81.4026772 | B70: 249.3689533 | C70: 3.063399902 | D70: 0.4862036941 | E70: 0.1893983099 | F70: 0.4862036941
A71: 55.10538757 | B71: 210.111787 | C71: 3.812908252 | D71: 0.5812563552 | E71: 0.284450971 | F71: 0.5812563552
A72: 1256.718993 | B72: 432.9730326 | C72: 0.3445265291 | D72: -0.4627773311 | E72: 0.7595827154
A73: 36.20253764 | B73: 103.6829927 | C73: 2.863970302 | D73: 0.4569685103 | E73: 0.160163126 | F73: 0.4569685103
A74: 222.2079344 | B74: 132.2839496 | C74: 0.5953160493 | D74: -0.225252409 | E74: 0.5220577933 | F74: -0.225252409
A75: 182.005284 | B75: 360.5690068 | C75: 1.981090872 | D75: 0.296904397 | E75: 9.901277918e-05 | F75: 0.296904397
A76: 137.2438078 | B76: 300.6049944 | C76: 2.190299141 | D76: 0.3405034329 | E76: 0.04369804864 | F76: 0.3405034329
A77: 1338.592785 | B77: 1396.421134 | C77: 1.043200852 | D77: 0.01836793315 | E77: 0.2784374511 | F77: 0.01836793315
A78: 115.9181069 | B78: 221.7113063 | C78: 1.91265465 | D78: 0.2816365607 | E78: 0.01516882356 | F78: 0.2816365607
A79: 103.9603614 | B79: 335.9249319 | C79: 3.231278993 | D79: 0.5093744572 | E79: 0.212569073 | F79: 0.5093744572
A80: 264.3890841 | B80: 513.3809091 | C80: 1.941762879 | D80: 0.2881961943 | E80: 0.008609189968 | F80: 0.2881961943
A81: 52.24985897 | B81: 226.3575971 | C81: 4.332214509 | D81: 0.6367099525 | E81: 0.3399045683 | F81: 0.6367099525
A82: 85.64661767 | B82: 266.867284 | C82: 3.115911536 | D82: 0.4935851191 | E82: 0.1967797348 | F82: 0.4935851191
A83: 123.7273189 | B83: 62.0299221 | C83: 0.5013437827 | D83: -0.2998643665 | E83: 0.5966697507 | F83: -0.2998643665
A84: 41.97323459 | B84: 53.06767688 | C84: 1.264321833 | D84: 0.1018576375 | E84: 0.1949477467 | F84: 0.1018576375
A85: 111.5984068 | B85: 297.1864181 | C85: 2.662998753 | D85: 0.425370963 | E85: 0.1285655788 | F85: 0.425370963
A86: 1093.257754 | B86: 525.8730229 | C86: 0.4810146749 | D86: -0.3178416739 | E86: 0.6146470582 | F86: -0.3178416739
A87: 62.27820371 | B87: 153.4262206 | C87: 2.463562073 | D87: 0.3915635094 | E87: 0.09475812512 | F87: 0.3915635094
A88: 68.52064391 | B88: 141.1380572 | C88: 2.059788834 | D88: 0.3138226995 | E88: 0.01701731525 | F88: 0.3138226995
A89: 1375.272838 | B89: 2928.231317 | C89: 2.129200284 | D89: 0.3282165155 | E89: 0.03141113129 | F89: 0.3282165155
A90: 399.7815358 | B90: 167.1581547 | C90: 0.4181237495 | D90: -0.3786951638 | E90: 0.675500548 | F90: -0.3786951638
A91: 58.58477876 | B91: 139.111295 | C91: 2.374529663 | D91: 0.3755775993 | E91: 0.07877221507 | F91: 0.3755775993
A92: 28.01389044 | B92: 107.3141457 | C92: 3.830747676 | D92: 0.5832835468 | E92: 0.2864781626 | F92: 0.5832835468
A93: 67.71190101 | B93: 121.8937636 | C93: 1.800182269 | D93: 0.2553164799 | E93: 0.04148890434 | F93: 0.2553164799
A94: 754.7310366 | B94: 394.4428431 | C94: 0.5226270339 | D94: -0.2818081293 | E94: 0.5786135135 | F94: -0.2818081293
A95: 77.66709184 | B95: 102.5493509 | C95: 1.320370681 | D95: 0.1206958721 | E95: 0.1761095121 | F95: 0.1206958721
A96: 74.85354332 | B96: 153.2017651 | C96: 2.046686882 | D96: 0.3110514059 | E96: 0.01424602169 | F96: 0.3110514059
A97: 19.95635983 | B97: 52.71073267 | C97: 2.641299972 | D97: 0.4218177268 | E97: 0.1250123425 | F97: 0.4218177268
A98: 45.41421003 | B98: 125.8967215 | C98: 2.772187855 | D98: 0.4428226566 | E98: 0.1460172724 | F98: 0.4428226566
A99: 7.466644302 | B99: 135.4812747 | C99: 18.14486793 | D99: 1.258753812 | E99: 0.9619484273
A100: 49.37522813 | B100: 117.8057096 | C100: 2.385927398 | D100: 0.3776572242 | E100: 0.08085184001 | F100: 0.3776572242
A101: 126.2911468 | B101: 214.5914733 | C101: 1.699180654 | D101: 0.2302395547 | E101: 0.06656582954 | F101: 0.2302395547
A102: 26.59256531 | B102: 50.18524379 | C102: 1.88719077 | D102: 0.2758158037 | E102: 0.02098958053 | F102: 0.2758158037
A103: 291.1728465 | B103: 276.4282287 | C103: 0.9493612884 | D103: -0.02256848123 | E103: 0.3193738655 | F103: -0.02256848123
A104: 206.8658367 | B104: 78.0499158 | C104: 0.3772972717 | D104: -0.4233163353 | E104: 0.7201217195 | F104: -0.4233163353
A105: 39.16132142 | B105: 158.6332649 | C105: 4.050763843 | D105: 0.6075369248 | E105: 0.3107315406 | F105: 0.6075369248
A106: 55.47873662 | B106: 114.1542033 | C106: 2.057620815 | D106: 0.3133653446 | E106: 0.01655996038 | F106: 0.3133653446
A107: 52.96379502 | B107: 124.0149367 | C107: 2.341503978 | D107: 0.3694949 | E107: 0.07268951574 | F107: 0.3694949
A108: 64.1583543 | B108: 182.6437415 | C108: 2.846764751 | D108: 0.4543515797 | E108: 0.1575461955 | F108: 0.4543515797
A109: 41.0542301 | B109: 81.31362009 | C109: 1.980639264 | D109: 0.2968053842 | E109: 0 | F109: 0.2968053842
A110: 21.28064494 | B110: 24.15342376 | C110: 1.134994913 | D110: 0.05499391518 | E110: 0.2418114691 | F110: 0.05499391518
A111: 506.3305608 | B111: 596.9450676 | C111: 1.17896314 | D111: 0.07150022706 | E111: 0.2253051572 | F111: 0.07150022706
A112: 41.06961101 | B112: 110.2016677 | C112: 2.683289786 | D112: 0.4286675776 | E112: 0.1318621933 | F112: 0.4286675776
A113: 6.163024902 | B113: 88.32553117 | C113: 14.33152268 | D113: 1.156292335 | E113: 0.8594869511
A114: 60.53475566 | B114: 86.15330591 | C114: 1.423203992 | D114: 0.1532671532 | E114: 0.143538231 | F114: 0.1532671532
A115: 839.1468847 | B115: 200.7291524 | C115: 0.2392062178 | D115: -0.6212275358 | E115: 0.91803292
A116: 150.0318602 | B116: 71.92878194 | C116: 0.4794233828 | D116: -0.3192807881 | E116: 0.6160861723 | F116: -0.3192807881
A117: 10.56005859 | B117: 44.19760612 | C117: 4.185356145 | D117: 0.6217324193 | E117: 0.3249270351 | F117: 0.6217324193
A118: 34.96737299 | B118: 54.8775738 | C118: 1.569393669 | D118: 0.1957318964 | E118: 0.1010734878 | F118: 0.1957318964
A119: 16.14090433 | B119: 65.56613865 | C119: 4.062110603 | D119: 0.6087517442 | E119: 0.31194636 | F119: 0.6087517442
A120: 554.6221447 | B120: 376.7273951 | C120: 0.6792505468 | D120: -0.1679700033 | E120: 0.4647753875 | F120: -0.1679700033
A121: 6.292638966 | B121: 58.23151254 | C121: 9.253909663 | D121: 0.9663252556 | E121: 0.6695198714 | F121: 0.9663252556
A122: 86.34868302 | B122: 171.0140389 | C122: 1.980505469 | D122: 0.296776046 | E122: 2.93382684e-05 | F122: 0.296776046
A123: 154.7214612 | B123: 301.3940237 | C123: 1.947978137 | D123: 0.2895840782 | E123: 0.007221306031 | F123: 0.2895840782
A124: 80.82180685 | B124: 123.6396952 | C124: 1.52978138 | D124: 0.1846293706 | E124: 0.1121760136 | F124: 0.1846293706
A125: 21.78621202 | B125: 50.34668708 | C125: 2.310942675 | D125: 0.3637891725 | E125: 0.06698378826 | F125: 0.3637891725
A126: 4.946302301 | B126: 30.19539794 | C126: 6.104640618 | D126: 0.785660102 | E126: 0.4888547178 | F126: 0.785660102
A127: 102.2547071 | B127: 269.7304409 | C127: 2.637829089 | D127: 0.4212466532 | E127: 0.124441269 | F127: 0.4212466532
A128: 74.24725055 | B128: 244.7787183 | C128: 3.296805154 | D128: 0.5180932805 | E128: 0.2212878962 | F128: 0.5180932805
A129: 65.84805721 | B129: 77.24794056 | C129: 1.173124065 | D129: 0.06934394387 | E129: 0.2274614404 | F129: 0.06934394387
A130: 40.1619224 | B130: 113.3734294 | C130: 2.822908434 | D130: 0.4506967912 | E130: 0.153891407 | F130: 0.4506967912
A131: 11.06839508 | B131: 48.26976004 | C131: =IF(AND(A131>0, B131>0),B131/A131, "") -> 4.361044188 | D131: 0.6395904871 | E131: =IF(D131<>"", ABS(D131-H$3),"") -> 0.3427851029 | F131: 0.6395904871
A132: 18.90494079 | B132: 53.32839115 | C132: 2.820870572 | D132: =IF(C132<>"",LOG10(C132),"") -> 0.4503831602 | E132: 0.153577776 | F132: =IF(AND(D132<>"",D132>H$18, D132<H$15), D132,"") -> 0.4503831602
A133: 42.95752822 | B133: 41.19413973 | C133: 0.95895042 | D133: -0.01820384628 | E133: 0.3150092305 | F133: -0.01820384628
A134: 138.5494517 | B134: 650.703981 | C134: 4.696546778 | D134: 0.6717786523 | E134: 0.3749732681 | F134: 0.6717786523
A135: 1.875263272 | B135: 26.89285941 | C135: 14.34084473 | D135: 1.156574734 | E135: 0.8597693494
A136: 238.0529021 | B136: 196.7116608 | C136: 0.8263359072 | D136: -0.0828433752 | E136: 0.3796487594 | F136: -0.0828433752
A137: 15.67442054 | B137: 32.15978717 | C137: 2.05173691 | D137: 0.3121216714 | E137: 0.01531628712 | F137: 0.3121216714
A138: 0 | B138: 48.23962183
A139: 124.8952818 | B139: 132.4209218 | C139: 1.060255598 | D139: 0.02541057434 | E139: 0.2713948099 | F139: 0.02541057434
A140: 65.6819464 | B140: 77.23264696 | C140: 1.175858073 | D140: 0.07035490538 | E140: 0.2264504789 | F140: 0.07035490538
A141: 73.15350076 | B141: 234.0766737 | C141: 3.199801394 | D141: 0.5051230232 | E141: 0.208317639 | F141: 0.5051230232
A142: 9.895842094 | B142: 25.9266966 | C142: 2.6199586 | D142: 0.4182944287 | E142: 0.1214890445 | F142: 0.4182944287
A143: 12.10538192 | B143: 13.29769903 | C143: 1.098494795 | D143: 0.04079800358 | E143: 0.2560073807 | F143: 0.04079800358
A144: 20.40559392 | B144: 33.53150439 | C144: 1.643250597 | D144: 0.2157037986 | E144: 0.08110158563 | F144: 0.2157037986
A145: 3.924072176 | B145: 3.852369232 | C145: 0.9817274145 | D145: -0.008009081278 | E145: 0.3048144655 | F145: -0.008009081278
A146: 170.4032529 | B146: 313.8542464 | C146: 1.841832484 | D146: 0.2652501282 | E146: 0.03155525608 | F146: 0.2652501282
A147: 107.9938471 | B147: 176.9983333 | C147: 1.63896683 | D147: 0.2145701643 | E147: 0.08223521996 | F147: 0.2145701643
A148: 26.56738385 | B148: 34.4554704 | C148: 1.296908668 | D148: 0.1129093929 | E148: 0.1838959914 | F148: 0.1129093929
A149: 124.2535555 | B149: 147.7023999 | C149: 1.188717693 | D149: 0.07507872693 | E149: 0.2217266573 | F149: 0.07507872693
A150: 20.35983059 | B150: 25.94365657 | C150: 1.274256996 | D150: 0.1052570268 | E150: 0.1915483574 | F150: 0.1052570268
A151: 38.06608498 | B151: 45.06585868 | C151: 1.183884781 | D151: 0.07330943774 | E151: 0.2234959465 | F151: 0.07330943774
A152: 90.20140067 | B152: 133.1222718 | C152: 1.475833755 | D152: 0.1690374391 | E152: 0.1277679451 | F152: 0.1690374391
A153: 24.9304735 | B153: 40.21329503 | C153: 1.613017701 | D153: 0.2076391332 | E153: 0.08916625106 | F153: 0.2076391332
A154: 6.254699551 | B154: 38.9798682 | C154: 6.232092825 | D154: 0.7946339134 | E154: 0.4978285292 | F154: 0.7946339134
A155: 1.243847627 | B155: 12.88207082 | C155: 10.35663094 | D155: 1.0152185 | E155: 0.7184131162 | F155: 1.0152185
A156: 148.21323 | B156: 42.38988265 | C156: 0.2860060648 | D156: -0.5436247575 | E156: 0.8404301418
A157: 16.75384192 | B157: 39.10728299 | C157: 2.334227765 | D157: 0.3681432305 | E157: 0.07133784631 | F157: 0.3681432305
A158: 3.765014648 | B158: 52.03676714 | C158: 13.82113272 | D158: 1.140543637 | E158: 0.8437382531
A159: 17.1846307 | B159: 6.995549864 | C159: 0.4070817689 | D159: -0.390318347 | E159: 0.6871237312 | F159: -0.390318347
A160: 9.702967933 | B160: 21.85540123 | C160: 2.252444962 | D160: 0.3526541878 | E160: 0.05584880359 | F160: 0.3526541878
A161: 22.19714355 | B161: 28.04951082 | C161: 1.263654071 | D161: 0.1016282009 | E161: 0.1951771833 | F161: 0.1016282009
A162: 0 | B162: 1.643234253
A163: 25.6084752 | B163: 29.94167915 | C163: 1.16920976 | D163: 0.06789243199 | E163: 0.2289129522 | F163: 0.06789243199
A164: 24.13563772 | B164: 68.31225694 | C164: 2.830348124 | D164: 0.4518398557 | E164: 0.1550344715 | F164: 0.4518398557
A165: 2.643689285 | B165: 46.13138109 | C165: 17.4496229 | D165: 1.241786046 | E165: 0.9449806618
A166: 0 | B166: 32.95105885
A167: 5.881745215 | B167: 18.98100503 | C167: 3.227104258 | D167: 0.5088129964 | E167: 0.2120076122 | F167: 0.5088129964
A168: 6.761138871 | B168: 24.03839547 | C168: 3.55537668 | D168: 0.5508856195 | E168: 0.2540802353 | F168: 0.5508856195
A169: 2.765543362 | B169: 40.80005634 | C169: 14.75299823 | D169: 1.16888029 | E169: 0.8720749062
A170: 93.46984451 | B170: 328.2258154 | C170: 3.511569075 | D170: 0.5455012157 | E170: 0.2486958315 | F170: 0.5455012157
A171: 11.3551281 | B171: 25.86603426 | C171: 2.277916552 | D171: 0.3575378104 | E171: 0.06073242615 | F171: 0.3575378104
A172: 0.4806864327 | B172: 15.65471577 | C172: 32.56741757 | D172: 1.512783323 | E172: 1.215977938
A173: 43.84579728 | B173: 260.440973 | C173: 5.939930144 | D173: 0.7737813375 | E173: 0.4769759533 | F173: 0.7737813375
A174: 38.65285067 | B174: 88.74978722 | C174: 2.296073529 | D174: 0.3609857916 | E174: 0.0641804074 | F174: 0.3609857916
A175: 54.10858653 | B175: 80.56894117 | C175: 1.489023209 | D175: 0.1729014671 | E175: 0.1239039171 | F175: 0.1729014671
A176: 21.27589691 | B176: 36.81197767 | C176: 1.73021978 | D176: 0.2381012726 | E176: 0.05870411159 | F176: 0.2381012726
A177: 39.77564502 | B177: 65.23573548 | C177: 1.64009246 | D177: 0.214868332 | E177: 0.08193705225 | F177: 0.214868332
A178: 0 | B178: 9.517364502
A179: 0.6485900581 | B179: 24.11404153 | C179: 37.17917232 | D179: 1.570299717 | E179: 1.273494333
A180: 4.902421344 | B180: 9.282933688 | C180: 1.893540566 | D180: 0.2772746137 | E180: 0.01953077055 | F180: 0.2772746137
A181: 49.4305203 | B181: 19.69189326 | C181: 0.398375197 | D181: -0.3997077088 | E181: 0.696513093 | F181: -0.3997077088
A182: 9.691065262 | B182: 9.488113773 | C182: 0.9790578762 | D182: -0.009191634494 | E182: 0.3059970187 | F182: -0.009191634494
A183: 125.3837371 | B183: 214.3293754 | C183: 1.709387361 | D183: 0.2328404885 | E183: 0.06396489571 | F183: 0.2328404885
A184: 4.077496858 | B184: 41.74565393 | C184: 10.23805913 | D184: 1.010217633 | E184: 0.7134122492 | F184: 1.010217633
A185: 3.371778831 | B185: 0.09580678259 | C185: 0.02841431405 | D185: -1.546462824 | E185: 1.843268208
A186: 5.821226513 | B186: 36.53359933 | C186: 6.275928148 | D186: 0.7976779628 | E186: 0.5008725786 | F186: 0.7976779628
A187: 7.392758931 | B187: 11.39513989 | C187: 1.541392057 | D187: 0.1879131166 | E187: 0.1088922676 | F187: 0.1879131166
A188: 19.06461106 | B188: 3.287906368 | C188: 0.1724612349 | D188: -0.7633085084 | E188: 1.060113893
A189: 0.5450439453 | B189: 10.88773957 | C189: 19.97589307 | D189: 1.300506205 | E189: 1.00370082
A190: 0.8778686523 | B190: 37.94215467 | C190: 43.22076493 | D190: 1.635692449 | E190: 1.338887065
A191: 0 | B191: 12.06503798
A192: 3.094813846 | B192: 1.285003352 | C192: 0.4152118401 | D192: -0.3817302707 | E192: 0.6785356549 | F192: -0.3817302707
A193: 15.14296782 | B193: 7.314361663 | C193: 0.4830203532 | D193: -0.3160345689 | E193: 0.6128399531 | F193: -0.3160345689
A194: 0 | B194: 0
A195: 4700.52006 | B195: 5959.606693 | C195: =IF(AND(A195>0, B195>0),B195/A195, "") -> 1.267861134 | D195: 0.1030716888 | E195: =IF(D195<>"", ABS(D195-H$3),"") -> 0.1937336955 | F195: 0.1030716888
A196: 73.29495687 | B196: 201.3355385 | C196: 2.746922122 | D196: =IF(C196<>"",LOG10(C196),"") -> 0.438846347 | E196: 0.1420409627 | F196: =IF(AND(D196<>"",D196>H$18, D196<H$15), D196,"") -> 0.438846347
A197: 163.5723692 | B197: 223.6158135 | C197: 1.367075714 | D197: 0.1357925682 | E197: 0.1610128161 | F197: 0.1357925682
A198: 6052.290436 | B198: 10070.45408 | C198: 1.663907935 | D198: 0.221129293 | E198: 0.07567609129 | F198: 0.221129293
A199: 2051.62822 | B199: 4459.215776 | C199: 2.173500897 | D199: 0.3371598238 | E199: 0.04035443958 | F199: 0.3371598238
A200: 344.298659 | B200: 1258.462116 | C200: 3.655146726 | D200: 0.5629048152 | E200: 0.2660994309 | F200: 0.5629048152
... 7 more rows

Sheet Calculations VPA
A1: RAW | W1: REF | X1: Ratio | AT1: Log10 (Ratio) | BP1: Absolute Deviation | CL1: Within limits | DI1: Sample Overview VPA
A2: Sample 1 | B2: Sample 2 | C2: Sample 3 | D2: Sample 4 | E2: Sample 5 | F2: Sample 6 | G2: Sample 7 | H2: Sample 8 | I2: Sample 9 | J2: Sample 10 | K2: Sample 11 | L2: Sample 12 | M2: Sample 13 | N2: Sample 14 | O2: Sample 15 | P2: Sample 16 | Q2: Sample 17 | R2: Sample 18 | S2: Sample 19 | T2: Sample 20 | U2: Sample 21 | V2: Sample 22 | AB2: REF | AX2: REF | BT2: REF | CP2: REF | DN2: REF | DV2: EXCL
A3: 004 _B2 | B3: 004_A | C3: 004_C | D3: 004_D2 | E3: 02_A | F3: 02_B | G3: 02_C | H3: 02_D | I3: 1_A | J3: 1_B | K3: 1_C | L3: 1_D | M3: 5_A | N3: 5_C | O3: 5_D | P3: H2O _B2 | Q3: H2O_A1 | R3: H2O_A2 | S3: H2O_B1 | T3: H2O_C | U3: H2O_D1 | V3: H2O_D2 | W3: 02_A | X3: =A$3 -> 004 _B2 | Y3: =B$3 -> 004_A | Z3: =C$3 -> 004_C | AA3: =D$3 -> 004_D2 | AB3: =E$3 -> 02_A | AC3: =F$3 -> 02_B | AD3: =G$3 -> 02_C | AE3: =H$3 -> 02_D | AF3: =I$3 -> 1_A | AG3: =J$3 -> 1_B | AH3: =K$3 -> 1_C | AI3: =L$3 -> 1_D | AJ3: =M$3 -> 5_A | AK3: =N$3 -> 5_C | AL3: =O$3 -> 5_D | AM3: =P$3 -> H2O _B2 | AN3: =Q$3 -> H2O_A1 | AO3: =R$3 -> H2O_A2 | AP3: =S$3 -> H2O_B1 | AQ3: =T$3 -> H2O_C | AR3: =U$3 -> H2O_D1 | AS3: =V$3 -> H2O_D2 | AT3: =A3 -> 004 _B2 | AU3: =B3 -> 004_A | AV3: =C3 -> 004_C | AW3: =D3 -> 004_D2 | AX3: =E3 -> 02_A | AY3: =F3 -> 02_B | AZ3: =G3 -> 02_C | BA3: =H3 -> 02_D | BB3: =I3 -> 1_A | BC3: =J3 -> 1_B | BD3: =K3 -> 1_C | BE3: =L3 -> 1_D | BF3: =M3 -> 5_A | BG3: =N3 -> 5_C | BH3: =O3 -> 5_D | BI3: =P3 -> H2O _B2 | BJ3: =Q3 -> H2O_A1 | BK3: =R3 -> H2O_A2 | BL3: =S3 -> H2O_B1 | BM3: =T3 -> H2O_C | BN3: =U3 -> H2O_D1 | BO3: =V3 -> H2O_D2 | BP3: =AT3 -> 004 _B2 | BQ3: =AU3 -> 004_A | BR3: =AV3 -> 004_C | BS3: =AW3 -> 004_D2 | BT3: =AX3 -> 02_A | BU3: =AY3 -> 02_B | BV3: =AZ3 -> 02_C | BW3: =BA3 -> 02_D | BX3: =BB3 -> 1_A | BY3: =BC3 -> 1_B | BZ3: =BD3 -> 1_C | CA3: =BE3 -> 1_D | CB3: =BF3 -> 5_A | CC3: =BG3 -> 5_C | CD3: =BH3 -> 5_D | CE3: =BI3 -> H2O _B2 | CF3: =BJ3 -> H2O_A1 | CG3: =BK3 -> H2O_A2 | CH3: =BL3 -> H2O_B1 | CI3: =BM3 -> H2O_C | CJ3: =BN3 -> H2O_D1 | CK3: =BO3 -> H2O_D2 | CL3: =BP3 -> 004 _B2 | CM3: =BQ3 -> 004_A | CN3: =BR3 -> 004_C | CO3: =BS3 -> 004_D2 | CP3: =BT3 -> 02_A | CQ3: =BU3 -> 02_B | CR3: =BV3 -> 02_C | CS3: =BW3 -> 02_D | CT3: =BX3 -> 1_A | CU3: =BY3 -> 1_B | CV3: =BZ3 -> 1_C | CW3: =CA3 -> 1_D | CX3: =CB3 -> 5_A | CY3: =CC3 -> 5_C | CZ3: =CD3 -> 5_D | DA3: =CE3 -> H2O _B2 | DB3: =CF3 -> H2O_A1 | DC3: =CG3 -> H2O_A2 | DD3: =CH3 -> H2O_B1 | DE3: =CI3 -> H2O_C | DF3: =CJ3 -> H2O_D1 | DG3: =CK3 -> H2O_D2 | DJ3: =CL3 -> 004 _B2 | DK3: =CM3 -> 004_A | DL3: =CN3 -> 004_C | DM3: =CO3 -> 004_D2 | DN3: =CP3 -> 02_A | DO3: =CQ3 -> 02_B | DP3: =CR3 -> 02_C | DQ3: =CS3 -> 02_D | DR3: =CT3 -> 1_A | DS3: =CU3 -> 1_B | DT3: =CV3 -> 1_C | DU3: =CW3 -> 1_D | DV3: =CX3 -> 5_A | DW3: =CY3 -> 5_C | DX3: =CZ3 -> 5_D | DY3: =DA3 -> H2O _B2 | DZ3: =DB3 -> H2O_A1 | EA3: =DC3 -> H2O_A2 | EB3: =DD3 -> H2O_B1 | EC3: =DE3 -> H2O_C | ED3: =DF3 -> H2O_D1 | EE3: =DG3 -> H2O_D2
A4: 16072.80452 | B4: 26119.00761 | C4: 58137.69444 | D4: 28753.73656 | E4: 22621.23026 | F4: 17341.08441 | G4: 16087.80803 | H4: 14801.31992 | I4: 18104.049 | J4: 25483.91101 | K4: 27638.98405 | L4: 14540.9724 | M4: 14331.42355 | N4: 7364.714273 | O4: 24602.29217 | P4: 21727.54636 | Q4: 11375.86186 | R4: 24660.41703 | S4: 26751.47769 | T4: 27592.7245 | U4: 4941.853674 | V4: 9625.905547 | W4: 22621.23026 | X4: =IF(AND(A4>0, $W4>0),$W4/A4, "") -> 1.407422721 | Y4: =IF(AND(B4>0, $W4>0),$W4/B4, "") -> 0.8660830686 | Z4: =IF(AND(C4>0, $W4>0),$W4/C4, "") -> 0.3890974777 | AA4: =IF(AND(D4>0, $W4>0),$W4/D4, "") -> 0.7867231521 | AB4: =IF(AND(E4>0, $W4>0),$W4/E4, "") -> 1 | AC4: =IF(AND(F4>0, $W4>0),$W4/F4, "") -> 1.304487639 | AD4: =IF(AND(G4>0, $W4>0),$W4/G4, "") -> 1.406110157 | AE4: =IF(AND(H4>0, $W4>0),$W4/H4, "") -> 1.528325202 | AF4: =IF(AND(I4>0, $W4>0),$W4/I4, "") -> 1.249512209 | AG4: =IF(AND(J4>0, $W4>0),$W4/J4, "") -> 0.8876671345 | AH4: =IF(AND(K4>0, $W4>0),$W4/K4, "") -> 0.8184537545 | AI4: =IF(AND(L4>0, $W4>0),$W4/L4, "") -> 1.555688962 | AJ4: =IF(AND(M4>0, $W4>0),$W4/M4, "") -> 1.578435679 | AK4: =IF(AND(N4>0, $W4>0),$W4/N4, "") -> 3.0715693 | AL4: =IF(AND(O4>0, $W4>0),$W4/O4, "") -> 0.9194765312 | AM4: =IF(AND(P4>0, $W4>0),$W4/P4, "") -> 1.041131377 | AN4: =IF(AND(Q4>0, $W4>0),$W4/Q4, "") -> 1.988528918 | AO4: =IF(AND(R4>0, $W4>0),$W4/R4, "") -> 0.9173093155 | AP4: =IF(AND(S4>0, $W4>0),$W4/S4, "") -> 0.8456067559 | AQ4: =IF(AND(T4>0, $W4>0),$W4/T4, "") -> 0.8198259025 | AR4: =IF(AND(U4>0, $W4>0),$W4/U4, "") -> 4.577478767 | AS4: =IF(AND(V4>0, $W4>0),$W4/V4, "") -> 2.350036592 | AT4: =IF(X4<>"",LOG10(X4),"") -> 0.1484245577 | AU4: =IF(Y4<>"",LOG10(Y4),"") -> -0.0624404515 | AV4: =IF(Z4<>"",LOG10(Z4),"") -> -0.4099415845 | AW4: =IF(AA4<>"",LOG10(AA4),"") -> -0.104178069 | AX4: =IF(AB4<>"",LOG10(AB4),"") -> 0 | AY4: =IF(AC4<>"",LOG10(AC4),"") -> 0.1154399683 | AZ4: =IF(AD4<>"",LOG10(AD4),"") -> 0.1480193452 | BA4: =IF(AE4<>"",LOG10(AE4),"") -> 0.1842157747 | BB4: =IF(AF4<>"",LOG10(AF4),"") -> 0.09674050405 | BC4: =IF(AG4<>"",LOG10(AG4),"") -> -0.05174985939 | BD4: =IF(AH4<>"",LOG10(AH4),"") -> -0.08700585471 | BE4: =IF(AI4<>"",LOG10(AI4),"") -> 0.1919227704 | BF4: =IF(AJ4<>"",LOG10(AJ4),"") -> 0.1982268892 | BG4: =IF(AK4<>"",LOG10(AK4),"") -> 0.4873603182 | BH4: =IF(AL4<>"",LOG10(AL4),"") -> -0.03645935127 | BI4: =IF(AM4<>"",LOG10(AM4),"") -> 0.0175055353 | BJ4: =IF(AN4<>"",LOG10(AN4),"") -> 0.298531911 | BK4: =IF(AO4<>"",LOG10(AO4),"") -> -0.03748419611 | BL4: =IF(AP4<>"",LOG10(AP4),"") -> -0.07283155594 | BM4: =IF(AQ4<>"",LOG10(AQ4),"") -> -0.08627836421 | BN4: =IF(AR4<>"",LOG10(AR4),"") -> 0.6606263385 | BO4: =IF(AS4<>"",LOG10(AS4),"") -> 0.3710746246 | BP4: =IF(AT4<>"", ABS(AT4-DJ$4),"") -> 0.05032999979 | BQ4: =IF(AU4<>"", ABS(AU4-DK$4),"") -> 0.1341862714 | BR4: =IF(AV4<>"", ABS(AV4-DL$4),"") -> 0.2335959329 | BS4: =IF(AW4<>"", ABS(AW4-DM$4),"") -> 0.08948299844 | BT4: =IF(AX4<>"", ABS(AX4-DN$4),"") -> 0 | BU4: =IF(AY4<>"", ABS(AY4-DO$4),"") -> 0.02865201772 | BV4: =IF(AZ4<>"", ABS(AZ4-DP$4),"") -> 0.04770064891 | BW4: =IF(BA4<>"", ABS(BA4-DQ$4),"") -> 0.07321449369 | BX4: =IF(BB4<>"", ABS(BB4-DR$4),"") -> 0.072789841 | BY4: =IF(BC4<>"", ABS(BC4-DS$4),"") -> 0.1131388281 | BZ4: =IF(BD4<>"", ABS(BD4-DT$4),"") -> 0.1365345636 | CA4: =IF(BE4<>"", ABS(BE4-DU$4),"") -> 0.04167380057 | CB4: =IF(BF4<>"", ABS(BF4-DV$4),"") -> 0.3818285157 | CC4: =IF(BG4<>"", ABS(BG4-DW$4),"") -> 0.11525666 | CD4: =IF(BH4<>"", ABS(BH4-DX$4),"") -> 0.09642525325 | CE4: =IF(BI4<>"", ABS(BI4-DY$4),"") -> 0.007403565006 | CF4: =IF(BJ4<>"", ABS(BJ4-DZ$4),"") -> 0.05680740978 | CG4: =IF(BK4<>"", ABS(BK4-EA$4),"") -> 0.1105794922 | CH4: =IF(BL4<>"", ABS(BL4-EB$4),"") -> 0.07272626036 | CI4: =IF(BM4<>"", ABS(BM4-EC$4),"") -> 0.04121762234 | CJ4: =IF(BN4<>"", ABS(BN4-ED$4),"") -> 0.2582218683 | CK4: =IF(BO4<>"", ABS(BO4-EE$4),"") -> 0.07426924036 | CL4: =IF(AND(AT4<>"",AT4>DJ$19, AT4<DJ$16), AT4,"") -> 0.1484245577 | CM4: =IF(AND(AU4<>"",AU4>DK$19, AU4<DK$16), AU4,"") -> -0.0624404515 | CN4: =IF(AND(AV4<>"",AV4>DL$19, AV4<DL$16), AV4,"") -> -0.4099415845 | CO4: =IF(AND(AW4<>"",AW4>DM$19, AW4<DM$16), AW4,"") -> -0.104178069 | CP4: =IF(AND(AX4<>"",AX4>DN$19, AX4<DN$16), AX4,"") ->  | CQ4: =IF(AND(AY4<>"",AY4>DO$19, AY4<DO$16), AY4,"") -> 0.1154399683 | CR4: =IF(AND(AZ4<>"",AZ4>DP$19, AZ4<DP$16), AZ4,"") -> 0.1480193452 | CS4: =IF(AND(BA4<>"",BA4>DQ$19, BA4<DQ$16), BA4,"") -> 0.1842157747 | CT4: =IF(AND(BB4<>"",BB4>DR$19, BB4<DR$16), BB4,"") -> 0.09674050405 | CU4: =IF(AND(BC4<>"",BC4>DS$19, BC4<DS$16), BC4,"") -> -0.05174985939 | CV4: =IF(AND(BD4<>"",BD4>DT$19, BD4<DT$16), BD4,"") -> -0.08700585471 | CW4: =IF(AND(BE4<>"",BE4>DU$19, BE4<DU$16), BE4,"") -> 0.1919227704 | CX4: =IF(AND(BF4<>"",BF4>DV$19, BF4<DV$16), BF4,"") -> 0.1982268892 | CY4: =IF(AND(BG4<>"",BG4>DW$19, BG4<DW$16), BG4,"") -> 0.4873603182 | CZ4: =IF(AND(BH4<>"",BH4>DX$19, BH4<DX$16), BH4,"") -> -0.03645935127 | DA4: =IF(AND(BI4<>"",BI4>DY$19, BI4<DY$16), BI4,"") -> 0.0175055353 | DB4: =IF(AND(BJ4<>"",BJ4>DZ$19, BJ4<DZ$16), BJ4,"") -> 0.298531911 | DC4: =IF(AND(BK4<>"",BK4>EA$19, BK4<EA$16), BK4,"") -> -0.03748419611 | DD4: =IF(AND(BL4<>"",BL4>EB$19, BL4<EB$16), BL4,"") -> -0.07283155594 | DE4: =IF(AND(BM4<>"",BM4>EC$19, BM4<EC$16), BM4,"") -> -0.08627836421 | DF4: =IF(AND(BN4<>"",BN4>ED$19, BN4<ED$16), BN4,"") -> 0.6606263385 | DG4: =IF(AND(BO4<>"",BO4>EE$19, BO4<EE$16), BO4,"") -> 0.3710746246 | DI4: Median | DJ4: =MEDIAN(AT:AT) -> 0.1987545575 | DK4: =MEDIAN(AU:AU) -> 0.07174581992 | DL4: =MEDIAN(AV:AV) -> -0.1763456516 | DM4: =MEDIAN(AW:AW) -> -0.01469507054 | DN4: =MEDIAN(AX:AX) -> 0 | DO4: =MEDIAN(AY:AY) -> 0.08678795054 | DP4: =MEDIAN(AZ:AZ) -> 0.1003186963 | DQ4: =MEDIAN(BA:BA) -> 0.2574302683 | DR4: =MEDIAN(BB:BB) -> 0.1695303451 | DS4: =MEDIAN(BC:BC) -> 0.06138896872 | DT4: =MEDIAN(BD:BD) -> 0.04952870886 | DU4: =MEDIAN(BE:BE) -> 0.1502489698 | DV4: =MEDIAN(BF:BF) -> 0.5800554049 | DW4: =MEDIAN(BG:BG) -> 0.3721036582 | DX4: =MEDIAN(BH:BH) -> 0.05996590198 | DY4: =MEDIAN(BI:BI) -> 0.01010197029 | DZ4: =MEDIAN(BJ:BJ) -> 0.3553393207 | EA4: =MEDIAN(BK:BK) -> 0.07309529608 | EB4: =MEDIAN(BL:BL) -> -0.0001052955821 | EC4: =MEDIAN(BM:BM) -> -0.04506074187 | ED4: =MEDIAN(BN:BN) -> 0.4024044702 | EE4: =MEDIAN(BO:BO) -> 0.2968053842
A5: 5799.198461 | B5: 9971.448236 | C5: 26352.30459 | D5: 14376.5927 | E5: 12054.72729 | F5: 8163.377775 | G5: 7198.506185 | H5: 5852.410033 | I5: 6443.870133 | J5: 10527.66248 | K5: 11776.65514 | L5: 7348.624035 | M5: 4177.906642 | N5: 3711.258845 | O5: 13906.94008 | P5: 9362.639676 | Q5: 4107.340485 | R5: 10540.11368 | S5: 13825.6128 | T5: 16606.24734 | U5: 3674.999172 | V5: 5280.048418 | W5: 12054.72729 | X5: =IF(AND(A5>0, $W5>0),$W5/A5, "") -> 2.078688524 | Y5: =IF(AND(B5>0, $W5>0),$W5/B5, "") -> 1.208924421 | Z5: =IF(AND(C5>0, $W5>0),$W5/C5, "") -> 0.4574448981 | AA5: =IF(AND(D5>0, $W5>0),$W5/D5, "") -> 0.8384968216 | AB5: =IF(AND(E5>0, $W5>0),$W5/E5, "") -> 1 | AC5: =IF(AND(F5>0, $W5>0),$W5/F5, "") -> 1.476683748 | AD5: =IF(AND(G5>0, $W5>0),$W5/G5, "") -> 1.674615119 | AE5: =IF(AND(H5>0, $W5>0),$W5/H5, "") -> 2.059788569 | AF5: =IF(AND(I5>0, $W5>0),$W5/I5, "") -> 1.870727845 | AG5: =IF(AND(J5>0, $W5>0),$W5/J5, "") -> 1.145052599 | AH5: =IF(AND(K5>0, $W5>0),$W5/K5, "") -> 1.02361215 | AI5: =IF(AND(L5>0, $W5>0),$W5/L5, "") -> 1.640406045 | AJ5: =IF(AND(M5>0, $W5>0),$W5/M5, "") -> 2.885351044 | AK5: =IF(AND(N5>0, $W5>0),$W5/N5, "") -> 3.248150504 | AL5: =IF(AND(O5>0, $W5>0),$W5/O5, "") -> 0.8668137795 | AM5: =IF(AND(P5>0, $W5>0),$W5/P5, "") -> 1.287535108 | AN5: =IF(AND(Q5>0, $W5>0),$W5/Q5, "") -> 2.934922812 | AO5: =IF(AND(R5>0, $W5>0),$W5/R5, "") -> 1.143699931 | AP5: =IF(AND(S5>0, $W5>0),$W5/S5, "") -> 0.8719126926 | AQ5: =IF(AND(T5>0, $W5>0),$W5/T5, "") -> 0.7259151956 | AR5: =IF(AND(U5>0, $W5>0),$W5/U5, "") -> 3.280198641 | AS5: =IF(AND(V5>0, $W5>0),$W5/V5, "") -> 2.283071354 | AT5: =IF(X5<>"",LOG10(X5),"") -> 0.3177894183 | AU5: =IF(Y5<>"",LOG10(Y5),"") -> 0.08239915076 | AV5: =IF(Z5<>"",LOG10(Z5),"") -> -0.3396612118 | AW5: =IF(AA5<>"",LOG10(AA5),"") -> -0.07649857929 | AX5: =IF(AB5<>"",LOG10(AB5),"") -> 0 | AY5: =IF(AC5<>"",LOG10(AC5),"") -> 0.1692874951 | AZ5: =IF(AD5<>"",LOG10(AD5),"") -> 0.2239150077 | BA5: =IF(AE5<>"",LOG10(AE5),"") -> 0.3138226437 | BB5: =IF(AF5<>"",LOG10(AF5),"") -> 0.2720106106 | BC5: =IF(AG5<>"",LOG10(AG5),"") -> 0.05882543697 | BD5: =IF(AH5<>"",LOG10(AH5),"") -> 0.01013543214 | BE5: =IF(AI5<>"",LOG10(AI5),"") -> 0.214951361 | BF5: =IF(AJ5<>"",LOG10(AJ5),"") -> 0.4601986587 | BG5: =IF(AK5<>"",LOG10(AK5),"") -> 0.5116361442 | BH5: =IF(AL5<>"",LOG10(AL5),"") -> -0.06207419345 | BI5: =IF(AM5<>"",LOG10(AM5),"") -> 0.1097590801 | BJ5: =IF(AN5<>"",LOG10(AN5),"") -> 0.4675966839 | BK5: =IF(AO5<>"",LOG10(AO5),"") -> 0.0583120948 | BL5: =IF(AP5<>"",LOG10(AP5),"") -> -0.05952700016 | BM5: =IF(AQ5<>"",LOG10(AQ5),"") -> -0.1391141124 | BN5: =IF(AR5<>"",LOG10(AR5),"") -> 0.5159001443 | BO5: =IF(AS5<>"",LOG10(AS5),"") -> 0.3585194848 | BP5: =IF(AT5<>"", ABS(AT5-DJ$4),"") -> 0.1190348608 | BQ5: =IF(AU5<>"", ABS(AU5-DK$4),"") -> 0.01065333084 | BR5: =IF(AV5<>"", ABS(AV5-DL$4),"") -> 0.1633155602 | BS5: =IF(AW5<>"", ABS(AW5-DM$4),"") -> 0.06180350875 | BT5: =IF(AX5<>"", ABS(AX5-DN$4),"") -> 0 | BU5: =IF(AY5<>"", ABS(AY5-DO$4),"") -> 0.08249954458 | BV5: =IF(AZ5<>"", ABS(AZ5-DP$4),"") -> 0.1235963114 | BW5: =IF(BA5<>"", ABS(BA5-DQ$4),"") -> 0.05639237537 | BX5: =IF(BB5<>"", ABS(BB5-DR$4),"") -> 0.1024802655 | BY5: =IF(BC5<>"", ABS(BC5-DS$4),"") -> 0.002563531754 | BZ5: =IF(BD5<>"", ABS(BD5-DT$4),"") -> 0.03939327672 | CA5: =IF(BE5<>"", ABS(BE5-DU$4),"") -> 0.06470239116 | CB5: =IF(BF5<>"", ABS(BF5-DV$4),"") -> 0.1198567462 | CC5: =IF(BG5<>"", ABS(BG5-DW$4),"") -> 0.139532486 | CD5: =IF(BH5<>"", ABS(BH5-DX$4),"") -> 0.1220400954 | CE5: =IF(BI5<>"", ABS(BI5-DY$4),"") -> 0.09965710982 | CF5: =IF(BJ5<>"", ABS(BJ5-DZ$4),"") -> 0.1122573632 | CG5: =IF(BK5<>"", ABS(BK5-EA$4),"") -> 0.01478320128 | CH5: =IF(BL5<>"", ABS(BL5-EB$4),"") -> 0.05942170458 | CI5: =IF(BM5<>"", ABS(BM5-EC$4),"") -> 0.09405337051 | CJ5: =IF(BN5<>"", ABS(BN5-ED$4),"") -> 0.1134956741 | CK5: =IF(BO5<>"", ABS(BO5-EE$4),"") -> 0.06171410061 | CL5: =IF(AND(AT5<>"",AT5>DJ$19, AT5<DJ$16), AT5,"") -> 0.3177894183 | CM5: =IF(AND(AU5<>"",AU5>DK$19, AU5<DK$16), AU5,"") -> 0.08239915076 | CN5: =IF(AND(AV5<>"",AV5>DL$19, AV5<DL$16), AV5,"") -> -0.3396612118 | CO5: =IF(AND(AW5<>"",AW5>DM$19, AW5<DM$16), AW5,"") -> -0.07649857929 | CP5: =IF(AND(AX5<>"",AX5>DN$19, AX5<DN$16), AX5,"") ->  | CQ5: =IF(AND(AY5<>"",AY5>DO$19, AY5<DO$16), AY5,"") -> 0.1692874951 | CR5: =IF(AND(AZ5<>"",AZ5>DP$19, AZ5<DP$16), AZ5,"") -> 0.2239150077 | CS5: =IF(AND(BA5<>"",BA5>DQ$19, BA5<DQ$16), BA5,"") -> 0.3138226437 | CT5: =IF(AND(BB5<>"",BB5>DR$19, BB5<DR$16), BB5,"") -> 0.2720106106 | CU5: =IF(AND(BC5<>"",BC5>DS$19, BC5<DS$16), BC5,"") -> 0.05882543697 | CV5: =IF(AND(BD5<>"",BD5>DT$19, BD5<DT$16), BD5,"") -> 0.01013543214 | CW5: =IF(AND(BE5<>"",BE5>DU$19, BE5<DU$16), BE5,"") -> 0.214951361 | CX5: =IF(AND(BF5<>"",BF5>DV$19, BF5<DV$16), BF5,"") -> 0.4601986587 | CY5: =IF(AND(BG5<>"",BG5>DW$19, BG5<DW$16), BG5,"") -> 0.5116361442 | CZ5: =IF(AND(BH5<>"",BH5>DX$19, BH5<DX$16), BH5,"") -> -0.06207419345 | DA5: =IF(AND(BI5<>"",BI5>DY$19, BI5<DY$16), BI5,"") -> 0.1097590801 | DB5: =IF(AND(BJ5<>"",BJ5>DZ$19, BJ5<DZ$16), BJ5,"") -> 0.4675966839 | DC5: =IF(AND(BK5<>"",BK5>EA$19, BK5<EA$16), BK5,"") -> 0.0583120948 | DD5: =IF(AND(BL5<>"",BL5>EB$19, BL5<EB$16), BL5,"") -> -0.05952700016 | DE5: =IF(AND(BM5<>"",BM5>EC$19, BM5<EC$16), BM5,"") -> -0.1391141124 | DF5: =IF(AND(BN5<>"",BN5>ED$19, BN5<ED$16), BN5,"") -> 0.5159001443 | DG5: =IF(AND(BO5<>"",BO5>EE$19, BO5<EE$16), BO5,"") -> 0.3585194848
A6: 4517.797573 | B6: 10144.09837 | C6: 21421.30268 | D6: 14941.27758 | E6: 9804.473301 | F6: 4355.96597 | G6: 5378.531125 | H6: 5559.247163 | I6: 7023.775259 | J6: 7826.406014 | K6: 7207.395689 | L6: 5593.310907 | M6: 573.5971849 | N6: 3353.594962 | O6: 10275.6082 | P6: 10188.2405 | Q6: 4608.55268 | R6: 9998.410978 | S6: 11772.81897 | T6: 11363.24019 | U6: 2940.58579 | V6: 5956.116995 | W6: 9804.473301 | X6: =IF(AND(A6>0, $W6>0),$W6/A6, "") -> 2.170188713 | Y6: =IF(AND(B6>0, $W6>0),$W6/B6, "") -> 0.9665199354 | Z6: =IF(AND(C6>0, $W6>0),$W6/C6, "") -> 0.4576973421 | AA6: =IF(AND(D6>0, $W6>0),$W6/D6, "") -> 0.6562004656 | AB6: =IF(AND(E6>0, $W6>0),$W6/E6, "") -> 1 | AC6: =IF(AND(F6>0, $W6>0),$W6/F6, "") -> 2.250814944 | AD6: =IF(AND(G6>0, $W6>0),$W6/G6, "") -> 1.822890502 | AE6: =IF(AND(H6>0, $W6>0),$W6/H6, "") -> 1.763633279 | AF6: =IF(AND(I6>0, $W6>0),$W6/I6, "") -> 1.395897924 | AG6: =IF(AND(J6>0, $W6>0),$W6/J6, "") -> 1.252742738 | AH6: =IF(AND(K6>0, $W6>0),$W6/K6, "") -> 1.360335095 | AI6: =IF(AND(L6>0, $W6>0),$W6/L6, "") -> 1.752892601 | AJ6: =IF(AND(M6>0, $W6>0),$W6/M6, "") -> 17.09295924 | AK6: =IF(AND(N6>0, $W6>0),$W6/N6, "") -> 2.923571097 | AL6: =IF(AND(O6>0, $W6>0),$W6/O6, "") -> 0.9541501691 | AM6: =IF(AND(P6>0, $W6>0),$W6/P6, "") -> 0.9623323384 | AN6: =IF(AND(Q6>0, $W6>0),$W6/Q6, "") -> 2.127451715 | AO6: =IF(AND(R6>0, $W6>0),$W6/R6, "") -> 0.9806031501 | AP6: =IF(AND(S6>0, $W6>0),$W6/S6, "") -> 0.8328059176 | AQ6: =IF(AND(T6>0, $W6>0),$W6/T6, "") -> 0.8628237313 | AR6: =IF(AND(U6>0, $W6>0),$W6/U6, "") -> 3.334190532 | AS6: =IF(AND(V6>0, $W6>0),$W6/V6, "") -> 1.64611832 | AT6: =IF(X6<>"",LOG10(X6),"") -> 0.3364975005 | AU6: =IF(Y6<>"",LOG10(Y6),"") -> -0.0147891838 | AV6: =IF(Z6<>"",LOG10(Z6),"") -> -0.3394216095 | AW6: =IF(AA6<>"",LOG10(AA6),"") -> -0.1829634658 | AX6: =IF(AB6<>"",LOG10(AB6),"") -> 0 | AY6: =IF(AC6<>"",LOG10(AC6),"") -> 0.3523397899 | AZ6: =IF(AD6<>"",LOG10(AD6),"") -> 0.260760582 | BA6: =IF(AE6<>"",LOG10(AE6),"") -> 0.2464082851 | BB6: =IF(AF6<>"",LOG10(AF6),"") -> 0.1448536613 | BC6: =IF(AG6<>"",LOG10(AG6),"") -> 0.09786189397 | BD6: =IF(AH6<>"",LOG10(AH6),"") -> 0.1336459026 | BE6: =IF(AI6<>"",LOG10(AI6),"") -> 0.2437553078 | BF6: =IF(AJ6<>"",LOG10(AJ6),"") -> 1.232817257 | BG6: =IF(AK6<>"",LOG10(AK6),"") -> 0.4659136596 | BH6: =IF(AL6<>"",LOG10(AL6),"") -> -0.02038326841 | BI6: =IF(AM6<>"",LOG10(AM6),"") -> -0.01667491985 | BJ6: =IF(AN6<>"",LOG10(AN6),"") -> 0.327859712 | BK6: =IF(AO6<>"",LOG10(AO6),"") -> -0.00850671594 | BL6: =IF(AP6<>"",LOG10(AP6),"") -> -0.07945619757 | BM6: =IF(AQ6<>"",LOG10(AQ6),"") -> -0.06407791849 | BN6: =IF(AR6<>"",LOG10(AR6),"") -> 0.5229904139 | BO6: =IF(AS6<>"",LOG10(AS6),"") -> 0.2164610483 | BP6: =IF(AT6<>"", ABS(AT6-DJ$4),"") -> 0.137742943 | BQ6: =IF(AU6<>"", ABS(AU6-DK$4),"") -> 0.08653500372 | BR6: =IF(AV6<>"", ABS(AV6-DL$4),"") -> 0.163075958 | BS6: =IF(AW6<>"", ABS(AW6-DM$4),"") -> 0.1682683953 | BT6: =IF(AX6<>"", ABS(AX6-DN$4),"") -> 0 | BU6: =IF(AY6<>"", ABS(AY6-DO$4),"") -> 0.2655518394 | BV6: =IF(AZ6<>"", ABS(AZ6-DP$4),"") -> 0.1604418857 | BW6: =IF(BA6<>"", ABS(BA6-DQ$4),"") -> 0.01102198325 | BX6: =IF(BB6<>"", ABS(BB6-DR$4),"") -> 0.02467668377 | BY6: =IF(BC6<>"", ABS(BC6-DS$4),"") -> 0.03647292525 | BZ6: =IF(BD6<>"", ABS(BD6-DT$4),"") -> 0.08411719369 | CA6: =IF(BE6<>"", ABS(BE6-DU$4),"") -> 0.09350633794 | CB6: =IF(BF6<>"", ABS(BF6-DV$4),"") -> 0.6527618521 | CC6: =IF(BG6<>"", ABS(BG6-DW$4),"") -> 0.09381000142 | CD6: =IF(BH6<>"", ABS(BH6-DX$4),"") -> 0.08034917039 | CE6: =IF(BI6<>"", ABS(BI6-DY$4),"") -> 0.02677689015 | CF6: =IF(BJ6<>"", ABS(BJ6-DZ$4),"") -> 0.02747960873 | CG6: =IF(BK6<>"", ABS(BK6-EA$4),"") -> 0.08160201202 | CH6: =IF(BL6<>"", ABS(BL6-EB$4),"") -> 0.07935090199 | CI6: =IF(BM6<>"", ABS(BM6-EC$4),"") -> 0.01901717662 | CJ6: =IF(BN6<>"", ABS(BN6-ED$4),"") -> 0.1205859437 | CK6: =IF(BO6<>"", ABS(BO6-EE$4),"") -> 0.08034433593 | CL6: =IF(AND(AT6<>"",AT6>DJ$19, AT6<DJ$16), AT6,"") -> 0.3364975005 | CM6: =IF(AND(AU6<>"",AU6>DK$19, AU6<DK$16), AU6,"") -> -0.0147891838 | CN6: =IF(AND(AV6<>"",AV6>DL$19, AV6<DL$16), AV6,"") -> -0.3394216095 | CO6: =IF(AND(AW6<>"",AW6>DM$19, AW6<DM$16), AW6,"") -> -0.1829634658 | CP6: =IF(AND(AX6<>"",AX6>DN$19, AX6<DN$16), AX6,"") ->  | CQ6: =IF(AND(AY6<>"",AY6>DO$19, AY6<DO$16), AY6,"") -> 0.3523397899 | CR6: =IF(AND(AZ6<>"",AZ6>DP$19, AZ6<DP$16), AZ6,"") -> 0.260760582 | CS6: =IF(AND(BA6<>"",BA6>DQ$19, BA6<DQ$16), BA6,"") -> 0.2464082851 | CT6: =IF(AND(BB6<>"",BB6>DR$19, BB6<DR$16), BB6,"") -> 0.1448536613 | CU6: =IF(AND(BC6<>"",BC6>DS$19, BC6<DS$16), BC6,"") -> 0.09786189397 | CV6: =IF(AND(BD6<>"",BD6>DT$19, BD6<DT$16), BD6,"") -> 0.1336459026 | CW6: =IF(AND(BE6<>"",BE6>DU$19, BE6<DU$16), BE6,"") -> 0.2437553078 | CX6: =IF(AND(BF6<>"",BF6>DV$19, BF6<DV$16), BF6,"") -> 1.232817257 | CY6: =IF(AND(BG6<>"",BG6>DW$19, BG6<DW$16), BG6,"") -> 0.4659136596 | CZ6: =IF(AND(BH6<>"",BH6>DX$19, BH6<DX$16), BH6,"") -> -0.02038326841 | DA6: =IF(AND(BI6<>"",BI6>DY$19, BI6<DY$16), BI6,"") -> -0.01667491985 | DB6: =IF(AND(BJ6<>"",BJ6>DZ$19, BJ6<DZ$16), BJ6,"") -> 0.327859712 | DC6: =IF(AND(BK6<>"",BK6>EA$19, BK6<EA$16), BK6,"") -> -0.00850671594 | DD6: =IF(AND(BL6<>"",BL6>EB$19, BL6<EB$16), BL6,"") -> -0.07945619757 | DE6: =IF(AND(BM6<>"",BM6>EC$19, BM6<EC$16), BM6,"") -> -0.06407791849 | DF6: =IF(AND(BN6<>"",BN6>ED$19, BN6<ED$16), BN6,"") -> 0.5229904139 | DG6: =IF(AND(BO6<>"",BO6>EE$19, BO6<EE$16), BO6,"") -> 0.2164610483
A7: 7605.039281 | B7: 14398.87342 | C7: 17677.43173 | D7: 10843.85991 | E7: 11229.09226 | F7: 7910.630516 | G7: 9078.476493 | H7: 6450.59725 | I7: 9505.973117 | J7: 9307.836611 | K7: 9697.032105 | L7: 8259.369954 | M7: 6149.942053 | N7: 5330.327883 | O7: 8523.788321 | P7: 11818.79269 | Q7: 5753.391113 | R7: 11167.46935 | S7: 10415.81104 | T7: 11725.97562 | U7: 299.8820934 | V7: 4964.931869 | W7: 11229.09226 | X7: =IF(AND(A7>0, $W7>0),$W7/A7, "") -> 1.476533105 | Y7: =IF(AND(B7>0, $W7>0),$W7/B7, "") -> 0.7798590858 | Z7: =IF(AND(C7>0, $W7>0),$W7/C7, "") -> 0.6352219277 | AA7: =IF(AND(D7>0, $W7>0),$W7/D7, "") -> 1.03552539 | AB7: =IF(AND(E7>0, $W7>0),$W7/E7, "") -> 1 | AC7: =IF(AND(F7>0, $W7>0),$W7/F7, "") -> 1.419493963 | AD7: =IF(AND(G7>0, $W7>0),$W7/G7, "") -> 1.236891704 | AE7: =IF(AND(H7>0, $W7>0),$W7/H7, "") -> 1.740783345 | AF7: =IF(AND(I7>0, $W7>0),$W7/I7, "") -> 1.181266991 | AG7: =IF(AND(J7>0, $W7>0),$W7/J7, "") -> 1.206412696 | AH7: =IF(AND(K7>0, $W7>0),$W7/K7, "") -> 1.157992687 | AI7: =IF(AND(L7>0, $W7>0),$W7/L7, "") -> 1.359557971 | AJ7: =IF(AND(M7>0, $W7>0),$W7/M7, "") -> 1.825885864 | AK7: =IF(AND(N7>0, $W7>0),$W7/N7, "") -> 2.106641938 | AL7: =IF(AND(O7>0, $W7>0),$W7/O7, "") -> 1.317382816 | AM7: =IF(AND(P7>0, $W7>0),$W7/P7, "") -> 0.9501048505 | AN7: =IF(AND(Q7>0, $W7>0),$W7/Q7, "") -> 1.951734558 | AO7: =IF(AND(R7>0, $W7>0),$W7/R7, "") -> 1.005518073 | AP7: =IF(AND(S7>0, $W7>0),$W7/S7, "") -> 1.078081411 | AQ7: =IF(AND(T7>0, $W7>0),$W7/T7, "") -> 0.9576254139 | AR7: =IF(AND(U7>0, $W7>0),$W7/U7, "") -> 37.44502424 | AS7: =IF(AND(V7>0, $W7>0),$W7/V7, "") -> 2.261681037 | AT7: =IF(X7<>"",LOG10(X7),"") -> 0.1692431885 | AU7: =IF(Y7<>"",LOG10(Y7),"") -> -0.1079838637 | AV7: =IF(Z7<>"",LOG10(Z7),"") -> -0.1970745186 | AW7: =IF(AA7<>"",LOG10(AA7),"") -> 0.01516075174 | AX7: =IF(AB7<>"",LOG10(AB7),"") -> 0 | AY7: =IF(AC7<>"",LOG10(AC7),"") -> 0.1521335498 | AZ7: =IF(AD7<>"",LOG10(AD7),"") -> 0.09233167668 | BA7: =IF(AE7<>"",LOG10(AE7),"") -> 0.240744723 | BB7: =IF(AF7<>"",LOG10(AF7),"") -> 0.07234806828 | BC7: =IF(AG7<>"",LOG10(AG7),"") -> 0.08149589894 | BD7: =IF(AH7<>"",LOG10(AH7),"") -> 0.0637058166 | BE7: =IF(AI7<>"",LOG10(AI7),"") -> 0.1333977306 | BF7: =IF(AJ7<>"",LOG10(AJ7),"") -> 0.2614736263 | BG7: =IF(AK7<>"",LOG10(AK7),"") -> 0.3235907256 | BH7: =IF(AL7<>"",LOG10(AL7),"") -> 0.1197119941 | BI7: =IF(AM7<>"",LOG10(AM7),"") -> -0.02222846473 | BJ7: =IF(AN7<>"",LOG10(AN7),"") -> 0.2904207519 | BK7: =IF(AO7<>"",LOG10(AO7),"") -> 0.002389881041 | BL7: =IF(AP7<>"",LOG10(AP7),"") -> 0.03265155752 | BM7: =IF(AQ7<>"",LOG10(AQ7),"") -> -0.01880433695 | BN7: =IF(AR7<>"",LOG10(AR7),"") -> 1.573394116 | BO7: =IF(AS7<>"",LOG10(AS7),"") -> 0.3544313568 | BP7: =IF(AT7<>"", ABS(AT7-DJ$4),"") -> 0.02951136904 | BQ7: =IF(AU7<>"", ABS(AU7-DK$4),"") -> 0.1797296836 | BR7: =IF(AV7<>"", ABS(AV7-DL$4),"") -> 0.02072886702 | BS7: =IF(AW7<>"", ABS(AW7-DM$4),"") -> 0.02985582228 | BT7: =IF(AX7<>"", ABS(AX7-DN$4),"") -> 0 | BU7: =IF(AY7<>"", ABS(AY7-DO$4),"") -> 0.06534559923 | BV7: =IF(AZ7<>"", ABS(AZ7-DP$4),"") -> 0.007987019648 | BW7: =IF(BA7<>"", ABS(BA7-DQ$4),"") -> 0.01668554537 | BX7: =IF(BB7<>"", ABS(BB7-DR$4),"") -> 0.09718227677 | BY7: =IF(BC7<>"", ABS(BC7-DS$4),"") -> 0.02010693022 | BZ7: =IF(BD7<>"", ABS(BD7-DT$4),"") -> 0.01417710774 | CA7: =IF(BE7<>"", ABS(BE7-DU$4),"") -> 0.01685123923 | CB7: =IF(BF7<>"", ABS(BF7-DV$4),"") -> 0.3185817786 | CC7: =IF(BG7<>"", ABS(BG7-DW$4),"") -> 0.04851293261 | CD7: =IF(BH7<>"", ABS(BH7-DX$4),"") -> 0.05974609212 | CE7: =IF(BI7<>"", ABS(BI7-DY$4),"") -> 0.03233043502 | CF7: =IF(BJ7<>"", ABS(BJ7-DZ$4),"") -> 0.06491856883 | CG7: =IF(BK7<>"", ABS(BK7-EA$4),"") -> 0.07070541504 | CH7: =IF(BL7<>"", ABS(BL7-EB$4),"") -> 0.0327568531 | CI7: =IF(BM7<>"", ABS(BM7-EC$4),"") -> 0.02625640492 | CJ7: =IF(BN7<>"", ABS(BN7-ED$4),"") -> 1.170989646 | CK7: =IF(BO7<>"", ABS(BO7-EE$4),"") -> 0.05762597256 | CL7: =IF(AND(AT7<>"",AT7>DJ$19, AT7<DJ$16), AT7,"") -> 0.1692431885 | CM7: =IF(AND(AU7<>"",AU7>DK$19, AU7<DK$16), AU7,"") -> -0.1079838637 | CN7: =IF(AND(AV7<>"",AV7>DL$19, AV7<DL$16), AV7,"") -> -0.1970745186 | CO7: =IF(AND(AW7<>"",AW7>DM$19, AW7<DM$16), AW7,"") -> 0.01516075174 | CP7: =IF(AND(AX7<>"",AX7>DN$19, AX7<DN$16), AX7,"") ->  | CQ7: =IF(AND(AY7<>"",AY7>DO$19, AY7<DO$16), AY7,"") -> 0.1521335498 | CR7: =IF(AND(AZ7<>"",AZ7>DP$19, AZ7<DP$16), AZ7,"") -> 0.09233167668 | CS7: =IF(AND(BA7<>"",BA7>DQ$19, BA7<DQ$16), BA7,"") -> 0.240744723 | CT7: =IF(AND(BB7<>"",BB7>DR$19, BB7<DR$16), BB7,"") -> 0.07234806828 | CU7: =IF(AND(BC7<>"",BC7>DS$19, BC7<DS$16), BC7,"") -> 0.08149589894 | CV7: =IF(AND(BD7<>"",BD7>DT$19, BD7<DT$16), BD7,"") -> 0.0637058166 | CW7: =IF(AND(BE7<>"",BE7>DU$19, BE7<DU$16), BE7,"") -> 0.1333977306 | CX7: =IF(AND(BF7<>"",BF7>DV$19, BF7<DV$16), BF7,"") -> 0.2614736263 | CY7: =IF(AND(BG7<>"",BG7>DW$19, BG7<DW$16), BG7,"") -> 0.3235907256 | CZ7: =IF(AND(BH7<>"",BH7>DX$19, BH7<DX$16), BH7,"") -> 0.1197119941 | DA7: =IF(AND(BI7<>"",BI7>DY$19, BI7<DY$16), BI7,"") -> -0.02222846473 | DB7: =IF(AND(BJ7<>"",BJ7>DZ$19, BJ7<DZ$16), BJ7,"") -> 0.2904207519 | DC7: =IF(AND(BK7<>"",BK7>EA$19, BK7<EA$16), BK7,"") -> 0.002389881041 | DD7: =IF(AND(BL7<>"",BL7>EB$19, BL7<EB$16), BL7,"") -> 0.03265155752 | DE7: =IF(AND(BM7<>"",BM7>EC$19, BM7<EC$16), BM7,"") -> -0.01880433695 | DF7: =IF(AND(BN7<>"",BN7>ED$19, BN7<ED$16), BN7,"") ->  | DG7: =IF(AND(BO7<>"",BO7>EE$19, BO7<EE$16), BO7,"") -> 0.3544313568 | DI7: Count | DJ7: =COUNT(AT:AT) -> 201
A8: 6569.573786 | B8: 6540.445789 | C8: 13378.29674 | D8: 11322.22957 | E8: 8476.564816 | F8: 6917.976219 | G8: 8766.626411 | H8: 5927.264132 | I8: 3848.569135 | J8: 8026.117094 | K8: 8988.999473 | L8: 6535.743376 | M8: 597.8401137 | N8: 3099.192878 | O8: 6275.482444 | P8: 9660.666148 | Q8: 2823.29008 | R8: 6600.139791 | S8: 8864.822498 | T8: 9268.634107 | U8: 3456.84132 | V8: 3942.226908 | W8: 8476.564816 | X8: =IF(AND(A8>0, $W8>0),$W8/A8, "") -> 1.290276218 | Y8: =IF(AND(B8>0, $W8>0),$W8/B8, "") -> 1.296022487 | Z8: =IF(AND(C8>0, $W8>0),$W8/C8, "") -> 0.6336056809 | AA8: =IF(AND(D8>0, $W8>0),$W8/D8, "") -> 0.7486656902 | AB8: =IF(AND(E8>0, $W8>0),$W8/E8, "") -> 1 | AC8: =IF(AND(F8>0, $W8>0),$W8/F8, "") -> 1.225295455 | AD8: =IF(AND(G8>0, $W8>0),$W8/G8, "") -> 0.9669129741 | AE8: =IF(AND(H8>0, $W8>0),$W8/H8, "") -> 1.430097365 | AF8: =IF(AND(I8>0, $W8>0),$W8/I8, "") -> 2.202523722 | AG8: =IF(AND(J8>0, $W8>0),$W8/J8, "") -> 1.056122745 | AH8: =IF(AND(K8>0, $W8>0),$W8/K8, "") -> 0.9429931375 | AI8: =IF(AND(L8>0, $W8>0),$W8/L8, "") -> 1.296954964 | AJ8: =IF(AND(M8>0, $W8>0),$W8/M8, "") -> 14.17864847 | AK8: =IF(AND(N8>0, $W8>0),$W8/N8, "") -> 2.73508786 | AL8: =IF(AND(O8>0, $W8>0),$W8/O8, "") -> 1.350743133 | AM8: =IF(AND(P8>0, $W8>0),$W8/P8, "") -> 0.8774306746 | AN8: =IF(AND(Q8>0, $W8>0),$W8/Q8, "") -> 3.002371196 | AO8: =IF(AND(R8>0, $W8>0),$W8/R8, "") -> 1.2843008 | AP8: =IF(AND(S8>0, $W8>0),$W8/S8, "") -> 0.9562024302 | AQ8: =IF(AND(T8>0, $W8>0),$W8/T8, "") -> 0.9145430404 | AR8: =IF(AND(U8>0, $W8>0),$W8/U8, "") -> 2.452112791 | AS8: =IF(AND(V8>0, $W8>0),$W8/V8, "") -> 2.150197088 | AT8: =IF(X8<>"",LOG10(X8),"") -> 0.1106826924 | AU8: =IF(Y8<>"",LOG10(Y8),"") -> 0.1126125369 | AV8: =IF(Z8<>"",LOG10(Z8),"") -> -0.1981809375 | AW8: =IF(AA8<>"",LOG10(AA8),"") -> -0.1257120692 | AX8: =IF(AB8<>"",LOG10(AB8),"") -> 0 | AY8: =IF(AC8<>"",LOG10(AC8),"") -> 0.08824082244 | AZ8: =IF(AD8<>"",LOG10(AD8),"") -> -0.01461261234 | BA8: =IF(AE8<>"",LOG10(AE8),"") -> 0.1553656064 | BB8: =IF(AF8<>"",LOG10(AF8),"") -> 0.3429205946 | BC8: =IF(AG8<>"",LOG10(AG8),"") -> 0.0237143958 | BD8: =IF(AH8<>"",LOG10(AH8),"") -> -0.02549146776 | BE8: =IF(AI8<>"",LOG10(AI8),"") -> 0.1129248958 | BF8: =IF(AJ8<>"",LOG10(AJ8),"") -> 1.151634835 | BG8: =IF(AK8<>"",LOG10(AK8),"") -> 0.4369712819 | BH8: =IF(AL8<>"",LOG10(AL8),"") -> 0.1305727682 | BI8: =IF(AM8<>"",LOG10(AM8),"") -> -0.0567871869 | BJ8: =IF(AN8<>"",LOG10(AN8),"") -> 0.4774643849 | BK8: =IF(AO8<>"",LOG10(AO8),"") -> 0.1086667532 | BL8: =IF(AP8<>"",LOG10(AP8),"") -> -0.01945015686 | BM8: =IF(AQ8<>"",LOG10(AQ8),"") -> -0.03879585088 | BN8: =IF(AR8<>"",LOG10(AR8),"") -> 0.3895404427 | BO8: =IF(AS8<>"",LOG10(AS8),"") -> 0.3324782693 | BP8: =IF(AT8<>"", ABS(AT8-DJ$4),"") -> 0.08807186508 | BQ8: =IF(AU8<>"", ABS(AU8-DK$4),"") -> 0.04086671697 | BR8: =IF(AV8<>"", ABS(AV8-DL$4),"") -> 0.0218352859 | BS8: =IF(AW8<>"", ABS(AW8-DM$4),"") -> 0.1110169987 | BT8: =IF(AX8<>"", ABS(AX8-DN$4),"") -> 0 | BU8: =IF(AY8<>"", ABS(AY8-DO$4),"") -> 0.001452871901 | BV8: =IF(AZ8<>"", ABS(AZ8-DP$4),"") -> 0.1149313087 | BW8: =IF(BA8<>"", ABS(BA8-DQ$4),"") -> 0.1020646619 | BX8: =IF(BB8<>"", ABS(BB8-DR$4),"") -> 0.1733902495 | BY8: =IF(BC8<>"", ABS(BC8-DS$4),"") -> 0.03767457292 | BZ8: =IF(BD8<>"", ABS(BD8-DT$4),"") -> 0.07502017662 | CA8: =IF(BE8<>"", ABS(BE8-DU$4),"") -> 0.03732407407 | CB8: =IF(BF8<>"", ABS(BF8-DV$4),"") -> 0.5715794305 | CC8: =IF(BG8<>"", ABS(BG8-DW$4),"") -> 0.06486762366 | CD8: =IF(BH8<>"", ABS(BH8-DX$4),"") -> 0.07060686625 | CE8: =IF(BI8<>"", ABS(BI8-DY$4),"") -> 0.0668891572 | CF8: =IF(BJ8<>"", ABS(BJ8-DZ$4),"") -> 0.1221250642 | CG8: =IF(BK8<>"", ABS(BK8-EA$4),"") -> 0.03557145709 | CH8: =IF(BL8<>"", ABS(BL8-EB$4),"") -> 0.01934486128 | CI8: =IF(BM8<>"", ABS(BM8-EC$4),"") -> 0.006264890993 | CJ8: =IF(BN8<>"", ABS(BN8-ED$4),"") -> 0.01286402752 | CK8: =IF(BO8<>"", ABS(BO8-EE$4),"") -> 0.03567288506 | CL8: =IF(AND(AT8<>"",AT8>DJ$19, AT8<DJ$16), AT8,"") -> 0.1106826924 | CM8: =IF(AND(AU8<>"",AU8>DK$19, AU8<DK$16), AU8,"") -> 0.1126125369 | CN8: =IF(AND(AV8<>"",AV8>DL$19, AV8<DL$16), AV8,"") -> -0.1981809375 | CO8: =IF(AND(AW8<>"",AW8>DM$19, AW8<DM$16), AW8,"") -> -0.1257120692 | CP8: =IF(AND(AX8<>"",AX8>DN$19, AX8<DN$16), AX8,"") ->  | CQ8: =IF(AND(AY8<>"",AY8>DO$19, AY8<DO$16), AY8,"") -> 0.08824082244 | CR8: =IF(AND(AZ8<>"",AZ8>DP$19, AZ8<DP$16), AZ8,"") -> -0.01461261234 | CS8: =IF(AND(BA8<>"",BA8>DQ$19, BA8<DQ$16), BA8,"") -> 0.1553656064 | CT8: =IF(AND(BB8<>"",BB8>DR$19, BB8<DR$16), BB8,"") -> 0.3429205946 | CU8: =IF(AND(BC8<>"",BC8>DS$19, BC8<DS$16), BC8,"") -> 0.0237143958 | CV8: =IF(AND(BD8<>"",BD8>DT$19, BD8<DT$16), BD8,"") -> -0.02549146776 | CW8: =IF(AND(BE8<>"",BE8>DU$19, BE8<DU$16), BE8,"") -> 0.1129248958 | CX8: =IF(AND(BF8<>"",BF8>DV$19, BF8<DV$16), BF8,"") -> 1.151634835 | CY8: =IF(AND(BG8<>"",BG8>DW$19, BG8<DW$16), BG8,"") -> 0.4369712819 | CZ8: =IF(AND(BH8<>"",BH8>DX$19, BH8<DX$16), BH8,"") -> 0.1305727682 | DA8: =IF(AND(BI8<>"",BI8>DY$19, BI8<DY$16), BI8,"") -> -0.0567871869 | DB8: =IF(AND(BJ8<>"",BJ8>DZ$19, BJ8<DZ$16), BJ8,"") -> 0.4774643849 | DC8: =IF(AND(BK8<>"",BK8>EA$19, BK8<EA$16), BK8,"") -> 0.1086667532 | DD8: =IF(AND(BL8<>"",BL8>EB$19, BL8<EB$16), BL8,"") -> -0.01945015686 | DE8: =IF(AND(BM8<>"",BM8>EC$19, BM8<EC$16), BM8,"") -> -0.03879585088 | DF8: =IF(AND(BN8<>"",BN8>ED$19, BN8<ED$16), BN8,"") -> 0.3895404427 | DG8: =IF(AND(BO8<>"",BO8>EE$19, BO8<EE$16), BO8,"") -> 0.3324782693
A9: 5782.245281 | B9: 6635.819886 | C9: 11987.11774 | D9: 8561.439332 | E9: 7677.707122 | F9: 4378.848446 | G9: 5042.717811 | H9: 4108.560161 | I9: 4702.843279 | J9: 6359.486858 | K9: 8477.54657 | L9: 4448.009065 | M9: 3994.032853 | N9: 3120.604215 | O9: 7637.172176 | P9: 6571.310744 | Q9: 3008.233978 | R9: 7486.039972 | S9: 9816.359487 | T9: 10425.11806 | U9: 2751.780535 | V9: 2483.898561 | W9: 7677.707122 | X9: =IF(AND(A9>0, $W9>0),$W9/A9, "") -> 1.327807236 | Y9: =IF(AND(B9>0, $W9>0),$W9/B9, "") -> 1.157009571 | Z9: =IF(AND(C9>0, $W9>0),$W9/C9, "") -> 0.6404965138 | AA9: =IF(AND(D9>0, $W9>0),$W9/D9, "") -> 0.8967776123 | AB9: =IF(AND(E9>0, $W9>0),$W9/E9, "") -> 1 | AC9: =IF(AND(F9>0, $W9>0),$W9/F9, "") -> 1.753362149 | AD9: =IF(AND(G9>0, $W9>0),$W9/G9, "") -> 1.522533564 | AE9: =IF(AND(H9>0, $W9>0),$W9/H9, "") -> 1.868709918 | AF9: =IF(AND(I9>0, $W9>0),$W9/I9, "") -> 1.632567081 | AG9: =IF(AND(J9>0, $W9>0),$W9/J9, "") -> 1.207284061 | AH9: =IF(AND(K9>0, $W9>0),$W9/K9, "") -> 0.9056520137 | AI9: =IF(AND(L9>0, $W9>0),$W9/L9, "") -> 1.726099702 | AJ9: =IF(AND(M9>0, $W9>0),$W9/M9, "") -> 1.922294434 | AK9: =IF(AND(N9>0, $W9>0),$W9/N9, "") -> 2.460327102 | AL9: =IF(AND(O9>0, $W9>0),$W9/O9, "") -> 1.005307586 | AM9: =IF(AND(P9>0, $W9>0),$W9/P9, "") -> 1.168367685 | AN9: =IF(AND(Q9>0, $W9>0),$W9/Q9, "") -> 2.552230704 | AO9: =IF(AND(R9>0, $W9>0),$W9/R9, "") -> 1.025603276 | AP9: =IF(AND(S9>0, $W9>0),$W9/S9, "") -> 0.7821338586 | AQ9: =IF(AND(T9>0, $W9>0),$W9/T9, "") -> 0.7364623672 | AR9: =IF(AND(U9>0, $W9>0),$W9/U9, "") -> 2.790087009 | AS9: =IF(AND(V9>0, $W9>0),$W9/V9, "") -> 3.090990608 | AT9: =IF(X9<>"",LOG10(X9),"") -> 0.1231350309 | AU9: =IF(Y9<>"",LOG10(Y9),"") -> 0.06333695167 | AV9: =IF(Z9<>"",LOG10(Z9),"") -> -0.1934832298 | AW9: =IF(AA9<>"",LOG10(AA9),"") -> -0.04731524226 | AX9: =IF(AB9<>"",LOG10(AB9),"") -> 0 | AY9: =IF(AC9<>"",LOG10(AC9),"") -> 0.243871627 | AZ9: =IF(AD9<>"",LOG10(AD9),"") -> 0.1825668755 | BA9: =IF(AE9<>"",LOG10(AE9),"") -> 0.2715418906 | BB9: =IF(AF9<>"",LOG10(AF9),"") -> 0.212871035 | BC9: =IF(AG9<>"",LOG10(AG9),"") -> 0.08180946712 | BD9: =IF(AH9<>"",LOG10(AH9),"") -> -0.04303864287 | BE9: =IF(AI9<>"",LOG10(AI9),"") -> 0.2370658777 | BF9: =IF(AJ9<>"",LOG10(AJ9),"") -> 0.2838199085 | BG9: =IF(AK9<>"",LOG10(AK9),"") -> 0.3909928506 | BH9: =IF(AL9<>"",LOG10(AL9),"") -> 0.002298959629 | BI9: =IF(AM9<>"",LOG10(AM9),"") -> 0.06757953671 | BJ9: =IF(AN9<>"",LOG10(AN9),"") -> 0.406919929 | BK9: =IF(AO9<>"",LOG10(AO9),"") -> 0.01097939955 | BL9: =IF(AP9<>"",LOG10(AP9),"") -> -0.1067189131 | BM9: =IF(AQ9<>"",LOG10(AQ9),"") -> -0.1328494404 | BN9: =IF(AR9<>"",LOG10(AR9),"") -> 0.4456177469 | BO9: =IF(AS9<>"",LOG10(AS9),"") -> 0.4900976854 | BP9: =IF(AT9<>"", ABS(AT9-DJ$4),"") -> 0.07561952658 | BQ9: =IF(AU9<>"", ABS(AU9-DK$4),"") -> 0.008408868244 | BR9: =IF(AV9<>"", ABS(AV9-DL$4),"") -> 0.01713757817 | BS9: =IF(AW9<>"", ABS(AW9-DM$4),"") -> 0.03262017172 | BT9: =IF(AX9<>"", ABS(AX9-DN$4),"") -> 0 | BU9: =IF(AY9<>"", ABS(AY9-DO$4),"") -> 0.1570836765 | BV9: =IF(AZ9<>"", ABS(AZ9-DP$4),"") -> 0.08224817914 | BW9: =IF(BA9<>"", ABS(BA9-DQ$4),"") -> 0.01411162229 | BX9: =IF(BB9<>"", ABS(BB9-DR$4),"") -> 0.04334068999 | BY9: =IF(BC9<>"", ABS(BC9-DS$4),"") -> 0.0204204984 | BZ9: =IF(BD9<>"", ABS(BD9-DT$4),"") -> 0.09256735173 | CA9: =IF(BE9<>"", ABS(BE9-DU$4),"") -> 0.08681690784 | CB9: =IF(BF9<>"", ABS(BF9-DV$4),"") -> 0.2962354964 | CC9: =IF(BG9<>"", ABS(BG9-DW$4),"") -> 0.01888919237 | CD9: =IF(BH9<>"", ABS(BH9-DX$4),"") -> 0.05766694235 | CE9: =IF(BI9<>"", ABS(BI9-DY$4),"") -> 0.05747756642 | CF9: =IF(BJ9<>"", ABS(BJ9-DZ$4),"") -> 0.05158060824 | CG9: =IF(BK9<>"", ABS(BK9-EA$4),"") -> 0.06211589653 | CH9: =IF(BL9<>"", ABS(BL9-EB$4),"") -> 0.1066136175 | CI9: =IF(BM9<>"", ABS(BM9-EC$4),"") -> 0.08778869857 | CJ9: =IF(BN9<>"", ABS(BN9-ED$4),"") -> 0.04321327671 | CK9: =IF(BO9<>"", ABS(BO9-EE$4),"") -> 0.1932923012 | CL9: =IF(AND(AT9<>"",AT9>DJ$19, AT9<DJ$16), AT9,"") -> 0.1231350309 | CM9: =IF(AND(AU9<>"",AU9>DK$19, AU9<DK$16), AU9,"") -> 0.06333695167 | CN9: =IF(AND(AV9<>"",AV9>DL$19, AV9<DL$16), AV9,"") -> -0.1934832298 | CO9: =IF(AND(AW9<>"",AW9>DM$19, AW9<DM$16), AW9,"") -> -0.04731524226 | CP9: =IF(AND(AX9<>"",AX9>DN$19, AX9<DN$16), AX9,"") ->  | CQ9: =IF(AND(AY9<>"",AY9>DO$19, AY9<DO$16), AY9,"") -> 0.243871627 | CR9: =IF(AND(AZ9<>"",AZ9>DP$19, AZ9<DP$16), AZ9,"") -> 0.1825668755 | CS9: =IF(AND(BA9<>"",BA9>DQ$19, BA9<DQ$16), BA9,"") -> 0.2715418906 | CT9: =IF(AND(BB9<>"",BB9>DR$19, BB9<DR$16), BB9,"") -> 0.212871035 | CU9: =IF(AND(BC9<>"",BC9>DS$19, BC9<DS$16), BC9,"") -> 0.08180946712 | CV9: =IF(AND(BD9<>"",BD9>DT$19, BD9<DT$16), BD9,"") -> -0.04303864287 | CW9: =IF(AND(BE9<>"",BE9>DU$19, BE9<DU$16), BE9,"") -> 0.2370658777 | CX9: =IF(AND(BF9<>"",BF9>DV$19, BF9<DV$16), BF9,"") -> 0.2838199085 | CY9: =IF(AND(BG9<>"",BG9>DW$19, BG9<DW$16), BG9,"") -> 0.3909928506 | CZ9: =IF(AND(BH9<>"",BH9>DX$19, BH9<DX$16), BH9,"") -> 0.002298959629 | DA9: =IF(AND(BI9<>"",BI9>DY$19, BI9<DY$16), BI9,"") -> 0.06757953671 | DB9: =IF(AND(BJ9<>"",BJ9>DZ$19, BJ9<DZ$16), BJ9,"") -> 0.406919929 | DC9: =IF(AND(BK9<>"",BK9>EA$19, BK9<EA$16), BK9,"") -> 0.01097939955 | DD9: =IF(AND(BL9<>"",BL9>EB$19, BL9<EB$16), BL9,"") -> -0.1067189131 | DE9: =IF(AND(BM9<>"",BM9>EC$19, BM9<EC$16), BM9,"") -> -0.1328494404 | DF9: =IF(AND(BN9<>"",BN9>ED$19, BN9<ED$16), BN9,"") -> 0.4456177469 | DG9: =IF(AND(BO9<>"",BO9>EE$19, BO9<EE$16), BO9,"") -> 0.4900976854
A10: 5263.103442 | B10: 5899.493446 | C10: 11917.31815 | D10: 9383.08189 | E10: 5935.07534 | F10: 5612.609553 | G10: 6996.285908 | H10: 4924.224059 | I10: 2213.343189 | J10: 5290.231273 | K10: 6208.839883 | L10: 4932.124814 | M10: 347.8146632 | N10: 1632.716553 | O10: 3724.416854 | P10: 7884.321302 | Q10: 2619.818011 | R10: 5772.007151 | S10: 7760.459882 | T10: 8743.122359 | U10: 3172.966956 | V10: 4422.056547 | W10: 5935.07534 | X10: =IF(AND(A10>0, $W10>0),$W10/A10, "") -> 1.127675982 | Y10: =IF(AND(B10>0, $W10>0),$W10/B10, "") -> 1.006031347 | Z10: =IF(AND(C10>0, $W10>0),$W10/C10, "") -> 0.4980210536 | AA10: =IF(AND(D10>0, $W10>0),$W10/D10, "") -> 0.6325294194 | AB10: =IF(AND(E10>0, $W10>0),$W10/E10, "") -> 1 | AC10: =IF(AND(F10>0, $W10>0),$W10/F10, "") -> 1.057453807 | AD10: =IF(AND(G10>0, $W10>0),$W10/G10, "") -> 0.8483180102 | AE10: =IF(AND(H10>0, $W10>0),$W10/H10, "") -> 1.205281333 | AF10: =IF(AND(I10>0, $W10>0),$W10/I10, "") -> 2.681498003 | AG10: =IF(AND(J10>0, $W10>0),$W10/J10, "") -> 1.121893361 | AH10: =IF(AND(K10>0, $W10>0),$W10/K10, "") -> 0.9559072954 | AI10: =IF(AND(L10>0, $W10>0),$W10/L10, "") -> 1.203350597 | AJ10: =IF(AND(M10>0, $W10>0),$W10/M10, "") -> 17.06390204 | AK10: =IF(AND(N10>0, $W10>0),$W10/N10, "") -> 3.635092283 | AL10: =IF(AND(O10>0, $W10>0),$W10/O10, "") -> 1.593558287 | AM10: =IF(AND(P10>0, $W10>0),$W10/P10, "") -> 0.7527693396 | AN10: =IF(AND(Q10>0, $W10>0),$W10/Q10, "") -> 2.265453293 | AO10: =IF(AND(R10>0, $W10>0),$W10/R10, "") -> 1.028251557 | AP10: =IF(AND(S10>0, $W10>0),$W10/S10, "") -> 0.764783973 | AQ10: =IF(AND(T10>0, $W10>0),$W10/T10, "") -> 0.6788278943 | AR10: =IF(AND(U10>0, $W10>0),$W10/U10, "") -> 1.870512811 | AS10: =IF(AND(V10>0, $W10>0),$W10/V10, "") -> 1.342152747 | AT10: =IF(X10<>"",LOG10(X10),"") -> 0.05218433052 | AU10: =IF(Y10<>"",LOG10(Y10),"") -> 0.002611513275 | AV10: =IF(Z10<>"",LOG10(Z10),"") -> -0.3027522972 | AW10: =IF(AA10<>"",LOG10(AA10),"") -> -0.1989192703 | AX10: =IF(AB10<>"",LOG10(AB10),"") -> 0 | AY10: =IF(AC10<>"",LOG10(AC10),"") -> 0.02426140521 | AZ10: =IF(AD10<>"",LOG10(AD10),"") -> -0.07144131261 | BA10: =IF(AE10<>"",LOG10(AE10),"") -> 0.08108843057 | BB10: =IF(AF10<>"",LOG10(AF10),"") -> 0.4283774778 | BC10: =IF(AG10<>"",LOG10(AG10),"") -> 0.04995157783 | BD10: =IF(AH10<>"",LOG10(AH10),"") -> -0.01958422389 | BE10: =IF(AI10<>"",LOG10(AI10),"") -> 0.08039217779 | BF10: =IF(AJ10<>"",LOG10(AJ10),"") -> 1.232078349 | BG10: =IF(AK10<>"",LOG10(AK10),"") -> 0.5605154406 | BH10: =IF(AL10<>"",LOG10(AL10),"") -> 0.2023679531 | BI10: =IF(AM10<>"",LOG10(AM10),"") -> -0.1233380781 | BJ10: =IF(AN10<>"",LOG10(AN10),"") -> 0.3551551127 | BK10: =IF(AO10<>"",LOG10(AO10),"") -> 0.01209937586 | BL10: =IF(AP10<>"",LOG10(AP10),"") -> -0.1164612218 | BM10: =IF(AQ10<>"",LOG10(AQ10),"") -> -0.16824032 | BN10: =IF(AR10<>"",LOG10(AR10),"") -> 0.271960687 | BO10: =IF(AS10<>"",LOG10(AS10),"") -> 0.1278019445 | BP10: =IF(AT10<>"", ABS(AT10-DJ$4),"") -> 0.146570227 | BQ10: =IF(AU10<>"", ABS(AU10-DK$4),"") -> 0.06913430664 | BR10: =IF(AV10<>"", ABS(AV10-DL$4),"") -> 0.1264066456 | BS10: =IF(AW10<>"", ABS(AW10-DM$4),"") -> 0.1842241998 | BT10: =IF(AX10<>"", ABS(AX10-DN$4),"") -> 0 | BU10: =IF(AY10<>"", ABS(AY10-DO$4),"") -> 0.06252654533 | BV10: =IF(AZ10<>"", ABS(AZ10-DP$4),"") -> 0.1717600089 | BW10: =IF(BA10<>"", ABS(BA10-DQ$4),"") -> 0.1763418378 | BX10: =IF(BB10<>"", ABS(BB10-DR$4),"") -> 0.2588471327 | BY10: =IF(BC10<>"", ABS(BC10-DS$4),"") -> 0.01143739088 | BZ10: =IF(BD10<>"", ABS(BD10-DT$4),"") -> 0.06911293275 | CA10: =IF(BE10<>"", ABS(BE10-DU$4),"") -> 0.06985679202 | CB10: =IF(BF10<>"", ABS(BF10-DV$4),"") -> 0.6520229443 | CC10: =IF(BG10<>"", ABS(BG10-DW$4),"") -> 0.1884117824 | CD10: =IF(BH10<>"", ABS(BH10-DX$4),"") -> 0.1424020511 | CE10: =IF(BI10<>"", ABS(BI10-DY$4),"") -> 0.1334400484 | CF10: =IF(BJ10<>"", ABS(BJ10-DZ$4),"") -> 0.0001842080585 | CG10: =IF(BK10<>"", ABS(BK10-EA$4),"") -> 0.06099592021 | CH10: =IF(BL10<>"", ABS(BL10-EB$4),"") -> 0.1163559263 | CI10: =IF(BM10<>"", ABS(BM10-EC$4),"") -> 0.1231795781 | CJ10: =IF(BN10<>"", ABS(BN10-ED$4),"") -> 0.1304437832 | CK10: =IF(BO10<>"", ABS(BO10-EE$4),"") -> 0.1690034397 | CL10: =IF(AND(AT10<>"",AT10>DJ$19, AT10<DJ$16), AT10,"") -> 0.05218433052 | CM10: =IF(AND(AU10<>"",AU10>DK$19, AU10<DK$16), AU10,"") -> 0.002611513275 | CN10: =IF(AND(AV10<>"",AV10>DL$19, AV10<DL$16), AV10,"") -> -0.3027522972 | CO10: =IF(AND(AW10<>"",AW10>DM$19, AW10<DM$16), AW10,"") -> -0.1989192703 | CP10: =IF(AND(AX10<>"",AX10>DN$19, AX10<DN$16), AX10,"") ->  | CQ10: =IF(AND(AY10<>"",AY10>DO$19, AY10<DO$16), AY10,"") -> 0.02426140521 | CR10: =IF(AND(AZ10<>"",AZ10>DP$19, AZ10<DP$16), AZ10,"") -> -0.07144131261 | CS10: =IF(AND(BA10<>"",BA10>DQ$19, BA10<DQ$16), BA10,"") -> 0.08108843057 | CT10: =IF(AND(BB10<>"",BB10>DR$19, BB10<DR$16), BB10,"") -> 0.4283774778 | CU10: =IF(AND(BC10<>"",BC10>DS$19, BC10<DS$16), BC10,"") -> 0.04995157783 | CV10: =IF(AND(BD10<>"",BD10>DT$19, BD10<DT$16), BD10,"") -> -0.01958422389 | CW10: =IF(AND(BE10<>"",BE10>DU$19, BE10<DU$16), BE10,"") -> 0.08039217779 | CX10: =IF(AND(BF10<>"",BF10>DV$19, BF10<DV$16), BF10,"") -> 1.232078349 | CY10: =IF(AND(BG10<>"",BG10>DW$19, BG10<DW$16), BG10,"") -> 0.5605154406 | CZ10: =IF(AND(BH10<>"",BH10>DX$19, BH10<DX$16), BH10,"") -> 0.2023679531 | DA10: =IF(AND(BI10<>"",BI10>DY$19, BI10<DY$16), BI10,"") -> -0.1233380781 | DB10: =IF(AND(BJ10<>"",BJ10>DZ$19, BJ10<DZ$16), BJ10,"") -> 0.3551551127 | DC10: =IF(AND(BK10<>"",BK10>EA$19, BK10<EA$16), BK10,"") -> 0.01209937586 | DD10: =IF(AND(BL10<>"",BL10>EB$19, BL10<EB$16), BL10,"") -> -0.1164612218 | DE10: =IF(AND(BM10<>"",BM10>EC$19, BM10<EC$16), BM10,"") -> -0.16824032 | DF10: =IF(AND(BN10<>"",BN10>ED$19, BN10<ED$16), BN10,"") -> 0.271960687 | DG10: =IF(AND(BO10<>"",BO10>EE$19, BO10<EE$16), BO10,"") -> 0.1278019445 | DI10: MAD | DJ10: =MEDIAN(BP:BP) -> 0.1700008997 | DK10: =MEDIAN(BQ:BQ) -> 0.1141056522 | DL10: =MEDIAN(BR:BR) -> 0.2076317167 | DM10: =MEDIAN(BS:BS) -> 0.1688124797 | DN10: =MEDIAN(BT:BT) -> 0 | DO10: =MEDIAN(BU:BU) -> 0.1268659427 | DP10: =MEDIAN(BV:BV) -> 0.144925606 | DQ10: =MEDIAN(BW:BW) -> 0.1314297009 | DR10: =MEDIAN(BX:BX) -> 0.1607936204 | DS10: =MEDIAN(BY:BY) -> 0.1187741232 | DT10: =MEDIAN(BZ:BZ) -> 0.1868044479 | DU10: =MEDIAN(CA:CA) -> 0.1797272961 | DV10: =MEDIAN(CB:CB) -> 0.3654753937 | DW10: =MEDIAN(CC:CC) -> 0.2040656103 | DX10: =MEDIAN(CD:CD) -> 0.2129382467 | DY10: =MEDIAN(CE:CE) -> 0.1183772145 | DZ10: =MEDIAN(CF:CF) -> 0.1965215257 | EA10: =MEDIAN(CG:CG) -> 0.1312222285 | EB10: =MEDIAN(CH:CH) -> 0.1740715017 | EC10: =MEDIAN(CI:CI) -> 0.1235447672 | ED10: =MEDIAN(CJ:CJ) -> 0.223678565 | EE10: =MEDIAN(CK:CK) -> 0.1642543436
A11: 3528.019882 | B11: 3641.177436 | C11: 3289.440631 | D11: 3361.459217 | E11: 4064.983433 | F11: 3202.612707 | G11: 4487.546604 | H11: 3324.847985 | I11: 2761.643049 | J11: 3755.070527 | K11: 3015.047836 | L11: 3695.706079 | M11: 1006.70365 | N11: 1969.984662 | O11: 2507.69527 | P11: 4268.553138 | Q11: 2839.126592 | R11: 3233.059518 | S11: 3220.729664 | T11: 2983.194441 | U11: 2210.368498 | V11: 4142.550823 | W11: 4064.983433 | X11: =IF(AND(A11>0, $W11>0),$W11/A11, "") -> 1.152199695 | Y11: =IF(AND(B11>0, $W11>0),$W11/B11, "") -> 1.116392569 | Z11: =IF(AND(C11>0, $W11>0),$W11/C11, "") -> 1.235767381 | AA11: =IF(AND(D11>0, $W11>0),$W11/D11, "") -> 1.209291314 | AB11: =IF(AND(E11>0, $W11>0),$W11/E11, "") -> 1 | AC11: =IF(AND(F11>0, $W11>0),$W11/F11, "") -> 1.269271 | AD11: =IF(AND(G11>0, $W11>0),$W11/G11, "") -> 0.905836483 | AE11: =IF(AND(H11>0, $W11>0),$W11/H11, "") -> 1.222607304 | AF11: =IF(AND(I11>0, $W11>0),$W11/I11, "") -> 1.471943825 | AG11: =IF(AND(J11>0, $W11>0),$W11/J11, "") -> 1.082531847 | AH11: =IF(AND(K11>0, $W11>0),$W11/K11, "") -> 1.348231821 | AI11: =IF(AND(L11>0, $W11>0),$W11/L11, "") -> 1.09992065 | AJ11: =IF(AND(M11>0, $W11>0),$W11/M11, "") -> 4.037914666 | AK11: =IF(AND(N11>0, $W11>0),$W11/N11, "") -> 2.063459433 | AL11: =IF(AND(O11>0, $W11>0),$W11/O11, "") -> 1.621003748 | AM11: =IF(AND(P11>0, $W11>0),$W11/P11, "") -> 0.9523094362 | AN11: =IF(AND(Q11>0, $W11>0),$W11/Q11, "") -> 1.431772519 | AO11: =IF(AND(R11>0, $W11>0),$W11/R11, "") -> 1.257317847 | AP11: =IF(AND(S11>0, $W11>0),$W11/S11, "") -> 1.262131211 | AQ11: =IF(AND(T11>0, $W11>0),$W11/T11, "") -> 1.362627718 | AR11: =IF(AND(U11>0, $W11>0),$W11/U11, "") -> 1.839052374 | AS11: =IF(AND(V11>0, $W11>0),$W11/V11, "") -> 0.9812754523 | AT11: =IF(X11<>"",LOG10(X11),"") -> 0.06152775599 | AU11: =IF(Y11<>"",LOG10(Y11),"") -> 0.04781693707 | AV11: =IF(Z11<>"",LOG10(Z11),"") -> 0.09193672738 | AW11: =IF(AA11<>"",LOG10(AA11),"") -> 0.08253093341 | AX11: =IF(AB11<>"",LOG10(AB11),"") -> 0 | AY11: =IF(AC11<>"",LOG10(AC11),"") -> 0.1035543574 | AZ11: =IF(AD11<>"",LOG10(AD11),"") -> -0.04295019189 | BA11: =IF(AE11<>"",LOG10(AE11),"") -> 0.0872869861 | BB11: =IF(AF11<>"",LOG10(AF11),"") -> 0.167891236 | BC11: =IF(AG11<>"",LOG10(AG11),"") -> 0.03444068169 | BD11: =IF(AH11<>"",LOG10(AH11),"") -> 0.129764573 | BE11: =IF(AI11<>"",LOG10(AI11),"") -> 0.04136135556 | BF11: =IF(AJ11<>"",LOG10(AJ11),"") -> 0.6061571367 | BG11: =IF(AK11<>"",LOG10(AK11),"") -> 0.3145959351 | BH11: =IF(AL11<>"",LOG10(AL11),"") -> 0.209784019 | BI11: =IF(AM11<>"",LOG10(AM11),"") -> -0.02122191233 | BJ11: =IF(AN11<>"",LOG10(AN11),"") -> 0.1558740225 | BK11: =IF(AO11<>"",LOG10(AO11),"") -> 0.09944508025 | BL11: =IF(AP11<>"",LOG10(AP11),"") -> 0.1011045066 | BM11: =IF(AQ11<>"",LOG10(AQ11),"") -> 0.1343772189 | BN11: =IF(AR11<>"",LOG10(AR11),"") -> 0.2645940975 | BO11: =IF(AS11<>"",LOG10(AS11),"") -> -0.008209065369 | BP11: =IF(AT11<>"", ABS(AT11-DJ$4),"") -> 0.1372268015 | BQ11: =IF(AU11<>"", ABS(AU11-DK$4),"") -> 0.02392888285 | BR11: =IF(AV11<>"", ABS(AV11-DL$4),"") -> 0.268282379 | BS11: =IF(AW11<>"", ABS(AW11-DM$4),"") -> 0.09722600395 | BT11: =IF(AX11<>"", ABS(AX11-DN$4),"") -> 0 | BU11: =IF(AY11<>"", ABS(AY11-DO$4),"") -> 0.01676640688 | BV11: =IF(AZ11<>"", ABS(AZ11-DP$4),"") -> 0.1432688882 | BW11: =IF(BA11<>"", ABS(BA11-DQ$4),"") -> 0.1701432822 | BX11: =IF(BB11<>"", ABS(BB11-DR$4),"") -> 0.001639109037 | BY11: =IF(BC11<>"", ABS(BC11-DS$4),"") -> 0.02694828703 | BZ11: =IF(BD11<>"", ABS(BD11-DT$4),"") -> 0.08023586418 | CA11: =IF(BE11<>"", ABS(BE11-DU$4),"") -> 0.1088876143 | CB11: =IF(BF11<>"", ABS(BF11-DV$4),"") -> 0.02610173182 | CC11: =IF(BG11<>"", ABS(BG11-DW$4),"") -> 0.05750772313 | CD11: =IF(BH11<>"", ABS(BH11-DX$4),"") -> 0.1498181171 | CE11: =IF(BI11<>"", ABS(BI11-DY$4),"") -> 0.03132388263 | CF11: =IF(BJ11<>"", ABS(BJ11-DZ$4),"") -> 0.1994652982 | CG11: =IF(BK11<>"", ABS(BK11-EA$4),"") -> 0.02634978417 | CH11: =IF(BL11<>"", ABS(BL11-EB$4),"") -> 0.1012098022 | CI11: =IF(BM11<>"", ABS(BM11-EC$4),"") -> 0.1794379607 | CJ11: =IF(BN11<>"", ABS(BN11-ED$4),"") -> 0.1378103727 | CK11: =IF(BO11<>"", ABS(BO11-EE$4),"") -> 0.3050144496 | CL11: =IF(AND(AT11<>"",AT11>DJ$19, AT11<DJ$16), AT11,"") -> 0.06152775599 | CM11: =IF(AND(AU11<>"",AU11>DK$19, AU11<DK$16), AU11,"") -> 0.04781693707 | CN11: =IF(AND(AV11<>"",AV11>DL$19, AV11<DL$16), AV11,"") -> 0.09193672738 | CO11: =IF(AND(AW11<>"",AW11>DM$19, AW11<DM$16), AW11,"") -> 0.08253093341 | CP11: =IF(AND(AX11<>"",AX11>DN$19, AX11<DN$16), AX11,"") ->  | CQ11: =IF(AND(AY11<>"",AY11>DO$19, AY11<DO$16), AY11,"") -> 0.1035543574 | CR11: =IF(AND(AZ11<>"",AZ11>DP$19, AZ11<DP$16), AZ11,"") -> -0.04295019189 | CS11: =IF(AND(BA11<>"",BA11>DQ$19, BA11<DQ$16), BA11,"") -> 0.0872869861 | CT11: =IF(AND(BB11<>"",BB11>DR$19, BB11<DR$16), BB11,"") -> 0.167891236 | CU11: =IF(AND(BC11<>"",BC11>DS$19, BC11<DS$16), BC11,"") -> 0.03444068169 | CV11: =IF(AND(BD11<>"",BD11>DT$19, BD11<DT$16), BD11,"") -> 0.129764573 | CW11: =IF(AND(BE11<>"",BE11>DU$19, BE11<DU$16), BE11,"") -> 0.04136135556 | CX11: =IF(AND(BF11<>"",BF11>DV$19, BF11<DV$16), BF11,"") -> 0.6061571367 | CY11: =IF(AND(BG11<>"",BG11>DW$19, BG11<DW$16), BG11,"") -> 0.3145959351 | CZ11: =IF(AND(BH11<>"",BH11>DX$19, BH11<DX$16), BH11,"") -> 0.209784019 | DA11: =IF(AND(BI11<>"",BI11>DY$19, BI11<DY$16), BI11,"") -> -0.02122191233 | DB11: =IF(AND(BJ11<>"",BJ11>DZ$19, BJ11<DZ$16), BJ11,"") -> 0.1558740225 | DC11: =IF(AND(BK11<>"",BK11>EA$19, BK11<EA$16), BK11,"") -> 0.09944508025 | DD11: =IF(AND(BL11<>"",BL11>EB$19, BL11<EB$16), BL11,"") -> 0.1011045066 | DE11: =IF(AND(BM11<>"",BM11>EC$19, BM11<EC$16), BM11,"") -> 0.1343772189 | DF11: =IF(AND(BN11<>"",BN11>ED$19, BN11<ED$16), BN11,"") -> 0.2645940975 | DG11: =IF(AND(BO11<>"",BO11>EE$19, BO11<EE$16), BO11,"") -> -0.008209065369
A12: 26.77660597 | B12: 22.69514073 | C12: 10.58842462 | D12: 22.26522824 | E12: 89.02959442 | F12: 96.97801265 | G12: 368.9463836 | H12: 27.2608472 | I12: 287.1604276 | J12: 67.41039177 | K12: 28.81241189 | L12: 54.13023745 | M12: 5.056221372 | N12: 70.66016635 | O12: 46.95359704 | P12: 37.94366567 | Q12: 16.12554182 | R12: 983.891843 | S12: 13.63650513 | T12: 8.522684669 | U12: 37.04937186 | V12: 11.51411704 | W12: 89.02959442 | X12: =IF(AND(A12>0, $W12>0),$W12/A12, "") -> 3.324902138 | Y12: =IF(AND(B12>0, $W12>0),$W12/B12, "") -> 3.922848308 | Z12: =IF(AND(C12>0, $W12>0),$W12/C12, "") -> 8.408200237 | AA12: =IF(AND(D12>0, $W12>0),$W12/D12, "") -> 3.998593388 | AB12: =IF(AND(E12>0, $W12>0),$W12/E12, "") -> 1 | AC12: =IF(AND(F12>0, $W12>0),$W12/F12, "") -> 0.9180389657 | AD12: =IF(AND(G12>0, $W12>0),$W12/G12, "") -> 0.2413076761 | AE12: =IF(AND(H12>0, $W12>0),$W12/H12, "") -> 3.265841072 | AF12: =IF(AND(I12>0, $W12>0),$W12/I12, "") -> 0.3100343427 | AG12: =IF(AND(J12>0, $W12>0),$W12/J12, "") -> 1.320710236 | AH12: =IF(AND(K12>0, $W12>0),$W12/K12, "") -> 3.089973681 | AI12: =IF(AND(L12>0, $W12>0),$W12/L12, "") -> 1.644729427 | AJ12: =IF(AND(M12>0, $W12>0),$W12/M12, "") -> 17.60793048 | AK12: =IF(AND(N12>0, $W12>0),$W12/N12, "") -> 1.25996865 | AL12: =IF(AND(O12>0, $W12>0),$W12/O12, "") -> 1.896118722 | AM12: =IF(AND(P12>0, $W12>0),$W12/P12, "") -> 2.346362505 | AN12: =IF(AND(Q12>0, $W12>0),$W12/Q12, "") -> 5.521029646 | AO12: =IF(AND(R12>0, $W12>0),$W12/R12, "") -> 0.09048717606 | AP12: =IF(AND(S12>0, $W12>0),$W12/S12, "") -> 6.528769182 | AQ12: =IF(AND(T12>0, $W12>0),$W12/T12, "") -> 10.4461913 | AR12: =IF(AND(U12>0, $W12>0),$W12/U12, "") -> 2.402998754 | AS12: =IF(AND(V12>0, $W12>0),$W12/V12, "") -> 7.732212039 | AT12: =IF(X12<>"",LOG10(X12),"") -> 0.5217788672 | AU12: =IF(Y12<>"",LOG10(Y12),"") -> 0.5936015148 | AV12: =IF(Z12<>"",LOG10(Z12),"") -> 0.9247030456 | AW12: =IF(AA12<>"",LOG10(AA12),"") -> 0.6019072435 | AX12: =IF(AB12<>"",LOG10(AB12),"") -> 0 | AY12: =IF(AC12<>"",LOG10(AC12),"") -> -0.03713888501 | AZ12: =IF(AD12<>"",LOG10(AD12),"") -> -0.6174288628 | BA12: =IF(AE12<>"",LOG10(AE12),"") -> 0.5139950465 | BB12: =IF(AF12<>"",LOG10(AF12),"") -> -0.5085901964 | BC12: =IF(AG12<>"",LOG10(AG12),"") -> 0.1208075438 | BD12: =IF(AH12<>"",LOG10(AH12),"") -> 0.4899547803 | BE12: =IF(AI12<>"",LOG10(AI12),"") -> 0.2160944628 | BF12: =IF(AJ12<>"",LOG10(AJ12),"") -> 1.245708315 | BG12: =IF(AK12<>"",LOG10(AK12),"") -> 0.1003597394 | BH12: =IF(AL12<>"",LOG10(AL12),"") -> 0.2778655264 | BI12: =IF(AM12<>"",LOG10(AM12),"") -> 0.37039511 | BJ12: =IF(AN12<>"",LOG10(AN12),"") -> 0.7420200791 | BK12: =IF(AO12<>"",LOG10(AO12),"") -> -1.043412965 | BL12: =IF(AP12<>"",LOG10(AP12),"") -> 0.8148313148 | BM12: =IF(AQ12<>"",LOG10(AQ12),"") -> 1.018957975 | BN12: =IF(AR12<>"",LOG10(AR12),"") -> 0.3807535457 | BO12: =IF(AS12<>"",LOG10(AS12),"") -> 0.8883037551 | BP12: =IF(AT12<>"", ABS(AT12-DJ$4),"") -> 0.3230243097 | BQ12: =IF(AU12<>"", ABS(AU12-DK$4),"") -> 0.5218556948 | BR12: =IF(AV12<>"", ABS(AV12-DL$4),"") -> 1.101048697 | BS12: =IF(AW12<>"", ABS(AW12-DM$4),"") -> 0.616602314 | BT12: =IF(AX12<>"", ABS(AX12-DN$4),"") -> 0 | BU12: =IF(AY12<>"", ABS(AY12-DO$4),"") -> 0.1239268355 | BV12: =IF(AZ12<>"", ABS(AZ12-DP$4),"") -> 0.7177475592 | BW12: =IF(BA12<>"", ABS(BA12-DQ$4),"") -> 0.2565647781 | BX12: =IF(BB12<>"", ABS(BB12-DR$4),"") -> 0.6781205414 | BY12: =IF(BC12<>"", ABS(BC12-DS$4),"") -> 0.05941857508 | BZ12: =IF(BD12<>"", ABS(BD12-DT$4),"") -> 0.4404260715 | CA12: =IF(BE12<>"", ABS(BE12-DU$4),"") -> 0.06584549295 | CB12: =IF(BF12<>"", ABS(BF12-DV$4),"") -> 0.66565291 | CC12: =IF(BG12<>"", ABS(BG12-DW$4),"") -> 0.2717439188 | CD12: =IF(BH12<>"", ABS(BH12-DX$4),"") -> 0.2178996245 | CE12: =IF(BI12<>"", ABS(BI12-DY$4),"") -> 0.3602931397 | CF12: =IF(BJ12<>"", ABS(BJ12-DZ$4),"") -> 0.3866807584 | CG12: =IF(BK12<>"", ABS(BK12-EA$4),"") -> 1.116508261 | CH12: =IF(BL12<>"", ABS(BL12-EB$4),"") -> 0.8149366104 | CI12: =IF(BM12<>"", ABS(BM12-EC$4),"") -> 1.064018717 | CJ12: =IF(BN12<>"", ABS(BN12-ED$4),"") -> 0.02165092452 | CK12: =IF(BO12<>"", ABS(BO12-EE$4),"") -> 0.5914983709 | CL12: =IF(AND(AT12<>"",AT12>DJ$19, AT12<DJ$16), AT12,"") -> 0.5217788672 | CM12: =IF(AND(AU12<>"",AU12>DK$19, AU12<DK$16), AU12,"") ->  | CN12: =IF(AND(AV12<>"",AV12>DL$19, AV12<DL$16), AV12,"") ->  | CO12: =IF(AND(AW12<>"",AW12>DM$19, AW12<DM$16), AW12,"") -> 0.6019072435 | CP12: =IF(AND(AX12<>"",AX12>DN$19, AX12<DN$16), AX12,"") ->  | CQ12: =IF(AND(AY12<>"",AY12>DO$19, AY12<DO$16), AY12,"") -> -0.03713888501 | CR12: =IF(AND(AZ12<>"",AZ12>DP$19, AZ12<DP$16), AZ12,"") ->  | CS12: =IF(AND(BA12<>"",BA12>DQ$19, BA12<DQ$16), BA12,"") -> 0.5139950465 | CT12: =IF(AND(BB12<>"",BB12>DR$19, BB12<DR$16), BB12,"") -> -0.5085901964 | CU12: =IF(AND(BC12<>"",BC12>DS$19, BC12<DS$16), BC12,"") -> 0.1208075438 | CV12: =IF(AND(BD12<>"",BD12>DT$19, BD12<DT$16), BD12,"") -> 0.4899547803 | CW12: =IF(AND(BE12<>"",BE12>DU$19, BE12<DU$16), BE12,"") -> 0.2160944628 | CX12: =IF(AND(BF12<>"",BF12>DV$19, BF12<DV$16), BF12,"") -> 1.245708315 | CY12: =IF(AND(BG12<>"",BG12>DW$19, BG12<DW$16), BG12,"") -> 0.1003597394 | CZ12: =IF(AND(BH12<>"",BH12>DX$19, BH12<DX$16), BH12,"") -> 0.2778655264 | DA12: =IF(AND(BI12<>"",BI12>DY$19, BI12<DY$16), BI12,"") -> 0.37039511 | DB12: =IF(AND(BJ12<>"",BJ12>DZ$19, BJ12<DZ$16), BJ12,"") -> 0.7420200791 | DC12: =IF(AND(BK12<>"",BK12>EA$19, BK12<EA$16), BK12,"") ->  | DD12: =IF(AND(BL12<>"",BL12>EB$19, BL12<EB$16), BL12,"") ->  | DE12: =IF(AND(BM12<>"",BM12>EC$19, BM12<EC$16), BM12,"") ->  | DF12: =IF(AND(BN12<>"",BN12>ED$19, BN12<ED$16), BN12,"") -> 0.3807535457 | DG12: =IF(AND(BO12<>"",BO12>EE$19, BO12<EE$16), BO12,"") -> 0.8883037551
A13: 2506.890254 | B13: 3810.271928 | C13: 4031.52327 | D13: 3519.494222 | E13: 3715.486502 | F13: 3487.907505 | G13: 3799.386549 | H13: 2462.169252 | I13: 1598.289863 | J13: 2704.22486 | K13: 2147.148317 | L13: 3316.379122 | M13: 201.9698849 | N13: 1316.78952 | O13: 1538.370233 | P13: 4423.195967 | Q13: 1803.295927 | R13: 2001.445012 | S13: 2771.903601 | T13: 3653.151892 | U13: 2139.940308 | V13: 2748.499591 | W13: 3715.486502 | X13: =IF(AND(A13>0, $W13>0),$W13/A13, "") -> 1.482109756 | Y13: =IF(AND(B13>0, $W13>0),$W13/B13, "") -> 0.975123711 | Z13: =IF(AND(C13>0, $W13>0),$W13/C13, "") -> 0.9216085964 | AA13: =IF(AND(D13>0, $W13>0),$W13/D13, "") -> 1.055687627 | AB13: =IF(AND(E13>0, $W13>0),$W13/E13, "") -> 1 | AC13: =IF(AND(F13>0, $W13>0),$W13/F13, "") -> 1.065248002 | AD13: =IF(AND(G13>0, $W13>0),$W13/G13, "") -> 0.9779174754 | AE13: =IF(AND(H13>0, $W13>0),$W13/H13, "") -> 1.50902969 | AF13: =IF(AND(I13>0, $W13>0),$W13/I13, "") -> 2.324663747 | AG13: =IF(AND(J13>0, $W13>0),$W13/J13, "") -> 1.373956196 | AH13: =IF(AND(K13>0, $W13>0),$W13/K13, "") -> 1.730428435 | AI13: =IF(AND(L13>0, $W13>0),$W13/L13, "") -> 1.120344317 | AJ13: =IF(AND(M13>0, $W13>0),$W13/M13, "") -> 18.39624014 | AK13: =IF(AND(N13>0, $W13>0),$W13/N13, "") -> 2.821625206 | AL13: =IF(AND(O13>0, $W13>0),$W13/O13, "") -> 2.415209565 | AM13: =IF(AND(P13>0, $W13>0),$W13/P13, "") -> 0.8400004272 | AN13: =IF(AND(Q13>0, $W13>0),$W13/Q13, "") -> 2.060386455 | AO13: =IF(AND(R13>0, $W13>0),$W13/R13, "") -> 1.85640199 | AP13: =IF(AND(S13>0, $W13>0),$W13/S13, "") -> 1.34040971 | AQ13: =IF(AND(T13>0, $W13>0),$W13/T13, "") -> 1.017063241 | AR13: =IF(AND(U13>0, $W13>0),$W13/U13, "") -> 1.736257076 | AS13: =IF(AND(V13>0, $W13>0),$W13/V13, "") -> 1.35182356 | AT13: =IF(X13<>"",LOG10(X13),"") -> 0.170880366 | AU13: =IF(Y13<>"",LOG10(Y13),"") -> -0.01094028319 | AV13: =IF(Z13<>"",LOG10(Z13),"") -> -0.03545348296 | AW13: =IF(AA13<>"",LOG10(AA13),"") -> 0.02353543137 | AX13: =IF(AB13<>"",LOG10(AB13),"") -> 0 | AY13: =IF(AC13<>"",LOG10(AC13),"") -> 0.02745072846 | AZ13: =IF(AD13<>"",LOG10(AD13),"") -> -0.00969779296 | BA13: =IF(AE13<>"",LOG10(AE13),"") -> 0.1786977844 | BB13: =IF(AF13<>"",LOG10(AF13),"") -> 0.3663601429 | BC13: =IF(AG13<>"",LOG10(AG13),"") -> 0.137972887 | BD13: =IF(AH13<>"",LOG10(AH13),"") -> 0.238153643 | BE13: =IF(AI13<>"",LOG10(AI13),"") -> 0.0493515155 | BF13: =IF(AJ13<>"",LOG10(AJ13),"") -> 1.26472907 | BG13: =IF(AK13<>"",LOG10(AK13),"") -> 0.4504993264 | BH13: =IF(AL13<>"",LOG10(AL13),"") -> 0.38295482 | BI13: =IF(AM13<>"",LOG10(AM13),"") -> -0.07572049305 | BJ13: =IF(AN13<>"",LOG10(AN13),"") -> 0.3139486862 | BK13: =IF(AO13<>"",LOG10(AO13),"") -> 0.2686720252 | BL13: =IF(AP13<>"",LOG10(AP13),"") -> 0.1272375653 | BM13: =IF(AQ13<>"",LOG10(AQ13),"") -> 0.007347958074 | BN13: =IF(AR13<>"",LOG10(AR13),"") -> 0.2396140287 | BO13: =IF(AS13<>"",LOG10(AS13),"") -> 0.1309200113 | BP13: =IF(AT13<>"", ABS(AT13-DJ$4),"") -> 0.02787419154 | BQ13: =IF(AU13<>"", ABS(AU13-DK$4),"") -> 0.08268610311 | BR13: =IF(AV13<>"", ABS(AV13-DL$4),"") -> 0.1408921686 | BS13: =IF(AW13<>"", ABS(AW13-DM$4),"") -> 0.03823050191 | BT13: =IF(AX13<>"", ABS(AX13-DN$4),"") -> 0 | BU13: =IF(AY13<>"", ABS(AY13-DO$4),"") -> 0.05933722208 | BV13: =IF(AZ13<>"", ABS(AZ13-DP$4),"") -> 0.1100164893 | BW13: =IF(BA13<>"", ABS(BA13-DQ$4),"") -> 0.0787324839 | BX13: =IF(BB13<>"", ABS(BB13-DR$4),"") -> 0.1968297979 | BY13: =IF(BC13<>"", ABS(BC13-DS$4),"") -> 0.07658391829 | BZ13: =IF(BD13<>"", ABS(BD13-DT$4),"") -> 0.1886249341 | CA13: =IF(BE13<>"", ABS(BE13-DU$4),"") -> 0.1008974543 | CB13: =IF(BF13<>"", ABS(BF13-DV$4),"") -> 0.6846736651 | CC13: =IF(BG13<>"", ABS(BG13-DW$4),"") -> 0.07839566813 | CD13: =IF(BH13<>"", ABS(BH13-DX$4),"") -> 0.322988918 | CE13: =IF(BI13<>"", ABS(BI13-DY$4),"") -> 0.08582246334 | CF13: =IF(BJ13<>"", ABS(BJ13-DZ$4),"") -> 0.04139063456 | CG13: =IF(BK13<>"", ABS(BK13-EA$4),"") -> 0.1955767292 | CH13: =IF(BL13<>"", ABS(BL13-EB$4),"") -> 0.1273428609 | CI13: =IF(BM13<>"", ABS(BM13-EC$4),"") -> 0.05240869994 | CJ13: =IF(BN13<>"", ABS(BN13-ED$4),"") -> 0.1627904415 | CK13: =IF(BO13<>"", ABS(BO13-EE$4),"") -> 0.165885373 | CL13: =IF(AND(AT13<>"",AT13>DJ$19, AT13<DJ$16), AT13,"") -> 0.170880366 | CM13: =IF(AND(AU13<>"",AU13>DK$19, AU13<DK$16), AU13,"") -> -0.01094028319 | CN13: =IF(AND(AV13<>"",AV13>DL$19, AV13<DL$16), AV13,"") -> -0.03545348296 | CO13: =IF(AND(AW13<>"",AW13>DM$19, AW13<DM$16), AW13,"") -> 0.02353543137 | CP13: =IF(AND(AX13<>"",AX13>DN$19, AX13<DN$16), AX13,"") ->  | CQ13: =IF(AND(AY13<>"",AY13>DO$19, AY13<DO$16), AY13,"") -> 0.02745072846 | CR13: =IF(AND(AZ13<>"",AZ13>DP$19, AZ13<DP$16), AZ13,"") -> -0.00969779296 | CS13: =IF(AND(BA13<>"",BA13>DQ$19, BA13<DQ$16), BA13,"") -> 0.1786977844 | CT13: =IF(AND(BB13<>"",BB13>DR$19, BB13<DR$16), BB13,"") -> 0.3663601429 | CU13: =IF(AND(BC13<>"",BC13>DS$19, BC13<DS$16), BC13,"") -> 0.137972887 | CV13: =IF(AND(BD13<>"",BD13>DT$19, BD13<DT$16), BD13,"") -> 0.238153643 | CW13: =IF(AND(BE13<>"",BE13>DU$19, BE13<DU$16), BE13,"") -> 0.0493515155 | CX13: =IF(AND(BF13<>"",BF13>DV$19, BF13<DV$16), BF13,"") -> 1.26472907 | CY13: =IF(AND(BG13<>"",BG13>DW$19, BG13<DW$16), BG13,"") -> 0.4504993264 | CZ13: =IF(AND(BH13<>"",BH13>DX$19, BH13<DX$16), BH13,"") -> 0.38295482 | DA13: =IF(AND(BI13<>"",BI13>DY$19, BI13<DY$16), BI13,"") -> -0.07572049305 | DB13: =IF(AND(BJ13<>"",BJ13>DZ$19, BJ13<DZ$16), BJ13,"") -> 0.3139486862 | DC13: =IF(AND(BK13<>"",BK13>EA$19, BK13<EA$16), BK13,"") -> 0.2686720252 | DD13: =IF(AND(BL13<>"",BL13>EB$19, BL13<EB$16), BL13,"") -> 0.1272375653 | DE13: =IF(AND(BM13<>"",BM13>EC$19, BM13<EC$16), BM13,"") -> 0.007347958074 | DF13: =IF(AND(BN13<>"",BN13>ED$19, BN13<ED$16), BN13,"") -> 0.2396140287 | DG13: =IF(AND(BO13<>"",BO13>EE$19, BO13<EE$16), BO13,"") -> 0.1309200113 | DI13: ~STD | DJ13: =1.4826*DJ10 -> 0.2520433339 | DK13: =1.4826*DK10 -> 0.1691730399 | DL13: 0.3078347832 | DM13: 0.2502813824 | DN13: 0 | DO13: 0.1880914467 | DP13: 0.2148667035 | DQ13: 0.1948576746 | DR13: 0.2383926215 | DS13: 0.176094515 | DT13: 0.2769562745 | DU13: 0.2664636892 | DV13: 0.5418538186 | DW13: 0.3025476739 | DX13: 0.3157022446 | DY13: 0.1755060582 | DZ13: 0.291362814 | EA13: 0.194550076 | EB13: 0.2580784085 | EC13: 0.1831674718 | ED13: 0.3316258405 | EE13: 0.2435234898
A14: 3013.641602 | B14: 6934.996991 | C14: 6248.193425 | D14: 4525.926715 | E14: 5874.852131 | F14: 4848.037495 | G14: 5055.753868 | H14: 3122.010308 | I14: 4851.62414 | J14: 3984.733162 | K14: 3409.288732 | L14: 4572.460667 | M14: 2070.313243 | N14: 2941.408934 | O14: 3123.374494 | P14: 5896.493895 | Q14: 3451.41569 | R14: 5609.681159 | S14: 4277.139855 | T14: 5916.631867 | U14: 2485.815759 | V14: 3290.788854 | W14: 5874.852131 | X14: =IF(AND(A14>0, $W14>0),$W14/A14, "") -> 1.949419641 | Y14: =IF(AND(B14>0, $W14>0),$W14/B14, "") -> 0.8471311722 | Z14: =IF(AND(C14>0, $W14>0),$W14/C14, "") -> 0.9402481216 | AA14: =IF(AND(D14>0, $W14>0),$W14/D14, "") -> 1.298044025 | AB14: =IF(AND(E14>0, $W14>0),$W14/E14, "") -> 1 | AC14: =IF(AND(F14>0, $W14>0),$W14/F14, "") -> 1.211800061 | AD14: =IF(AND(G14>0, $W14>0),$W14/G14, "") -> 1.162013081 | AE14: =IF(AND(H14>0, $W14>0),$W14/H14, "") -> 1.881752958 | AF14: =IF(AND(I14>0, $W14>0),$W14/I14, "") -> 1.210904217 | AG14: =IF(AND(J14>0, $W14>0),$W14/J14, "") -> 1.474340161 | AH14: =IF(AND(K14>0, $W14>0),$W14/K14, "") -> 1.723189965 | AI14: =IF(AND(L14>0, $W14>0),$W14/L14, "") -> 1.284833826 | AJ14: =IF(AND(M14>0, $W14>0),$W14/M14, "") -> 2.837663406 | AK14: =IF(AND(N14>0, $W14>0),$W14/N14, "") -> 1.997291863 | AL14: =IF(AND(O14>0, $W14>0),$W14/O14, "") -> 1.880931071 | AM14: =IF(AND(P14>0, $W14>0),$W14/P14, "") -> 0.9963297233 | AN14: =IF(AND(Q14>0, $W14>0),$W14/Q14, "") -> 1.702157219 | AO14: =IF(AND(R14>0, $W14>0),$W14/R14, "") -> 1.04727024 | AP14: =IF(AND(S14>0, $W14>0),$W14/S14, "") -> 1.373546887 | AQ14: =IF(AND(T14>0, $W14>0),$W14/T14, "") -> 0.9929385945 | AR14: =IF(AND(U14>0, $W14>0),$W14/U14, "") -> 2.363349781 | AS14: =IF(AND(V14>0, $W14>0),$W14/V14, "") -> 1.785241288 | AT14: =IF(X14<>"",LOG10(X14),"") -> 0.2899053374 | AU14: =IF(Y14<>"",LOG10(Y14),"") -> -0.07204933705 | AV14: =IF(Z14<>"",LOG10(Z14),"") -> -0.02675752554 | AW14: =IF(AA14<>"",LOG10(AA14),"") -> 0.1132894225 | AX14: =IF(AB14<>"",LOG10(AB14),"") -> 0 | AY14: =IF(AC14<>"",LOG10(AC14),"") -> 0.08343096992 | AZ14: =IF(AD14<>"",LOG10(AD14),"") -> 0.06521101712 | BA14: =IF(AE14<>"",LOG10(AE14),"") -> 0.2745626074 | BB14: =IF(AF14<>"",LOG10(AF14),"") -> 0.0831097917 | BC14: =IF(AG14<>"",LOG10(AG14),"") -> 0.1685976958 | BD14: =IF(AH14<>"",LOG10(AH14),"") -> 0.2363331568 | BE14: =IF(AI14<>"",LOG10(AI14),"") -> 0.1088469617 | BF14: =IF(AJ14<>"",LOG10(AJ14),"") -> 0.4529608797 | BG14: =IF(AK14<>"",LOG10(AK14),"") -> 0.3004415327 | BH14: =IF(AL14<>"",LOG10(AL14),"") -> 0.2743728805 | BI14: =IF(AM14<>"",LOG10(AM14),"") -> -0.001596913269 | BJ14: =IF(AN14<>"",LOG10(AN14),"") -> 0.2309996709 | BK14: =IF(AO14<>"",LOG10(AO14),"") -> 0.02005876229 | BL14: =IF(AP14<>"",LOG10(AP14),"") -> 0.1378434888 | BM14: =IF(AQ14<>"",LOG10(AQ14),"") -> -0.003077608383 | BN14: =IF(AR14<>"",LOG10(AR14),"") -> 0.373528003 | BO14: =IF(AS14<>"",LOG10(AS14),"") -> 0.2516969223 | BP14: =IF(AT14<>"", ABS(AT14-DJ$4),"") -> 0.09115077991 | BQ14: =IF(AU14<>"", ABS(AU14-DK$4),"") -> 0.143795157 | BR14: =IF(AV14<>"", ABS(AV14-DL$4),"") -> 0.1495881261 | BS14: =IF(AW14<>"", ABS(AW14-DM$4),"") -> 0.127984493 | BT14: =IF(AX14<>"", ABS(AX14-DN$4),"") -> 0 | BU14: =IF(AY14<>"", ABS(AY14-DO$4),"") -> 0.003356980614 | BV14: =IF(AZ14<>"", ABS(AZ14-DP$4),"") -> 0.03510767921 | BW14: =IF(BA14<>"", ABS(BA14-DQ$4),"") -> 0.01713233902 | BX14: =IF(BB14<>"", ABS(BB14-DR$4),"") -> 0.08642055335 | BY14: =IF(BC14<>"", ABS(BC14-DS$4),"") -> 0.1072087271 | BZ14: =IF(BD14<>"", ABS(BD14-DT$4),"") -> 0.1868044479 | CA14: =IF(BE14<>"", ABS(BE14-DU$4),"") -> 0.04140200815 | CB14: =IF(BF14<>"", ABS(BF14-DV$4),"") -> 0.1270945252 | CC14: =IF(BG14<>"", ABS(BG14-DW$4),"") -> 0.07166212548 | CD14: =IF(BH14<>"", ABS(BH14-DX$4),"") -> 0.2144069786 | CE14: =IF(BI14<>"", ABS(BI14-DY$4),"") -> 0.01169888356 | CF14: =IF(BJ14<>"", ABS(BJ14-DZ$4),"") -> 0.1243396498 | CG14: =IF(BK14<>"", ABS(BK14-EA$4),"") -> 0.05303653379 | CH14: =IF(BL14<>"", ABS(BL14-EB$4),"") -> 0.1379487844 | CI14: =IF(BM14<>"", ABS(BM14-EC$4),"") -> 0.04198313349 | CJ14: =IF(BN14<>"", ABS(BN14-ED$4),"") -> 0.02887646718 | CK14: =IF(BO14<>"", ABS(BO14-EE$4),"") -> 0.04510846197 | CL14: =IF(AND(AT14<>"",AT14>DJ$19, AT14<DJ$16), AT14,"") -> 0.2899053374 | CM14: =IF(AND(AU14<>"",AU14>DK$19, AU14<DK$16), AU14,"") -> -0.07204933705 | CN14: =IF(AND(AV14<>"",AV14>DL$19, AV14<DL$16), AV14,"") -> -0.02675752554 | CO14: =IF(AND(AW14<>"",AW14>DM$19, AW14<DM$16), AW14,"") -> 0.1132894225 | CP14: =IF(AND(AX14<>"",AX14>DN$19, AX14<DN$16), AX14,"") ->  | CQ14: =IF(AND(AY14<>"",AY14>DO$19, AY14<DO$16), AY14,"") -> 0.08343096992 | CR14: =IF(AND(AZ14<>"",AZ14>DP$19, AZ14<DP$16), AZ14,"") -> 0.06521101712 | CS14: =IF(AND(BA14<>"",BA14>DQ$19, BA14<DQ$16), BA14,"") -> 0.2745626074 | CT14: =IF(AND(BB14<>"",BB14>DR$19, BB14<DR$16), BB14,"") -> 0.0831097917 | CU14: =IF(AND(BC14<>"",BC14>DS$19, BC14<DS$16), BC14,"") -> 0.1685976958 | CV14: =IF(AND(BD14<>"",BD14>DT$19, BD14<DT$16), BD14,"") -> 0.2363331568 | CW14: =IF(AND(BE14<>"",BE14>DU$19, BE14<DU$16), BE14,"") -> 0.1088469617 | CX14: =IF(AND(BF14<>"",BF14>DV$19, BF14<DV$16), BF14,"") -> 0.4529608797 | CY14: =IF(AND(BG14<>"",BG14>DW$19, BG14<DW$16), BG14,"") -> 0.3004415327 | CZ14: =IF(AND(BH14<>"",BH14>DX$19, BH14<DX$16), BH14,"") -> 0.2743728805 | DA14: =IF(AND(BI14<>"",BI14>DY$19, BI14<DY$16), BI14,"") -> -0.001596913269 | DB14: =IF(AND(BJ14<>"",BJ14>DZ$19, BJ14<DZ$16), BJ14,"") -> 0.2309996709 | DC14: =IF(AND(BK14<>"",BK14>EA$19, BK14<EA$16), BK14,"") -> 0.02005876229 | DD14: =IF(AND(BL14<>"",BL14>EB$19, BL14<EB$16), BL14,"") -> 0.1378434888 | DE14: =IF(AND(BM14<>"",BM14>EC$19, BM14<EC$16), BM14,"") -> -0.003077608383 | DF14: =IF(AND(BN14<>"",BN14>ED$19, BN14<ED$16), BN14,"") -> 0.373528003 | DG14: =IF(AND(BO14<>"",BO14>EE$19, BO14<EE$16), BO14,"") -> 0.2516969223
A15: 1644.068414 | B15: 2670.039677 | C15: 7606.033774 | D15: 5223.471507 | E15: 3548.161059 | F15: 2747.921973 | G15: 2666.343092 | H15: 2062.629735 | I15: 2101.737777 | J15: 3878.702271 | K15: 4240.469504 | L15: 2810.573542 | M15: 771.2976152 | N15: 1251.732855 | O15: 3732.765721 | P15: 2913.689753 | Q15: 1051.250215 | R15: 2949.595233 | S15: 4044.853164 | T15: 4821.81626 | U15: 987.8758996 | V15: 1611.996914 | W15: 3548.161059 | X15: =IF(AND(A15>0, $W15>0),$W15/A15, "") -> 2.15815901 | Y15: =IF(AND(B15>0, $W15>0),$W15/B15, "") -> 1.328879526 | Z15: =IF(AND(C15>0, $W15>0),$W15/C15, "") -> 0.4664929404 | AA15: =IF(AND(D15>0, $W15>0),$W15/D15, "") -> 0.6792725977 | AB15: =IF(AND(E15>0, $W15>0),$W15/E15, "") -> 1 | AC15: =IF(AND(F15>0, $W15>0),$W15/F15, "") -> 1.291216088 | AD15: =IF(AND(G15>0, $W15>0),$W15/G15, "") -> 1.330721868 | AE15: =IF(AND(H15>0, $W15>0),$W15/H15, "") -> 1.720212309 | AF15: =IF(AND(I15>0, $W15>0),$W15/I15, "") -> 1.688203495 | AG15: =IF(AND(J15>0, $W15>0),$W15/J15, "") -> 0.9147804631 | AH15: =IF(AND(K15>0, $W15>0),$W15/K15, "") -> 0.8367377848 | AI15: =IF(AND(L15>0, $W15>0),$W15/L15, "") -> 1.262433096 | AJ15: =IF(AND(M15>0, $W15>0),$W15/M15, "") -> 4.600248969 | AK15: =IF(AND(N15>0, $W15>0),$W15/N15, "") -> 2.834599287 | AL15: =IF(AND(O15>0, $W15>0),$W15/O15, "") -> 0.9505448037 | AM15: =IF(AND(P15>0, $W15>0),$W15/P15, "") -> 1.217755273 | AN15: =IF(AND(Q15>0, $W15>0),$W15/Q15, "") -> 3.375182242 | AO15: =IF(AND(R15>0, $W15>0),$W15/R15, "") -> 1.202931514 | AP15: =IF(AND(S15>0, $W15>0),$W15/S15, "") -> 0.877203922 | AQ15: =IF(AND(T15>0, $W15>0),$W15/T15, "") -> 0.7358557166 | AR15: =IF(AND(U15>0, $W15>0),$W15/U15, "") -> 3.591707279 | AS15: =IF(AND(V15>0, $W15>0),$W15/V15, "") -> 2.201096683 | AT15: =IF(X15<>"",LOG10(X15),"") -> 0.3340834396 | AU15: =IF(Y15<>"",LOG10(Y15),"") -> 0.1234856102 | AV15: =IF(Z15<>"",LOG10(Z15),"") -> -0.3311549242 | AW15: =IF(AA15<>"",LOG10(AA15),"") -> -0.1679559048 | AX15: =IF(AB15<>"",LOG10(AB15),"") -> 0 | AY15: =IF(AC15<>"",LOG10(AC15),"") -> 0.1109989285 | AZ15: =IF(AD15<>"",LOG10(AD15),"") -> 0.1240872938 | BA15: =IF(AE15<>"",LOG10(AE15),"") -> 0.2355820509 | BB15: =IF(AF15<>"",LOG10(AF15),"") -> 0.227424795 | BC15: =IF(AG15<>"",LOG10(AG15),"") -> -0.03868311918 | BD15: =IF(AH15<>"",LOG10(AH15),"") -> -0.077410619 | BE15: =IF(AI15<>"",LOG10(AI15),"") -> 0.1012083716 | BF15: =IF(AJ15<>"",LOG10(AJ15),"") -> 0.6627813367 | BG15: =IF(AK15<>"",LOG10(AK15),"") -> 0.4524916736 | BH15: =IF(AL15<>"",LOG10(AL15),"") -> -0.02202740796 | BI15: =IF(AM15<>"",LOG10(AM15),"") -> 0.08556001863 | BJ15: =IF(AN15<>"",LOG10(AN15),"") -> 0.5282972275 | BK15: =IF(AO15<>"",LOG10(AO15),"") -> 0.08024090252 | BL15: =IF(AP15<>"",LOG10(AP15),"") -> -0.05689943526 | BM15: =IF(AQ15<>"",LOG10(AQ15),"") -> -0.1332073319 | BN15: =IF(AR15<>"",LOG10(AR15),"") -> 0.5553009348 | BO15: =IF(AS15<>"",LOG10(AS15),"") -> 0.3426391193 | BP15: =IF(AT15<>"", ABS(AT15-DJ$4),"") -> 0.1353288821 | BQ15: =IF(AU15<>"", ABS(AU15-DK$4),"") -> 0.05173979023 | BR15: =IF(AV15<>"", ABS(AV15-DL$4),"") -> 0.1548092726 | BS15: =IF(AW15<>"", ABS(AW15-DM$4),"") -> 0.1532608343 | BT15: =IF(AX15<>"", ABS(AX15-DN$4),"") -> 0 | BU15: =IF(AY15<>"", ABS(AY15-DO$4),"") -> 0.02421097795 | BV15: =IF(AZ15<>"", ABS(AZ15-DP$4),"") -> 0.02376859745 | BW15: =IF(BA15<>"", ABS(BA15-DQ$4),"") -> 0.02184821743 | BX15: =IF(BB15<>"", ABS(BB15-DR$4),"") -> 0.0578944499 | BY15: =IF(BC15<>"", ABS(BC15-DS$4),"") -> 0.1000720879 | BZ15: =IF(BD15<>"", ABS(BD15-DT$4),"") -> 0.1269393279 | CA15: =IF(BE15<>"", ABS(BE15-DU$4),"") -> 0.0490405982 | CB15: =IF(BF15<>"", ABS(BF15-DV$4),"") -> 0.08272593181 | CC15: =IF(BG15<>"", ABS(BG15-DW$4),"") -> 0.08038801534 | CD15: =IF(BH15<>"", ABS(BH15-DX$4),"") -> 0.08199330994 | CE15: =IF(BI15<>"", ABS(BI15-DY$4),"") -> 0.07545804833 | CF15: =IF(BJ15<>"", ABS(BJ15-DZ$4),"") -> 0.1729579067 | CG15: =IF(BK15<>"", ABS(BK15-EA$4),"") -> 0.007145606445 | CH15: =IF(BL15<>"", ABS(BL15-EB$4),"") -> 0.05679413967 | CI15: =IF(BM15<>"", ABS(BM15-EC$4),"") -> 0.08814659002 | CJ15: =IF(BN15<>"", ABS(BN15-ED$4),"") -> 0.1528964646 | CK15: =IF(BO15<>"", ABS(BO15-EE$4),"") -> 0.04583373502 | CL15: =IF(AND(AT15<>"",AT15>DJ$19, AT15<DJ$16), AT15,"") -> 0.3340834396 | CM15: =IF(AND(AU15<>"",AU15>DK$19, AU15<DK$16), AU15,"") -> 0.1234856102 | CN15: =IF(AND(AV15<>"",AV15>DL$19, AV15<DL$16), AV15,"") -> -0.3311549242 | CO15: =IF(AND(AW15<>"",AW15>DM$19, AW15<DM$16), AW15,"") -> -0.1679559048 | CP15: =IF(AND(AX15<>"",AX15>DN$19, AX15<DN$16), AX15,"") ->  | CQ15: =IF(AND(AY15<>"",AY15>DO$19, AY15<DO$16), AY15,"") -> 0.1109989285 | CR15: =IF(AND(AZ15<>"",AZ15>DP$19, AZ15<DP$16), AZ15,"") -> 0.1240872938 | CS15: =IF(AND(BA15<>"",BA15>DQ$19, BA15<DQ$16), BA15,"") -> 0.2355820509 | CT15: =IF(AND(BB15<>"",BB15>DR$19, BB15<DR$16), BB15,"") -> 0.227424795 | CU15: =IF(AND(BC15<>"",BC15>DS$19, BC15<DS$16), BC15,"") -> -0.03868311918 | CV15: =IF(AND(BD15<>"",BD15>DT$19, BD15<DT$16), BD15,"") -> -0.077410619 | CW15: =IF(AND(BE15<>"",BE15>DU$19, BE15<DU$16), BE15,"") -> 0.1012083716 | CX15: =IF(AND(BF15<>"",BF15>DV$19, BF15<DV$16), BF15,"") -> 0.6627813367 | CY15: =IF(AND(BG15<>"",BG15>DW$19, BG15<DW$16), BG15,"") -> 0.4524916736 | CZ15: =IF(AND(BH15<>"",BH15>DX$19, BH15<DX$16), BH15,"") -> -0.02202740796 | DA15: =IF(AND(BI15<>"",BI15>DY$19, BI15<DY$16), BI15,"") -> 0.08556001863 | DB15: =IF(AND(BJ15<>"",BJ15>DZ$19, BJ15<DZ$16), BJ15,"") -> 0.5282972275 | DC15: =IF(AND(BK15<>"",BK15>EA$19, BK15<EA$16), BK15,"") -> 0.08024090252 | DD15: =IF(AND(BL15<>"",BL15>EB$19, BL15<EB$16), BL15,"") -> -0.05689943526 | DE15: =IF(AND(BM15<>"",BM15>EC$19, BM15<EC$16), BM15,"") -> -0.1332073319 | DF15: =IF(AND(BN15<>"",BN15>ED$19, BN15<ED$16), BN15,"") -> 0.5553009348 | DG15: =IF(AND(BO15<>"",BO15>EE$19, BO15<EE$16), BO15,"") -> 0.3426391193
A16: 2480.493921 | B16: 2385.790112 | C16: 7183.560678 | D16: 5106.753466 | E16: 3270.903347 | F16: 2890.790222 | G16: 2903.808548 | H16: 2145.828833 | I16: 1578.633466 | J16: 6867.456391 | K16: 3126.226798 | L16: 2565.462324 | M16: 279.0195334 | N16: 1148.977894 | O16: 1248.755791 | P16: 3705.853797 | Q16: 1129.803665 | R16: 2330.020052 | S16: 3746.371083 | T16: 4222.599489 | U16: 1451.476877 | V16: 1990.736892 | W16: 3270.903347 | X16: =IF(AND(A16>0, $W16>0),$W16/A16, "") -> 1.318650015 | Y16: =IF(AND(B16>0, $W16>0),$W16/B16, "") -> 1.370993756 | Z16: =IF(AND(C16>0, $W16>0),$W16/C16, "") -> 0.4553317628 | AA16: =IF(AND(D16>0, $W16>0),$W16/D16, "") -> 0.6405054343 | AB16: =IF(AND(E16>0, $W16>0),$W16/E16, "") -> 1 | AC16: =IF(AND(F16>0, $W16>0),$W16/F16, "") -> 1.131491079 | AD16: =IF(AND(G16>0, $W16>0),$W16/G16, "") -> 1.126418389 | AE16: =IF(AND(H16>0, $W16>0),$W16/H16, "") -> 1.524307669 | AF16: =IF(AND(I16>0, $W16>0),$W16/I16, "") -> 2.071984041 | AG16: =IF(AND(J16>0, $W16>0),$W16/J16, "") -> 0.4762903702 | AH16: =IF(AND(K16>0, $W16>0),$W16/K16, "") -> 1.046278328 | AI16: =IF(AND(L16>0, $W16>0),$W16/L16, "") -> 1.274976177 | AJ16: =IF(AND(M16>0, $W16>0),$W16/M16, "") -> 11.72284717 | AK16: =IF(AND(N16>0, $W16>0),$W16/N16, "") -> 2.846793976 | AL16: =IF(AND(O16>0, $W16>0),$W16/O16, "") -> 2.619329872 | AM16: =IF(AND(P16>0, $W16>0),$W16/P16, "") -> 0.8826315137 | AN16: =IF(AND(Q16>0, $W16>0),$W16/Q16, "") -> 2.89510775 | AO16: =IF(AND(R16>0, $W16>0),$W16/R16, "") -> 1.403809098 | AP16: =IF(AND(S16>0, $W16>0),$W16/S16, "") -> 0.8730857873 | AQ16: =IF(AND(T16>0, $W16>0),$W16/T16, "") -> 0.7746184206 | AR16: =IF(AND(U16>0, $W16>0),$W16/U16, "") -> 2.253500141 | AS16: =IF(AND(V16>0, $W16>0),$W16/V16, "") -> 1.643061602 | AT16: =IF(X16<>"",LOG10(X16),"") -> 0.1201295441 | AU16: =IF(Y16<>"",LOG10(Y16),"") -> 0.1370354768 | AV16: =IF(Z16<>"",LOG10(Z16),"") -> -0.3416720533 | AW16: =IF(AA16<>"",LOG10(AA16),"") -> -0.1934771812 | AX16: =IF(AB16<>"",LOG10(AB16),"") -> 0 | AY16: =IF(AC16<>"",LOG10(AC16),"") -> 0.0536511341 | AZ16: =IF(AD16<>"",LOG10(AD16),"") -> 0.05169973186 | BA16: =IF(AE16<>"",LOG10(AE16),"") -> 0.1830726346 | BB16: =IF(AF16<>"",LOG10(AF16),"") -> 0.3163864059 | BC16: =IF(AG16<>"",LOG10(AG16),"") -> -0.3221281991 | BD16: =IF(AH16<>"",LOG10(AH16),"") -> 0.0196472296 | BE16: =IF(AI16<>"",LOG10(AI16),"") -> 0.1055020701 | BF16: =IF(AJ16<>"",LOG10(AJ16),"") -> 1.069033103 | BG16: =IF(AK16<>"",LOG10(AK16),"") -> 0.4543560382 | BH16: =IF(AL16<>"",LOG10(AL16),"") -> 0.4181901959 | BI16: =IF(AM16<>"",LOG10(AM16),"") -> -0.05422057045 | BJ16: =IF(AN16<>"",LOG10(AN16),"") -> 0.4616647319 | BK16: =IF(AO16<>"",LOG10(AO16),"") -> 0.1473080526 | BL16: =IF(AP16<>"",LOG10(AP16),"") -> -0.05894308148 | BM16: =IF(AQ16<>"",LOG10(AQ16),"") -> -0.1109121796 | BN16: =IF(AR16<>"",LOG10(AR16),"") -> 0.3528575895 | BO16: =IF(AS16<>"",LOG10(AS16),"") -> 0.2156538464 | BP16: =IF(AT16<>"", ABS(AT16-DJ$4),"") -> 0.07862501342 | BQ16: =IF(AU16<>"", ABS(AU16-DK$4),"") -> 0.06528965693 | BR16: =IF(AV16<>"", ABS(AV16-DL$4),"") -> 0.1653264017 | BS16: =IF(AW16<>"", ABS(AW16-DM$4),"") -> 0.1787821107 | BT16: =IF(AX16<>"", ABS(AX16-DN$4),"") -> 0 | BU16: =IF(AY16<>"", ABS(AY16-DO$4),"") -> 0.03313681644 | BV16: =IF(AZ16<>"", ABS(AZ16-DP$4),"") -> 0.04861896448 | BW16: =IF(BA16<>"", ABS(BA16-DQ$4),"") -> 0.07435763376 | BX16: =IF(BB16<>"", ABS(BB16-DR$4),"") -> 0.1468560609 | BY16: =IF(BC16<>"", ABS(BC16-DS$4),"") -> 0.3835171678 | BZ16: =IF(BD16<>"", ABS(BD16-DT$4),"") -> 0.02988147925 | CA16: =IF(BE16<>"", ABS(BE16-DU$4),"") -> 0.04474689967 | CB16: =IF(BF16<>"", ABS(BF16-DV$4),"") -> 0.4889776982 | CC16: =IF(BG16<>"", ABS(BG16-DW$4),"") -> 0.08225238001 | CD16: =IF(BH16<>"", ABS(BH16-DX$4),"") -> 0.3582242939 | CE16: =IF(BI16<>"", ABS(BI16-DY$4),"") -> 0.06432254074 | CF16: =IF(BJ16<>"", ABS(BJ16-DZ$4),"") -> 0.1063254112 | CG16: =IF(BK16<>"", ABS(BK16-EA$4),"") -> 0.07421275651 | CH16: =IF(BL16<>"", ABS(BL16-EB$4),"") -> 0.05883778589 | CI16: =IF(BM16<>"", ABS(BM16-EC$4),"") -> 0.06585143773 | CJ16: =IF(BN16<>"", ABS(BN16-ED$4),"") -> 0.04954688068 | CK16: =IF(BO16<>"", ABS(BO16-EE$4),"") -> 0.08115153779 | CL16: =IF(AND(AT16<>"",AT16>DJ$19, AT16<DJ$16), AT16,"") -> 0.1201295441 | CM16: =IF(AND(AU16<>"",AU16>DK$19, AU16<DK$16), AU16,"") -> 0.1370354768 | CN16: =IF(AND(AV16<>"",AV16>DL$19, AV16<DL$16), AV16,"") -> -0.3416720533 | CO16: =IF(AND(AW16<>"",AW16>DM$19, AW16<DM$16), AW16,"") -> -0.1934771812 | CP16: =IF(AND(AX16<>"",AX16>DN$19, AX16<DN$16), AX16,"") ->  | CQ16: =IF(AND(AY16<>"",AY16>DO$19, AY16<DO$16), AY16,"") -> 0.0536511341 | CR16: =IF(AND(AZ16<>"",AZ16>DP$19, AZ16<DP$16), AZ16,"") -> 0.05169973186 | CS16: =IF(AND(BA16<>"",BA16>DQ$19, BA16<DQ$16), BA16,"") -> 0.1830726346 | CT16: =IF(AND(BB16<>"",BB16>DR$19, BB16<DR$16), BB16,"") -> 0.3163864059 | CU16: =IF(AND(BC16<>"",BC16>DS$19, BC16<DS$16), BC16,"") -> -0.3221281991 | CV16: =IF(AND(BD16<>"",BD16>DT$19, BD16<DT$16), BD16,"") -> 0.0196472296 | CW16: =IF(AND(BE16<>"",BE16>DU$19, BE16<DU$16), BE16,"") -> 0.1055020701 | CX16: =IF(AND(BF16<>"",BF16>DV$19, BF16<DV$16), BF16,"") -> 1.069033103 | CY16: =IF(AND(BG16<>"",BG16>DW$19, BG16<DW$16), BG16,"") -> 0.4543560382 | CZ16: =IF(AND(BH16<>"",BH16>DX$19, BH16<DX$16), BH16,"") -> 0.4181901959 | DA16: =IF(AND(BI16<>"",BI16>DY$19, BI16<DY$16), BI16,"") -> -0.05422057045 | DB16: =IF(AND(BJ16<>"",BJ16>DZ$19, BJ16<DZ$16), BJ16,"") -> 0.4616647319 | DC16: =IF(AND(BK16<>"",BK16>EA$19, BK16<EA$16), BK16,"") -> 0.1473080526 | DD16: =IF(AND(BL16<>"",BL16>EB$19, BL16<EB$16), BL16,"") -> -0.05894308148 | DE16: =IF(AND(BM16<>"",BM16>EC$19, BM16<EC$16), BM16,"") -> -0.1109121796 | DF16: =IF(AND(BN16<>"",BN16>ED$19, BN16<ED$16), BN16,"") -> 0.3528575895 | DG16: =IF(AND(BO16<>"",BO16>EE$19, BO16<EE$16), BO16,"") -> 0.2156538464 | DI16: Log10(Upper) | DJ16: =DJ4+3*DJ13 -> 0.9548845591 | DK16: =DK4+3*DK13 -> 0.5792649397 | DL16: 0.7471586979 | DM16: 0.7361490768 | DN16: 0 | DO16: 0.6510622907 | DP16: 0.7449188067 | DQ16: 0.8420032921 | DR16: 0.8847082097 | DS16: 0.5896725137 | DT16: 0.8803975324 | DU16: 0.9496400373 | DV16: 2.205616861 | DW16: 1.27974668 | DX16: 1.007072636 | DY16: 0.5366201449 | DZ16: 1.229427763 | EA16: 0.6567455242 | EB16: 0.7741299299 | EC16: 0.5044416737 | ED16: 1.397281992 | EE16: 1.027375854
A17: 1745.636926 | B17: 3023.33766 | C17: 8972.670621 | D17: 5012.031183 | E17: 3125.636631 | F17: 2297.444539 | G17: 1618.768177 | H17: 1382.664106 | I17: 1642.967895 | J17: 2626.379644 | K17: 3021.486829 | L17: 1315.301965 | M17: 1195.61483 | N17: 575.2195891 | O17: 2968.53067 | P17: 2781.677707 | Q17: 1028.157955 | R17: 2783.972234 | S17: 4054.909259 | T17: 4736.252181 | U17: 573.2745248 | V17: 1224.165798 | W17: 3125.636631 | X17: =IF(AND(A17>0, $W17>0),$W17/A17, "") -> 1.790542228 | Y17: =IF(AND(B17>0, $W17>0),$W17/B17, "") -> 1.033836436 | Z17: =IF(AND(C17>0, $W17>0),$W17/C17, "") -> 0.3483507601 | AA17: =IF(AND(D17>0, $W17>0),$W17/D17, "") -> 0.6236267327 | AB17: =IF(AND(E17>0, $W17>0),$W17/E17, "") -> 1 | AC17: =IF(AND(F17>0, $W17>0),$W17/F17, "") -> 1.360484041 | AD17: =IF(AND(G17>0, $W17>0),$W17/G17, "") -> 1.930873534 | AE17: =IF(AND(H17>0, $W17>0),$W17/H17, "") -> 2.260589985 | AF17: =IF(AND(I17>0, $W17>0),$W17/I17, "") -> 1.902433176 | AG17: =IF(AND(J17>0, $W17>0),$W17/J17, "") -> 1.190093229 | AH17: =IF(AND(K17>0, $W17>0),$W17/K17, "") -> 1.034469719 | AI17: =IF(AND(L17>0, $W17>0),$W17/L17, "") -> 2.376364297 | AJ17: =IF(AND(M17>0, $W17>0),$W17/M17, "") -> 2.61425047 | AK17: =IF(AND(N17>0, $W17>0),$W17/N17, "") -> 5.433814651 | AL17: =IF(AND(O17>0, $W17>0),$W17/O17, "") -> 1.052923812 | AM17: =IF(AND(P17>0, $W17>0),$W17/P17, "") -> 1.123651609 | AN17: =IF(AND(Q17>0, $W17>0),$W17/Q17, "") -> 3.040035449 | AO17: =IF(AND(R17>0, $W17>0),$W17/R17, "") -> 1.122725505 | AP17: =IF(AND(S17>0, $W17>0),$W17/S17, "") -> 0.7708277623 | AQ17: =IF(AND(T17>0, $W17>0),$W17/T17, "") -> 0.6599388106 | AR17: =IF(AND(U17>0, $W17>0),$W17/U17, "") -> 5.452251052 | AS17: =IF(AND(V17>0, $W17>0),$W17/V17, "") -> 2.553278841 | AT17: =IF(X17<>"",LOG10(X17),"") -> 0.2529845679 | AU17: =IF(Y17<>"",LOG10(Y17),"") -> 0.01445183403 | AV17: =IF(Z17<>"",LOG10(Z17),"") -> -0.4579832375 | AW17: =IF(AA17<>"",LOG10(AA17),"") -> -0.2050752764 | AX17: =IF(AB17<>"",LOG10(AB17),"") -> 0 | AY17: =IF(AC17<>"",LOG10(AC17),"") -> 0.1336934518 | AZ17: =IF(AD17<>"",LOG10(AD17),"") -> 0.2857538299 | BA17: =IF(AE17<>"",LOG10(AE17),"") -> 0.3542217993 | BB17: =IF(AF17<>"",LOG10(AF17),"") -> 0.279309411 | BC17: =IF(AG17<>"",LOG10(AG17),"") -> 0.07558098424 | BD17: =IF(AH17<>"",LOG10(AH17),"") -> 0.01471778248 | BE17: =IF(AI17<>"",LOG10(AI17),"") -> 0.3759130188 | BF17: =IF(AJ17<>"",LOG10(AJ17),"") -> 0.4173471947 | BG17: =IF(AK17<>"",LOG10(AK17),"") -> 0.7351048204 | BH17: =IF(AL17<>"",LOG10(AL17),"") -> 0.0223969476 | BI17: =IF(AM17<>"",LOG10(AM17),"") -> 0.05063167792 | BJ17: =IF(AN17<>"",LOG10(AN17),"") -> 0.4828786479 | BK17: =IF(AO17<>"",LOG10(AO17),"") -> 0.05027358846 | BL17: =IF(AP17<>"",LOG10(AP17),"") -> -0.1130426521 | BM17: =IF(AQ17<>"",LOG10(AQ17),"") -> -0.1804963303 | BN17: =IF(AR17<>"",LOG10(AR17),"") -> 0.7365758449 | BO17: =IF(AS17<>"",LOG10(AS17),"") -> 0.4070982463 | BP17: =IF(AT17<>"", ABS(AT17-DJ$4),"") -> 0.05423001035 | BQ17: =IF(AU17<>"", ABS(AU17-DK$4),"") -> 0.05729398588 | BR17: =IF(AV17<>"", ABS(AV17-DL$4),"") -> 0.2816375859 | BS17: =IF(AW17<>"", ABS(AW17-DM$4),"") -> 0.1903802058 | BT17: =IF(AX17<>"", ABS(AX17-DN$4),"") -> 0 | BU17: =IF(AY17<>"", ABS(AY17-DO$4),"") -> 0.04690550127 | BV17: =IF(AZ17<>"", ABS(AZ17-DP$4),"") -> 0.1854351335 | BW17: =IF(BA17<>"", ABS(BA17-DQ$4),"") -> 0.09679153092 | BX17: =IF(BB17<>"", ABS(BB17-DR$4),"") -> 0.1097790659 | BY17: =IF(BC17<>"", ABS(BC17-DS$4),"") -> 0.01419201552 | BZ17: =IF(BD17<>"", ABS(BD17-DT$4),"") -> 0.03481092638 | CA17: =IF(BE17<>"", ABS(BE17-DU$4),"") -> 0.225664049 | CB17: =IF(BF17<>"", ABS(BF17-DV$4),"") -> 0.1627082102 | CC17: =IF(BG17<>"", ABS(BG17-DW$4),"") -> 0.3630011622 | CD17: =IF(BH17<>"", ABS(BH17-DX$4),"") -> 0.03756895438 | CE17: =IF(BI17<>"", ABS(BI17-DY$4),"") -> 0.04052970763 | CF17: =IF(BJ17<>"", ABS(BJ17-DZ$4),"") -> 0.1275393271 | CG17: =IF(BK17<>"", ABS(BK17-EA$4),"") -> 0.02282170762 | CH17: =IF(BL17<>"", ABS(BL17-EB$4),"") -> 0.1129373565 | CI17: =IF(BM17<>"", ABS(BM17-EC$4),"") -> 0.1354355884 | CJ17: =IF(BN17<>"", ABS(BN17-ED$4),"") -> 0.3341713747 | CK17: =IF(BO17<>"", ABS(BO17-EE$4),"") -> 0.110292862 | CL17: =IF(AND(AT17<>"",AT17>DJ$19, AT17<DJ$16), AT17,"") -> 0.2529845679 | CM17: =IF(AND(AU17<>"",AU17>DK$19, AU17<DK$16), AU17,"") -> 0.01445183403 | CN17: =IF(AND(AV17<>"",AV17>DL$19, AV17<DL$16), AV17,"") -> -0.4579832375 | CO17: =IF(AND(AW17<>"",AW17>DM$19, AW17<DM$16), AW17,"") -> -0.2050752764 | CP17: =IF(AND(AX17<>"",AX17>DN$19, AX17<DN$16), AX17,"") ->  | CQ17: =IF(AND(AY17<>"",AY17>DO$19, AY17<DO$16), AY17,"") -> 0.1336934518 | CR17: =IF(AND(AZ17<>"",AZ17>DP$19, AZ17<DP$16), AZ17,"") -> 0.2857538299 | CS17: =IF(AND(BA17<>"",BA17>DQ$19, BA17<DQ$16), BA17,"") -> 0.3542217993 | CT17: =IF(AND(BB17<>"",BB17>DR$19, BB17<DR$16), BB17,"") -> 0.279309411 | CU17: =IF(AND(BC17<>"",BC17>DS$19, BC17<DS$16), BC17,"") -> 0.07558098424 | CV17: =IF(AND(BD17<>"",BD17>DT$19, BD17<DT$16), BD17,"") -> 0.01471778248 | CW17: =IF(AND(BE17<>"",BE17>DU$19, BE17<DU$16), BE17,"") -> 0.3759130188 | CX17: =IF(AND(BF17<>"",BF17>DV$19, BF17<DV$16), BF17,"") -> 0.4173471947 | CY17: =IF(AND(BG17<>"",BG17>DW$19, BG17<DW$16), BG17,"") -> 0.7351048204 | CZ17: =IF(AND(BH17<>"",BH17>DX$19, BH17<DX$16), BH17,"") -> 0.0223969476 | DA17: =IF(AND(BI17<>"",BI17>DY$19, BI17<DY$16), BI17,"") -> 0.05063167792 | DB17: =IF(AND(BJ17<>"",BJ17>DZ$19, BJ17<DZ$16), BJ17,"") -> 0.4828786479 | DC17: =IF(AND(BK17<>"",BK17>EA$19, BK17<EA$16), BK17,"") -> 0.05027358846 | DD17: =IF(AND(BL17<>"",BL17>EB$19, BL17<EB$16), BL17,"") -> -0.1130426521 | DE17: =IF(AND(BM17<>"",BM17>EC$19, BM17<EC$16), BM17,"") -> -0.1804963303 | DF17: =IF(AND(BN17<>"",BN17>ED$19, BN17<ED$16), BN17,"") -> 0.7365758449 | DG17: =IF(AND(BO17<>"",BO17>EE$19, BO17<EE$16), BO17,"") -> 0.4070982463
A18: 2277.173461 | B18: 2136.831844 | C18: 6802.337111 | D18: 4767.395995 | E18: 2725.031882 | F18: 2281.676363 | G18: 2268.326191 | H18: 1710.63643 | I18: 1085.593144 | J18: 2515.639926 | K18: 2174.212867 | L18: 3444.685647 | M18: 260.774203 | N18: 728.538258 | O18: 1452.883666 | P18: 3175.660771 | Q18: 974.2708974 | R18: 2475.61954 | S18: 3536.466281 | T18: 3939.452032 | U18: 1061.405384 | V18: 1854.573567 | W18: 2725.031882 | X18: =IF(AND(A18>0, $W18>0),$W18/A18, "") -> 1.196672949 | Y18: =IF(AND(B18>0, $W18>0),$W18/B18, "") -> 1.275267349 | Z18: =IF(AND(C18>0, $W18>0),$W18/C18, "") -> 0.4006022985 | AA18: =IF(AND(D18>0, $W18>0),$W18/D18, "") -> 0.5715975523 | AB18: =IF(AND(E18>0, $W18>0),$W18/E18, "") -> 1 | AC18: =IF(AND(F18>0, $W18>0),$W18/F18, "") -> 1.194311308 | AD18: =IF(AND(G18>0, $W18>0),$W18/G18, "") -> 1.201340395 | AE18: =IF(AND(H18>0, $W18>0),$W18/H18, "") -> 1.592993013 | AF18: =IF(AND(I18>0, $W18>0),$W18/I18, "") -> 2.510177865 | AG18: =IF(AND(J18>0, $W18>0),$W18/J18, "") -> 1.08323606 | AH18: =IF(AND(K18>0, $W18>0),$W18/K18, "") -> 1.253341806 | AI18: =IF(AND(L18>0, $W18>0),$W18/L18, "") -> 0.7910828914 | AJ18: =IF(AND(M18>0, $W18>0),$W18/M18, "") -> 10.44977552 | AK18: =IF(AND(N18>0, $W18>0),$W18/N18, "") -> 3.740410132 | AL18: =IF(AND(O18>0, $W18>0),$W18/O18, "") -> 1.875602255 | AM18: =IF(AND(P18>0, $W18>0),$W18/P18, "") -> 0.8580991732 | AN18: =IF(AND(Q18>0, $W18>0),$W18/Q18, "") -> 2.796996081 | AO18: =IF(AND(R18>0, $W18>0),$W18/R18, "") -> 1.100747444 | AP18: =IF(AND(S18>0, $W18>0),$W18/S18, "") -> 0.7705522025 | AQ18: =IF(AND(T18>0, $W18>0),$W18/T18, "") -> 0.6917286617 | AR18: =IF(AND(U18>0, $W18>0),$W18/U18, "") -> 2.567380874 | AS18: =IF(AND(V18>0, $W18>0),$W18/V18, "") -> 1.469357663 | AT18: =IF(X18<>"",LOG10(X18),"") -> 0.07797547394 | AU18: =IF(Y18<>"",LOG10(Y18),"") -> 0.1056012406 | AV18: =IF(Z18<>"",LOG10(Z18),"") -> -0.3972865632 | AW18: =IF(AA18<>"",LOG10(AA18),"") -> -0.2429096396 | AX18: =IF(AB18<>"",LOG10(AB18),"") -> 0 | AY18: =IF(AC18<>"",LOG10(AC18),"") -> 0.07711754425 | AZ18: =IF(AD18<>"",LOG10(AD18),"") -> 0.07966608027 | BA18: =IF(AE18<>"",LOG10(AE18),"") -> 0.202213871 | BB18: =IF(AF18<>"",LOG10(AF18),"") -> 0.3997044956 | BC18: =IF(AG18<>"",LOG10(AG18),"") -> 0.03472310886 | BD18: =IF(AH18<>"",LOG10(AH18),"") -> 0.09806952612 | BE18: =IF(AI18<>"",LOG10(AI18),"") -> -0.1017780078 | BF18: =IF(AJ18<>"",LOG10(AJ18),"") -> 1.019106961 | BG18: =IF(AK18<>"",LOG10(AK18),"") -> 0.5729192247 | BH18: =IF(AL18<>"",LOG10(AL18),"") -> 0.2731407463 | BI18: =IF(AM18<>"",LOG10(AM18),"") -> -0.06646251651 | BJ18: =IF(AN18<>"",LOG10(AN18),"") -> 0.4466918578 | BK18: =IF(AO18<>"",LOG10(AO18),"") -> 0.04168768587 | BL18: =IF(AP18<>"",LOG10(AP18),"") -> -0.1131979339 | BM18: =IF(AQ18<>"",LOG10(AQ18),"") -> -0.160064229 | BN18: =IF(AR18<>"",LOG10(AR18),"") -> 0.4094903015 | BO18: =IF(AS18<>"",LOG10(AS18),"") -> 0.1671275222 | BP18: =IF(AT18<>"", ABS(AT18-DJ$4),"") -> 0.1207790836 | BQ18: =IF(AU18<>"", ABS(AU18-DK$4),"") -> 0.03385542066 | BR18: =IF(AV18<>"", ABS(AV18-DL$4),"") -> 0.2209409116 | BS18: =IF(AW18<>"", ABS(AW18-DM$4),"") -> 0.2282145691 | BT18: =IF(AX18<>"", ABS(AX18-DN$4),"") -> 0 | BU18: =IF(AY18<>"", ABS(AY18-DO$4),"") -> 0.00967040628 | BV18: =IF(AZ18<>"", ABS(AZ18-DP$4),"") -> 0.02065261607 | BW18: =IF(BA18<>"", ABS(BA18-DQ$4),"") -> 0.05521639733 | BX18: =IF(BB18<>"", ABS(BB18-DR$4),"") -> 0.2301741506 | BY18: =IF(BC18<>"", ABS(BC18-DS$4),"") -> 0.02666585985 | BZ18: =IF(BD18<>"", ABS(BD18-DT$4),"") -> 0.04854081726 | CA18: =IF(BE18<>"", ABS(BE18-DU$4),"") -> 0.2520269776 | CB18: =IF(BF18<>"", ABS(BF18-DV$4),"") -> 0.439051556 | CC18: =IF(BG18<>"", ABS(BG18-DW$4),"") -> 0.2008155665 | CD18: =IF(BH18<>"", ABS(BH18-DX$4),"") -> 0.2131748443 | CE18: =IF(BI18<>"", ABS(BI18-DY$4),"") -> 0.0765644868 | CF18: =IF(BJ18<>"", ABS(BJ18-DZ$4),"") -> 0.09135253711 | CG18: =IF(BK18<>"", ABS(BK18-EA$4),"") -> 0.03140761021 | CH18: =IF(BL18<>"", ABS(BL18-EB$4),"") -> 0.1130926383 | CI18: =IF(BM18<>"", ABS(BM18-EC$4),"") -> 0.1150034872 | CJ18: =IF(BN18<>"", ABS(BN18-ED$4),"") -> 0.007085831277 | CK18: =IF(BO18<>"", ABS(BO18-EE$4),"") -> 0.1296778621 | CL18: =IF(AND(AT18<>"",AT18>DJ$19, AT18<DJ$16), AT18,"") -> 0.07797547394 | CM18: =IF(AND(AU18<>"",AU18>DK$19, AU18<DK$16), AU18,"") -> 0.1056012406 | CN18: =IF(AND(AV18<>"",AV18>DL$19, AV18<DL$16), AV18,"") -> -0.3972865632 | CO18: =IF(AND(AW18<>"",AW18>DM$19, AW18<DM$16), AW18,"") -> -0.2429096396 | CP18: =IF(AND(AX18<>"",AX18>DN$19, AX18<DN$16), AX18,"") ->  | CQ18: =IF(AND(AY18<>"",AY18>DO$19, AY18<DO$16), AY18,"") -> 0.07711754425 | CR18: =IF(AND(AZ18<>"",AZ18>DP$19, AZ18<DP$16), AZ18,"") -> 0.07966608027 | CS18: =IF(AND(BA18<>"",BA18>DQ$19, BA18<DQ$16), BA18,"") -> 0.202213871 | CT18: =IF(AND(BB18<>"",BB18>DR$19, BB18<DR$16), BB18,"") -> 0.3997044956 | CU18: =IF(AND(BC18<>"",BC18>DS$19, BC18<DS$16), BC18,"") -> 0.03472310886 | CV18: =IF(AND(BD18<>"",BD18>DT$19, BD18<DT$16), BD18,"") -> 0.09806952612 | CW18: =IF(AND(BE18<>"",BE18>DU$19, BE18<DU$16), BE18,"") -> -0.1017780078 | CX18: =IF(AND(BF18<>"",BF18>DV$19, BF18<DV$16), BF18,"") -> 1.019106961 | CY18: =IF(AND(BG18<>"",BG18>DW$19, BG18<DW$16), BG18,"") -> 0.5729192247 | CZ18: =IF(AND(BH18<>"",BH18>DX$19, BH18<DX$16), BH18,"") -> 0.2731407463 | DA18: =IF(AND(BI18<>"",BI18>DY$19, BI18<DY$16), BI18,"") -> -0.06646251651 | DB18: =IF(AND(BJ18<>"",BJ18>DZ$19, BJ18<DZ$16), BJ18,"") -> 0.4466918578 | DC18: =IF(AND(BK18<>"",BK18>EA$19, BK18<EA$16), BK18,"") -> 0.04168768587 | DD18: =IF(AND(BL18<>"",BL18>EB$19, BL18<EB$16), BL18,"") -> -0.1131979339 | DE18: =IF(AND(BM18<>"",BM18>EC$19, BM18<EC$16), BM18,"") -> -0.160064229 | DF18: =IF(AND(BN18<>"",BN18>ED$19, BN18<ED$16), BN18,"") -> 0.4094903015 | DG18: =IF(AND(BO18<>"",BO18>EE$19, BO18<EE$16), BO18,"") -> 0.1671275222
A19: 3008.13466 | B19: 2626.474981 | C19: 6284.979873 | D19: 4790.845223 | E19: 3959.517895 | F19: 2936.879731 | G19: 3826.24464 | H19: 2118.060623 | I19: 2826.962669 | J19: 5278.143146 | K19: 5706.448044 | L19: 3199.917682 | M19: 821.9107506 | N19: 2590.27335 | O19: 5628.310615 | P19: 4434.275969 | Q19: 1027.361545 | R19: 2527.324838 | S19: 4299.216152 | T19: 3781.621245 | U19: 1176.472956 | V19: 1392.553291 | W19: 3959.517895 | X19: =IF(AND(A19>0, $W19>0),$W19/A19, "") -> 1.316270161 | Y19: =IF(AND(B19>0, $W19>0),$W19/B19, "") -> 1.507540686 | Z19: =IF(AND(C19>0, $W19>0),$W19/C19, "") -> 0.6299969092 | AA19: =IF(AND(D19>0, $W19>0),$W19/D19, "") -> 0.8264758535 | AB19: =IF(AND(E19>0, $W19>0),$W19/E19, "") -> 1 | AC19: =IF(AND(F19>0, $W19>0),$W19/F19, "") -> 1.348205666 | AD19: =IF(AND(G19>0, $W19>0),$W19/G19, "") -> 1.034831347 | AE19: =IF(AND(H19>0, $W19>0),$W19/H19, "") -> 1.869407254 | AF19: =IF(AND(I19>0, $W19>0),$W19/I19, "") -> 1.40062617 | AG19: =IF(AND(J19>0, $W19>0),$W19/J19, "") -> 0.7501725105 | AH19: =IF(AND(K19>0, $W19>0),$W19/K19, "") -> 0.6938673347 | AI19: =IF(AND(L19>0, $W19>0),$W19/L19, "") -> 1.237381173 | AJ19: =IF(AND(M19>0, $W19>0),$W19/M19, "") -> 4.817454805 | AK19: =IF(AND(N19>0, $W19>0),$W19/N19, "") -> 1.528610058 | AL19: =IF(AND(O19>0, $W19>0),$W19/O19, "") -> 0.7035002447 | AM19: =IF(AND(P19>0, $W19>0),$W19/P19, "") -> 0.8929344773 | AN19: =IF(AND(Q19>0, $W19>0),$W19/Q19, "") -> 3.854064731 | AO19: =IF(AND(R19>0, $W19>0),$W19/R19, "") -> 1.56668341 | AP19: =IF(AND(S19>0, $W19>0),$W19/S19, "") -> 0.9209860017 | AQ19: =IF(AND(T19>0, $W19>0),$W19/T19, "") -> 1.047042429 | AR19: =IF(AND(U19>0, $W19>0),$W19/U19, "") -> 3.365583436 | AS19: =IF(AND(V19>0, $W19>0),$W19/V19, "") -> 2.843351074 | AT19: =IF(X19<>"",LOG10(X19),"") -> 0.1193450363 | AU19: =IF(Y19<>"",LOG10(Y19),"") -> 0.1782690418 | AV19: =IF(Z19<>"",LOG10(Z19),"") -> -0.2006615812 | AW19: =IF(AA19<>"",LOG10(AA19),"") -> -0.08276983034 | AX19: =IF(AB19<>"",LOG10(AB19),"") -> 0 | AY19: =IF(AC19<>"",LOG10(AC19),"") -> 0.1297561481 | AZ19: =IF(AD19<>"",LOG10(AD19),"") -> 0.01486957585 | BA19: =IF(AE19<>"",LOG10(AE19),"") -> 0.2717039237 | BB19: =IF(AF19<>"",LOG10(AF19),"") -> 0.1463222365 | BC19: =IF(AG19<>"",LOG10(AG19),"") -> -0.1248388543 | BD19: =IF(AH19<>"",LOG10(AH19),"") -> -0.1587235574 | BE19: =IF(AI19<>"",LOG10(AI19),"") -> 0.09250350387 | BF19: =IF(AJ19<>"",LOG10(AJ19),"") -> 0.682817649 | BG19: =IF(AK19<>"",LOG10(AK19),"") -> 0.1842967128 | BH19: =IF(AL19<>"",LOG10(AL19),"") -> -0.1527357472 | BI19: =IF(AM19<>"",LOG10(AM19),"") -> -0.04918040806 | BJ19: =IF(AN19<>"",LOG10(AN19),"") -> 0.5859190046 | BK19: =IF(AO19<>"",LOG10(AO19),"") -> 0.1949812445 | BL19: =IF(AP19<>"",LOG10(AP19),"") -> -0.0357469707 | BM19: =IF(AQ19<>"",LOG10(AQ19),"") -> 0.01996428089 | BN19: =IF(AR19<>"",LOG10(AR19),"") -> 0.5270603616 | BO19: =IF(AS19<>"",LOG10(AS19),"") -> 0.4538304862 | BP19: =IF(AT19<>"", ABS(AT19-DJ$4),"") -> 0.07940952118 | BQ19: =IF(AU19<>"", ABS(AU19-DK$4),"") -> 0.1065232219 | BR19: =IF(AV19<>"", ABS(AV19-DL$4),"") -> 0.02431592961 | BS19: =IF(AW19<>"", ABS(AW19-DM$4),"") -> 0.0680747598 | BT19: =IF(AX19<>"", ABS(AX19-DN$4),"") -> 0 | BU19: =IF(AY19<>"", ABS(AY19-DO$4),"") -> 0.04296819754 | BV19: =IF(AZ19<>"", ABS(AZ19-DP$4),"") -> 0.08544912048 | BW19: =IF(BA19<>"", ABS(BA19-DQ$4),"") -> 0.01427365535 | BX19: =IF(BB19<>"", ABS(BB19-DR$4),"") -> 0.02320810853 | BY19: =IF(BC19<>"", ABS(BC19-DS$4),"") -> 0.186227823 | BZ19: =IF(BD19<>"", ABS(BD19-DT$4),"") -> 0.2082522662 | CA19: =IF(BE19<>"", ABS(BE19-DU$4),"") -> 0.05774546594 | CB19: =IF(BF19<>"", ABS(BF19-DV$4),"") -> 0.1027622441 | CC19: =IF(BG19<>"", ABS(BG19-DW$4),"") -> 0.1878069454 | CD19: =IF(BH19<>"", ABS(BH19-DX$4),"") -> 0.2127016492 | CE19: =IF(BI19<>"", ABS(BI19-DY$4),"") -> 0.05928237835 | CF19: =IF(BJ19<>"", ABS(BJ19-DZ$4),"") -> 0.2305796838 | CG19: =IF(BK19<>"", ABS(BK19-EA$4),"") -> 0.1218859484 | CH19: =IF(BL19<>"", ABS(BL19-EB$4),"") -> 0.03564167512 | CI19: =IF(BM19<>"", ABS(BM19-EC$4),"") -> 0.06502502276 | CJ19: =IF(BN19<>"", ABS(BN19-ED$4),"") -> 0.1246558914 | CK19: =IF(BO19<>"", ABS(BO19-EE$4),"") -> 0.1570251019 | CL19: =IF(AND(AT19<>"",AT19>DJ$19, AT19<DJ$16), AT19,"") -> 0.1193450363 | CM19: =IF(AND(AU19<>"",AU19>DK$19, AU19<DK$16), AU19,"") -> 0.1782690418 | CN19: =IF(AND(AV19<>"",AV19>DL$19, AV19<DL$16), AV19,"") -> -0.2006615812 | CO19: =IF(AND(AW19<>"",AW19>DM$19, AW19<DM$16), AW19,"") -> -0.08276983034 | CP19: =IF(AND(AX19<>"",AX19>DN$19, AX19<DN$16), AX19,"") ->  | CQ19: =IF(AND(AY19<>"",AY19>DO$19, AY19<DO$16), AY19,"") -> 0.1297561481 | CR19: =IF(AND(AZ19<>"",AZ19>DP$19, AZ19<DP$16), AZ19,"") -> 0.01486957585 | CS19: =IF(AND(BA19<>"",BA19>DQ$19, BA19<DQ$16), BA19,"") -> 0.2717039237 | CT19: =IF(AND(BB19<>"",BB19>DR$19, BB19<DR$16), BB19,"") -> 0.1463222365 | CU19: =IF(AND(BC19<>"",BC19>DS$19, BC19<DS$16), BC19,"") -> -0.1248388543 | CV19: =IF(AND(BD19<>"",BD19>DT$19, BD19<DT$16), BD19,"") -> -0.1587235574 | CW19: =IF(AND(BE19<>"",BE19>DU$19, BE19<DU$16), BE19,"") -> 0.09250350387 | CX19: =IF(AND(BF19<>"",BF19>DV$19, BF19<DV$16), BF19,"") -> 0.682817649 | CY19: =IF(AND(BG19<>"",BG19>DW$19, BG19<DW$16), BG19,"") -> 0.1842967128 | CZ19: =IF(AND(BH19<>"",BH19>DX$19, BH19<DX$16), BH19,"") -> -0.1527357472 | DA19: =IF(AND(BI19<>"",BI19>DY$19, BI19<DY$16), BI19,"") -> -0.04918040806 | DB19: =IF(AND(BJ19<>"",BJ19>DZ$19, BJ19<DZ$16), BJ19,"") -> 0.5859190046 | DC19: =IF(AND(BK19<>"",BK19>EA$19, BK19<EA$16), BK19,"") -> 0.1949812445 | DD19: =IF(AND(BL19<>"",BL19>EB$19, BL19<EB$16), BL19,"") -> -0.0357469707 | DE19: =IF(AND(BM19<>"",BM19>EC$19, BM19<EC$16), BM19,"") -> 0.01996428089 | DF19: =IF(AND(BN19<>"",BN19>ED$19, BN19<ED$16), BN19,"") -> 0.5270603616 | DG19: =IF(AND(BO19<>"",BO19>EE$19, BO19<EE$16), BO19,"") -> 0.4538304862 | DI19: Log10(Lower) | DJ19: =DJ4-3*DJ13 -> -0.5573754441 | DK19: =DK4-3*DK13 -> -0.4357732998 | DL19: -1.099850001 | DM19: -0.7655392178 | DN19: 0 | DO19: -0.4774863896 | DP19: -0.5442814141 | DQ19: -0.3271427554 | DR19: -0.5456475196 | DS19: -0.4668945763 | DT19: -0.7813401147 | DU19: -0.6491420977 | DV19: -1.045506051 | DW19: -0.5355393634 | DX19: -0.8871408319 | DY19: -0.5164162044 | DZ19: -0.5187491213 | EA19: -0.5105549321 | EB19: -0.774340521 | EC19: -0.5945631574 | ED19: -0.5924730513 | EE19: -0.4337650852
A20: 3240.927552 | B20: 4313.338565 | C20: 8251.71392 | D20: 5098.48205 | E20: 5047.157671 | F20: 3665.224591 | G20: 3780.144033 | H20: 2300.146634 | I20: 2952.400143 | J20: 3483.33982 | K20: 4503.168142 | L20: 3301.311912 | M20: 2409.158317 | N20: 2151.855636 | O20: 4313.918245 | P20: 4704.686512 | Q20: 1385.029825 | R20: 3953.556909 | S20: 5048.381513 | T20: 5255.883525 | U20: 3634.949796 | V20: 1913.397641 | W20: 5047.157671 | X20: =IF(AND(A20>0, $W20>0),$W20/A20, "") -> 1.557318882 | Y20: =IF(AND(B20>0, $W20>0),$W20/B20, "") -> 1.170127871 | Z20: =IF(AND(C20>0, $W20>0),$W20/C20, "") -> 0.6116496185 | AA20: =IF(AND(D20>0, $W20>0),$W20/D20, "") -> 0.9899334 | AB20: =IF(AND(E20>0, $W20>0),$W20/E20, "") -> 1 | AC20: =IF(AND(F20>0, $W20>0),$W20/F20, "") -> 1.377039127 | AD20: =IF(AND(G20>0, $W20>0),$W20/G20, "") -> 1.335176022 | AE20: =IF(AND(H20>0, $W20>0),$W20/H20, "") -> 2.194276485 | AF20: =IF(AND(I20>0, $W20>0),$W20/I20, "") -> 1.709510035 | AG20: =IF(AND(J20>0, $W20>0),$W20/J20, "") -> 1.448942088 | AH20: =IF(AND(K20>0, $W20>0),$W20/K20, "") -> 1.120801514 | AI20: =IF(AND(L20>0, $W20>0),$W20/L20, "") -> 1.528833932 | AJ20: =IF(AND(M20>0, $W20>0),$W20/M20, "") -> 2.094987961 | AK20: =IF(AND(N20>0, $W20>0),$W20/N20, "") -> 2.345490834 | AL20: =IF(AND(O20>0, $W20>0),$W20/O20, "") -> 1.169970636 | AM20: =IF(AND(P20>0, $W20>0),$W20/P20, "") -> 1.072793619 | AN20: =IF(AND(Q20>0, $W20>0),$W20/Q20, "") -> 3.64407869 | AO20: =IF(AND(R20>0, $W20>0),$W20/R20, "") -> 1.276611868 | AP20: =IF(AND(S20>0, $W20>0),$W20/S20, "") -> 0.9997575774 | AQ20: =IF(AND(T20>0, $W20>0),$W20/T20, "") -> 0.9602871995 | AR20: =IF(AND(U20>0, $W20>0),$W20/U20, "") -> 1.38850822 | AS20: =IF(AND(V20>0, $W20>0),$W20/V20, "") -> 2.637798628 | AT20: =IF(X20<>"",LOG10(X20),"") -> 0.1923775492 | AU20: =IF(Y20<>"",LOG10(Y20),"") -> 0.06823332373 | AV20: =IF(Z20<>"",LOG10(Z20),"") -> -0.2134972908 | AW20: =IF(AA20<>"",LOG10(AA20),"") -> -0.004394022573 | AX20: =IF(AB20<>"",LOG10(AB20),"") -> 0 | AY20: =IF(AC20<>"",LOG10(AC20),"") -> 0.1389462804 | AZ20: =IF(AD20<>"",LOG10(AD20),"") -> 0.1255385242 | BA20: =IF(AE20<>"",LOG10(AE20),"") -> 0.341291349 | BB20: =IF(AF20<>"",LOG10(AF20),"") -> 0.2328716544 | BC20: =IF(AG20<>"",LOG10(AG20),"") -> 0.1610510277 | BD20: =IF(AH20<>"",LOG10(AH20),"") -> 0.04952870886 | BE20: =IF(AI20<>"",LOG10(AI20),"") -> 0.1843603131 | BF20: =IF(AJ20<>"",LOG10(AJ20),"") -> 0.3211815317 | BG20: =IF(AK20<>"",LOG10(AK20),"") -> 0.3702337401 | BH20: =IF(AL20<>"",LOG10(AL20),"") -> 0.06817496182 | BI20: =IF(AM20<>"",LOG10(AM20),"") -> 0.03051618174 | BJ20: =IF(AN20<>"",LOG10(AN20),"") -> 0.5615877465 | BK20: =IF(AO20<>"",LOG10(AO20),"") -> 0.1060588776 | BL20: =IF(AP20<>"",LOG10(AP20),"") -> -0.0001052955821 | BM20: =IF(AQ20<>"",LOG10(AQ20),"") -> -0.01759886019 | BN20: =IF(AR20<>"",LOG10(AR20),"") -> 0.1425484551 | BO20: =IF(AS20<>"",LOG10(AS20),"") -> 0.421241638 | BP20: =IF(AT20<>"", ABS(AT20-DJ$4),"") -> 0.006377008329 | BQ20: =IF(AU20<>"", ABS(AU20-DK$4),"") -> 0.00351249619 | BR20: =IF(AV20<>"", ABS(AV20-DL$4),"") -> 0.03715163922 | BS20: =IF(AW20<>"", ABS(AW20-DM$4),"") -> 0.01030104796 | BT20: =IF(AX20<>"", ABS(AX20-DN$4),"") -> 0 | BU20: =IF(AY20<>"", ABS(AY20-DO$4),"") -> 0.05215832985 | BV20: =IF(AZ20<>"", ABS(AZ20-DP$4),"") -> 0.02521982791 | BW20: =IF(BA20<>"", ABS(BA20-DQ$4),"") -> 0.08386108064 | BX20: =IF(BB20<>"", ABS(BB20-DR$4),"") -> 0.06334130936 | BY20: =IF(BC20<>"", ABS(BC20-DS$4),"") -> 0.09966205894 | BZ20: =IF(BD20<>"", ABS(BD20-DT$4),"") -> 0 | CA20: =IF(BE20<>"", ABS(BE20-DU$4),"") -> 0.03411134331 | CB20: =IF(BF20<>"", ABS(BF20-DV$4),"") -> 0.2588738732 | CC20: =IF(BG20<>"", ABS(BG20-DW$4),"") -> 0.001869918144 | CD20: =IF(BH20<>"", ABS(BH20-DX$4),"") -> 0.008209059836 | CE20: =IF(BI20<>"", ABS(BI20-DY$4),"") -> 0.02041421144 | CF20: =IF(BJ20<>"", ABS(BJ20-DZ$4),"") -> 0.2062484258 | CG20: =IF(BK20<>"", ABS(BK20-EA$4),"") -> 0.0329635815 | CH20: =IF(BL20<>"", ABS(BL20-EB$4),"") -> 0 | CI20: =IF(BM20<>"", ABS(BM20-EC$4),"") -> 0.02746188168 | CJ20: =IF(BN20<>"", ABS(BN20-ED$4),"") -> 0.2598560151 | CK20: =IF(BO20<>"", ABS(BO20-EE$4),"") -> 0.1244362538 | CL20: =IF(AND(AT20<>"",AT20>DJ$19, AT20<DJ$16), AT20,"") -> 0.1923775492 | CM20: =IF(AND(AU20<>"",AU20>DK$19, AU20<DK$16), AU20,"") -> 0.06823332373 | CN20: =IF(AND(AV20<>"",AV20>DL$19, AV20<DL$16), AV20,"") -> -0.2134972908 | CO20: =IF(AND(AW20<>"",AW20>DM$19, AW20<DM$16), AW20,"") -> -0.004394022573 | CP20: =IF(AND(AX20<>"",AX20>DN$19, AX20<DN$16), AX20,"") ->  | CQ20: =IF(AND(AY20<>"",AY20>DO$19, AY20<DO$16), AY20,"") -> 0.1389462804 | CR20: =IF(AND(AZ20<>"",AZ20>DP$19, AZ20<DP$16), AZ20,"") -> 0.1255385242 | CS20: =IF(AND(BA20<>"",BA20>DQ$19, BA20<DQ$16), BA20,"") -> 0.341291349 | CT20: =IF(AND(BB20<>"",BB20>DR$19, BB20<DR$16), BB20,"") -> 0.2328716544 | CU20: =IF(AND(BC20<>"",BC20>DS$19, BC20<DS$16), BC20,"") -> 0.1610510277 | CV20: =IF(AND(BD20<>"",BD20>DT$19, BD20<DT$16), BD20,"") -> 0.04952870886 | CW20: =IF(AND(BE20<>"",BE20>DU$19, BE20<DU$16), BE20,"") -> 0.1843603131 | CX20: =IF(AND(BF20<>"",BF20>DV$19, BF20<DV$16), BF20,"") -> 0.3211815317 | CY20: =IF(AND(BG20<>"",BG20>DW$19, BG20<DW$16), BG20,"") -> 0.3702337401 | CZ20: =IF(AND(BH20<>"",BH20>DX$19, BH20<DX$16), BH20,"") -> 0.06817496182 | DA20: =IF(AND(BI20<>"",BI20>DY$19, BI20<DY$16), BI20,"") -> 0.03051618174 | DB20: =IF(AND(BJ20<>"",BJ20>DZ$19, BJ20<DZ$16), BJ20,"") -> 0.5615877465 | DC20: =IF(AND(BK20<>"",BK20>EA$19, BK20<EA$16), BK20,"") -> 0.1060588776 | DD20: =IF(AND(BL20<>"",BL20>EB$19, BL20<EB$16), BL20,"") -> -0.0001052955821 | DE20: =IF(AND(BM20<>"",BM20>EC$19, BM20<EC$16), BM20,"") -> -0.01759886019 | DF20: =IF(AND(BN20<>"",BN20>ED$19, BN20<ED$16), BN20,"") -> 0.1425484551 | DG20: =IF(AND(BO20<>"",BO20>EE$19, BO20<EE$16), BO20,"") -> 0.421241638
A21: 1262.877742 | B21: 1297.539573 | C21: 2111.532642 | D21: 1893.903073 | E21: 1580.513158 | F21: 1614.976772 | G21: 1607.092206 | H21: 1177.014128 | I21: 684.8929142 | J21: 1525.399911 | K21: 1192.420109 | L21: 1430.010173 | M21: 138.7877191 | N21: 624.7479218 | O21: 1141.912873 | P21: 1834.495571 | Q21: 636.8439855 | R21: 1045.21894 | S21: 1490.362401 | T21: 1648.946902 | U21: 719.8122366 | V21: 1074.659787 | W21: 1580.513158 | X21: =IF(AND(A21>0, $W21>0),$W21/A21, "") -> 1.251517154 | Y21: =IF(AND(B21>0, $W21>0),$W21/B21, "") -> 1.218084744 | Z21: =IF(AND(C21>0, $W21>0),$W21/C21, "") -> 0.7485146696 | AA21: =IF(AND(D21>0, $W21>0),$W21/D21, "") -> 0.8345269517 | AB21: =IF(AND(E21>0, $W21>0),$W21/E21, "") -> 1 | AC21: =IF(AND(F21>0, $W21>0),$W21/F21, "") -> 0.9786599939 | AD21: =IF(AND(G21>0, $W21>0),$W21/G21, "") -> 0.9834614043 | AE21: =IF(AND(H21>0, $W21>0),$W21/H21, "") -> 1.342815792 | AF21: =IF(AND(I21>0, $W21>0),$W21/I21, "") -> 2.307679237 | AG21: =IF(AND(J21>0, $W21>0),$W21/J21, "") -> 1.036130359 | AH21: =IF(AND(K21>0, $W21>0),$W21/K21, "") -> 1.32546671 | AI21: =IF(AND(L21>0, $W21>0),$W21/L21, "") -> 1.105246094 | AJ21: =IF(AND(M21>0, $W21>0),$W21/M21, "") -> 11.38799001 | AK21: =IF(AND(N21>0, $W21>0),$W21/N21, "") -> 2.529841401 | AL21: =IF(AND(O21>0, $W21>0),$W21/O21, "") -> 1.3840926 | AM21: =IF(AND(P21>0, $W21>0),$W21/P21, "") -> 0.8615519072 | AN21: =IF(AND(Q21>0, $W21>0),$W21/Q21, "") -> 2.481790194 | AO21: =IF(AND(R21>0, $W21>0),$W21/R21, "") -> 1.512135973 | AP21: =IF(AND(S21>0, $W21>0),$W21/S21, "") -> 1.060489152 | AQ21: =IF(AND(T21>0, $W21>0),$W21/T21, "") -> 0.9584985155 | AR21: =IF(AND(U21>0, $W21>0),$W21/U21, "") -> 2.195729772 | AS21: =IF(AND(V21>0, $W21>0),$W21/V21, "") -> 1.470710244 | AT21: =IF(X21<>"",LOG10(X21),"") -> 0.09743680678 | AU21: =IF(Y21<>"",LOG10(Y21),"") -> 0.08567750382 | AV21: =IF(Z21<>"",LOG10(Z21),"") -> -0.1257996838 | AW21: =IF(AA21<>"",LOG10(AA21),"") -> -0.07855963287 | AX21: =IF(AB21<>"",LOG10(AB21),"") -> 0 | AY21: =IF(AC21<>"",LOG10(AC21),"") -> -0.009368164585 | AZ21: =IF(AD21<>"",LOG10(AD21),"") -> -0.007242679181 | BA21: =IF(AE21<>"",LOG10(AE21),"") -> 0.12801644 | BB21: =IF(AF21<>"",LOG10(AF21),"") -> 0.3631754426 | BC21: =IF(AG21<>"",LOG10(AG21),"") -> 0.01541439894 | BD21: =IF(AH21<>"",LOG10(AH21),"") -> 0.1223688246 | BE21: =IF(AI21<>"",LOG10(AI21),"") -> 0.04345898873 | BF21: =IF(AJ21<>"",LOG10(AJ21),"") -> 1.056447077 | BG21: =IF(AK21<>"",LOG10(AK21),"") -> 0.4030932956 | BH21: =IF(AL21<>"",LOG10(AL21),"") -> 0.1411651467 | BI21: =IF(AM21<>"",LOG10(AM21),"") -> -0.06471855183 | BJ21: =IF(AN21<>"",LOG10(AN21),"") -> 0.3947650642 | BK21: =IF(AO21<>"",LOG10(AO21),"") -> 0.1795908451 | BL21: =IF(AP21<>"",LOG10(AP21),"") -> 0.0255062302 | BM21: =IF(AQ21<>"",LOG10(AQ21),"") -> -0.0184085554 | BN21: =IF(AR21<>"",LOG10(AR21),"") -> 0.3415788905 | BO21: =IF(AS21<>"",LOG10(AS21),"") -> 0.1675271175 | BP21: =IF(AT21<>"", ABS(AT21-DJ$4),"") -> 0.1013177507 | BQ21: =IF(AU21<>"", ABS(AU21-DK$4),"") -> 0.01393168391 | BR21: =IF(AV21<>"", ABS(AV21-DL$4),"") -> 0.05054596777 | BS21: =IF(AW21<>"", ABS(AW21-DM$4),"") -> 0.06386456233 | BT21: =IF(AX21<>"", ABS(AX21-DN$4),"") -> 0 | BU21: =IF(AY21<>"", ABS(AY21-DO$4),"") -> 0.09615611512 | BV21: =IF(AZ21<>"", ABS(AZ21-DP$4),"") -> 0.1075613755 | BW21: =IF(BA21<>"", ABS(BA21-DQ$4),"") -> 0.1294138283 | BX21: =IF(BB21<>"", ABS(BB21-DR$4),"") -> 0.1936450976 | BY21: =IF(BC21<>"", ABS(BC21-DS$4),"") -> 0.04597456978 | BZ21: =IF(BD21<>"", ABS(BD21-DT$4),"") -> 0.0728401157 | CA21: =IF(BE21<>"", ABS(BE21-DU$4),"") -> 0.1067899811 | CB21: =IF(BF21<>"", ABS(BF21-DV$4),"") -> 0.4763916724 | CC21: =IF(BG21<>"", ABS(BG21-DW$4),"") -> 0.03098963737 | CD21: =IF(BH21<>"", ABS(BH21-DX$4),"") -> 0.08119924475 | CE21: =IF(BI21<>"", ABS(BI21-DY$4),"") -> 0.07482052212 | CF21: =IF(BJ21<>"", ABS(BJ21-DZ$4),"") -> 0.03942574345 | CG21: =IF(BK21<>"", ABS(BK21-EA$4),"") -> 0.106495549 | CH21: =IF(BL21<>"", ABS(BL21-EB$4),"") -> 0.02561152579 | CI21: =IF(BM21<>"", ABS(BM21-EC$4),"") -> 0.02665218647 | CJ21: =IF(BN21<>"", ABS(BN21-ED$4),"") -> 0.06082557972 | CK21: =IF(BO21<>"", ABS(BO21-EE$4),"") -> 0.1292782667 | CL21: =IF(AND(AT21<>"",AT21>DJ$19, AT21<DJ$16), AT21,"") -> 0.09743680678 | CM21: =IF(AND(AU21<>"",AU21>DK$19, AU21<DK$16), AU21,"") -> 0.08567750382 | CN21: =IF(AND(AV21<>"",AV21>DL$19, AV21<DL$16), AV21,"") -> -0.1257996838 | CO21: =IF(AND(AW21<>"",AW21>DM$19, AW21<DM$16), AW21,"") -> -0.07855963287 | CP21: =IF(AND(AX21<>"",AX21>DN$19, AX21<DN$16), AX21,"") ->  | CQ21: =IF(AND(AY21<>"",AY21>DO$19, AY21<DO$16), AY21,"") -> -0.009368164585 | CR21: =IF(AND(AZ21<>"",AZ21>DP$19, AZ21<DP$16), AZ21,"") -> -0.007242679181 | CS21: =IF(AND(BA21<>"",BA21>DQ$19, BA21<DQ$16), BA21,"") -> 0.12801644 | CT21: =IF(AND(BB21<>"",BB21>DR$19, BB21<DR$16), BB21,"") -> 0.3631754426 | CU21: =IF(AND(BC21<>"",BC21>DS$19, BC21<DS$16), BC21,"") -> 0.01541439894 | CV21: =IF(AND(BD21<>"",BD21>DT$19, BD21<DT$16), BD21,"") -> 0.1223688246 | CW21: =IF(AND(BE21<>"",BE21>DU$19, BE21<DU$16), BE21,"") -> 0.04345898873 | CX21: =IF(AND(BF21<>"",BF21>DV$19, BF21<DV$16), BF21,"") -> 1.056447077 | CY21: =IF(AND(BG21<>"",BG21>DW$19, BG21<DW$16), BG21,"") -> 0.4030932956 | CZ21: =IF(AND(BH21<>"",BH21>DX$19, BH21<DX$16), BH21,"") -> 0.1411651467 | DA21: =IF(AND(BI21<>"",BI21>DY$19, BI21<DY$16), BI21,"") -> -0.06471855183 | DB21: =IF(AND(BJ21<>"",BJ21>DZ$19, BJ21<DZ$16), BJ21,"") -> 0.3947650642 | DC21: =IF(AND(BK21<>"",BK21>EA$19, BK21<EA$16), BK21,"") -> 0.1795908451 | DD21: =IF(AND(BL21<>"",BL21>EB$19, BL21<EB$16), BL21,"") -> 0.0255062302 | DE21: =IF(AND(BM21<>"",BM21>EC$19, BM21<EC$16), BM21,"") -> -0.0184085554 | DF21: =IF(AND(BN21<>"",BN21>ED$19, BN21<ED$16), BN21,"") -> 0.3415788905 | DG21: =IF(AND(BO21<>"",BO21>EE$19, BO21<EE$16), BO21,"") -> 0.1675271175
A22: 1387.393429 | B22: 2073.808832 | C22: 2170.282384 | D22: 1893.191552 | E22: 2212.603052 | F22: 2054.951705 | G22: 2304.040403 | H22: 1392.163357 | I22: 1501.940214 | J22: 2218.428404 | K22: 1816.527529 | L22: 2458.631396 | M22: 453.6397242 | N22: 1456.742801 | O22: 2128.725068 | P22: 2303.451714 | Q22: 882.0346975 | R22: 1467.955933 | S22: 1407.050246 | T22: 1711.04007 | U22: 960.8261715 | V22: 1175.479089 | W22: 2212.603052 | X22: =IF(AND(A22>0, $W22>0),$W22/A22, "") -> 1.594791359 | Y22: =IF(AND(B22>0, $W22>0),$W22/B22, "") -> 1.066927201 | Z22: =IF(AND(C22>0, $W22>0),$W22/C22, "") -> 1.019500074 | AA22: =IF(AND(D22>0, $W22>0),$W22/D22, "") -> 1.168715891 | AB22: =IF(AND(E22>0, $W22>0),$W22/E22, "") -> 1 | AC22: =IF(AND(F22>0, $W22>0),$W22/F22, "") -> 1.076717787 | AD22: =IF(AND(G22>0, $W22>0),$W22/G22, "") -> 0.9603143457 | AE22: =IF(AND(H22>0, $W22>0),$W22/H22, "") -> 1.589327172 | AF22: =IF(AND(I22>0, $W22>0),$W22/I22, "") -> 1.4731632 | AG22: =IF(AND(J22>0, $W22>0),$W22/J22, "") -> 0.9973741086 | AH22: =IF(AND(K22>0, $W22>0),$W22/K22, "") -> 1.218039923 | AI22: =IF(AND(L22>0, $W22>0),$W22/L22, "") -> 0.8999328065 | AJ22: =IF(AND(M22>0, $W22>0),$W22/M22, "") -> 4.877445546 | AK22: =IF(AND(N22>0, $W22>0),$W22/N22, "") -> 1.518870078 | AL22: =IF(AND(O22>0, $W22>0),$W22/O22, "") -> 1.03940292 | AM22: =IF(AND(P22>0, $W22>0),$W22/P22, "") -> 0.9605597715 | AN22: =IF(AND(Q22>0, $W22>0),$W22/Q22, "") -> 2.508521557 | AO22: =IF(AND(R22>0, $W22>0),$W22/R22, "") -> 1.507268034 | AP22: =IF(AND(S22>0, $W22>0),$W22/S22, "") -> 1.572511756 | AQ22: =IF(AND(T22>0, $W22>0),$W22/T22, "") -> 1.293133394 | AR22: =IF(AND(U22>0, $W22>0),$W22/U22, "") -> 2.302813056 | AS22: =IF(AND(V22>0, $W22>0),$W22/V22, "") -> 1.882298948 | AT22: =IF(X22<>"",LOG10(X22),"") -> 0.2027038739 | AU22: =IF(Y22<>"",LOG10(Y22),"") -> 0.02813478738 | AV22: =IF(Z22<>"",LOG10(Z22),"") -> 0.008387261808 | AW22: =IF(AA22<>"",LOG10(AA22),"") -> 0.06770894931 | AX22: =IF(AB22<>"",LOG10(AB22),"") -> 0 | AY22: =IF(AC22<>"",LOG10(AC22),"") -> 0.03210188744 | AZ22: =IF(AD22<>"",LOG10(AD22),"") -> -0.01758658334 | BA22: =IF(AE22<>"",LOG10(AE22),"") -> 0.2012133085 | BB22: =IF(AF22<>"",LOG10(AF22),"") -> 0.1682508615 | BC22: =IF(AG22<>"",LOG10(AG22),"") -> -0.001141910069 | BD22: =IF(AH22<>"",LOG10(AH22),"") -> 0.08566152324 | BE22: =IF(AI22<>"",LOG10(AI22),"") -> -0.04578991598 | BF22: =IF(AJ22<>"",LOG10(AJ22),"") -> 0.6881924294 | BG22: =IF(AK22<>"",LOG10(AK22),"") -> 0.1815206266 | BH22: =IF(AL22<>"",LOG10(AL22),"") -> 0.01678393276 | BI22: =IF(AM22<>"",LOG10(AM22),"") -> -0.01747560567 | BJ22: =IF(AN22<>"",LOG10(AN22),"") -> 0.3994178374 | BK22: =IF(AO22<>"",LOG10(AO22),"") -> 0.1781904886 | BL22: =IF(AP22<>"",LOG10(AP22),"") -> 0.1965939008 | BM22: =IF(AQ22<>"",LOG10(AQ22),"") -> 0.111643327 | BN22: =IF(AR22<>"",LOG10(AR22),"") -> 0.362258683 | BO22: =IF(AS22<>"",LOG10(AS22),"") -> 0.2746885995 | BP22: =IF(AT22<>"", ABS(AT22-DJ$4),"") -> 0.003949316424 | BQ22: =IF(AU22<>"", ABS(AU22-DK$4),"") -> 0.04361103253 | BR22: =IF(AV22<>"", ABS(AV22-DL$4),"") -> 0.1847329134 | BS22: =IF(AW22<>"", ABS(AW22-DM$4),"") -> 0.08240401985 | BT22: =IF(AX22<>"", ABS(AX22-DN$4),"") -> 0 | BU22: =IF(AY22<>"", ABS(AY22-DO$4),"") -> 0.0546860631 | BV22: =IF(AZ22<>"", ABS(AZ22-DP$4),"") -> 0.1179052797 | BW22: =IF(BA22<>"", ABS(BA22-DQ$4),"") -> 0.05621695987 | BX22: =IF(BB22<>"", ABS(BB22-DR$4),"") -> 0.001279483523 | BY22: =IF(BC22<>"", ABS(BC22-DS$4),"") -> 0.06253087879 | BZ22: =IF(BD22<>"", ABS(BD22-DT$4),"") -> 0.03613281439 | CA22: =IF(BE22<>"", ABS(BE22-DU$4),"") -> 0.1960388858 | CB22: =IF(BF22<>"", ABS(BF22-DV$4),"") -> 0.1081370245 | CC22: =IF(BG22<>"", ABS(BG22-DW$4),"") -> 0.1905830316 | CD22: =IF(BH22<>"", ABS(BH22-DX$4),"") -> 0.04318196922 | CE22: =IF(BI22<>"", ABS(BI22-DY$4),"") -> 0.02757757596 | CF22: =IF(BJ22<>"", ABS(BJ22-DZ$4),"") -> 0.04407851667 | CG22: =IF(BK22<>"", ABS(BK22-EA$4),"") -> 0.1050951926 | CH22: =IF(BL22<>"", ABS(BL22-EB$4),"") -> 0.1966991964 | CI22: =IF(BM22<>"", ABS(BM22-EC$4),"") -> 0.1567040689 | CJ22: =IF(BN22<>"", ABS(BN22-ED$4),"") -> 0.04014578718 | CK22: =IF(BO22<>"", ABS(BO22-EE$4),"") -> 0.02211678472 | CL22: =IF(AND(AT22<>"",AT22>DJ$19, AT22<DJ$16), AT22,"") -> 0.2027038739 | CM22: =IF(AND(AU22<>"",AU22>DK$19, AU22<DK$16), AU22,"") -> 0.02813478738 | CN22: =IF(AND(AV22<>"",AV22>DL$19, AV22<DL$16), AV22,"") -> 0.008387261808 | CO22: =IF(AND(AW22<>"",AW22>DM$19, AW22<DM$16), AW22,"") -> 0.06770894931 | CP22: =IF(AND(AX22<>"",AX22>DN$19, AX22<DN$16), AX22,"") ->  | CQ22: =IF(AND(AY22<>"",AY22>DO$19, AY22<DO$16), AY22,"") -> 0.03210188744 | CR22: =IF(AND(AZ22<>"",AZ22>DP$19, AZ22<DP$16), AZ22,"") -> -0.01758658334 | CS22: =IF(AND(BA22<>"",BA22>DQ$19, BA22<DQ$16), BA22,"") -> 0.2012133085 | CT22: =IF(AND(BB22<>"",BB22>DR$19, BB22<DR$16), BB22,"") -> 0.1682508615 | CU22: =IF(AND(BC22<>"",BC22>DS$19, BC22<DS$16), BC22,"") -> -0.001141910069 | CV22: =IF(AND(BD22<>"",BD22>DT$19, BD22<DT$16), BD22,"") -> 0.08566152324 | CW22: =IF(AND(BE22<>"",BE22>DU$19, BE22<DU$16), BE22,"") -> -0.04578991598 | CX22: =IF(AND(BF22<>"",BF22>DV$19, BF22<DV$16), BF22,"") -> 0.6881924294 | CY22: =IF(AND(BG22<>"",BG22>DW$19, BG22<DW$16), BG22,"") -> 0.1815206266 | CZ22: =IF(AND(BH22<>"",BH22>DX$19, BH22<DX$16), BH22,"") -> 0.01678393276 | DA22: =IF(AND(BI22<>"",BI22>DY$19, BI22<DY$16), BI22,"") -> -0.01747560567 | DB22: =IF(AND(BJ22<>"",BJ22>DZ$19, BJ22<DZ$16), BJ22,"") -> 0.3994178374 | DC22: =IF(AND(BK22<>"",BK22>EA$19, BK22<EA$16), BK22,"") -> 0.1781904886 | DD22: =IF(AND(BL22<>"",BL22>EB$19, BL22<EB$16), BL22,"") -> 0.1965939008 | DE22: =IF(AND(BM22<>"",BM22>EC$19, BM22<EC$16), BM22,"") -> 0.111643327 | DF22: =IF(AND(BN22<>"",BN22>ED$19, BN22<ED$16), BN22,"") -> 0.362258683 | DG22: =IF(AND(BO22<>"",BO22>EE$19, BO22<EE$16), BO22,"") -> 0.2746885995 | DI22: Log10(Norm Factor) | DJ22: =AVERAGE(CL:CL) -> 0.1974564608 | DK22: =AVERAGE(CM:CM) -> 0.06406938334 | DL22: =AVERAGE(CN:CN) -> -0.1581206121 | DM22: =AVERAGE(CO:CO) -> -0.005002429304 | DO22: =AVERAGE(CQ:CQ) -> 0.07763946207 | DP22: =AVERAGE(CR:CR) -> 0.09883950317 | DQ22: =AVERAGE(CS:CS) -> 0.2390301067 | DR22: =AVERAGE(CT:CT) -> 0.1832420804 | DS22: =AVERAGE(CU:CU) -> 0.05428833045 | DT22: =AVERAGE(CV:CV) -> 0.05014047 | DU22: =AVERAGE(CW:CW) -> 0.1491724921 | DV22: =AVERAGE(CX:CX) -> 0.6249388641 | DW22: =AVERAGE(CY:CY) -> 0.3487668513 | DX22: =AVERAGE(CZ:CZ) -> 0.05695332031 | DY22: =AVERAGE(DA:DA) -> 0.01217653212 | DZ22: =AVERAGE(DB:DB) -> 0.3264074478 | EA22: =AVERAGE(DC:DC) -> 0.06565155424 | EB22: =AVERAGE(DD:DD) -> 0.01953735973 | EC22: =AVERAGE(DE:DE) -> -0.03429633532 | ED22: =AVERAGE(DF:DF) -> 0.3886109127 | EE22: =AVERAGE(DG:DG) -> 0.28543501
A23: 2074.656904 | B23: 4063.373235 | C23: 3411.401152 | D23: 2093.875469 | E23: 3738.798843 | F23: 2583.680632 | G23: 2916.145326 | H23: 1880.501328 | I23: 2670.836495 | J23: 2652.467741 | K23: 1790.383721 | L23: 2621.464919 | M23: 1159.968693 | N23: 1846.74616 | O23: 1460.754533 | P23: 3810.725844 | Q23: 1990.94746 | R23: 3182.000287 | S23: 2757.252288 | T23: 3932.249965 | U23: 1818.542837 | V23: 1960.509817 | W23: 3738.798843 | X23: =IF(AND(A23>0, $W23>0),$W23/A23, "") -> 1.802128746 | Y23: =IF(AND(B23>0, $W23>0),$W23/B23, "") -> 0.9201219349 | Z23: =IF(AND(C23>0, $W23>0),$W23/C23, "") -> 1.095971619 | AA23: =IF(AND(D23>0, $W23>0),$W23/D23, "") -> 1.785587968 | AB23: =IF(AND(E23>0, $W23>0),$W23/E23, "") -> 1 | AC23: =IF(AND(F23>0, $W23>0),$W23/F23, "") -> 1.447082429 | AD23: =IF(AND(G23>0, $W23>0),$W23/G23, "") -> 1.282103059 | AE23: =IF(AND(H23>0, $W23>0),$W23/H23, "") -> 1.98819261 | AF23: =IF(AND(I23>0, $W23>0),$W23/I23, "") -> 1.399860624 | AG23: =IF(AND(J23>0, $W23>0),$W23/J23, "") -> 1.409554878 | AH23: =IF(AND(K23>0, $W23>0),$W23/K23, "") -> 2.088266777 | AI23: =IF(AND(L23>0, $W23>0),$W23/L23, "") -> 1.426225015 | AJ23: =IF(AND(M23>0, $W23>0),$W23/M23, "") -> 3.22318944 | AK23: =IF(AND(N23>0, $W23>0),$W23/N23, "") -> 2.024533162 | AL23: =IF(AND(O23>0, $W23>0),$W23/O23, "") -> 2.559498369 | AM23: =IF(AND(P23>0, $W23>0),$W23/P23, "") -> 0.9811251179 | AN23: =IF(AND(Q23>0, $W23>0),$W23/Q23, "") -> 1.877899301 | AO23: =IF(AND(R23>0, $W23>0),$W23/R23, "") -> 1.174983817 | AP23: =IF(AND(S23>0, $W23>0),$W23/S23, "") -> 1.355987212 | AQ23: =IF(AND(T23>0, $W23>0),$W23/T23, "") -> 0.9508039612 | AR23: =IF(AND(U23>0, $W23>0),$W23/U23, "") -> 2.055931137 | AS23: =IF(AND(V23>0, $W23>0),$W23/V23, "") -> 1.907054385 | AT23: =IF(X23<>"",LOG10(X23),"") -> 0.2557858141 | AU23: =IF(Y23<>"",LOG10(Y23),"") -> -0.03615461598 | AV23: =IF(Z23<>"",LOG10(Z23),"") -> 0.03979930792 | AW23: =IF(AA23<>"",LOG10(AA23),"") -> 0.2517812507 | AX23: =IF(AB23<>"",LOG10(AB23),"") -> 0 | AY23: =IF(AC23<>"",LOG10(AC23),"") -> 0.1604932701 | AZ23: =IF(AD23<>"",LOG10(AD23),"") -> 0.1079229364 | BA23: =IF(AE23<>"",LOG10(AE23),"") -> 0.2984584552 | BB23: =IF(AF23<>"",LOG10(AF23),"") -> 0.1460847977 | BC23: =IF(AG23<>"",LOG10(AG23),"") -> 0.1490819889 | BD23: =IF(AH23<>"",LOG10(AH23),"") -> 0.3197859792 | BE23: =IF(AI23<>"",LOG10(AI23),"") -> 0.1541880495 | BF23: =IF(AJ23<>"",LOG10(AJ23),"") -> 0.5082858316 | BG23: =IF(AK23<>"",LOG10(AK23),"") -> 0.306324895 | BH23: =IF(AL23<>"",LOG10(AL23),"") -> 0.4081548571 | BI23: =IF(AM23<>"",LOG10(AM23),"") -> -0.008275605732 | BJ23: =IF(AN23<>"",LOG10(AN23),"") -> 0.2736723003 | BK23: =IF(AO23<>"",LOG10(AO23),"") -> 0.07003188515 | BL23: =IF(AP23<>"",LOG10(AP23),"") -> 0.1322555939 | BM23: =IF(AQ23<>"",LOG10(AQ23),"") -> -0.02190901761 | BN23: =IF(AR23<>"",LOG10(AR23),"") -> 0.313008564 | BO23: =IF(AS23<>"",LOG10(AS23),"") -> 0.2803630784 | BP23: =IF(AT23<>"", ABS(AT23-DJ$4),"") -> 0.05703125658 | BQ23: =IF(AU23<>"", ABS(AU23-DK$4),"") -> 0.1079004359 | BR23: =IF(AV23<>"", ABS(AV23-DL$4),"") -> 0.2161449595 | BS23: =IF(AW23<>"", ABS(AW23-DM$4),"") -> 0.2664763213 | BT23: =IF(AX23<>"", ABS(AX23-DN$4),"") -> 0 | BU23: =IF(AY23<>"", ABS(AY23-DO$4),"") -> 0.07370531957 | BV23: =IF(AZ23<>"", ABS(AZ23-DP$4),"") -> 0.007604240026 | BW23: =IF(BA23<>"", ABS(BA23-DQ$4),"") -> 0.04102818682 | BX23: =IF(BB23<>"", ABS(BB23-DR$4),"") -> 0.02344554738 | BY23: =IF(BC23<>"", ABS(BC23-DS$4),"") -> 0.0876930202 | BZ23: =IF(BD23<>"", ABS(BD23-DT$4),"") -> 0.2702572704 | CA23: =IF(BE23<>"", ABS(BE23-DU$4),"") -> 0.003939079642 | CB23: =IF(BF23<>"", ABS(BF23-DV$4),"") -> 0.07176957335 | CC23: =IF(BG23<>"", ABS(BG23-DW$4),"") -> 0.06577876323 | CD23: =IF(BH23<>"", ABS(BH23-DX$4),"") -> 0.3481889551 | CE23: =IF(BI23<>"", ABS(BI23-DY$4),"") -> 0.01837757603 | CF23: =IF(BJ23<>"", ABS(BJ23-DZ$4),"") -> 0.08166702049 | CG23: =IF(BK23<>"", ABS(BK23-EA$4),"") -> 0.003063410924 | CH23: =IF(BL23<>"", ABS(BL23-EB$4),"") -> 0.1323608895 | CI23: =IF(BM23<>"", ABS(BM23-EC$4),"") -> 0.02315172426 | CJ23: =IF(BN23<>"", ABS(BN23-ED$4),"") -> 0.08939590622 | CK23: =IF(BO23<>"", ABS(BO23-EE$4),"") -> 0.0164423058 | CL23: =IF(AND(AT23<>"",AT23>DJ$19, AT23<DJ$16), AT23,"") -> 0.2557858141 | CM23: =IF(AND(AU23<>"",AU23>DK$19, AU23<DK$16), AU23,"") -> -0.03615461598 | CN23: =IF(AND(AV23<>"",AV23>DL$19, AV23<DL$16), AV23,"") -> 0.03979930792 | CO23: =IF(AND(AW23<>"",AW23>DM$19, AW23<DM$16), AW23,"") -> 0.2517812507 | CP23: =IF(AND(AX23<>"",AX23>DN$19, AX23<DN$16), AX23,"") ->  | CQ23: =IF(AND(AY23<>"",AY23>DO$19, AY23<DO$16), AY23,"") -> 0.1604932701 | CR23: =IF(AND(AZ23<>"",AZ23>DP$19, AZ23<DP$16), AZ23,"") -> 0.1079229364 | CS23: =IF(AND(BA23<>"",BA23>DQ$19, BA23<DQ$16), BA23,"") -> 0.2984584552 | CT23: =IF(AND(BB23<>"",BB23>DR$19, BB23<DR$16), BB23,"") -> 0.1460847977 | CU23: =IF(AND(BC23<>"",BC23>DS$19, BC23<DS$16), BC23,"") -> 0.1490819889 | CV23: =IF(AND(BD23<>"",BD23>DT$19, BD23<DT$16), BD23,"") -> 0.3197859792 | CW23: =IF(AND(BE23<>"",BE23>DU$19, BE23<DU$16), BE23,"") -> 0.1541880495 | CX23: =IF(AND(BF23<>"",BF23>DV$19, BF23<DV$16), BF23,"") -> 0.5082858316 | CY23: =IF(AND(BG23<>"",BG23>DW$19, BG23<DW$16), BG23,"") -> 0.306324895 | CZ23: =IF(AND(BH23<>"",BH23>DX$19, BH23<DX$16), BH23,"") -> 0.4081548571 | DA23: =IF(AND(BI23<>"",BI23>DY$19, BI23<DY$16), BI23,"") -> -0.008275605732 | DB23: =IF(AND(BJ23<>"",BJ23>DZ$19, BJ23<DZ$16), BJ23,"") -> 0.2736723003 | DC23: =IF(AND(BK23<>"",BK23>EA$19, BK23<EA$16), BK23,"") -> 0.07003188515 | DD23: =IF(AND(BL23<>"",BL23>EB$19, BL23<EB$16), BL23,"") -> 0.1322555939 | DE23: =IF(AND(BM23<>"",BM23>EC$19, BM23<EC$16), BM23,"") -> -0.02190901761 | DF23: =IF(AND(BN23<>"",BN23>ED$19, BN23<ED$16), BN23,"") -> 0.313008564 | DG23: =IF(AND(BO23<>"",BO23>EE$19, BO23<EE$16), BO23,"") -> 0.2803630784
A24: 1021.557593 | B24: 1147.716496 | C24: 814.1704936 | D24: 867.3189673 | E24: 973.4442081 | F24: 1063.235408 | G24: 930.1161886 | H24: 914.5551683 | I24: 942.0512559 | J24: 852.0723627 | K24: 997.8501014 | L24: 949.3836685 | M24: 2224.315642 | N24: 878.3582811 | O24: 1165.178488 | P24: 968.613629 | Q24: 1004.275693 | R24: 934.4157707 | S24: 869.4595046 | T24: 636.5575087 | U24: 468.0995168 | V24: 673.7898275 | W24: 973.4442081 | X24: =IF(AND(A24>0, $W24>0),$W24/A24, "") -> 0.9529019357 | Y24: =IF(AND(B24>0, $W24>0),$W24/B24, "") -> 0.8481573728 | Z24: =IF(AND(C24>0, $W24>0),$W24/C24, "") -> 1.19562698 | AA24: =IF(AND(D24>0, $W24>0),$W24/D24, "") -> 1.122360106 | AB24: =IF(AND(E24>0, $W24>0),$W24/E24, "") -> 1 | AC24: =IF(AND(F24>0, $W24>0),$W24/F24, "") -> 0.9155490877 | AD24: =IF(AND(G24>0, $W24>0),$W24/G24, "") -> 1.046583448 | AE24: =IF(AND(H24>0, $W24>0),$W24/H24, "") -> 1.06439091 | AF24: =IF(AND(I24>0, $W24>0),$W24/I24, "") -> 1.033324038 | AG24: =IF(AND(J24>0, $W24>0),$W24/J24, "") -> 1.14244312 | AH24: =IF(AND(K24>0, $W24>0),$W24/K24, "") -> 0.9755415235 | AI24: =IF(AND(L24>0, $W24>0),$W24/L24, "") -> 1.025343326 | AJ24: =IF(AND(M24>0, $W24>0),$W24/M24, "") -> 0.437637622 | AK24: =IF(AND(N24>0, $W24>0),$W24/N24, "") -> 1.108254148 | AL24: =IF(AND(O24>0, $W24>0),$W24/O24, "") -> 0.8354464298 | AM24: =IF(AND(P24>0, $W24>0),$W24/P24, "") -> 1.004987106 | AN24: =IF(AND(Q24>0, $W24>0),$W24/Q24, "") -> 0.9692997801 | AO24: =IF(AND(R24>0, $W24>0),$W24/R24, "") -> 1.041767743 | AP24: =IF(AND(S24>0, $W24>0),$W24/S24, "") -> 1.119596948 | AQ24: =IF(AND(T24>0, $W24>0),$W24/T24, "") -> 1.529232151 | AR24: =IF(AND(U24>0, $W24>0),$W24/U24, "") -> 2.079566787 | AS24: =IF(AND(V24>0, $W24>0),$W24/V24, "") -> 1.444729749 | AT24: =IF(X24<>"",LOG10(X24),"") -> -0.02095179084 | AU24: =IF(Y24<>"",LOG10(Y24),"") -> -0.07152355837 | AV24: =IF(Z24<>"",LOG10(Z24),"") -> 0.07759570645 | AW24: =IF(AA24<>"",LOG10(AA24),"") -> 0.05013222147 | AX24: =IF(AB24<>"",LOG10(AB24),"") -> 0 | AY24: =IF(AC24<>"",LOG10(AC24),"") -> -0.03831836578 | AZ24: =IF(AD24<>"",LOG10(AD24),"") -> 0.01977386217 | BA24: =IF(AE24<>"",LOG10(AE24),"") -> 0.0271011571 | BB24: =IF(AF24<>"",LOG10(AF24),"") -> 0.01423653257 | BC24: =IF(AG24<>"",LOG10(AG24),"") -> 0.05783458647 | BD24: =IF(AH24<>"",LOG10(AH24),"") -> -0.0107542403 | BE24: =IF(AI24<>"",LOG10(AI24),"") -> 0.01086930886 | BF24: =IF(AJ24<>"",LOG10(AJ24),"") -> -0.3588853505 | BG24: =IF(AK24<>"",LOG10(AK24),"") -> 0.04463936532 | BH24: =IF(AL24<>"",LOG10(AL24),"") -> -0.07808139254 | BI24: =IF(AM24<>"",LOG10(AM24),"") -> 0.002160489916 | BJ24: =IF(AN24<>"",LOG10(AN24),"") -> -0.01354188579 | BK24: =IF(AO24<>"",LOG10(AO24),"") -> 0.0177709058 | BL24: =IF(AP24<>"",LOG10(AP24),"") -> 0.04906170611 | BM24: =IF(AQ24<>"",LOG10(AQ24),"") -> 0.1844734201 | BN24: =IF(AR24<>"",LOG10(AR24),"") -> 0.3179728726 | BO24: =IF(AS24<>"",LOG10(AS24),"") -> 0.1597866155 | BP24: =IF(AT24<>"", ABS(AT24-DJ$4),"") -> 0.2197063484 | BQ24: =IF(AU24<>"", ABS(AU24-DK$4),"") -> 0.1432693783 | BR24: =IF(AV24<>"", ABS(AV24-DL$4),"") -> 0.253941358 | BS24: =IF(AW24<>"", ABS(AW24-DM$4),"") -> 0.064827292 | BT24: =IF(AX24<>"", ABS(AX24-DN$4),"") -> 0 | BU24: =IF(AY24<>"", ABS(AY24-DO$4),"") -> 0.1251063163 | BV24: =IF(AZ24<>"", ABS(AZ24-DP$4),"") -> 0.08054483417 | BW24: =IF(BA24<>"", ABS(BA24-DQ$4),"") -> 0.2303291112 | BX24: =IF(BB24<>"", ABS(BB24-DR$4),"") -> 0.1552938125 | BY24: =IF(BC24<>"", ABS(BC24-DS$4),"") -> 0.003554382252 | BZ24: =IF(BD24<>"", ABS(BD24-DT$4),"") -> 0.06028294916 | CA24: =IF(BE24<>"", ABS(BE24-DU$4),"") -> 0.139379661 | CB24: =IF(BF24<>"", ABS(BF24-DV$4),"") -> 0.9389407554 | CC24: =IF(BG24<>"", ABS(BG24-DW$4),"") -> 0.3274642929 | CD24: =IF(BH24<>"", ABS(BH24-DX$4),"") -> 0.1380472945 | CE24: =IF(BI24<>"", ABS(BI24-DY$4),"") -> 0.007941480379 | CF24: =IF(BJ24<>"", ABS(BJ24-DZ$4),"") -> 0.3688812065 | CG24: =IF(BK24<>"", ABS(BK24-EA$4),"") -> 0.05532439028 | CH24: =IF(BL24<>"", ABS(BL24-EB$4),"") -> 0.04916700169 | CI24: =IF(BM24<>"", ABS(BM24-EC$4),"") -> 0.229534162 | CJ24: =IF(BN24<>"", ABS(BN24-ED$4),"") -> 0.08443159755 | CK24: =IF(BO24<>"", ABS(BO24-EE$4),"") -> 0.1370187687 | CL24: =IF(AND(AT24<>"",AT24>DJ$19, AT24<DJ$16), AT24,"") -> -0.02095179084 | CM24: =IF(AND(AU24<>"",AU24>DK$19, AU24<DK$16), AU24,"") -> -0.07152355837 | CN24: =IF(AND(AV24<>"",AV24>DL$19, AV24<DL$16), AV24,"") -> 0.07759570645 | CO24: =IF(AND(AW24<>"",AW24>DM$19, AW24<DM$16), AW24,"") -> 0.05013222147 | CP24: =IF(AND(AX24<>"",AX24>DN$19, AX24<DN$16), AX24,"") ->  | CQ24: =IF(AND(AY24<>"",AY24>DO$19, AY24<DO$16), AY24,"") -> -0.03831836578 | CR24: =IF(AND(AZ24<>"",AZ24>DP$19, AZ24<DP$16), AZ24,"") -> 0.01977386217 | CS24: =IF(AND(BA24<>"",BA24>DQ$19, BA24<DQ$16), BA24,"") -> 0.0271011571 | CT24: =IF(AND(BB24<>"",BB24>DR$19, BB24<DR$16), BB24,"") -> 0.01423653257 | CU24: =IF(AND(BC24<>"",BC24>DS$19, BC24<DS$16), BC24,"") -> 0.05783458647 | CV24: =IF(AND(BD24<>"",BD24>DT$19, BD24<DT$16), BD24,"") -> -0.0107542403 | CW24: =IF(AND(BE24<>"",BE24>DU$19, BE24<DU$16), BE24,"") -> 0.01086930886 | CX24: =IF(AND(BF24<>"",BF24>DV$19, BF24<DV$16), BF24,"") -> -0.3588853505 | CY24: =IF(AND(BG24<>"",BG24>DW$19, BG24<DW$16), BG24,"") -> 0.04463936532 | CZ24: =IF(AND(BH24<>"",BH24>DX$19, BH24<DX$16), BH24,"") -> -0.07808139254 | DA24: =IF(AND(BI24<>"",BI24>DY$19, BI24<DY$16), BI24,"") -> 0.002160489916 | DB24: =IF(AND(BJ24<>"",BJ24>DZ$19, BJ24<DZ$16), BJ24,"") -> -0.01354188579 | DC24: =IF(AND(BK24<>"",BK24>EA$19, BK24<EA$16), BK24,"") -> 0.0177709058 | DD24: =IF(AND(BL24<>"",BL24>EB$19, BL24<EB$16), BL24,"") -> 0.04906170611 | DE24: =IF(AND(BM24<>"",BM24>EC$19, BM24<EC$16), BM24,"") -> 0.1844734201 | DF24: =IF(AND(BN24<>"",BN24>ED$19, BN24<ED$16), BN24,"") -> 0.3179728726 | DG24: =IF(AND(BO24<>"",BO24>EE$19, BO24<EE$16), BO24,"") -> 0.1597866155 | DI24: Exclusion | DV24: x
A25: 1858.367838 | B25: 4070.568844 | C25: 3391.10461 | D25: 2210.104781 | E25: 3006.630996 | F25: 2884.074694 | G25: 3112.118677 | H25: 1883.846996 | I25: 2739.226275 | J25: 2581.033864 | K25: 2091.303383 | L25: 2489.563258 | M25: 1079.501008 | N25: 1616.661196 | O25: 1825.117026 | P25: 2805.397188 | Q25: 2085.750399 | R25: 2763.170299 | S25: 1774.68696 | T25: 2761.407415 | U25: 1245.646787 | V25: 1596.885302 | W25: 3006.630996 | X25: =IF(AND(A25>0, $W25>0),$W25/A25, "") -> 1.617887985 | Y25: =IF(AND(B25>0, $W25>0),$W25/B25, "") -> 0.7386267401 | Z25: =IF(AND(C25>0, $W25>0),$W25/C25, "") -> 0.8866228977 | AA25: =IF(AND(D25>0, $W25>0),$W25/D25, "") -> 1.360402014 | AB25: =IF(AND(E25>0, $W25>0),$W25/E25, "") -> 1 | AC25: =IF(AND(F25>0, $W25>0),$W25/F25, "") -> 1.04249415 | AD25: =IF(AND(G25>0, $W25>0),$W25/G25, "") -> 0.9661042228 | AE25: =IF(AND(H25>0, $W25>0),$W25/H25, "") -> 1.59600594 | AF25: =IF(AND(I25>0, $W25>0),$W25/I25, "") -> 1.09762053 | AG25: =IF(AND(J25>0, $W25>0),$W25/J25, "") -> 1.164894052 | AH25: =IF(AND(K25>0, $W25>0),$W25/K25, "") -> 1.437682844 | AI25: =IF(AND(L25>0, $W25>0),$W25/L25, "") -> 1.207694155 | AJ25: =IF(AND(M25>0, $W25>0),$W25/M25, "") -> 2.785204437 | AK25: =IF(AND(N25>0, $W25>0),$W25/N25, "") -> 1.859778043 | AL25: =IF(AND(O25>0, $W25>0),$W25/O25, "") -> 1.647363404 | AM25: =IF(AND(P25>0, $W25>0),$W25/P25, "") -> 1.071730951 | AN25: =IF(AND(Q25>0, $W25>0),$W25/Q25, "") -> 1.44151045 | AO25: =IF(AND(R25>0, $W25>0),$W25/R25, "") -> 1.08810919 | AP25: =IF(AND(S25>0, $W25>0),$W25/S25, "") -> 1.694175403 | AQ25: =IF(AND(T25>0, $W25>0),$W25/T25, "") -> 1.088803839 | AR25: =IF(AND(U25>0, $W25>0),$W25/U25, "") -> 2.413710714 | AS25: =IF(AND(V25>0, $W25>0),$W25/V25, "") -> 1.882809612 | AT25: =IF(X25<>"",LOG10(X25),"") -> 0.2089484497 | AU25: =IF(Y25<>"",LOG10(Y25),"") -> -0.1315749738 | AV25: =IF(Z25<>"",LOG10(Z25),"") -> -0.05226105691 | AW25: =IF(AA25<>"",LOG10(AA25),"") -> 0.1336672663 | AX25: =IF(AB25<>"",LOG10(AB25),"") -> 0 | AY25: =IF(AC25<>"",LOG10(AC25),"") -> 0.0180736264 | AZ25: =IF(AD25<>"",LOG10(AD25),"") -> -0.01497601959 | BA25: =IF(AE25<>"",LOG10(AE25),"") -> 0.2030345035 | BB25: =IF(AF25<>"",LOG10(AF25),"") -> 0.04045222161 | BC25: =IF(AG25<>"",LOG10(AG25),"") -> 0.06628642771 | BD25: =IF(AH25<>"",LOG10(AH25),"") -> 0.1576630904 | BE25: =IF(AI25<>"",LOG10(AI25),"") -> 0.08195696457 | BF25: =IF(AJ25<>"",LOG10(AJ25),"") -> 0.4448570783 | BG25: =IF(AK25<>"",LOG10(AK25),"") -> 0.269461116 | BH25: =IF(AL25<>"",LOG10(AL25),"") -> 0.2167894139 | BI25: =IF(AM25<>"",LOG10(AM25),"") -> 0.03008577298 | BJ25: =IF(AN25<>"",LOG10(AN25),"") -> 0.158817795 | BK25: =IF(AO25<>"",LOG10(AO25),"") -> 0.03667247823 | BL25: =IF(AP25<>"",LOG10(AP25),"") -> 0.2289583721 | BM25: =IF(AQ25<>"",LOG10(AQ25),"") -> 0.03694964367 | BN25: =IF(AR25<>"",LOG10(AR25),"") -> 0.3826852181 | BO25: =IF(AS25<>"",LOG10(AS25),"") -> 0.2748064068 | BP25: =IF(AT25<>"", ABS(AT25-DJ$4),"") -> 0.0101938922 | BQ25: =IF(AU25<>"", ABS(AU25-DK$4),"") -> 0.2033207938 | BR25: =IF(AV25<>"", ABS(AV25-DL$4),"") -> 0.1240845947 | BS25: =IF(AW25<>"", ABS(AW25-DM$4),"") -> 0.1483623368 | BT25: =IF(AX25<>"", ABS(AX25-DN$4),"") -> 0 | BU25: =IF(AY25<>"", ABS(AY25-DO$4),"") -> 0.06871432414 | BV25: =IF(AZ25<>"", ABS(AZ25-DP$4),"") -> 0.1152947159 | BW25: =IF(BA25<>"", ABS(BA25-DQ$4),"") -> 0.05439576489 | BX25: =IF(BB25<>"", ABS(BB25-DR$4),"") -> 0.1290781234 | BY25: =IF(BC25<>"", ABS(BC25-DS$4),"") -> 0.004897458993 | BZ25: =IF(BD25<>"", ABS(BD25-DT$4),"") -> 0.1081343816 | CA25: =IF(BE25<>"", ABS(BE25-DU$4),"") -> 0.06829200525 | CB25: =IF(BF25<>"", ABS(BF25-DV$4),"") -> 0.1351983266 | CC25: =IF(BG25<>"", ABS(BG25-DW$4),"") -> 0.1026425422 | CD25: =IF(BH25<>"", ABS(BH25-DX$4),"") -> 0.1568235119 | CE25: =IF(BI25<>"", ABS(BI25-DY$4),"") -> 0.01998380269 | CF25: =IF(BJ25<>"", ABS(BJ25-DZ$4),"") -> 0.1965215257 | CG25: =IF(BK25<>"", ABS(BK25-EA$4),"") -> 0.03642281785 | CH25: =IF(BL25<>"", ABS(BL25-EB$4),"") -> 0.2290636677 | CI25: =IF(BM25<>"", ABS(BM25-EC$4),"") -> 0.08201038554 | CJ25: =IF(BN25<>"", ABS(BN25-ED$4),"") -> 0.01971925208 | CK25: =IF(BO25<>"", ABS(BO25-EE$4),"") -> 0.02199897748 | CL25: =IF(AND(AT25<>"",AT25>DJ$19, AT25<DJ$16), AT25,"") -> 0.2089484497 | CM25: =IF(AND(AU25<>"",AU25>DK$19, AU25<DK$16), AU25,"") -> -0.1315749738 | CN25: =IF(AND(AV25<>"",AV25>DL$19, AV25<DL$16), AV25,"") -> -0.05226105691 | CO25: =IF(AND(AW25<>"",AW25>DM$19, AW25<DM$16), AW25,"") -> 0.1336672663 | CP25: =IF(AND(AX25<>"",AX25>DN$19, AX25<DN$16), AX25,"") ->  | CQ25: =IF(AND(AY25<>"",AY25>DO$19, AY25<DO$16), AY25,"") -> 0.0180736264 | CR25: =IF(AND(AZ25<>"",AZ25>DP$19, AZ25<DP$16), AZ25,"") -> -0.01497601959 | CS25: =IF(AND(BA25<>"",BA25>DQ$19, BA25<DQ$16), BA25,"") -> 0.2030345035 | CT25: =IF(AND(BB25<>"",BB25>DR$19, BB25<DR$16), BB25,"") -> 0.04045222161 | CU25: =IF(AND(BC25<>"",BC25>DS$19, BC25<DS$16), BC25,"") -> 0.06628642771 | CV25: =IF(AND(BD25<>"",BD25>DT$19, BD25<DT$16), BD25,"") -> 0.1576630904 | CW25: =IF(AND(BE25<>"",BE25>DU$19, BE25<DU$16), BE25,"") -> 0.08195696457 | CX25: =IF(AND(BF25<>"",BF25>DV$19, BF25<DV$16), BF25,"") -> 0.4448570783 | CY25: =IF(AND(BG25<>"",BG25>DW$19, BG25<DW$16), BG25,"") -> 0.269461116 | CZ25: =IF(AND(BH25<>"",BH25>DX$19, BH25<DX$16), BH25,"") -> 0.2167894139 | DA25: =IF(AND(BI25<>"",BI25>DY$19, BI25<DY$16), BI25,"") -> 0.03008577298 | DB25: =IF(AND(BJ25<>"",BJ25>DZ$19, BJ25<DZ$16), BJ25,"") -> 0.158817795 | DC25: =IF(AND(BK25<>"",BK25>EA$19, BK25<EA$16), BK25,"") -> 0.03667247823 | DD25: =IF(AND(BL25<>"",BL25>EB$19, BL25<EB$16), BL25,"") -> 0.2289583721 | DE25: =IF(AND(BM25<>"",BM25>EC$19, BM25<EC$16), BM25,"") -> 0.03694964367 | DF25: =IF(AND(BN25<>"",BN25>ED$19, BN25<ED$16), BN25,"") -> 0.3826852181 | DG25: =IF(AND(BO25<>"",BO25>EE$19, BO25<EE$16), BO25,"") -> 0.2748064068
A26: 1896.516812 | B26: 1647.659164 | C26: 1453.534051 | D26: 1032.657735 | E26: 1429.236369 | F26: 1317.004855 | G26: 1597.247726 | H26: 1384.808011 | I26: 1812.357611 | J26: 1489.633323 | K26: 1530.744374 | L26: 1615.985097 | M26: 1355.00002 | N26: 2509.182309 | O26: 1475.382059 | P26: 1151.406258 | Q26: 2271.619925 | R26: 1841.894792 | S26: 1016.263609 | T26: 1585.657393 | U26: 1115.499319 | V26: 1158.30937 | W26: 1429.236369 | X26: =IF(AND(A26>0, $W26>0),$W26/A26, "") -> 0.7536112305 | Y26: =IF(AND(B26>0, $W26>0),$W26/B26, "") -> 0.8674344792 | Z26: =IF(AND(C26>0, $W26>0),$W26/C26, "") -> 0.9832837196 | AA26: =IF(AND(D26>0, $W26>0),$W26/D26, "") -> 1.384036859 | AB26: =IF(AND(E26>0, $W26>0),$W26/E26, "") -> 1 | AC26: =IF(AND(F26>0, $W26>0),$W26/F26, "") -> 1.085217236 | AD26: =IF(AND(G26>0, $W26>0),$W26/G26, "") -> 0.8948119604 | AE26: =IF(AND(H26>0, $W26>0),$W26/H26, "") -> 1.032082684 | AF26: =IF(AND(I26>0, $W26>0),$W26/I26, "") -> 0.7886061558 | AG26: =IF(AND(J26>0, $W26>0),$W26/J26, "") -> 0.9594551537 | AH26: =IF(AND(K26>0, $W26>0),$W26/K26, "") -> 0.9336871609 | AI26: =IF(AND(L26>0, $W26>0),$W26/L26, "") -> 0.8844366026 | AJ26: =IF(AND(M26>0, $W26>0),$W26/M26, "") -> 1.054786972 | AK26: =IF(AND(N26>0, $W26>0),$W26/N26, "") -> 0.5696024411 | AL26: =IF(AND(O26>0, $W26>0),$W26/O26, "") -> 0.9687228875 | AM26: =IF(AND(P26>0, $W26>0),$W26/P26, "") -> 1.241296335 | AN26: =IF(AND(Q26>0, $W26>0),$W26/Q26, "") -> 0.6291705548 | AO26: =IF(AND(R26>0, $W26>0),$W26/R26, "") -> 0.7759598294 | AP26: =IF(AND(S26>0, $W26>0),$W26/S26, "") -> 1.406363818 | AQ26: =IF(AND(T26>0, $W26>0),$W26/T26, "") -> 0.9013525715 | AR26: =IF(AND(U26>0, $W26>0),$W26/U26, "") -> 1.281252569 | AS26: =IF(AND(V26>0, $W26>0),$W26/V26, "") -> 1.23389865 | AT26: =IF(X26<>"",LOG10(X26),"") -> -0.1228526382 | AU26: =IF(Y26<>"",LOG10(Y26),"") -> -0.0617633193 | AV26: =IF(Z26<>"",LOG10(Z26),"") -> -0.007321151448 | AW26: =IF(AA26<>"",LOG10(AA26),"") -> 0.1411476563 | AX26: =IF(AB26<>"",LOG10(AB26),"") -> 0 | AY26: =IF(AC26<>"",LOG10(AC26),"") -> 0.03551668292 | AZ26: =IF(AD26<>"",LOG10(AD26),"") -> -0.04826821959 | BA26: =IF(AE26<>"",LOG10(AE26),"") -> 0.01371449156 | BB26: =IF(AF26<>"",LOG10(AF26),"") -> -0.1031398372 | BC26: =IF(AG26<>"",LOG10(AG26),"") -> -0.01797532 | BD26: =IF(AH26<>"",LOG10(AH26),"") -> -0.02979861312 | BE26: =IF(AI26<>"",LOG10(AI26),"") -> -0.05333329234 | BF26: =IF(AJ26<>"",LOG10(AJ26),"") -> 0.0231647571 | BG26: =IF(AK26<>"",LOG10(AK26),"") -> -0.2444281581 | BH26: =IF(AL26<>"",LOG10(AL26),"") -> -0.01380043928 | BI26: =IF(AM26<>"",LOG10(AM26),"") -> 0.09387547311 | BJ26: =IF(AN26<>"",LOG10(AN26),"") -> -0.2012316105 | BK26: =IF(AO26<>"",LOG10(AO26),"") -> -0.1101607611 | BL26: =IF(AP26<>"",LOG10(AP26),"") -> 0.1480976846 | BM26: =IF(AQ26<>"",LOG10(AQ26),"") -> -0.04510529792 | BN26: =IF(AR26<>"",LOG10(AR26),"") -> 0.1076347493 | BO26: =IF(AS26<>"",LOG10(AS26),"") -> 0.09127948921 | BP26: =IF(AT26<>"", ABS(AT26-DJ$4),"") -> 0.3216071957 | BQ26: =IF(AU26<>"", ABS(AU26-DK$4),"") -> 0.1335091392 | BR26: =IF(AV26<>"", ABS(AV26-DL$4),"") -> 0.1690245001 | BS26: =IF(AW26<>"", ABS(AW26-DM$4),"") -> 0.1558427269 | BT26: =IF(AX26<>"", ABS(AX26-DN$4),"") -> 0 | BU26: =IF(AY26<>"", ABS(AY26-DO$4),"") -> 0.05127126762 | BV26: =IF(AZ26<>"", ABS(AZ26-DP$4),"") -> 0.1485869159 | BW26: =IF(BA26<>"", ABS(BA26-DQ$4),"") -> 0.2437157768 | BX26: =IF(BB26<>"", ABS(BB26-DR$4),"") -> 0.2726701822 | BY26: =IF(BC26<>"", ABS(BC26-DS$4),"") -> 0.07936428872 | BZ26: =IF(BD26<>"", ABS(BD26-DT$4),"") -> 0.07932732198 | CA26: =IF(BE26<>"", ABS(BE26-DU$4),"") -> 0.2035822622 | CB26: =IF(BF26<>"", ABS(BF26-DV$4),"") -> 0.5568906478 | CC26: =IF(BG26<>"", ABS(BG26-DW$4),"") -> 0.6165318164 | CD26: =IF(BH26<>"", ABS(BH26-DX$4),"") -> 0.07376634126 | CE26: =IF(BI26<>"", ABS(BI26-DY$4),"") -> 0.08377350282 | CF26: =IF(BJ26<>"", ABS(BJ26-DZ$4),"") -> 0.5565709313 | CG26: =IF(BK26<>"", ABS(BK26-EA$4),"") -> 0.1832560572 | CH26: =IF(BL26<>"", ABS(BL26-EB$4),"") -> 0.1482029802 | CI26: =IF(BM26<>"", ABS(BM26-EC$4),"") -> 4.455605212e-05 | CJ26: =IF(BN26<>"", ABS(BN26-ED$4),"") -> 0.2947697209 | CK26: =IF(BO26<>"", ABS(BO26-EE$4),"") -> 0.205525895 | CL26: =IF(AND(AT26<>"",AT26>DJ$19, AT26<DJ$16), AT26,"") -> -0.1228526382 | CM26: =IF(AND(AU26<>"",AU26>DK$19, AU26<DK$16), AU26,"") -> -0.0617633193 | CN26: =IF(AND(AV26<>"",AV26>DL$19, AV26<DL$16), AV26,"") -> -0.007321151448 | CO26: =IF(AND(AW26<>"",AW26>DM$19, AW26<DM$16), AW26,"") -> 0.1411476563 | CP26: =IF(AND(AX26<>"",AX26>DN$19, AX26<DN$16), AX26,"") ->  | CQ26: =IF(AND(AY26<>"",AY26>DO$19, AY26<DO$16), AY26,"") -> 0.03551668292 | CR26: =IF(AND(AZ26<>"",AZ26>DP$19, AZ26<DP$16), AZ26,"") -> -0.04826821959 | CS26: =IF(AND(BA26<>"",BA26>DQ$19, BA26<DQ$16), BA26,"") -> 0.01371449156 | CT26: =IF(AND(BB26<>"",BB26>DR$19, BB26<DR$16), BB26,"") -> -0.1031398372 | CU26: =IF(AND(BC26<>"",BC26>DS$19, BC26<DS$16), BC26,"") -> -0.01797532 | CV26: =IF(AND(BD26<>"",BD26>DT$19, BD26<DT$16), BD26,"") -> -0.02979861312 | CW26: =IF(AND(BE26<>"",BE26>DU$19, BE26<DU$16), BE26,"") -> -0.05333329234 | CX26: =IF(AND(BF26<>"",BF26>DV$19, BF26<DV$16), BF26,"") -> 0.0231647571 | CY26: =IF(AND(BG26<>"",BG26>DW$19, BG26<DW$16), BG26,"") -> -0.2444281581 | CZ26: =IF(AND(BH26<>"",BH26>DX$19, BH26<DX$16), BH26,"") -> -0.01380043928 | DA26: =IF(AND(BI26<>"",BI26>DY$19, BI26<DY$16), BI26,"") -> 0.09387547311 | DB26: =IF(AND(BJ26<>"",BJ26>DZ$19, BJ26<DZ$16), BJ26,"") -> -0.2012316105 | DC26: =IF(AND(BK26<>"",BK26>EA$19, BK26<EA$16), BK26,"") -> -0.1101607611 | DD26: =IF(AND(BL26<>"",BL26>EB$19, BL26<EB$16), BL26,"") -> 0.1480976846 | DE26: =IF(AND(BM26<>"",BM26>EC$19, BM26<EC$16), BM26,"") -> -0.04510529792 | DF26: =IF(AND(BN26<>"",BN26>ED$19, BN26<ED$16), BN26,"") -> 0.1076347493 | DG26: =IF(AND(BO26<>"",BO26>EE$19, BO26<EE$16), BO26,"") -> 0.09127948921
A27: 1265.669393 | B27: 1835.131726 | C27: 1311.932859 | D27: 970.848395 | E27: 1827.498732 | F27: 1044.945204 | G27: 1554.020565 | H27: 983.4360017 | I27: 1377.139842 | J27: 1012.068193 | K27: 930.7187933 | L27: 1217.8241 | M27: 659.5709068 | N27: 1568.13553 | O27: 562.4909819 | P27: 1749.41627 | Q27: 1244.127574 | R27: 1558.002921 | S27: 1178.323818 | T27: 2018.771935 | U27: 1178.109575 | V27: 852.9879447 | W27: 1827.498732 | X27: =IF(AND(A27>0, $W27>0),$W27/A27, "") -> 1.443898969 | Y27: =IF(AND(B27>0, $W27>0),$W27/B27, "") -> 0.9958406289 | Z27: =IF(AND(C27>0, $W27>0),$W27/C27, "") -> 1.392981904 | AA27: =IF(AND(D27>0, $W27>0),$W27/D27, "") -> 1.882372924 | AB27: =IF(AND(E27>0, $W27>0),$W27/E27, "") -> 1 | AC27: =IF(AND(F27>0, $W27>0),$W27/F27, "") -> 1.748894319 | AD27: =IF(AND(G27>0, $W27>0),$W27/G27, "") -> 1.175981048 | AE27: =IF(AND(H27>0, $W27>0),$W27/H27, "") -> 1.858279267 | AF27: =IF(AND(I27>0, $W27>0),$W27/I27, "") -> 1.327024806 | AG27: =IF(AND(J27>0, $W27>0),$W27/J27, "") -> 1.805707111 | AH27: =IF(AND(K27>0, $W27>0),$W27/K27, "") -> 1.963534792 | AI27: =IF(AND(L27>0, $W27>0),$W27/L27, "") -> 1.500626184 | AJ27: =IF(AND(M27>0, $W27>0),$W27/M27, "") -> 2.770738844 | AK27: =IF(AND(N27>0, $W27>0),$W27/N27, "") -> 1.165395909 | AL27: =IF(AND(O27>0, $W27>0),$W27/O27, "") -> 3.248938722 | AM27: =IF(AND(P27>0, $W27>0),$W27/P27, "") -> 1.044633437 | AN27: =IF(AND(Q27>0, $W27>0),$W27/Q27, "") -> 1.46889979 | AO27: =IF(AND(R27>0, $W27>0),$W27/R27, "") -> 1.172975164 | AP27: =IF(AND(S27>0, $W27>0),$W27/S27, "") -> 1.550930826 | AQ27: =IF(AND(T27>0, $W27>0),$W27/T27, "") -> 0.9052526937 | AR27: =IF(AND(U27>0, $W27>0),$W27/U27, "") -> 1.551212867 | AS27: =IF(AND(V27>0, $W27>0),$W27/V27, "") -> 2.142467245 | AT27: =IF(X27<>"",LOG10(X27),"") -> 0.1595368064 | AU27: =IF(Y27<>"",LOG10(Y27),"") -> -0.001810159115 | AV27: =IF(Z27<>"",LOG10(Z27),"") -> 0.1439454747 | AW27: =IF(AA27<>"",LOG10(AA27),"") -> 0.2747056673 | AX27: =IF(AB27<>"",LOG10(AB27),"") -> 0 | AY27: =IF(AC27<>"",LOG10(AC27),"") -> 0.2427635671 | AZ27: =IF(AD27<>"",LOG10(AD27),"") -> 0.07040032257 | BA27: =IF(AE27<>"",LOG10(AE27),"") -> 0.2691109814 | BB27: =IF(AF27<>"",LOG10(AF27),"") -> 0.1228790412 | BC27: =IF(AG27<>"",LOG10(AG27),"") -> 0.2566473083 | BD27: =IF(AH27<>"",LOG10(AH27),"") -> 0.2930386009 | BE27: =IF(AI27<>"",LOG10(AI27),"") -> 0.17627252 | BF27: =IF(AJ27<>"",LOG10(AJ27),"") -> 0.4425955933 | BG27: =IF(AK27<>"",LOG10(AK27),"") -> 0.06647348925 | BH27: =IF(AL27<>"",LOG10(AL27),"") -> 0.5117415202 | BI27: =IF(AM27<>"",LOG10(AM27),"") -> 0.01896392293 | BJ27: =IF(AN27<>"",LOG10(AN27),"") -> 0.1669921688 | BK27: =IF(AO27<>"",LOG10(AO27),"") -> 0.06928881665 | BL27: =IF(AP27<>"",LOG10(AP27),"") -> 0.1905924279 | BM27: =IF(AQ27<>"",LOG10(AQ27),"") -> -0.04323017422 | BN27: =IF(AR27<>"",LOG10(AR27),"") -> 0.1906713984 | BO27: =IF(AS27<>"",LOG10(AS27),"") -> 0.330914191 | BP27: =IF(AT27<>"", ABS(AT27-DJ$4),"") -> 0.03921775109 | BQ27: =IF(AU27<>"", ABS(AU27-DK$4),"") -> 0.07355597903 | BR27: =IF(AV27<>"", ABS(AV27-DL$4),"") -> 0.3202911263 | BS27: =IF(AW27<>"", ABS(AW27-DM$4),"") -> 0.2894007379 | BT27: =IF(AX27<>"", ABS(AX27-DN$4),"") -> 0 | BU27: =IF(AY27<>"", ABS(AY27-DO$4),"") -> 0.1559756165 | BV27: =IF(AZ27<>"", ABS(AZ27-DP$4),"") -> 0.02991837376 | BW27: =IF(BA27<>"", ABS(BA27-DQ$4),"") -> 0.01168071303 | BX27: =IF(BB27<>"", ABS(BB27-DR$4),"") -> 0.04665130385 | BY27: =IF(BC27<>"", ABS(BC27-DS$4),"") -> 0.1952583396 | BZ27: =IF(BD27<>"", ABS(BD27-DT$4),"") -> 0.243509892 | CA27: =IF(BE27<>"", ABS(BE27-DU$4),"") -> 0.02602355017 | CB27: =IF(BF27<>"", ABS(BF27-DV$4),"") -> 0.1374598116 | CC27: =IF(BG27<>"", ABS(BG27-DW$4),"") -> 0.305630169 | CD27: =IF(BH27<>"", ABS(BH27-DX$4),"") -> 0.4517756183 | CE27: =IF(BI27<>"", ABS(BI27-DY$4),"") -> 0.008861952631 | CF27: =IF(BJ27<>"", ABS(BJ27-DZ$4),"") -> 0.188347152 | CG27: =IF(BK27<>"", ABS(BK27-EA$4),"") -> 0.003806479427 | CH27: =IF(BL27<>"", ABS(BL27-EB$4),"") -> 0.1906977235 | CI27: =IF(BM27<>"", ABS(BM27-EC$4),"") -> 0.001830567648 | CJ27: =IF(BN27<>"", ABS(BN27-ED$4),"") -> 0.2117330718 | CK27: =IF(BO27<>"", ABS(BO27-EE$4),"") -> 0.03410880673 | CL27: =IF(AND(AT27<>"",AT27>DJ$19, AT27<DJ$16), AT27,"") -> 0.1595368064 | CM27: =IF(AND(AU27<>"",AU27>DK$19, AU27<DK$16), AU27,"") -> -0.001810159115 | CN27: =IF(AND(AV27<>"",AV27>DL$19, AV27<DL$16), AV27,"") -> 0.1439454747 | CO27: =IF(AND(AW27<>"",AW27>DM$19, AW27<DM$16), AW27,"") -> 0.2747056673 | CP27: =IF(AND(AX27<>"",AX27>DN$19, AX27<DN$16), AX27,"") ->  | CQ27: =IF(AND(AY27<>"",AY27>DO$19, AY27<DO$16), AY27,"") -> 0.2427635671 | CR27: =IF(AND(AZ27<>"",AZ27>DP$19, AZ27<DP$16), AZ27,"") -> 0.07040032257 | CS27: =IF(AND(BA27<>"",BA27>DQ$19, BA27<DQ$16), BA27,"") -> 0.2691109814 | CT27: =IF(AND(BB27<>"",BB27>DR$19, BB27<DR$16), BB27,"") -> 0.1228790412 | CU27: =IF(AND(BC27<>"",BC27>DS$19, BC27<DS$16), BC27,"") -> 0.2566473083 | CV27: =IF(AND(BD27<>"",BD27>DT$19, BD27<DT$16), BD27,"") -> 0.2930386009 | CW27: =IF(AND(BE27<>"",BE27>DU$19, BE27<DU$16), BE27,"") -> 0.17627252 | CX27: =IF(AND(BF27<>"",BF27>DV$19, BF27<DV$16), BF27,"") -> 0.4425955933 | CY27: =IF(AND(BG27<>"",BG27>DW$19, BG27<DW$16), BG27,"") -> 0.06647348925 | CZ27: =IF(AND(BH27<>"",BH27>DX$19, BH27<DX$16), BH27,"") -> 0.5117415202 | DA27: =IF(AND(BI27<>"",BI27>DY$19, BI27<DY$16), BI27,"") -> 0.01896392293 | DB27: =IF(AND(BJ27<>"",BJ27>DZ$19, BJ27<DZ$16), BJ27,"") -> 0.1669921688 | DC27: =IF(AND(BK27<>"",BK27>EA$19, BK27<EA$16), BK27,"") -> 0.06928881665 | DD27: =IF(AND(BL27<>"",BL27>EB$19, BL27<EB$16), BL27,"") -> 0.1905924279 | DE27: =IF(AND(BM27<>"",BM27>EC$19, BM27<EC$16), BM27,"") -> -0.04323017422 | DF27: =IF(AND(BN27<>"",BN27>ED$19, BN27<ED$16), BN27,"") -> 0.1906713984 | DG27: =IF(AND(BO27<>"",BO27>EE$19, BO27<EE$16), BO27,"") -> 0.330914191
A28: 899.4072241 | B28: 2029.950264 | C28: 4709.083733 | D28: 2499.321797 | E28: 2345.228193 | F28: 1509.142902 | G28: 1324.121049 | H28: 957.9109484 | I28: 1497.697683 | J28: 2074.467605 | K28: 2284.082643 | L28: 1205.488526 | M28: 616.7791745 | N28: 630.2290688 | O28: 2327.884669 | P28: 1750.681302 | Q28: 571.368153 | R28: 1765.116755 | S28: 2034.870599 | T28: 2679.740873 | U28: 482.5155389 | V28: 792.0125121 | W28: 2345.228193 | X28: =IF(AND(A28>0, $W28>0),$W28/A28, "") -> 2.607526524 | Y28: =IF(AND(B28>0, $W28>0),$W28/B28, "") -> 1.15531313 | Z28: =IF(AND(C28>0, $W28>0),$W28/C28, "") -> 0.4980221898 | AA28: =IF(AND(D28>0, $W28>0),$W28/D28, "") -> 0.9383458325 | AB28: =IF(AND(E28>0, $W28>0),$W28/E28, "") -> 1 | AC28: =IF(AND(F28>0, $W28>0),$W28/F28, "") -> 1.554013334 | AD28: =IF(AND(G28>0, $W28>0),$W28/G28, "") -> 1.771158456 | AE28: =IF(AND(H28>0, $W28>0),$W28/H28, "") -> 2.448273711 | AF28: =IF(AND(I28>0, $W28>0),$W28/I28, "") -> 1.565888911 | AG28: =IF(AND(J28>0, $W28>0),$W28/J28, "") -> 1.130520518 | AH28: =IF(AND(K28>0, $W28>0),$W28/K28, "") -> 1.026770288 | AI28: =IF(AND(L28>0, $W28>0),$W28/L28, "") -> 1.945458743 | AJ28: =IF(AND(M28>0, $W28>0),$W28/M28, "") -> 3.802379019 | AK28: =IF(AND(N28>0, $W28>0),$W28/N28, "") -> 3.721231388 | AL28: =IF(AND(O28>0, $W28>0),$W28/O28, "") -> 1.007450336 | AM28: =IF(AND(P28>0, $W28>0),$W28/P28, "") -> 1.339608865 | AN28: =IF(AND(Q28>0, $W28>0),$W28/Q28, "") -> 4.104583324 | AO28: =IF(AND(R28>0, $W28>0),$W28/R28, "") -> 1.328653295 | AP28: =IF(AND(S28>0, $W28>0),$W28/S28, "") -> 1.152519572 | AQ28: =IF(AND(T28>0, $W28>0),$W28/T28, "") -> 0.875169766 | AR28: =IF(AND(U28>0, $W28>0),$W28/U28, "") -> 4.860420036 | AS28: =IF(AND(V28>0, $W28>0),$W28/V28, "") -> 2.961099928 | AT28: =IF(X28<>"",LOG10(X28),"") -> 0.4162287348 | AU28: =IF(Y28<>"",LOG10(Y28),"") -> 0.06269970893 | AV28: =IF(Z28<>"",LOG10(Z28),"") -> -0.3027513065 | AW28: =IF(AA28<>"",LOG10(AA28),"") -> -0.02763707048 | AX28: =IF(AB28<>"",LOG10(AB28),"") -> 0 | AY28: =IF(AC28<>"",LOG10(AC28),"") -> 0.1914547408 | AZ28: =IF(AD28<>"",LOG10(AD28),"") -> 0.2482574169 | BA28: =IF(AE28<>"",LOG10(AE28),"") -> 0.3888599693 | BB28: =IF(AF28<>"",LOG10(AF28),"") -> 0.1947609485 | BC28: =IF(AG28<>"",LOG10(AG28),"") -> 0.05327844898 | BD28: =IF(AH28<>"",LOG10(AH28),"") -> 0.01147329274 | BE28: =IF(AI28<>"",LOG10(AI28),"") -> 0.2890220253 | BF28: =IF(AJ28<>"",LOG10(AJ28),"") -> 0.5800554049 | BG28: =IF(AK28<>"",LOG10(AK28),"") -> 0.5706866755 | BH28: =IF(AL28<>"",LOG10(AL28),"") -> 0.003223646251 | BI28: =IF(AM28<>"",LOG10(AM28),"") -> 0.1269780129 | BJ28: =IF(AN28<>"",LOG10(AN28),"") -> 0.6132690764 | BK28: =IF(AO28<>"",LOG10(AO28),"") -> 0.1234116689 | BL28: =IF(AP28<>"",LOG10(AP28),"") -> 0.06164830937 | BM28: =IF(AQ28<>"",LOG10(AQ28),"") -> -0.05790769407 | BN28: =IF(AR28<>"",LOG10(AR28),"") -> 0.6866738024 | BO28: =IF(AS28<>"",LOG10(AS28),"") -> 0.4714530637 | BP28: =IF(AT28<>"", ABS(AT28-DJ$4),"") -> 0.2174741772 | BQ28: =IF(AU28<>"", ABS(AU28-DK$4),"") -> 0.009046110982 | BR28: =IF(AV28<>"", ABS(AV28-DL$4),"") -> 0.1264056549 | BS28: =IF(AW28<>"", ABS(AW28-DM$4),"") -> 0.01294199995 | BT28: =IF(AX28<>"", ABS(AX28-DN$4),"") -> 0 | BU28: =IF(AY28<>"", ABS(AY28-DO$4),"") -> 0.1046667902 | BV28: =IF(AZ28<>"", ABS(AZ28-DP$4),"") -> 0.1479387205 | BW28: =IF(BA28<>"", ABS(BA28-DQ$4),"") -> 0.1314297009 | BX28: =IF(BB28<>"", ABS(BB28-DR$4),"") -> 0.02523060347 | BY28: =IF(BC28<>"", ABS(BC28-DS$4),"") -> 0.008110519739 | BZ28: =IF(BD28<>"", ABS(BD28-DT$4),"") -> 0.03805541611 | CA28: =IF(BE28<>"", ABS(BE28-DU$4),"") -> 0.1387730555 | CB28: =IF(BF28<>"", ABS(BF28-DV$4),"") -> 0 | CC28: =IF(BG28<>"", ABS(BG28-DW$4),"") -> 0.1985830173 | CD28: =IF(BH28<>"", ABS(BH28-DX$4),"") -> 0.05674225573 | CE28: =IF(BI28<>"", ABS(BI28-DY$4),"") -> 0.1168760426 | CF28: =IF(BJ28<>"", ABS(BJ28-DZ$4),"") -> 0.2579297556 | CG28: =IF(BK28<>"", ABS(BK28-EA$4),"") -> 0.05031637285 | CH28: =IF(BL28<>"", ABS(BL28-EB$4),"") -> 0.06175360496 | CI28: =IF(BM28<>"", ABS(BM28-EC$4),"") -> 0.0128469522 | CJ28: =IF(BN28<>"", ABS(BN28-ED$4),"") -> 0.2842693322 | CK28: =IF(BO28<>"", ABS(BO28-EE$4),"") -> 0.1746476795 | CL28: =IF(AND(AT28<>"",AT28>DJ$19, AT28<DJ$16), AT28,"") -> 0.4162287348 | CM28: =IF(AND(AU28<>"",AU28>DK$19, AU28<DK$16), AU28,"") -> 0.06269970893 | CN28: =IF(AND(AV28<>"",AV28>DL$19, AV28<DL$16), AV28,"") -> -0.3027513065 | CO28: =IF(AND(AW28<>"",AW28>DM$19, AW28<DM$16), AW28,"") -> -0.02763707048 | CP28: =IF(AND(AX28<>"",AX28>DN$19, AX28<DN$16), AX28,"") ->  | CQ28: =IF(AND(AY28<>"",AY28>DO$19, AY28<DO$16), AY28,"") -> 0.1914547408 | CR28: =IF(AND(AZ28<>"",AZ28>DP$19, AZ28<DP$16), AZ28,"") -> 0.2482574169 | CS28: =IF(AND(BA28<>"",BA28>DQ$19, BA28<DQ$16), BA28,"") -> 0.3888599693 | CT28: =IF(AND(BB28<>"",BB28>DR$19, BB28<DR$16), BB28,"") -> 0.1947609485 | CU28: =IF(AND(BC28<>"",BC28>DS$19, BC28<DS$16), BC28,"") -> 0.05327844898 | CV28: =IF(AND(BD28<>"",BD28>DT$19, BD28<DT$16), BD28,"") -> 0.01147329274 | CW28: =IF(AND(BE28<>"",BE28>DU$19, BE28<DU$16), BE28,"") -> 0.2890220253 | CX28: =IF(AND(BF28<>"",BF28>DV$19, BF28<DV$16), BF28,"") -> 0.5800554049 | CY28: =IF(AND(BG28<>"",BG28>DW$19, BG28<DW$16), BG28,"") -> 0.5706866755 | CZ28: =IF(AND(BH28<>"",BH28>DX$19, BH28<DX$16), BH28,"") -> 0.003223646251 | DA28: =IF(AND(BI28<>"",BI28>DY$19, BI28<DY$16), BI28,"") -> 0.1269780129 | DB28: =IF(AND(BJ28<>"",BJ28>DZ$19, BJ28<DZ$16), BJ28,"") -> 0.6132690764 | DC28: =IF(AND(BK28<>"",BK28>EA$19, BK28<EA$16), BK28,"") -> 0.1234116689 | DD28: =IF(AND(BL28<>"",BL28>EB$19, BL28<EB$16), BL28,"") -> 0.06164830937 | DE28: =IF(AND(BM28<>"",BM28>EC$19, BM28<EC$16), BM28,"") -> -0.05790769407 | DF28: =IF(AND(BN28<>"",BN28>ED$19, BN28<ED$16), BN28,"") -> 0.6866738024 | DG28: =IF(AND(BO28<>"",BO28>EE$19, BO28<EE$16), BO28,"") -> 0.4714530637
A29: 3649.079308 | B29: 3810.524992 | C29: 5215.945809 | D29: 4615.723277 | E29: 3782.330845 | F29: 5222.071066 | G29: 4399.379458 | H29: 4204.376523 | I29: 3646.108002 | J29: 5877.24552 | K29: 5191.683573 | L29: 2301.482767 | M29: 1190.119125 | N29: 1536.049878 | O29: 4162.456291 | P29: 4967.082831 | Q29: 2623.562182 | R29: 3774.381293 | S29: 4699.782452 | T29: 4391.808424 | U29: 1692.367912 | V29: 2409.069811 | W29: 3782.330845 | X29: =IF(AND(A29>0, $W29>0),$W29/A29, "") -> 1.036516481 | Y29: =IF(AND(B29>0, $W29>0),$W29/B29, "") -> 0.9926009811 | Z29: =IF(AND(C29>0, $W29>0),$W29/C29, "") -> 0.7251476499 | AA29: =IF(AND(D29>0, $W29>0),$W29/D29, "") -> 0.8194448884 | AB29: =IF(AND(E29>0, $W29>0),$W29/E29, "") -> 1 | AC29: =IF(AND(F29>0, $W29>0),$W29/F29, "") -> 0.724297084 | AD29: =IF(AND(G29>0, $W29>0),$W29/G29, "") -> 0.859741898 | AE29: =IF(AND(H29>0, $W29>0),$W29/H29, "") -> 0.8996175354 | AF29: =IF(AND(I29>0, $W29>0),$W29/I29, "") -> 1.037361165 | AG29: =IF(AND(J29>0, $W29>0),$W29/J29, "") -> 0.6435550178 | AH29: =IF(AND(K29>0, $W29>0),$W29/K29, "") -> 0.7285364742 | AI29: =IF(AND(L29>0, $W29>0),$W29/L29, "") -> 1.643432182 | AJ29: =IF(AND(M29>0, $W29>0),$W29/M29, "") -> 3.178111137 | AK29: =IF(AND(N29>0, $W29>0),$W29/N29, "") -> 2.462375018 | AL29: =IF(AND(O29>0, $W29>0),$W29/O29, "") -> 0.9086776126 | AM29: =IF(AND(P29>0, $W29>0),$W29/P29, "") -> 0.7614793178 | AN29: =IF(AND(Q29>0, $W29>0),$W29/Q29, "") -> 1.441677606 | AO29: =IF(AND(R29>0, $W29>0),$W29/R29, "") -> 1.002106187 | AP29: =IF(AND(S29>0, $W29>0),$W29/S29, "") -> 0.8047884948 | AQ29: =IF(AND(T29>0, $W29>0),$W29/T29, "") -> 0.8612240062 | AR29: =IF(AND(U29>0, $W29>0),$W29/U29, "") -> 2.234934152 | AS29: =IF(AND(V29>0, $W29>0),$W29/V29, "") -> 1.570037875 | AT29: =IF(X29<>"",LOG10(X29),"") -> 0.01557621214 | AU29: =IF(Y29<>"",LOG10(Y29),"") -> -0.003225299856 | AV29: =IF(Z29<>"",LOG10(Z29),"") -> -0.1395735562 | AW29: =IF(AA29<>"",LOG10(AA29),"") -> -0.08648024949 | AX29: =IF(AB29<>"",LOG10(AB29),"") -> 0 | AY29: =IF(AC29<>"",LOG10(AC29),"") -> -0.1400832632 | AZ29: =IF(AD29<>"",LOG10(AD29),"") -> -0.06563190817 | BA29: =IF(AE29<>"",LOG10(AE29),"") -> -0.04594208784 | BB29: =IF(AF29<>"",LOG10(AF29),"") -> 0.01592998561 | BC29: =IF(AG29<>"",LOG10(AG29),"") -> -0.1914143191 | BD29: =IF(AH29<>"",LOG10(AH29),"") -> -0.1375487004 | BE29: =IF(AI29<>"",LOG10(AI29),"") -> 0.2157517871 | BF29: =IF(AJ29<>"",LOG10(AJ29),"") -> 0.5021690801 | BG29: =IF(AK29<>"",LOG10(AK29),"") -> 0.3913541963 | BH29: =IF(AL29<>"",LOG10(AL29),"") -> -0.04159017167 | BI29: =IF(AM29<>"",LOG10(AM29),"") -> -0.1183418878 | BJ29: =IF(AN29<>"",LOG10(AN29),"") -> 0.1588681524 | BK29: =IF(AO29<>"",LOG10(AO29),"") -> 0.0009137434604 | BL29: =IF(AP29<>"",LOG10(AP29),"") -> -0.09431824091 | BM29: =IF(AQ29<>"",LOG10(AQ29),"") -> -0.06488387293 | BN29: =IF(AR29<>"",LOG10(AR29),"") -> 0.349264732 | BO29: =IF(AS29<>"",LOG10(AS29),"") -> 0.1959101292 | BP29: =IF(AT29<>"", ABS(AT29-DJ$4),"") -> 0.1831783454 | BQ29: =IF(AU29<>"", ABS(AU29-DK$4),"") -> 0.07497111977 | BR29: =IF(AV29<>"", ABS(AV29-DL$4),"") -> 0.03677209541 | BS29: =IF(AW29<>"", ABS(AW29-DM$4),"") -> 0.07178517896 | BT29: =IF(AX29<>"", ABS(AX29-DN$4),"") -> 0 | BU29: =IF(AY29<>"", ABS(AY29-DO$4),"") -> 0.2268712138 | BV29: =IF(AZ29<>"", ABS(AZ29-DP$4),"") -> 0.1659506045 | BW29: =IF(BA29<>"", ABS(BA29-DQ$4),"") -> 0.3033723562 | BX29: =IF(BB29<>"", ABS(BB29-DR$4),"") -> 0.1536003594 | BY29: =IF(BC29<>"", ABS(BC29-DS$4),"") -> 0.2528032878 | BZ29: =IF(BD29<>"", ABS(BD29-DT$4),"") -> 0.1870774093 | CA29: =IF(BE29<>"", ABS(BE29-DU$4),"") -> 0.06550281729 | CB29: =IF(BF29<>"", ABS(BF29-DV$4),"") -> 0.07788632476 | CC29: =IF(BG29<>"", ABS(BG29-DW$4),"") -> 0.01925053812 | CD29: =IF(BH29<>"", ABS(BH29-DX$4),"") -> 0.1015560737 | CE29: =IF(BI29<>"", ABS(BI29-DY$4),"") -> 0.1284438581 | CF29: =IF(BJ29<>"", ABS(BJ29-DZ$4),"") -> 0.1964711683 | CG29: =IF(BK29<>"", ABS(BK29-EA$4),"") -> 0.07218155262 | CH29: =IF(BL29<>"", ABS(BL29-EB$4),"") -> 0.09421294533 | CI29: =IF(BM29<>"", ABS(BM29-EC$4),"") -> 0.01982313106 | CJ29: =IF(BN29<>"", ABS(BN29-ED$4),"") -> 0.05313973816 | CK29: =IF(BO29<>"", ABS(BO29-EE$4),"") -> 0.100895255 | CL29: =IF(AND(AT29<>"",AT29>DJ$19, AT29<DJ$16), AT29,"") -> 0.01557621214 | CM29: =IF(AND(AU29<>"",AU29>DK$19, AU29<DK$16), AU29,"") -> -0.003225299856 | CN29: =IF(AND(AV29<>"",AV29>DL$19, AV29<DL$16), AV29,"") -> -0.1395735562 | CO29: =IF(AND(AW29<>"",AW29>DM$19, AW29<DM$16), AW29,"") -> -0.08648024949 | CP29: =IF(AND(AX29<>"",AX29>DN$19, AX29<DN$16), AX29,"") ->  | CQ29: =IF(AND(AY29<>"",AY29>DO$19, AY29<DO$16), AY29,"") -> -0.1400832632 | CR29: =IF(AND(AZ29<>"",AZ29>DP$19, AZ29<DP$16), AZ29,"") -> -0.06563190817 | CS29: =IF(AND(BA29<>"",BA29>DQ$19, BA29<DQ$16), BA29,"") -> -0.04594208784 | CT29: =IF(AND(BB29<>"",BB29>DR$19, BB29<DR$16), BB29,"") -> 0.01592998561 | CU29: =IF(AND(BC29<>"",BC29>DS$19, BC29<DS$16), BC29,"") -> -0.1914143191 | CV29: =IF(AND(BD29<>"",BD29>DT$19, BD29<DT$16), BD29,"") -> -0.1375487004 | CW29: =IF(AND(BE29<>"",BE29>DU$19, BE29<DU$16), BE29,"") -> 0.2157517871 | CX29: =IF(AND(BF29<>"",BF29>DV$19, BF29<DV$16), BF29,"") -> 0.5021690801 | CY29: =IF(AND(BG29<>"",BG29>DW$19, BG29<DW$16), BG29,"") -> 0.3913541963 | CZ29: =IF(AND(BH29<>"",BH29>DX$19, BH29<DX$16), BH29,"") -> -0.04159017167 | DA29: =IF(AND(BI29<>"",BI29>DY$19, BI29<DY$16), BI29,"") -> -0.1183418878 | DB29: =IF(AND(BJ29<>"",BJ29>DZ$19, BJ29<DZ$16), BJ29,"") -> 0.1588681524 | DC29: =IF(AND(BK29<>"",BK29>EA$19, BK29<EA$16), BK29,"") -> 0.0009137434604 | DD29: =IF(AND(BL29<>"",BL29>EB$19, BL29<EB$16), BL29,"") -> -0.09431824091 | DE29: =IF(AND(BM29<>"",BM29>EC$19, BM29<EC$16), BM29,"") -> -0.06488387293 | DF29: =IF(AND(BN29<>"",BN29>ED$19, BN29<ED$16), BN29,"") -> 0.349264732 | DG29: =IF(AND(BO29<>"",BO29>EE$19, BO29<EE$16), BO29,"") -> 0.1959101292
A30: 1107.098848 | B30: 1578.194329 | C30: 5471.14337 | D30: 3390.060519 | E30: 1779.917999 | F30: 1514.348687 | G30: 1085.228029 | H30: 971.5232339 | I30: 720.3485579 | J30: 1550.13512 | K30: 1682.364273 | L30: 830.3074488 | M30: 386.8523592 | N30: 304.9890116 | O30: 1642.708677 | P30: 1738.993763 | Q30: 556.813718 | R30: 1516.6002 | S30: 2720.101802 | T30: 3180.403024 | U30: 390.4552237 | V30: 840.4004127 | W30: 1779.917999 | X30: =IF(AND(A30>0, $W30>0),$W30/A30, "") -> 1.607731777 | Y30: =IF(AND(B30>0, $W30>0),$W30/B30, "") -> 1.127819284 | Z30: =IF(AND(C30>0, $W30>0),$W30/C30, "") -> 0.3253283416 | AA30: =IF(AND(D30>0, $W30>0),$W30/D30, "") -> 0.525040184 | AB30: =IF(AND(E30>0, $W30>0),$W30/E30, "") -> 1 | AC30: =IF(AND(F30>0, $W30>0),$W30/F30, "") -> 1.175368668 | AD30: =IF(AND(G30>0, $W30>0),$W30/G30, "") -> 1.64013272 | AE30: =IF(AND(H30>0, $W30>0),$W30/H30, "") -> 1.832089997 | AF30: =IF(AND(I30>0, $W30>0),$W30/I30, "") -> 2.470912143 | AG30: =IF(AND(J30>0, $W30>0),$W30/J30, "") -> 1.148234097 | AH30: =IF(AND(K30>0, $W30>0),$W30/K30, "") -> 1.05798609 | AI30: =IF(AND(L30>0, $W30>0),$W30/L30, "") -> 2.143685452 | AJ30: =IF(AND(M30>0, $W30>0),$W30/M30, "") -> 4.601026611 | AK30: =IF(AND(N30>0, $W30>0),$W30/N30, "") -> 5.836006975 | AL30: =IF(AND(O30>0, $W30>0),$W30/O30, "") -> 1.083526266 | AM30: =IF(AND(P30>0, $W30>0),$W30/P30, "") -> 1.023533285 | AN30: =IF(AND(Q30>0, $W30>0),$W30/Q30, "") -> 3.196613053 | AO30: =IF(AND(R30>0, $W30>0),$W30/R30, "") -> 1.17362374 | AP30: =IF(AND(S30>0, $W30>0),$W30/S30, "") -> 0.6543571265 | AQ30: =IF(AND(T30>0, $W30>0),$W30/T30, "") -> 0.5596517126 | AR30: =IF(AND(U30>0, $W30>0),$W30/U30, "") -> 4.558571357 | AS30: =IF(AND(V30>0, $W30>0),$W30/V30, "") -> 2.117940415 | AT30: =IF(X30<>"",LOG10(X30),"") -> 0.2062135958 | AU30: =IF(Y30<>"",LOG10(Y30),"") -> 0.05223951626 | AV30: =IF(Z30<>"",LOG10(Z30),"") -> -0.4876781007 | AW30: =IF(AA30<>"",LOG10(AA30),"") -> -0.2798074565 | AX30: =IF(AB30<>"",LOG10(AB30),"") -> 0 | AY30: =IF(AC30<>"",LOG10(AC30),"") -> 0.07017410939 | AZ30: =IF(AD30<>"",LOG10(AD30),"") -> 0.2148789928 | BA30: =IF(AE30<>"",LOG10(AE30),"") -> 0.2629468036 | BB30: =IF(AF30<>"",LOG10(AF30),"") -> 0.3928573037 | BC30: =IF(AG30<>"",LOG10(AG30),"") -> 0.06003043904 | BD30: =IF(AH30<>"",LOG10(AH30),"") -> 0.02447995772 | BE30: =IF(AI30<>"",LOG10(AI30),"") -> 0.3311610607 | BF30: =IF(AJ30<>"",LOG10(AJ30),"") -> 0.6628547451 | BG30: =IF(AK30<>"",LOG10(AK30),"") -> 0.7661158023 | BH30: =IF(AL30<>"",LOG10(AL30),"") -> 0.03483944376 | BI30: =IF(AM30<>"",LOG10(AM30),"") -> 0.01010197029 | BJ30: =IF(AN30<>"",LOG10(AN30),"") -> 0.5046900685 | BK30: =IF(AO30<>"",LOG10(AO30),"") -> 0.06952888591 | BL30: =IF(AP30<>"",LOG10(AP30),"") -> -0.1841851634 | BM30: =IF(AQ30<>"",LOG10(AQ30),"") -> -0.2520821629 | BN30: =IF(AR30<>"",LOG10(AR30),"") -> 0.6588287574 | BO30: =IF(AS30<>"",LOG10(AS30),"") -> 0.3259137378 | BP30: =IF(AT30<>"", ABS(AT30-DJ$4),"") -> 0.007459038236 | BQ30: =IF(AU30<>"", ABS(AU30-DK$4),"") -> 0.01950630366 | BR30: =IF(AV30<>"", ABS(AV30-DL$4),"") -> 0.3113324491 | BS30: =IF(AW30<>"", ABS(AW30-DM$4),"") -> 0.265112386 | BT30: =IF(AX30<>"", ABS(AX30-DN$4),"") -> 0 | BU30: =IF(AY30<>"", ABS(AY30-DO$4),"") -> 0.01661384114 | BV30: =IF(AZ30<>"", ABS(AZ30-DP$4),"") -> 0.1145602965 | BW30: =IF(BA30<>"", ABS(BA30-DQ$4),"") -> 0.005516535262 | BX30: =IF(BB30<>"", ABS(BB30-DR$4),"") -> 0.2233269587 | BY30: =IF(BC30<>"", ABS(BC30-DS$4),"") -> 0.001358529683 | BZ30: =IF(BD30<>"", ABS(BD30-DT$4),"") -> 0.02504875114 | CA30: =IF(BE30<>"", ABS(BE30-DU$4),"") -> 0.1809120909 | CB30: =IF(BF30<>"", ABS(BF30-DV$4),"") -> 0.08279934018 | CC30: =IF(BG30<>"", ABS(BG30-DW$4),"") -> 0.3940121441 | CD30: =IF(BH30<>"", ABS(BH30-DX$4),"") -> 0.02512645822 | CE30: =IF(BI30<>"", ABS(BI30-DY$4),"") -> 0 | CF30: =IF(BJ30<>"", ABS(BJ30-DZ$4),"") -> 0.1493507477 | CG30: =IF(BK30<>"", ABS(BK30-EA$4),"") -> 0.00356641017 | CH30: =IF(BL30<>"", ABS(BL30-EB$4),"") -> 0.1840798678 | CI30: =IF(BM30<>"", ABS(BM30-EC$4),"") -> 0.2070214211 | CJ30: =IF(BN30<>"", ABS(BN30-ED$4),"") -> 0.2564242872 | CK30: =IF(BO30<>"", ABS(BO30-EE$4),"") -> 0.02910835355 | CL30: =IF(AND(AT30<>"",AT30>DJ$19, AT30<DJ$16), AT30,"") -> 0.2062135958 | CM30: =IF(AND(AU30<>"",AU30>DK$19, AU30<DK$16), AU30,"") -> 0.05223951626 | CN30: =IF(AND(AV30<>"",AV30>DL$19, AV30<DL$16), AV30,"") -> -0.4876781007 | CO30: =IF(AND(AW30<>"",AW30>DM$19, AW30<DM$16), AW30,"") -> -0.2798074565 | CP30: =IF(AND(AX30<>"",AX30>DN$19, AX30<DN$16), AX30,"") ->  | CQ30: =IF(AND(AY30<>"",AY30>DO$19, AY30<DO$16), AY30,"") -> 0.07017410939 | CR30: =IF(AND(AZ30<>"",AZ30>DP$19, AZ30<DP$16), AZ30,"") -> 0.2148789928 | CS30: =IF(AND(BA30<>"",BA30>DQ$19, BA30<DQ$16), BA30,"") -> 0.2629468036 | CT30: =IF(AND(BB30<>"",BB30>DR$19, BB30<DR$16), BB30,"") -> 0.3928573037 | CU30: =IF(AND(BC30<>"",BC30>DS$19, BC30<DS$16), BC30,"") -> 0.06003043904 | CV30: =IF(AND(BD30<>"",BD30>DT$19, BD30<DT$16), BD30,"") -> 0.02447995772 | CW30: =IF(AND(BE30<>"",BE30>DU$19, BE30<DU$16), BE30,"") -> 0.3311610607 | CX30: =IF(AND(BF30<>"",BF30>DV$19, BF30<DV$16), BF30,"") -> 0.6628547451 | CY30: =IF(AND(BG30<>"",BG30>DW$19, BG30<DW$16), BG30,"") -> 0.7661158023 | CZ30: =IF(AND(BH30<>"",BH30>DX$19, BH30<DX$16), BH30,"") -> 0.03483944376 | DA30: =IF(AND(BI30<>"",BI30>DY$19, BI30<DY$16), BI30,"") -> 0.01010197029 | DB30: =IF(AND(BJ30<>"",BJ30>DZ$19, BJ30<DZ$16), BJ30,"") -> 0.5046900685 | DC30: =IF(AND(BK30<>"",BK30>EA$19, BK30<EA$16), BK30,"") -> 0.06952888591 | DD30: =IF(AND(BL30<>"",BL30>EB$19, BL30<EB$16), BL30,"") -> -0.1841851634 | DE30: =IF(AND(BM30<>"",BM30>EC$19, BM30<EC$16), BM30,"") -> -0.2520821629 | DF30: =IF(AND(BN30<>"",BN30>ED$19, BN30<ED$16), BN30,"") -> 0.6588287574 | DG30: =IF(AND(BO30<>"",BO30>EE$19, BO30<EE$16), BO30,"") -> 0.3259137378
A31: 731.2286058 | B31: 749.926183 | C31: 1766.172166 | D31: 1287.980554 | E31: 1113.795577 | F31: 689.7074077 | G31: 1019.400175 | H31: 594.957182 | I31: 1220.628645 | J31: 1864.752845 | K31: 2321.751503 | L31: 1149.540295 | M31: 719.2374647 | N31: 1849.625334 | O31: 3839.717049 | P31: 1126.597877 | Q31: 258.7766627 | R31: 785.5702744 | S31: 1204.750522 | T31: 877.0042021 | U31: 297.7150313 | V31: 336.6101232 | W31: 1113.795577 | X31: =IF(AND(A31>0, $W31>0),$W31/A31, "") -> 1.523183815 | Y31: =IF(AND(B31>0, $W31>0),$W31/B31, "") -> 1.485206948 | Z31: =IF(AND(C31>0, $W31>0),$W31/C31, "") -> 0.630626843 | AA31: =IF(AND(D31>0, $W31>0),$W31/D31, "") -> 0.8647611751 | AB31: =IF(AND(E31>0, $W31>0),$W31/E31, "") -> 1 | AC31: =IF(AND(F31>0, $W31>0),$W31/F31, "") -> 1.614881274 | AD31: =IF(AND(G31>0, $W31>0),$W31/G31, "") -> 1.092598966 | AE31: =IF(AND(H31>0, $W31>0),$W31/H31, "") -> 1.872060059 | AF31: =IF(AND(I31>0, $W31>0),$W31/I31, "") -> 0.9124770111 | AG31: =IF(AND(J31>0, $W31>0),$W31/J31, "") -> 0.5972885793 | AH31: =IF(AND(K31>0, $W31>0),$W31/K31, "") -> 0.4797221304 | AI31: =IF(AND(L31>0, $W31>0),$W31/L31, "") -> 0.9689052073 | AJ31: =IF(AND(M31>0, $W31>0),$W31/M31, "") -> 1.548578365 | AK31: =IF(AND(N31>0, $W31>0),$W31/N31, "") -> 0.6021736169 | AL31: =IF(AND(O31>0, $W31>0),$W31/O31, "") -> 0.2900723056 | AM31: =IF(AND(P31>0, $W31>0),$W31/P31, "") -> 0.9886363181 | AN31: =IF(AND(Q31>0, $W31>0),$W31/Q31, "") -> 4.30408046 | AO31: =IF(AND(R31>0, $W31>0),$W31/R31, "") -> 1.417817875 | AP31: =IF(AND(S31>0, $W31>0),$W31/S31, "") -> 0.9245030874 | AQ31: =IF(AND(T31>0, $W31>0),$W31/T31, "") -> 1.270000274 | AR31: =IF(AND(U31>0, $W31>0),$W31/U31, "") -> 3.741146601 | AS31: =IF(AND(V31>0, $W31>0),$W31/V31, "") -> 3.308859421 | AT31: =IF(X31<>"",LOG10(X31),"") -> 0.1827523164 | AU31: =IF(Y31<>"",LOG10(Y31),"") -> 0.1717869722 | AV31: =IF(Z31<>"",LOG10(Z31),"") -> -0.2002275472 | AW31: =IF(AA31<>"",LOG10(AA31),"") -> -0.06310381697 | AX31: =IF(AB31<>"",LOG10(AB31),"") -> 0 | AY31: =IF(AC31<>"",LOG10(AC31),"") -> 0.2081405986 | AZ31: =IF(AD31<>"",LOG10(AD31),"") -> 0.03846078525 | BA31: =IF(AE31<>"",LOG10(AE31),"") -> 0.2723197776 | BB31: =IF(AF31<>"",LOG10(AF31),"") -> -0.03977806831 | BC31: =IF(AG31<>"",LOG10(AG31),"") -> -0.2238157893 | BD31: =IF(AH31<>"",LOG10(AH31),"") -> -0.3190102463 | BE31: =IF(AI31<>"",LOG10(AI31),"") -> -0.01371871003 | BF31: =IF(AJ31<>"",LOG10(AJ31),"") -> 0.1899331876 | BG31: =IF(AK31<>"",LOG10(AK31),"") -> -0.2202782762 | BH31: =IF(AL31<>"",LOG10(AL31),"") -> -0.5374937331 | BI31: =IF(AM31<>"",LOG10(AM31),"") -> -0.004963439532 | BJ31: =IF(AN31<>"",LOG10(AN31),"") -> 0.6338803814 | BK31: =IF(AO31<>"",LOG10(AO31),"") -> 0.1516204475 | BL31: =IF(AP31<>"",LOG10(AP31),"") -> -0.03409163415 | BM31: =IF(AQ31<>"",LOG10(AQ31),"") -> 0.1038038148 | BN31: =IF(AR31<>"",LOG10(AR31),"") -> 0.5730047268 | BO31: =IF(AS31<>"",LOG10(AS31),"") -> 0.5196783162 | BP31: =IF(AT31<>"", ABS(AT31-DJ$4),"") -> 0.01600224117 | BQ31: =IF(AU31<>"", ABS(AU31-DK$4),"") -> 0.1000411523 | BR31: =IF(AV31<>"", ABS(AV31-DL$4),"") -> 0.02388189562 | BS31: =IF(AW31<>"", ABS(AW31-DM$4),"") -> 0.04840874644 | BT31: =IF(AX31<>"", ABS(AX31-DN$4),"") -> 0 | BU31: =IF(AY31<>"", ABS(AY31-DO$4),"") -> 0.1213526481 | BV31: =IF(AZ31<>"", ABS(AZ31-DP$4),"") -> 0.06185791108 | BW31: =IF(BA31<>"", ABS(BA31-DQ$4),"") -> 0.01488950924 | BX31: =IF(BB31<>"", ABS(BB31-DR$4),"") -> 0.2093084134 | BY31: =IF(BC31<>"", ABS(BC31-DS$4),"") -> 0.285204758 | BZ31: =IF(BD31<>"", ABS(BD31-DT$4),"") -> 0.3685389552 | CA31: =IF(BE31<>"", ABS(BE31-DU$4),"") -> 0.1639676798 | CB31: =IF(BF31<>"", ABS(BF31-DV$4),"") -> 0.3901222173 | CC31: =IF(BG31<>"", ABS(BG31-DW$4),"") -> 0.5923819344 | CD31: =IF(BH31<>"", ABS(BH31-DX$4),"") -> 0.597459635 | CE31: =IF(BI31<>"", ABS(BI31-DY$4),"") -> 0.01506540983 | CF31: =IF(BJ31<>"", ABS(BJ31-DZ$4),"") -> 0.2785410606 | CG31: =IF(BK31<>"", ABS(BK31-EA$4),"") -> 0.07852515137 | CH31: =IF(BL31<>"", ABS(BL31-EB$4),"") -> 0.03398633857 | CI31: =IF(BM31<>"", ABS(BM31-EC$4),"") -> 0.1488645567 | CJ31: =IF(BN31<>"", ABS(BN31-ED$4),"") -> 0.1706002566 | CK31: =IF(BO31<>"", ABS(BO31-EE$4),"") -> 0.222872932 | CL31: =IF(AND(AT31<>"",AT31>DJ$19, AT31<DJ$16), AT31,"") -> 0.1827523164 | CM31: =IF(AND(AU31<>"",AU31>DK$19, AU31<DK$16), AU31,"") -> 0.1717869722 | CN31: =IF(AND(AV31<>"",AV31>DL$19, AV31<DL$16), AV31,"") -> -0.2002275472 | CO31: =IF(AND(AW31<>"",AW31>DM$19, AW31<DM$16), AW31,"") -> -0.06310381697 | CP31: =IF(AND(AX31<>"",AX31>DN$19, AX31<DN$16), AX31,"") ->  | CQ31: =IF(AND(AY31<>"",AY31>DO$19, AY31<DO$16), AY31,"") -> 0.2081405986 | CR31: =IF(AND(AZ31<>"",AZ31>DP$19, AZ31<DP$16), AZ31,"") -> 0.03846078525 | CS31: =IF(AND(BA31<>"",BA31>DQ$19, BA31<DQ$16), BA31,"") -> 0.2723197776 | CT31: =IF(AND(BB31<>"",BB31>DR$19, BB31<DR$16), BB31,"") -> -0.03977806831 | CU31: =IF(AND(BC31<>"",BC31>DS$19, BC31<DS$16), BC31,"") -> -0.2238157893 | CV31: =IF(AND(BD31<>"",BD31>DT$19, BD31<DT$16), BD31,"") -> -0.3190102463 | CW31: =IF(AND(BE31<>"",BE31>DU$19, BE31<DU$16), BE31,"") -> -0.01371871003 | CX31: =IF(AND(BF31<>"",BF31>DV$19, BF31<DV$16), BF31,"") -> 0.1899331876 | CY31: =IF(AND(BG31<>"",BG31>DW$19, BG31<DW$16), BG31,"") -> -0.2202782762 | CZ31: =IF(AND(BH31<>"",BH31>DX$19, BH31<DX$16), BH31,"") -> -0.5374937331 | DA31: =IF(AND(BI31<>"",BI31>DY$19, BI31<DY$16), BI31,"") -> -0.004963439532 | DB31: =IF(AND(BJ31<>"",BJ31>DZ$19, BJ31<DZ$16), BJ31,"") -> 0.6338803814 | DC31: =IF(AND(BK31<>"",BK31>EA$19, BK31<EA$16), BK31,"") -> 0.1516204475 | DD31: =IF(AND(BL31<>"",BL31>EB$19, BL31<EB$16), BL31,"") -> -0.03409163415 | DE31: =IF(AND(BM31<>"",BM31>EC$19, BM31<EC$16), BM31,"") -> 0.1038038148 | DF31: =IF(AND(BN31<>"",BN31>ED$19, BN31<ED$16), BN31,"") -> 0.5730047268 | DG31: =IF(AND(BO31<>"",BO31>EE$19, BO31<EE$16), BO31,"") -> 0.5196783162
A32: 893.7944373 | B32: 1955.06433 | C32: 4019.316393 | D32: 2131.266335 | E32: 2109.351892 | F32: 1431.728887 | G32: 1258.892399 | H32: 986.5906251 | I32: 1080.800918 | J32: 1416.762949 | K32: 1447.515393 | L32: 941.3871692 | M32: 491.8505057 | N32: 529.025983 | O32: 1314.7609 | P32: 1625.753812 | Q32: 1029.031343 | R32: 1783.785158 | S32: 1950.24204 | T32: 2649.211766 | U32: 525.4330685 | V32: 877.1397695 | W32: 2109.351892 | X32: =IF(AND(A32>0, $W32>0),$W32/A32, "") -> 2.359996666 | Y32: =IF(AND(B32>0, $W32>0),$W32/B32, "") -> 1.078916872 | Z32: =IF(AND(C32>0, $W32>0),$W32/C32, "") -> 0.5248036447 | AA32: =IF(AND(D32>0, $W32>0),$W32/D32, "") -> 0.9897176425 | AB32: =IF(AND(E32>0, $W32>0),$W32/E32, "") -> 1 | AC32: =IF(AND(F32>0, $W32>0),$W32/F32, "") -> 1.473290028 | AD32: =IF(AND(G32>0, $W32>0),$W32/G32, "") -> 1.675561704 | AE32: =IF(AND(H32>0, $W32>0),$W32/H32, "") -> 2.138021423 | AF32: =IF(AND(I32>0, $W32>0),$W32/I32, "") -> 1.951656273 | AG32: =IF(AND(J32>0, $W32>0),$W32/J32, "") -> 1.488853088 | AH32: =IF(AND(K32>0, $W32>0),$W32/K32, "") -> 1.457222425 | AI32: =IF(AND(L32>0, $W32>0),$W32/L32, "") -> 2.240684769 | AJ32: =IF(AND(M32>0, $W32>0),$W32/M32, "") -> 4.288603687 | AK32: =IF(AND(N32>0, $W32>0),$W32/N32, "") -> 3.987236847 | AL32: =IF(AND(O32>0, $W32>0),$W32/O32, "") -> 1.604361593 | AM32: =IF(AND(P32>0, $W32>0),$W32/P32, "") -> 1.297460832 | AN32: =IF(AND(Q32>0, $W32>0),$W32/Q32, "") -> 2.049842219 | AO32: =IF(AND(R32>0, $W32>0),$W32/R32, "") -> 1.182514544 | AP32: =IF(AND(S32>0, $W32>0),$W32/S32, "") -> 1.08158467 | AQ32: =IF(AND(T32>0, $W32>0),$W32/T32, "") -> 0.7962186787 | AR32: =IF(AND(U32>0, $W32>0),$W32/U32, "") -> 4.014501596 | AS32: =IF(AND(V32>0, $W32>0),$W32/V32, "") -> 2.404807039 | AT32: =IF(X32<>"",LOG10(X32),"") -> 0.3729113895 | AU32: =IF(Y32<>"",LOG10(Y32),"") -> 0.03298798471 | AV32: =IF(Z32<>"",LOG10(Z32),"") -> -0.2800031575 | AW32: =IF(AA32<>"",LOG10(AA32),"") -> -0.004488688024 | AX32: =IF(AB32<>"",LOG10(AB32),"") -> 0 | AY32: =IF(AC32<>"",LOG10(AC32),"") -> 0.1682882493 | AZ32: =IF(AD32<>"",LOG10(AD32),"") -> 0.2241604257 | BA32: =IF(AE32<>"",LOG10(AE32),"") -> 0.3300120525 | BB32: =IF(AF32<>"",LOG10(AF32),"") -> 0.2904033318 | BC32: =IF(AG32<>"",LOG10(AG32),"") -> 0.1728518461 | BD32: =IF(AH32<>"",LOG10(AH32),"") -> 0.1635258461 | BE32: =IF(AI32<>"",LOG10(AI32),"") -> 0.3503807622 | BF32: =IF(AJ32<>"",LOG10(AJ32),"") -> 0.6323159147 | BG32: =IF(AK32<>"",LOG10(AK32),"") -> 0.6006720341 | BH32: =IF(AL32<>"",LOG10(AL32),"") -> 0.2053022567 | BI32: =IF(AM32<>"",LOG10(AM32),"") -> 0.113094256 | BJ32: =IF(AN32<>"",LOG10(AN32),"") -> 0.3117204337 | BK32: =IF(AO32<>"",LOG10(AO32),"") -> 0.07280649078 | BL32: =IF(AP32<>"",LOG10(AP32),"") -> 0.03406052295 | BM32: =IF(AQ32<>"",LOG10(AQ32),"") -> -0.0989676384 | BN32: =IF(AR32<>"",LOG10(AR32),"") -> 0.6036316349 | BO32: =IF(AS32<>"",LOG10(AS32),"") -> 0.3810802345 | BP32: =IF(AT32<>"", ABS(AT32-DJ$4),"") -> 0.174156832 | BQ32: =IF(AU32<>"", ABS(AU32-DK$4),"") -> 0.03875783521 | BR32: =IF(AV32<>"", ABS(AV32-DL$4),"") -> 0.1036575059 | BS32: =IF(AW32<>"", ABS(AW32-DM$4),"") -> 0.01020638251 | BT32: =IF(AX32<>"", ABS(AX32-DN$4),"") -> 0 | BU32: =IF(AY32<>"", ABS(AY32-DO$4),"") -> 0.08150029878 | BV32: =IF(AZ32<>"", ABS(AZ32-DP$4),"") -> 0.1238417293 | BW32: =IF(BA32<>"", ABS(BA32-DQ$4),"") -> 0.07258178421 | BX32: =IF(BB32<>"", ABS(BB32-DR$4),"") -> 0.1208729868 | BY32: =IF(BC32<>"", ABS(BC32-DS$4),"") -> 0.1114628773 | BZ32: =IF(BD32<>"", ABS(BD32-DT$4),"") -> 0.1139971372 | CA32: =IF(BE32<>"", ABS(BE32-DU$4),"") -> 0.2001317923 | CB32: =IF(BF32<>"", ABS(BF32-DV$4),"") -> 0.05226050976 | CC32: =IF(BG32<>"", ABS(BG32-DW$4),"") -> 0.2285683758 | CD32: =IF(BH32<>"", ABS(BH32-DX$4),"") -> 0.1453363547 | CE32: =IF(BI32<>"", ABS(BI32-DY$4),"") -> 0.1029922857 | CF32: =IF(BJ32<>"", ABS(BJ32-DZ$4),"") -> 0.04361888703 | CG32: =IF(BK32<>"", ABS(BK32-EA$4),"") -> 0.0002888053012 | CH32: =IF(BL32<>"", ABS(BL32-EB$4),"") -> 0.03416581854 | CI32: =IF(BM32<>"", ABS(BM32-EC$4),"") -> 0.05390689653 | CJ32: =IF(BN32<>"", ABS(BN32-ED$4),"") -> 0.2012271647 | CK32: =IF(BO32<>"", ABS(BO32-EE$4),"") -> 0.08427485027 | CL32: =IF(AND(AT32<>"",AT32>DJ$19, AT32<DJ$16), AT32,"") -> 0.3729113895 | CM32: =IF(AND(AU32<>"",AU32>DK$19, AU32<DK$16), AU32,"") -> 0.03298798471 | CN32: =IF(AND(AV32<>"",AV32>DL$19, AV32<DL$16), AV32,"") -> -0.2800031575 | CO32: =IF(AND(AW32<>"",AW32>DM$19, AW32<DM$16), AW32,"") -> -0.004488688024 | CP32: =IF(AND(AX32<>"",AX32>DN$19, AX32<DN$16), AX32,"") ->  | CQ32: =IF(AND(AY32<>"",AY32>DO$19, AY32<DO$16), AY32,"") -> 0.1682882493 | CR32: =IF(AND(AZ32<>"",AZ32>DP$19, AZ32<DP$16), AZ32,"") -> 0.2241604257 | CS32: =IF(AND(BA32<>"",BA32>DQ$19, BA32<DQ$16), BA32,"") -> 0.3300120525 | CT32: =IF(AND(BB32<>"",BB32>DR$19, BB32<DR$16), BB32,"") -> 0.2904033318 | CU32: =IF(AND(BC32<>"",BC32>DS$19, BC32<DS$16), BC32,"") -> 0.1728518461 | CV32: =IF(AND(BD32<>"",BD32>DT$19, BD32<DT$16), BD32,"") -> 0.1635258461 | CW32: =IF(AND(BE32<>"",BE32>DU$19, BE32<DU$16), BE32,"") -> 0.3503807622 | CX32: =IF(AND(BF32<>"",BF32>DV$19, BF32<DV$16), BF32,"") -> 0.6323159147 | CY32: =IF(AND(BG32<>"",BG32>DW$19, BG32<DW$16), BG32,"") -> 0.6006720341 | CZ32: =IF(AND(BH32<>"",BH32>DX$19, BH32<DX$16), BH32,"") -> 0.2053022567 | DA32: =IF(AND(BI32<>"",BI32>DY$19, BI32<DY$16), BI32,"") -> 0.113094256 | DB32: =IF(AND(BJ32<>"",BJ32>DZ$19, BJ32<DZ$16), BJ32,"") -> 0.3117204337 | DC32: =IF(AND(BK32<>"",BK32>EA$19, BK32<EA$16), BK32,"") -> 0.07280649078 | DD32: =IF(AND(BL32<>"",BL32>EB$19, BL32<EB$16), BL32,"") -> 0.03406052295 | DE32: =IF(AND(BM32<>"",BM32>EC$19, BM32<EC$16), BM32,"") -> -0.0989676384 | DF32: =IF(AND(BN32<>"",BN32>ED$19, BN32<ED$16), BN32,"") -> 0.6036316349 | DG32: =IF(AND(BO32<>"",BO32>EE$19, BO32<EE$16), BO32,"") -> 0.3810802345
A33: 685.5771114 | B33: 1061.047629 | C33: 2903.24491 | D33: 1520.498238 | E33: 1025.410766 | F33: 698.1979164 | G33: 640.5486262 | H33: 538.1853159 | I33: 659.560856 | J33: 916.7776773 | K33: 1004.750548 | L33: 481.8344506 | M33: 499.9932217 | N33: 300.5513509 | O33: 1115.00872 | P33: 894.7793242 | Q33: 435.7097737 | R33: 1078.816072 | S33: 1277.942533 | T33: 1282.801329 | U33: 190.5152035 | V33: 398.0077199 | W33: 1025.410766 | X33: =IF(AND(A33>0, $W33>0),$W33/A33, "") -> 1.495689907 | Y33: =IF(AND(B33>0, $W33>0),$W33/B33, "") -> 0.9664135128 | Z33: =IF(AND(C33>0, $W33>0),$W33/C33, "") -> 0.3531947177 | AA33: =IF(AND(D33>0, $W33>0),$W33/D33, "") -> 0.6743912889 | AB33: =IF(AND(E33>0, $W33>0),$W33/E33, "") -> 1 | AC33: =IF(AND(F33>0, $W33>0),$W33/F33, "") -> 1.468653432 | AD33: =IF(AND(G33>0, $W33>0),$W33/G33, "") -> 1.600832043 | AE33: =IF(AND(H33>0, $W33>0),$W33/H33, "") -> 1.905311676 | AF33: =IF(AND(I33>0, $W33>0),$W33/I33, "") -> 1.554687118 | AG33: =IF(AND(J33>0, $W33>0),$W33/J33, "") -> 1.118494474 | AH33: =IF(AND(K33>0, $W33>0),$W33/K33, "") -> 1.020562535 | AI33: =IF(AND(L33>0, $W33>0),$W33/L33, "") -> 2.128139167 | AJ33: =IF(AND(M33>0, $W33>0),$W33/M33, "") -> 2.050849335 | AK33: =IF(AND(N33>0, $W33>0),$W33/N33, "") -> 3.41176562 | AL33: =IF(AND(O33>0, $W33>0),$W33/O33, "") -> 0.9196437194 | AM33: =IF(AND(P33>0, $W33>0),$W33/P33, "") -> 1.145992915 | AN33: =IF(AND(Q33>0, $W33>0),$W33/Q33, "") -> 2.353426129 | AO33: =IF(AND(R33>0, $W33>0),$W33/R33, "") -> 0.9504963754 | AP33: =IF(AND(S33>0, $W33>0),$W33/S33, "") -> 0.802391923 | AQ33: =IF(AND(T33>0, $W33>0),$W33/T33, "") -> 0.7993527471 | AR33: =IF(AND(U33>0, $W33>0),$W33/U33, "") -> 5.382304128 | AS33: =IF(AND(V33>0, $W33>0),$W33/V33, "") -> 2.576358988 | AT33: =IF(X33<>"",LOG10(X33),"") -> 0.1748415631 | AU33: =IF(Y33<>"",LOG10(Y33),"") -> -0.01483700618 | AV33: =IF(Z33<>"",LOG10(Z33),"") -> -0.4519858003 | AW33: =IF(AA33<>"",LOG10(AA33),"") -> -0.1710880481 | AX33: =IF(AB33<>"",LOG10(AB33),"") -> 0 | AY33: =IF(AC33<>"",LOG10(AC33),"") -> 0.1669193246 | AZ33: =IF(AD33<>"",LOG10(AD33),"") -> 0.2043457689 | BA33: =IF(AE33<>"",LOG10(AE33),"") -> 0.2799660289 | BB33: =IF(AF33<>"",LOG10(AF33),"") -> 0.191643 | BC33: =IF(AG33<>"",LOG10(AG33),"") -> 0.04863384292 | BD33: =IF(AH33<>"",LOG10(AH33),"") -> 0.008839621229 | BE33: =IF(AI33<>"",LOG10(AI33),"") -> 0.3280000247 | BF33: =IF(AJ33<>"",LOG10(AJ33),"") -> 0.3119337562 | BG33: =IF(AK33<>"",LOG10(AK33),"") -> 0.5329791886 | BH33: =IF(AL33<>"",LOG10(AL33),"") -> -0.03638039076 | BI33: =IF(AM33<>"",LOG10(AM33),"") -> 0.05918193276 | BJ33: =IF(AN33<>"",LOG10(AN33),"") -> 0.371700571 | BK33: =IF(AO33<>"",LOG10(AO33),"") -> -0.0220495349 | BL33: =IF(AP33<>"",LOG10(AP33),"") -> -0.09561345162 | BM33: =IF(AQ33<>"",LOG10(AQ33),"") -> -0.09726152816 | BN33: =IF(AR33<>"",LOG10(AR33),"") -> 0.730968234 | BO33: =IF(AS33<>"",LOG10(AS33),"") -> 0.4110063771 | BP33: =IF(AT33<>"", ABS(AT33-DJ$4),"") -> 0.02391299441 | BQ33: =IF(AU33<>"", ABS(AU33-DK$4),"") -> 0.08658282609 | BR33: =IF(AV33<>"", ABS(AV33-DL$4),"") -> 0.2756401487 | BS33: =IF(AW33<>"", ABS(AW33-DM$4),"") -> 0.1563929776 | BT33: =IF(AX33<>"", ABS(AX33-DN$4),"") -> 0 | BU33: =IF(AY33<>"", ABS(AY33-DO$4),"") -> 0.08013137403 | BV33: =IF(AZ33<>"", ABS(AZ33-DP$4),"") -> 0.1040270725 | BW33: =IF(BA33<>"", ABS(BA33-DQ$4),"") -> 0.02253576054 | BX33: =IF(BB33<>"", ABS(BB33-DR$4),"") -> 0.02211265494 | BY33: =IF(BC33<>"", ABS(BC33-DS$4),"") -> 0.0127551258 | BZ33: =IF(BD33<>"", ABS(BD33-DT$4),"") -> 0.04068908763 | CA33: =IF(BE33<>"", ABS(BE33-DU$4),"") -> 0.1777510549 | CB33: =IF(BF33<>"", ABS(BF33-DV$4),"") -> 0.2681216487 | CC33: =IF(BG33<>"", ABS(BG33-DW$4),"") -> 0.1608755304 | CD33: =IF(BH33<>"", ABS(BH33-DX$4),"") -> 0.09634629274 | CE33: =IF(BI33<>"", ABS(BI33-DY$4),"") -> 0.04907996247 | CF33: =IF(BJ33<>"", ABS(BJ33-DZ$4),"") -> 0.01636125025 | CG33: =IF(BK33<>"", ABS(BK33-EA$4),"") -> 0.09514483098 | CH33: =IF(BL33<>"", ABS(BL33-EB$4),"") -> 0.09550815604 | CI33: =IF(BM33<>"", ABS(BM33-EC$4),"") -> 0.05220078629 | CJ33: =IF(BN33<>"", ABS(BN33-ED$4),"") -> 0.3285637638 | CK33: =IF(BO33<>"", ABS(BO33-EE$4),"") -> 0.1142009929 | CL33: =IF(AND(AT33<>"",AT33>DJ$19, AT33<DJ$16), AT33,"") -> 0.1748415631 | CM33: =IF(AND(AU33<>"",AU33>DK$19, AU33<DK$16), AU33,"") -> -0.01483700618 | CN33: =IF(AND(AV33<>"",AV33>DL$19, AV33<DL$16), AV33,"") -> -0.4519858003 | CO33: =IF(AND(AW33<>"",AW33>DM$19, AW33<DM$16), AW33,"") -> -0.1710880481 | CP33: =IF(AND(AX33<>"",AX33>DN$19, AX33<DN$16), AX33,"") ->  | CQ33: =IF(AND(AY33<>"",AY33>DO$19, AY33<DO$16), AY33,"") -> 0.1669193246 | CR33: =IF(AND(AZ33<>"",AZ33>DP$19, AZ33<DP$16), AZ33,"") -> 0.2043457689 | CS33: =IF(AND(BA33<>"",BA33>DQ$19, BA33<DQ$16), BA33,"") -> 0.2799660289 | CT33: =IF(AND(BB33<>"",BB33>DR$19, BB33<DR$16), BB33,"") -> 0.191643 | CU33: =IF(AND(BC33<>"",BC33>DS$19, BC33<DS$16), BC33,"") -> 0.04863384292 | CV33: =IF(AND(BD33<>"",BD33>DT$19, BD33<DT$16), BD33,"") -> 0.008839621229 | CW33: =IF(AND(BE33<>"",BE33>DU$19, BE33<DU$16), BE33,"") -> 0.3280000247 | CX33: =IF(AND(BF33<>"",BF33>DV$19, BF33<DV$16), BF33,"") -> 0.3119337562 | CY33: =IF(AND(BG33<>"",BG33>DW$19, BG33<DW$16), BG33,"") -> 0.5329791886 | CZ33: =IF(AND(BH33<>"",BH33>DX$19, BH33<DX$16), BH33,"") -> -0.03638039076 | DA33: =IF(AND(BI33<>"",BI33>DY$19, BI33<DY$16), BI33,"") -> 0.05918193276 | DB33: =IF(AND(BJ33<>"",BJ33>DZ$19, BJ33<DZ$16), BJ33,"") -> 0.371700571 | DC33: =IF(AND(BK33<>"",BK33>EA$19, BK33<EA$16), BK33,"") -> -0.0220495349 | DD33: =IF(AND(BL33<>"",BL33>EB$19, BL33<EB$16), BL33,"") -> -0.09561345162 | DE33: =IF(AND(BM33<>"",BM33>EC$19, BM33<EC$16), BM33,"") -> -0.09726152816 | DF33: =IF(AND(BN33<>"",BN33>ED$19, BN33<ED$16), BN33,"") -> 0.730968234 | DG33: =IF(AND(BO33<>"",BO33>EE$19, BO33<EE$16), BO33,"") -> 0.4110063771
A34: 910.2602916 | B34: 1308.946582 | C34: 2489.221965 | D34: 1619.40745 | E34: 1397.347832 | F34: 1226.284502 | G34: 1108.639057 | H34: 873.6524497 | I34: 1377.257214 | J34: 1498.541429 | K34: 1364.894424 | L34: 960.724493 | M34: 111.3039786 | N34: 930.8749928 | O34: 1306.320705 | P34: 1364.316206 | Q34: 625.6183918 | R34: 929.9001962 | S34: 1826.927835 | T34: 1985.811568 | U34: 298.2494185 | V34: 624.1009292 | W34: 1397.347832 | X34: =IF(AND(A34>0, $W34>0),$W34/A34, "") -> 1.535107974 | Y34: =IF(AND(B34>0, $W34>0),$W34/B34, "") -> 1.067536179 | Z34: =IF(AND(C34>0, $W34>0),$W34/C34, "") -> 0.5613592727 | AA34: =IF(AND(D34>0, $W34>0),$W34/D34, "") -> 0.8628760057 | AB34: =IF(AND(E34>0, $W34>0),$W34/E34, "") -> 1 | AC34: =IF(AND(F34>0, $W34>0),$W34/F34, "") -> 1.139497261 | AD34: =IF(AND(G34>0, $W34>0),$W34/G34, "") -> 1.260417287 | AE34: =IF(AND(H34>0, $W34>0),$W34/H34, "") -> 1.599432168 | AF34: =IF(AND(I34>0, $W34>0),$W34/I34, "") -> 1.014587412 | AG34: =IF(AND(J34>0, $W34>0),$W34/J34, "") -> 0.9324719391 | AH34: =IF(AND(K34>0, $W34>0),$W34/K34, "") -> 1.023777229 | AI34: =IF(AND(L34>0, $W34>0),$W34/L34, "") -> 1.454472996 | AJ34: =IF(AND(M34>0, $W34>0),$W34/M34, "") -> 12.55433857 | AK34: =IF(AND(N34>0, $W34>0),$W34/N34, "") -> 1.501112225 | AL34: =IF(AND(O34>0, $W34>0),$W34/O34, "") -> 1.069682067 | AM34: =IF(AND(P34>0, $W34>0),$W34/P34, "") -> 1.024211122 | AN34: =IF(AND(Q34>0, $W34>0),$W34/Q34, "") -> 2.2335466 | AO34: =IF(AND(R34>0, $W34>0),$W34/R34, "") -> 1.502685812 | AP34: =IF(AND(S34>0, $W34>0),$W34/S34, "") -> 0.7648620842 | AQ34: =IF(AND(T34>0, $W34>0),$W34/T34, "") -> 0.7036658738 | AR34: =IF(AND(U34>0, $W34>0),$W34/U34, "") -> 4.685165318 | AS34: =IF(AND(V34>0, $W34>0),$W34/V34, "") -> 2.238977329 | AT34: =IF(X34<>"",LOG10(X34),"") -> 0.1861389275 | AU34: =IF(Y34<>"",LOG10(Y34),"") -> 0.02838260208 | AV34: =IF(Z34<>"",LOG10(Z34),"") -> -0.2507590992 | AW34: =IF(AA34<>"",LOG10(AA34),"") -> -0.06405160741 | AX34: =IF(AB34<>"",LOG10(AB34),"") -> 0 | AY34: =IF(AC34<>"",LOG10(AC34),"") -> 0.05671328572 | AZ34: =IF(AD34<>"",LOG10(AD34),"") -> 0.1005143509 | BA34: =IF(AE34<>"",LOG10(AE34),"") -> 0.2039658264 | BB34: =IF(AF34<>"",LOG10(AF34),"") -> 0.006289469626 | BC34: =IF(AG34<>"",LOG10(AG34),"") -> -0.03036422857 | BD34: =IF(AH34<>"",LOG10(AH34),"") -> 0.01020546588 | BE34: =IF(AI34<>"",LOG10(AI34),"") -> 0.1627056625 | BF34: =IF(AJ34<>"",LOG10(AJ34),"") -> 1.098793837 | BG34: =IF(AK34<>"",LOG10(AK34),"") -> 0.1764131619 | BH34: =IF(AL34<>"",LOG10(AL34),"") -> 0.02925471487 | BI34: =IF(AM34<>"",LOG10(AM34),"") -> 0.01038948751 | BJ34: =IF(AN34<>"",LOG10(AN34),"") -> 0.3489950179 | BK34: =IF(AO34<>"",LOG10(AO34),"") -> 0.176868186 | BL34: =IF(AP34<>"",LOG10(AP34),"") -> -0.1164168674 | BM34: =IF(AQ34<>"",LOG10(AQ34),"") -> -0.1526335108 | BN34: =IF(AR34<>"",LOG10(AR34),"") -> 0.6707249198 | BO34: =IF(AS34<>"",LOG10(AS34),"") -> 0.3500496962 | BP34: =IF(AT34<>"", ABS(AT34-DJ$4),"") -> 0.01261562998 | BQ34: =IF(AU34<>"", ABS(AU34-DK$4),"") -> 0.04336321783 | BR34: =IF(AV34<>"", ABS(AV34-DL$4),"") -> 0.07441344756 | BS34: =IF(AW34<>"", ABS(AW34-DM$4),"") -> 0.04935653688 | BT34: =IF(AX34<>"", ABS(AX34-DN$4),"") -> 0 | BU34: =IF(AY34<>"", ABS(AY34-DO$4),"") -> 0.03007466482 | BV34: =IF(AZ34<>"", ABS(AZ34-DP$4),"") -> 0.0001956545995 | BW34: =IF(BA34<>"", ABS(BA34-DQ$4),"") -> 0.05346444196 | BX34: =IF(BB34<>"", ABS(BB34-DR$4),"") -> 0.1632408754 | BY34: =IF(BC34<>"", ABS(BC34-DS$4),"") -> 0.09175319729 | BZ34: =IF(BD34<>"", ABS(BD34-DT$4),"") -> 0.03932324298 | CA34: =IF(BE34<>"", ABS(BE34-DU$4),"") -> 0.01245669268 | CB34: =IF(BF34<>"", ABS(BF34-DV$4),"") -> 0.5187384319 | CC34: =IF(BG34<>"", ABS(BG34-DW$4),"") -> 0.1956904963 | CD34: =IF(BH34<>"", ABS(BH34-DX$4),"") -> 0.03071118711 | CE34: =IF(BI34<>"", ABS(BI34-DY$4),"") -> 0.0002875172173 | CF34: =IF(BJ34<>"", ABS(BJ34-DZ$4),"") -> 0.006344302872 | CG34: =IF(BK34<>"", ABS(BK34-EA$4),"") -> 0.10377289 | CH34: =IF(BL34<>"", ABS(BL34-EB$4),"") -> 0.1163115719 | CI34: =IF(BM34<>"", ABS(BM34-EC$4),"") -> 0.1075727689 | CJ34: =IF(BN34<>"", ABS(BN34-ED$4),"") -> 0.2683204496 | CK34: =IF(BO34<>"", ABS(BO34-EE$4),"") -> 0.05324431195 | CL34: =IF(AND(AT34<>"",AT34>DJ$19, AT34<DJ$16), AT34,"") -> 0.1861389275 | CM34: =IF(AND(AU34<>"",AU34>DK$19, AU34<DK$16), AU34,"") -> 0.02838260208 | CN34: =IF(AND(AV34<>"",AV34>DL$19, AV34<DL$16), AV34,"") -> -0.2507590992 | CO34: =IF(AND(AW34<>"",AW34>DM$19, AW34<DM$16), AW34,"") -> -0.06405160741 | CP34: =IF(AND(AX34<>"",AX34>DN$19, AX34<DN$16), AX34,"") ->  | CQ34: =IF(AND(AY34<>"",AY34>DO$19, AY34<DO$16), AY34,"") -> 0.05671328572 | CR34: =IF(AND(AZ34<>"",AZ34>DP$19, AZ34<DP$16), AZ34,"") -> 0.1005143509 | CS34: =IF(AND(BA34<>"",BA34>DQ$19, BA34<DQ$16), BA34,"") -> 0.2039658264 | CT34: =IF(AND(BB34<>"",BB34>DR$19, BB34<DR$16), BB34,"") -> 0.006289469626 | CU34: =IF(AND(BC34<>"",BC34>DS$19, BC34<DS$16), BC34,"") -> -0.03036422857 | CV34: =IF(AND(BD34<>"",BD34>DT$19, BD34<DT$16), BD34,"") -> 0.01020546588 | CW34: =IF(AND(BE34<>"",BE34>DU$19, BE34<DU$16), BE34,"") -> 0.1627056625 | CX34: =IF(AND(BF34<>"",BF34>DV$19, BF34<DV$16), BF34,"") -> 1.098793837 | CY34: =IF(AND(BG34<>"",BG34>DW$19, BG34<DW$16), BG34,"") -> 0.1764131619 | CZ34: =IF(AND(BH34<>"",BH34>DX$19, BH34<DX$16), BH34,"") -> 0.02925471487 | DA34: =IF(AND(BI34<>"",BI34>DY$19, BI34<DY$16), BI34,"") -> 0.01038948751 | DB34: =IF(AND(BJ34<>"",BJ34>DZ$19, BJ34<DZ$16), BJ34,"") -> 0.3489950179 | DC34: =IF(AND(BK34<>"",BK34>EA$19, BK34<EA$16), BK34,"") -> 0.176868186 | DD34: =IF(AND(BL34<>"",BL34>EB$19, BL34<EB$16), BL34,"") -> -0.1164168674 | DE34: =IF(AND(BM34<>"",BM34>EC$19, BM34<EC$16), BM34,"") -> -0.1526335108 | DF34: =IF(AND(BN34<>"",BN34>ED$19, BN34<ED$16), BN34,"") -> 0.6707249198 | DG34: =IF(AND(BO34<>"",BO34>EE$19, BO34<EE$16), BO34,"") -> 0.3500496962
A35: 799.6102879 | B35: 1221.633581 | C35: 682.2322242 | D35: 719.9420563 | E35: 1036.30636 | F35: 736.1181092 | G35: 998.667746 | H35: 693.9849232 | I35: 970.4254278 | J35: 737.9820402 | K35: 609.4351422 | L35: 1044.951157 | M35: 564.312054 | N35: 879.1617642 | O35: 571.9026058 | P35: 1017.592762 | Q35: 1026.983363 | R35: 872.8726986 | S35: 632.2876185 | T35: 744.0157933 | U35: 713.4368693 | V35: 750.0775128 | W35: 1036.30636 | X35: =IF(AND(A35>0, $W35>0),$W35/A35, "") -> 1.296014291 | Y35: =IF(AND(B35>0, $W35>0),$W35/B35, "") -> 0.8482955741 | Z35: =IF(AND(C35>0, $W35>0),$W35/C35, "") -> 1.518993568 | AA35: =IF(AND(D35>0, $W35>0),$W35/D35, "") -> 1.43943023 | AB35: =IF(AND(E35>0, $W35>0),$W35/E35, "") -> 1 | AC35: =IF(AND(F35>0, $W35>0),$W35/F35, "") -> 1.40779903 | AD35: =IF(AND(G35>0, $W35>0),$W35/G35, "") -> 1.037688825 | AE35: =IF(AND(H35>0, $W35>0),$W35/H35, "") -> 1.493269271 | AF35: =IF(AND(I35>0, $W35>0),$W35/I35, "") -> 1.067888712 | AG35: =IF(AND(J35>0, $W35>0),$W35/J35, "") -> 1.404243333 | AH35: =IF(AND(K35>0, $W35>0),$W35/K35, "") -> 1.700437484 | AI35: =IF(AND(L35>0, $W35>0),$W35/L35, "") -> 0.9917270805 | AJ35: =IF(AND(M35>0, $W35>0),$W35/M35, "") -> 1.836406564 | AK35: =IF(AND(N35>0, $W35>0),$W35/N35, "") -> 1.178743665 | AL35: =IF(AND(O35>0, $W35>0),$W35/O35, "") -> 1.81203294 | AM35: =IF(AND(P35>0, $W35>0),$W35/P35, "") -> 1.018390066 | AN35: =IF(AND(Q35>0, $W35>0),$W35/Q35, "") -> 1.009078041 | AO35: =IF(AND(R35>0, $W35>0),$W35/R35, "") -> 1.187236537 | AP35: =IF(AND(S35>0, $W35>0),$W35/S35, "") -> 1.638979366 | AQ35: =IF(AND(T35>0, $W35>0),$W35/T35, "") -> 1.392855326 | AR35: =IF(AND(U35>0, $W35>0),$W35/U35, "") -> 1.452555096 | AS35: =IF(AND(V35>0, $W35>0),$W35/V35, "") -> 1.381599025 | AT35: =IF(X35<>"",LOG10(X35),"") -> 0.1126097904 | AU35: =IF(Y35<>"",LOG10(Y35),"") -> -0.07145279888 | AV35: =IF(Z35<>"",LOG10(Z35),"") -> 0.1815559348 | AW35: =IF(AA35<>"",LOG10(AA35),"") -> 0.1581906194 | AX35: =IF(AB35<>"",LOG10(AB35),"") -> 0 | AY35: =IF(AC35<>"",LOG10(AC35),"") -> 0.1485406616 | AZ35: =IF(AD35<>"",LOG10(AD35),"") -> 0.01606713986 | BA35: =IF(AE35<>"",LOG10(AE35),"") -> 0.174138128 | BB35: =IF(AF35<>"",LOG10(AF35),"") -> 0.02852599586 | BC35: =IF(AG35<>"",LOG10(AG35),"") -> 0.1474423707 | BD35: =IF(AH35<>"",LOG10(AH35),"") -> 0.23056067 | BE35: =IF(AI35<>"",LOG10(AI35),"") -> -0.003607827595 | BF35: =IF(AJ35<>"",LOG10(AJ35),"") -> 0.2639688364 | BG35: =IF(AK35<>"",LOG10(AK35),"") -> 0.07141937172 | BH35: =IF(AL35<>"",LOG10(AL35),"") -> 0.2581660882 | BI35: =IF(AM35<>"",LOG10(AM35),"") -> 0.007914154373 | BJ35: =IF(AN35<>"",LOG10(AN35),"") -> 0.003924755459 | BK35: =IF(AO35<>"",LOG10(AO35),"") -> 0.07453725354 | BL35: =IF(AP35<>"",LOG10(AP35),"") -> 0.214573486 | BM35: =IF(AQ35<>"",LOG10(AQ35),"") -> 0.1439060091 | BN35: =IF(AR35<>"",LOG10(AR35),"") -> 0.1621326143 | BO35: =IF(AS35<>"",LOG10(AS35),"") -> 0.140382018 | BP35: =IF(AT35<>"", ABS(AT35-DJ$4),"") -> 0.08614476713 | BQ35: =IF(AU35<>"", ABS(AU35-DK$4),"") -> 0.1431986188 | BR35: =IF(AV35<>"", ABS(AV35-DL$4),"") -> 0.3579015864 | BS35: =IF(AW35<>"", ABS(AW35-DM$4),"") -> 0.1728856899 | BT35: =IF(AX35<>"", ABS(AX35-DN$4),"") -> 0 | BU35: =IF(AY35<>"", ABS(AY35-DO$4),"") -> 0.06175271111 | BV35: =IF(AZ35<>"", ABS(AZ35-DP$4),"") -> 0.08425155648 | BW35: =IF(BA35<>"", ABS(BA35-DQ$4),"") -> 0.08329214034 | BX35: =IF(BB35<>"", ABS(BB35-DR$4),"") -> 0.1410043492 | BY35: =IF(BC35<>"", ABS(BC35-DS$4),"") -> 0.08605340203 | BZ35: =IF(BD35<>"", ABS(BD35-DT$4),"") -> 0.1810319611 | CA35: =IF(BE35<>"", ABS(BE35-DU$4),"") -> 0.1538567974 | CB35: =IF(BF35<>"", ABS(BF35-DV$4),"") -> 0.3160865685 | CC35: =IF(BG35<>"", ABS(BG35-DW$4),"") -> 0.3006842865 | CD35: =IF(BH35<>"", ABS(BH35-DX$4),"") -> 0.1982001862 | CE35: =IF(BI35<>"", ABS(BI35-DY$4),"") -> 0.002187815921 | CF35: =IF(BJ35<>"", ABS(BJ35-DZ$4),"") -> 0.3514145653 | CG35: =IF(BK35<>"", ABS(BK35-EA$4),"") -> 0.001441957467 | CH35: =IF(BL35<>"", ABS(BL35-EB$4),"") -> 0.2146787816 | CI35: =IF(BM35<>"", ABS(BM35-EC$4),"") -> 0.1889667509 | CJ35: =IF(BN35<>"", ABS(BN35-ED$4),"") -> 0.2402718559 | CK35: =IF(BO35<>"", ABS(BO35-EE$4),"") -> 0.1564233663 | CL35: =IF(AND(AT35<>"",AT35>DJ$19, AT35<DJ$16), AT35,"") -> 0.1126097904 | CM35: =IF(AND(AU35<>"",AU35>DK$19, AU35<DK$16), AU35,"") -> -0.07145279888 | CN35: =IF(AND(AV35<>"",AV35>DL$19, AV35<DL$16), AV35,"") -> 0.1815559348 | CO35: =IF(AND(AW35<>"",AW35>DM$19, AW35<DM$16), AW35,"") -> 0.1581906194 | CP35: =IF(AND(AX35<>"",AX35>DN$19, AX35<DN$16), AX35,"") ->  | CQ35: =IF(AND(AY35<>"",AY35>DO$19, AY35<DO$16), AY35,"") -> 0.1485406616 | CR35: =IF(AND(AZ35<>"",AZ35>DP$19, AZ35<DP$16), AZ35,"") -> 0.01606713986 | CS35: =IF(AND(BA35<>"",BA35>DQ$19, BA35<DQ$16), BA35,"") -> 0.174138128 | CT35: =IF(AND(BB35<>"",BB35>DR$19, BB35<DR$16), BB35,"") -> 0.02852599586 | CU35: =IF(AND(BC35<>"",BC35>DS$19, BC35<DS$16), BC35,"") -> 0.1474423707 | CV35: =IF(AND(BD35<>"",BD35>DT$19, BD35<DT$16), BD35,"") -> 0.23056067 | CW35: =IF(AND(BE35<>"",BE35>DU$19, BE35<DU$16), BE35,"") -> -0.003607827595 | CX35: =IF(AND(BF35<>"",BF35>DV$19, BF35<DV$16), BF35,"") -> 0.2639688364 | CY35: =IF(AND(BG35<>"",BG35>DW$19, BG35<DW$16), BG35,"") -> 0.07141937172 | CZ35: =IF(AND(BH35<>"",BH35>DX$19, BH35<DX$16), BH35,"") -> 0.2581660882 | DA35: =IF(AND(BI35<>"",BI35>DY$19, BI35<DY$16), BI35,"") -> 0.007914154373 | DB35: =IF(AND(BJ35<>"",BJ35>DZ$19, BJ35<DZ$16), BJ35,"") -> 0.003924755459 | DC35: =IF(AND(BK35<>"",BK35>EA$19, BK35<EA$16), BK35,"") -> 0.07453725354 | DD35: =IF(AND(BL35<>"",BL35>EB$19, BL35<EB$16), BL35,"") -> 0.214573486 | DE35: =IF(AND(BM35<>"",BM35>EC$19, BM35<EC$16), BM35,"") -> 0.1439060091 | DF35: =IF(AND(BN35<>"",BN35>ED$19, BN35<ED$16), BN35,"") -> 0.1621326143 | DG35: =IF(AND(BO35<>"",BO35>EE$19, BO35<EE$16), BO35,"") -> 0.140382018
A36: 903.7958103 | B36: 1371.160756 | C36: 4004.320707 | D36: 2474.939407 | E36: 1654.097085 | F36: 1289.345954 | G36: 1111.003056 | H36: 733.2010841 | I36: 563.6402595 | J36: 1184.084529 | K36: 1266.586534 | L36: 768.7351655 | M36: 278.5112006 | N36: 329.6042241 | O36: 958.2376233 | P36: 1732.634107 | Q36: 695.1353847 | R36: 1397.798778 | S36: 1864.580803 | T36: 2539.337749 | U36: 459.0164213 | V36: 732.6970519 | W36: 1654.097085 | X36: =IF(AND(A36>0, $W36>0),$W36/A36, "") -> 1.830166799 | Y36: =IF(AND(B36>0, $W36>0),$W36/B36, "") -> 1.206348036 | Z36: =IF(AND(C36>0, $W36>0),$W36/C36, "") -> 0.413078074 | AA36: =IF(AND(D36>0, $W36>0),$W36/D36, "") -> 0.6683384169 | AB36: =IF(AND(E36>0, $W36>0),$W36/E36, "") -> 1 | AC36: =IF(AND(F36>0, $W36>0),$W36/F36, "") -> 1.282896247 | AD36: =IF(AND(G36>0, $W36>0),$W36/G36, "") -> 1.488832165 | AE36: =IF(AND(H36>0, $W36>0),$W36/H36, "") -> 2.25599378 | AF36: =IF(AND(I36>0, $W36>0),$W36/I36, "") -> 2.934668093 | AG36: =IF(AND(J36>0, $W36>0),$W36/J36, "") -> 1.396941725 | AH36: =IF(AND(K36>0, $W36>0),$W36/K36, "") -> 1.305948738 | AI36: =IF(AND(L36>0, $W36>0),$W36/L36, "") -> 2.151712527 | AJ36: =IF(AND(M36>0, $W36>0),$W36/M36, "") -> 5.939068453 | AK36: =IF(AND(N36>0, $W36>0),$W36/N36, "") -> 5.018434122 | AL36: =IF(AND(O36>0, $W36>0),$W36/O36, "") -> 1.726186746 | AM36: =IF(AND(P36>0, $W36>0),$W36/P36, "") -> 0.9546718945 | AN36: =IF(AND(Q36>0, $W36>0),$W36/Q36, "") -> 2.379532278 | AO36: =IF(AND(R36>0, $W36>0),$W36/R36, "") -> 1.183358514 | AP36: =IF(AND(S36>0, $W36>0),$W36/S36, "") -> 0.8871147244 | AQ36: =IF(AND(T36>0, $W36>0),$W36/T36, "") -> 0.6513891608 | AR36: =IF(AND(U36>0, $W36>0),$W36/U36, "") -> 3.603568431 | AS36: =IF(AND(V36>0, $W36>0),$W36/V36, "") -> 2.257545708 | AT36: =IF(X36<>"",LOG10(X36),"") -> 0.2624906726 | AU36: =IF(Y36<>"",LOG10(Y36),"") -> 0.08147262153 | AV36: =IF(Z36<>"",LOG10(Z36),"") -> -0.3839678566 | AW36: =IF(AA36<>"",LOG10(AA36),"") -> -0.1750035744 | AX36: =IF(AB36<>"",LOG10(AB36),"") -> 0 | AY36: =IF(AC36<>"",LOG10(AC36),"") -> 0.1081915347 | AZ36: =IF(AD36<>"",LOG10(AD36),"") -> 0.1728457429 | BA36: =IF(AE36<>"",LOG10(AE36),"") -> 0.3533378979 | BB36: =IF(AF36<>"",LOG10(AF36),"") -> 0.4675589902 | BC36: =IF(AG36<>"",LOG10(AG36),"") -> 0.1451782895 | BD36: =IF(AH36<>"",LOG10(AH36),"") -> 0.1159261301 | BE36: =IF(AI36<>"",LOG10(AI36),"") -> 0.3327842482 | BF36: =IF(AJ36<>"",LOG10(AJ36),"") -> 0.7737183309 | BG36: =IF(AK36<>"",LOG10(AK36),"") -> 0.7005682275 | BH36: =IF(AL36<>"",LOG10(AL36),"") -> 0.2370877777 | BI36: =IF(AM36<>"",LOG10(AM36),"") -> -0.02014586284 | BJ36: =IF(AN36<>"",LOG10(AN36),"") -> 0.3764916002 | BK36: =IF(AO36<>"",LOG10(AO36),"") -> 0.07311633973 | BL36: =IF(AP36<>"",LOG10(AP36),"") -> -0.05202021222 | BM36: =IF(AQ36<>"",LOG10(AQ36),"") -> -0.1861594724 | BN36: =IF(AR36<>"",LOG10(AR36),"") -> 0.5567327737 | BO36: =IF(AS36<>"",LOG10(AS36),"") -> 0.3536365522 | BP36: =IF(AT36<>"", ABS(AT36-DJ$4),"") -> 0.06373611506 | BQ36: =IF(AU36<>"", ABS(AU36-DK$4),"") -> 0.009726801608 | BR36: =IF(AV36<>"", ABS(AV36-DL$4),"") -> 0.207622205 | BS36: =IF(AW36<>"", ABS(AW36-DM$4),"") -> 0.1603085038 | BT36: =IF(AX36<>"", ABS(AX36-DN$4),"") -> 0 | BU36: =IF(AY36<>"", ABS(AY36-DO$4),"") -> 0.02140358419 | BV36: =IF(AZ36<>"", ABS(AZ36-DP$4),"") -> 0.07252704658 | BW36: =IF(BA36<>"", ABS(BA36-DQ$4),"") -> 0.09590762955 | BX36: =IF(BB36<>"", ABS(BB36-DR$4),"") -> 0.2980286451 | BY36: =IF(BC36<>"", ABS(BC36-DS$4),"") -> 0.08378932081 | BZ36: =IF(BD36<>"", ABS(BD36-DT$4),"") -> 0.0663974212 | CA36: =IF(BE36<>"", ABS(BE36-DU$4),"") -> 0.1825352784 | CB36: =IF(BF36<>"", ABS(BF36-DV$4),"") -> 0.193662926 | CC36: =IF(BG36<>"", ABS(BG36-DW$4),"") -> 0.3284645693 | CD36: =IF(BH36<>"", ABS(BH36-DX$4),"") -> 0.1771218758 | CE36: =IF(BI36<>"", ABS(BI36-DY$4),"") -> 0.03024783313 | CF36: =IF(BJ36<>"", ABS(BJ36-DZ$4),"") -> 0.0211522795 | CG36: =IF(BK36<>"", ABS(BK36-EA$4),"") -> 2.104365333e-05 | CH36: =IF(BL36<>"", ABS(BL36-EB$4),"") -> 0.05191491664 | CI36: =IF(BM36<>"", ABS(BM36-EC$4),"") -> 0.1410987305 | CJ36: =IF(BN36<>"", ABS(BN36-ED$4),"") -> 0.1543283035 | CK36: =IF(BO36<>"", ABS(BO36-EE$4),"") -> 0.05683116799 | CL36: =IF(AND(AT36<>"",AT36>DJ$19, AT36<DJ$16), AT36,"") -> 0.2624906726 | CM36: =IF(AND(AU36<>"",AU36>DK$19, AU36<DK$16), AU36,"") -> 0.08147262153 | CN36: =IF(AND(AV36<>"",AV36>DL$19, AV36<DL$16), AV36,"") -> -0.3839678566 | CO36: =IF(AND(AW36<>"",AW36>DM$19, AW36<DM$16), AW36,"") -> -0.1750035744 | CP36: =IF(AND(AX36<>"",AX36>DN$19, AX36<DN$16), AX36,"") ->  | CQ36: =IF(AND(AY36<>"",AY36>DO$19, AY36<DO$16), AY36,"") -> 0.1081915347 | CR36: =IF(AND(AZ36<>"",AZ36>DP$19, AZ36<DP$16), AZ36,"") -> 0.1728457429 | CS36: =IF(AND(BA36<>"",BA36>DQ$19, BA36<DQ$16), BA36,"") -> 0.3533378979 | CT36: =IF(AND(BB36<>"",BB36>DR$19, BB36<DR$16), BB36,"") -> 0.4675589902 | CU36: =IF(AND(BC36<>"",BC36>DS$19, BC36<DS$16), BC36,"") -> 0.1451782895 | CV36: =IF(AND(BD36<>"",BD36>DT$19, BD36<DT$16), BD36,"") -> 0.1159261301 | CW36: =IF(AND(BE36<>"",BE36>DU$19, BE36<DU$16), BE36,"") -> 0.3327842482 | CX36: =IF(AND(BF36<>"",BF36>DV$19, BF36<DV$16), BF36,"") -> 0.7737183309 | CY36: =IF(AND(BG36<>"",BG36>DW$19, BG36<DW$16), BG36,"") -> 0.7005682275 | CZ36: =IF(AND(BH36<>"",BH36>DX$19, BH36<DX$16), BH36,"") -> 0.2370877777 | DA36: =IF(AND(BI36<>"",BI36>DY$19, BI36<DY$16), BI36,"") -> -0.02014586284 | DB36: =IF(AND(BJ36<>"",BJ36>DZ$19, BJ36<DZ$16), BJ36,"") -> 0.3764916002 | DC36: =IF(AND(BK36<>"",BK36>EA$19, BK36<EA$16), BK36,"") -> 0.07311633973 | DD36: =IF(AND(BL36<>"",BL36>EB$19, BL36<EB$16), BL36,"") -> -0.05202021222 | DE36: =IF(AND(BM36<>"",BM36>EC$19, BM36<EC$16), BM36,"") -> -0.1861594724 | DF36: =IF(AND(BN36<>"",BN36>ED$19, BN36<ED$16), BN36,"") -> 0.5567327737 | DG36: =IF(AND(BO36<>"",BO36>EE$19, BO36<EE$16), BO36,"") -> 0.3536365522
A37: 728.3831904 | B37: 442.3334791 | C37: 703.4341654 | D37: 702.8989467 | E37: 620.6047428 | F37: 824.828416 | G37: 934.6371428 | H37: 2120.541402 | I37: 401.6072803 | J37: 956.6049207 | K37: 730.9204271 | L37: 484.5631798 | M37: 65.68996241 | N37: 450.1588747 | O37: 562.7673572 | P37: 876.8151767 | Q37: 897.9067625 | R37: 498.0153743 | S37: 753.0096111 | T37: 693.2704329 | U37: 469.3223837 | V37: 538.7082379 | W37: 620.6047428 | X37: =IF(AND(A37>0, $W37>0),$W37/A37, "") -> 0.8520305671 | Y37: =IF(AND(B37>0, $W37>0),$W37/B37, "") -> 1.403024578 | Z37: =IF(AND(C37>0, $W37>0),$W37/C37, "") -> 0.8822499294 | AA37: =IF(AND(D37>0, $W37>0),$W37/D37, "") -> 0.882921714 | AB37: =IF(AND(E37>0, $W37>0),$W37/E37, "") -> 1 | AC37: =IF(AND(F37>0, $W37>0),$W37/F37, "") -> 0.7524046587 | AD37: =IF(AND(G37>0, $W37>0),$W37/G37, "") -> 0.6640060772 | AE37: =IF(AND(H37>0, $W37>0),$W37/H37, "") -> 0.2926633464 | AF37: =IF(AND(I37>0, $W37>0),$W37/I37, "") -> 1.545302521 | AG37: =IF(AND(J37>0, $W37>0),$W37/J37, "") -> 0.6487576317 | AH37: =IF(AND(K37>0, $W37>0),$W37/K37, "") -> 0.849072922 | AI37: =IF(AND(L37>0, $W37>0),$W37/L37, "") -> 1.280750929 | AJ37: =IF(AND(M37>0, $W37>0),$W37/M37, "") -> 9.447482081 | AK37: =IF(AND(N37>0, $W37>0),$W37/N37, "") -> 1.378634917 | AL37: =IF(AND(O37>0, $W37>0),$W37/O37, "") -> 1.102773171 | AM37: =IF(AND(P37>0, $W37>0),$W37/P37, "") -> 0.7077942528 | AN37: =IF(AND(Q37>0, $W37>0),$W37/Q37, "") -> 0.6911683582 | AO37: =IF(AND(R37>0, $W37>0),$W37/R37, "") -> 1.246155791 | AP37: =IF(AND(S37>0, $W37>0),$W37/S37, "") -> 0.8241657657 | AQ37: =IF(AND(T37>0, $W37>0),$W37/T37, "") -> 0.895184207 | AR37: =IF(AND(U37>0, $W37>0),$W37/U37, "") -> 1.322342092 | AS37: =IF(AND(V37>0, $W37>0),$W37/V37, "") -> 1.152023858 | AT37: =IF(X37<>"",LOG10(X37),"") -> -0.06954482439 | AU37: =IF(Y37<>"",LOG10(Y37),"") -> 0.147065279 | AV37: =IF(Z37<>"",LOG10(Z37),"") -> -0.05440836773 | AW37: =IF(AA37<>"",LOG10(AA37),"") -> -0.05407780231 | AX37: =IF(AB37<>"",LOG10(AB37),"") -> 0 | AY37: =IF(AC37<>"",LOG10(AC37),"") -> -0.1235485241 | AZ37: =IF(AD37<>"",LOG10(AD37),"") -> -0.1778279458 | BA37: =IF(AE37<>"",LOG10(AE37),"") -> -0.5336316659 | BB37: =IF(AF37<>"",LOG10(AF37),"") -> 0.1890135131 | BC37: =IF(AG37<>"",LOG10(AG37),"") -> -0.1879175203 | BD37: =IF(AH37<>"",LOG10(AH37),"") -> -0.07105500908 | BE37: =IF(AI37<>"",LOG10(AI37),"") -> 0.1074646796 | BF37: =IF(AJ37<>"",LOG10(AJ37),"") -> 0.9753160769 | BG37: =IF(AK37<>"",LOG10(AK37),"") -> 0.1394492737 | BH37: =IF(AL37<>"",LOG10(AL37),"") -> 0.04248619159 | BI37: =IF(AM37<>"",LOG10(AM37),"") -> -0.1500929681 | BJ37: =IF(AN37<>"",LOG10(AN37),"") -> -0.1604161522 | BK37: =IF(AO37<>"",LOG10(AO37),"") -> 0.09557234008 | BL37: =IF(AP37<>"",LOG10(AP37),"") -> -0.08398542919 | BM37: =IF(AQ37<>"",LOG10(AQ37),"") -> -0.04808758829 | BN37: =IF(AR37<>"",LOG10(AR37),"") -> 0.1213438225 | BO37: =IF(AS37<>"",LOG10(AS37),"") -> 0.06146147345 | BP37: =IF(AT37<>"", ABS(AT37-DJ$4),"") -> 0.2682993819 | BQ37: =IF(AU37<>"", ABS(AU37-DK$4),"") -> 0.07531945906 | BR37: =IF(AV37<>"", ABS(AV37-DL$4),"") -> 0.1219372839 | BS37: =IF(AW37<>"", ABS(AW37-DM$4),"") -> 0.03938273178 | BT37: =IF(AX37<>"", ABS(AX37-DN$4),"") -> 0 | BU37: =IF(AY37<>"", ABS(AY37-DO$4),"") -> 0.2103364746 | BV37: =IF(AZ37<>"", ABS(AZ37-DP$4),"") -> 0.2781466421 | BW37: =IF(BA37<>"", ABS(BA37-DQ$4),"") -> 0.7910619342 | BX37: =IF(BB37<>"", ABS(BB37-DR$4),"") -> 0.01948316807 | BY37: =IF(BC37<>"", ABS(BC37-DS$4),"") -> 0.249306489 | BZ37: =IF(BD37<>"", ABS(BD37-DT$4),"") -> 0.1205837179 | CA37: =IF(BE37<>"", ABS(BE37-DU$4),"") -> 0.04278429019 | CB37: =IF(BF37<>"", ABS(BF37-DV$4),"") -> 0.395260672 | CC37: =IF(BG37<>"", ABS(BG37-DW$4),"") -> 0.2326543845 | CD37: =IF(BH37<>"", ABS(BH37-DX$4),"") -> 0.01747971039 | CE37: =IF(BI37<>"", ABS(BI37-DY$4),"") -> 0.1601949384 | CF37: =IF(BJ37<>"", ABS(BJ37-DZ$4),"") -> 0.5157554729 | CG37: =IF(BK37<>"", ABS(BK37-EA$4),"") -> 0.02247704401 | CH37: =IF(BL37<>"", ABS(BL37-EB$4),"") -> 0.08388013361 | CI37: =IF(BM37<>"", ABS(BM37-EC$4),"") -> 0.00302684642 | CJ37: =IF(BN37<>"", ABS(BN37-ED$4),"") -> 0.2810606477 | CK37: =IF(BO37<>"", ABS(BO37-EE$4),"") -> 0.2353439108 | CL37: =IF(AND(AT37<>"",AT37>DJ$19, AT37<DJ$16), AT37,"") -> -0.06954482439 | CM37: =IF(AND(AU37<>"",AU37>DK$19, AU37<DK$16), AU37,"") -> 0.147065279 | CN37: =IF(AND(AV37<>"",AV37>DL$19, AV37<DL$16), AV37,"") -> -0.05440836773 | CO37: =IF(AND(AW37<>"",AW37>DM$19, AW37<DM$16), AW37,"") -> -0.05407780231 | CP37: =IF(AND(AX37<>"",AX37>DN$19, AX37<DN$16), AX37,"") ->  | CQ37: =IF(AND(AY37<>"",AY37>DO$19, AY37<DO$16), AY37,"") -> -0.1235485241 | CR37: =IF(AND(AZ37<>"",AZ37>DP$19, AZ37<DP$16), AZ37,"") -> -0.1778279458 | CS37: =IF(AND(BA37<>"",BA37>DQ$19, BA37<DQ$16), BA37,"") ->  | CT37: =IF(AND(BB37<>"",BB37>DR$19, BB37<DR$16), BB37,"") -> 0.1890135131 | CU37: =IF(AND(BC37<>"",BC37>DS$19, BC37<DS$16), BC37,"") -> -0.1879175203 | CV37: =IF(AND(BD37<>"",BD37>DT$19, BD37<DT$16), BD37,"") -> -0.07105500908 | CW37: =IF(AND(BE37<>"",BE37>DU$19, BE37<DU$16), BE37,"") -> 0.1074646796 | CX37: =IF(AND(BF37<>"",BF37>DV$19, BF37<DV$16), BF37,"") -> 0.9753160769 | CY37: =IF(AND(BG37<>"",BG37>DW$19, BG37<DW$16), BG37,"") -> 0.1394492737 | CZ37: =IF(AND(BH37<>"",BH37>DX$19, BH37<DX$16), BH37,"") -> 0.04248619159 | DA37: =IF(AND(BI37<>"",BI37>DY$19, BI37<DY$16), BI37,"") -> -0.1500929681 | DB37: =IF(AND(BJ37<>"",BJ37>DZ$19, BJ37<DZ$16), BJ37,"") -> -0.1604161522 | DC37: =IF(AND(BK37<>"",BK37>EA$19, BK37<EA$16), BK37,"") -> 0.09557234008 | DD37: =IF(AND(BL37<>"",BL37>EB$19, BL37<EB$16), BL37,"") -> -0.08398542919 | DE37: =IF(AND(BM37<>"",BM37>EC$19, BM37<EC$16), BM37,"") -> -0.04808758829 | DF37: =IF(AND(BN37<>"",BN37>ED$19, BN37<ED$16), BN37,"") -> 0.1213438225 | DG37: =IF(AND(BO37<>"",BO37>EE$19, BO37<EE$16), BO37,"") -> 0.06146147345
A38: 2443.163644 | B38: 3061.766696 | C38: 3088.176629 | D38: 2987.92829 | E38: 2524.262313 | F38: 3695.561851 | G38: 5126.281629 | H38: 2185.642239 | I38: 2361.386681 | J38: 3764.283784 | K38: 3150.20845 | L38: 2054.3784 | M38: 1102.535255 | N38: 1216.037809 | O38: 2685.393905 | P38: 3611.558384 | Q38: 1988.154816 | R38: 2648.022657 | S38: 3169.849943 | T38: 2711.258986 | U38: 1148.71753 | V38: 4117.964963 | W38: 2524.262313 | X38: =IF(AND(A38>0, $W38>0),$W38/A38, "") -> 1.033194121 | Y38: =IF(AND(B38>0, $W38>0),$W38/B38, "") -> 0.8244463289 | Z38: =IF(AND(C38>0, $W38>0),$W38/C38, "") -> 0.8173957048 | AA38: =IF(AND(D38>0, $W38>0),$W38/D38, "") -> 0.8448202457 | AB38: =IF(AND(E38>0, $W38>0),$W38/E38, "") -> 1 | AC38: =IF(AND(F38>0, $W38>0),$W38/F38, "") -> 0.6830523786 | AD38: =IF(AND(G38>0, $W38>0),$W38/G38, "") -> 0.4924158474 | AE38: =IF(AND(H38>0, $W38>0),$W38/H38, "") -> 1.154929324 | AF38: =IF(AND(I38>0, $W38>0),$W38/I38, "") -> 1.06897457 | AG38: =IF(AND(J38>0, $W38>0),$W38/J38, "") -> 0.6705823624 | AH38: =IF(AND(K38>0, $W38>0),$W38/K38, "") -> 0.8013000893 | AI38: =IF(AND(L38>0, $W38>0),$W38/L38, "") -> 1.228723157 | AJ38: =IF(AND(M38>0, $W38>0),$W38/M38, "") -> 2.289507116 | AK38: =IF(AND(N38>0, $W38>0),$W38/N38, "") -> 2.07580907 | AL38: =IF(AND(O38>0, $W38>0),$W38/O38, "") -> 0.9399970366 | AM38: =IF(AND(P38>0, $W38>0),$W38/P38, "") -> 0.6989399156 | AN38: =IF(AND(Q38>0, $W38>0),$W38/Q38, "") -> 1.26965078 | AO38: =IF(AND(R38>0, $W38>0),$W38/R38, "") -> 0.9532631098 | AP38: =IF(AND(S38>0, $W38>0),$W38/S38, "") -> 0.7963349552 | AQ38: =IF(AND(T38>0, $W38>0),$W38/T38, "") -> 0.9310295792 | AR38: =IF(AND(U38>0, $W38>0),$W38/U38, "") -> 2.197461296 | AS38: =IF(AND(V38>0, $W38>0),$W38/V38, "") -> 0.6129878071 | AT38: =IF(X38<>"",LOG10(X38),"") -> 0.01418192617 | AU38: =IF(Y38<>"",LOG10(Y38),"") -> -0.08383761149 | AV38: =IF(Z38<>"",LOG10(Z38),"") -> -0.08756764871 | AW38: =IF(AA38<>"",LOG10(AA38),"") -> -0.07323568702 | AX38: =IF(AB38<>"",LOG10(AB38),"") -> 0 | AY38: =IF(AC38<>"",LOG10(AC38),"") -> -0.165545992 | AZ38: =IF(AD38<>"",LOG10(AD38),"") -> -0.3076679786 | BA38: =IF(AE38<>"",LOG10(AE38),"") -> 0.06255540825 | BB38: =IF(AF38<>"",LOG10(AF38),"") -> 0.02896737401 | BC38: =IF(AG38<>"",LOG10(AG38),"") -> -0.1735478735 | BD38: =IF(AH38<>"",LOG10(AH38),"") -> -0.09620480886 | BE38: =IF(AI38<>"",LOG10(AI38),"") -> 0.08945404319 | BF38: =IF(AJ38<>"",LOG10(AJ38),"") -> 0.3597419977 | BG38: =IF(AK38<>"",LOG10(AK38),"") -> 0.3171874052 | BH38: =IF(AL38<>"",LOG10(AL38),"") -> -0.02687351555 | BI38: =IF(AM38<>"",LOG10(AM38),"") -> -0.1555601568 | BJ38: =IF(AN38<>"",LOG10(AN38),"") -> 0.1036842838 | BK38: =IF(AO38<>"",LOG10(AO38),"") -> -0.02078721334 | BL38: =IF(AP38<>"",LOG10(AP38),"") -> -0.09890422046 | BM38: =IF(AQ38<>"",LOG10(AQ38),"") -> -0.03103652107 | BN38: =IF(AR38<>"",LOG10(AR38),"") -> 0.3419212346 | BO38: =IF(AS38<>"",LOG10(AS38),"") -> -0.2125481639 | BP38: =IF(AT38<>"", ABS(AT38-DJ$4),"") -> 0.1845726314 | BQ38: =IF(AU38<>"", ABS(AU38-DK$4),"") -> 0.1555834314 | BR38: =IF(AV38<>"", ABS(AV38-DL$4),"") -> 0.08877800289 | BS38: =IF(AW38<>"", ABS(AW38-DM$4),"") -> 0.05854061648 | BT38: =IF(AX38<>"", ABS(AX38-DN$4),"") -> 0 | BU38: =IF(AY38<>"", ABS(AY38-DO$4),"") -> 0.2523339425 | BV38: =IF(AZ38<>"", ABS(AZ38-DP$4),"") -> 0.4079866749 | BW38: =IF(BA38<>"", ABS(BA38-DQ$4),"") -> 0.1948748601 | BX38: =IF(BB38<>"", ABS(BB38-DR$4),"") -> 0.140562971 | BY38: =IF(BC38<>"", ABS(BC38-DS$4),"") -> 0.2349368422 | BZ38: =IF(BD38<>"", ABS(BD38-DT$4),"") -> 0.1457335177 | CA38: =IF(BE38<>"", ABS(BE38-DU$4),"") -> 0.06079492663 | CB38: =IF(BF38<>"", ABS(BF38-DV$4),"") -> 0.2203134072 | CC38: =IF(BG38<>"", ABS(BG38-DW$4),"") -> 0.05491625299 | CD38: =IF(BH38<>"", ABS(BH38-DX$4),"") -> 0.08683941753 | CE38: =IF(BI38<>"", ABS(BI38-DY$4),"") -> 0.1656621271 | CF38: =IF(BJ38<>"", ABS(BJ38-DZ$4),"") -> 0.2516550369 | CG38: =IF(BK38<>"", ABS(BK38-EA$4),"") -> 0.09388250941 | CH38: =IF(BL38<>"", ABS(BL38-EB$4),"") -> 0.09879892488 | CI38: =IF(BM38<>"", ABS(BM38-EC$4),"") -> 0.0140242208 | CJ38: =IF(BN38<>"", ABS(BN38-ED$4),"") -> 0.06048323561 | CK38: =IF(BO38<>"", ABS(BO38-EE$4),"") -> 0.5093535482 | CL38: =IF(AND(AT38<>"",AT38>DJ$19, AT38<DJ$16), AT38,"") -> 0.01418192617 | CM38: =IF(AND(AU38<>"",AU38>DK$19, AU38<DK$16), AU38,"") -> -0.08383761149 | CN38: =IF(AND(AV38<>"",AV38>DL$19, AV38<DL$16), AV38,"") -> -0.08756764871 | CO38: =IF(AND(AW38<>"",AW38>DM$19, AW38<DM$16), AW38,"") -> -0.07323568702 | CP38: =IF(AND(AX38<>"",AX38>DN$19, AX38<DN$16), AX38,"") ->  | CQ38: =IF(AND(AY38<>"",AY38>DO$19, AY38<DO$16), AY38,"") -> -0.165545992 | CR38: =IF(AND(AZ38<>"",AZ38>DP$19, AZ38<DP$16), AZ38,"") -> -0.3076679786 | CS38: =IF(AND(BA38<>"",BA38>DQ$19, BA38<DQ$16), BA38,"") -> 0.06255540825 | CT38: =IF(AND(BB38<>"",BB38>DR$19, BB38<DR$16), BB38,"") -> 0.02896737401 | CU38: =IF(AND(BC38<>"",BC38>DS$19, BC38<DS$16), BC38,"") -> -0.1735478735 | CV38: =IF(AND(BD38<>"",BD38>DT$19, BD38<DT$16), BD38,"") -> -0.09620480886 | CW38: =IF(AND(BE38<>"",BE38>DU$19, BE38<DU$16), BE38,"") -> 0.08945404319 | CX38: =IF(AND(BF38<>"",BF38>DV$19, BF38<DV$16), BF38,"") -> 0.3597419977 | CY38: =IF(AND(BG38<>"",BG38>DW$19, BG38<DW$16), BG38,"") -> 0.3171874052 | CZ38: =IF(AND(BH38<>"",BH38>DX$19, BH38<DX$16), BH38,"") -> -0.02687351555 | DA38: =IF(AND(BI38<>"",BI38>DY$19, BI38<DY$16), BI38,"") -> -0.1555601568 | DB38: =IF(AND(BJ38<>"",BJ38>DZ$19, BJ38<DZ$16), BJ38,"") -> 0.1036842838 | DC38: =IF(AND(BK38<>"",BK38>EA$19, BK38<EA$16), BK38,"") -> -0.02078721334 | DD38: =IF(AND(BL38<>"",BL38>EB$19, BL38<EB$16), BL38,"") -> -0.09890422046 | DE38: =IF(AND(BM38<>"",BM38>EC$19, BM38<EC$16), BM38,"") -> -0.03103652107 | DF38: =IF(AND(BN38<>"",BN38>ED$19, BN38<ED$16), BN38,"") -> 0.3419212346 | DG38: =IF(AND(BO38<>"",BO38>EE$19, BO38<EE$16), BO38,"") -> -0.2125481639
A39: 872.0661395 | B39: 753.0224693 | C39: 1076.291981 | D39: 1025.842258 | E39: 975.3636225 | F39: 1108.16432 | G39: 1062.769042 | H39: 765.1086605 | I39: 733.7440713 | J39: 1584.562083 | K39: 1285.285073 | L39: 1125.884616 | M39: 212.0686651 | N39: 1296.078142 | O39: 1583.925507 | P39: 1047.706994 | Q39: 326.3492934 | R39: 556.1989585 | S39: 798.9004731 | T39: 854.6994173 | U39: 429.5952346 | V39: 791.4941824 | W39: 975.3636225 | X39: =IF(AND(A39>0, $W39>0),$W39/A39, "") -> 1.118451432 | Y39: =IF(AND(B39>0, $W39>0),$W39/B39, "") -> 1.295264965 | Z39: =IF(AND(C39>0, $W39>0),$W39/C39, "") -> 0.9062258567 | AA39: =IF(AND(D39>0, $W39>0),$W39/D39, "") -> 0.9507929851 | AB39: =IF(AND(E39>0, $W39>0),$W39/E39, "") -> 1 | AC39: =IF(AND(F39>0, $W39>0),$W39/F39, "") -> 0.8801615471 | AD39: =IF(AND(G39>0, $W39>0),$W39/G39, "") -> 0.9177569014 | AE39: =IF(AND(H39>0, $W39>0),$W39/H39, "") -> 1.274804054 | AF39: =IF(AND(I39>0, $W39>0),$W39/I39, "") -> 1.329296768 | AG39: =IF(AND(J39>0, $W39>0),$W39/J39, "") -> 0.6155414374 | AH39: =IF(AND(K39>0, $W39>0),$W39/K39, "") -> 0.7588694861 | AI39: =IF(AND(L39>0, $W39>0),$W39/L39, "") -> 0.8663086862 | AJ39: =IF(AND(M39>0, $W39>0),$W39/M39, "") -> 4.599282133 | AK39: =IF(AND(N39>0, $W39>0),$W39/N39, "") -> 0.752550013 | AL39: =IF(AND(O39>0, $W39>0),$W39/O39, "") -> 0.6157888223 | AM39: =IF(AND(P39>0, $W39>0),$W39/P39, "") -> 0.9309507602 | AN39: =IF(AND(Q39>0, $W39>0),$W39/Q39, "") -> 2.988710691 | AO39: =IF(AND(R39>0, $W39>0),$W39/R39, "") -> 1.753623605 | AP39: =IF(AND(S39>0, $W39>0),$W39/S39, "") -> 1.22088252 | AQ39: =IF(AND(T39>0, $W39>0),$W39/T39, "") -> 1.141177357 | AR39: =IF(AND(U39>0, $W39>0),$W39/U39, "") -> 2.270424679 | AS39: =IF(AND(V39>0, $W39>0),$W39/V39, "") -> 1.232306749 | AT39: =IF(X39<>"",LOG10(X39),"") -> 0.04861712985 | AU39: =IF(Y39<>"",LOG10(Y39),"") -> 0.1123586187 | AV39: =IF(Z39<>"",LOG10(Z39),"") -> -0.04276355055 | AW39: =IF(AA39<>"",LOG10(AA39),"") -> -0.02191403112 | AX39: =IF(AB39<>"",LOG10(AB39),"") -> 0 | AY39: =IF(AC39<>"",LOG10(AC39),"") -> -0.05543760903 | AZ39: =IF(AD39<>"",LOG10(AD39),"") -> -0.03727234096 | BA39: =IF(AE39<>"",LOG10(AE39),"") -> 0.105443436 | BB39: =IF(AF39<>"",LOG10(AF39),"") -> 0.1236219488 | BC39: =IF(AG39<>"",LOG10(AG39),"") -> -0.2107427056 | BD39: =IF(AH39<>"",LOG10(AH39),"") -> -0.1198329097 | BE39: =IF(AI39<>"",LOG10(AI39),"") -> -0.06232733107 | BF39: =IF(AJ39<>"",LOG10(AJ39),"") -> 0.6626900513 | BG39: =IF(AK39<>"",LOG10(AK39),"") -> -0.1234646324 | BH39: =IF(AL39<>"",LOG10(AL39),"") -> -0.2105681986 | BI39: =IF(AM39<>"",LOG10(AM39),"") -> -0.03107328907 | BJ39: =IF(AN39<>"",LOG10(AN39),"") -> 0.4754838772 | BK39: =IF(AO39<>"",LOG10(AO39),"") -> 0.2439363826 | BL39: =IF(AP39<>"",LOG10(AP39),"") -> 0.08667387561 | BM39: =IF(AQ39<>"",LOG10(AQ39),"") -> 0.05735314605 | BN39: =IF(AR39<>"",LOG10(AR39),"") -> 0.3561070988 | BO39: =IF(AS39<>"",LOG10(AS39),"") -> 0.09071882684 | BP39: =IF(AT39<>"", ABS(AT39-DJ$4),"") -> 0.1501374277 | BQ39: =IF(AU39<>"", ABS(AU39-DK$4),"") -> 0.04061279879 | BR39: =IF(AV39<>"", ABS(AV39-DL$4),"") -> 0.133582101 | BS39: =IF(AW39<>"", ABS(AW39-DM$4),"") -> 0.007218960588 | BT39: =IF(AX39<>"", ABS(AX39-DN$4),"") -> 0 | BU39: =IF(AY39<>"", ABS(AY39-DO$4),"") -> 0.1422255596 | BV39: =IF(AZ39<>"", ABS(AZ39-DP$4),"") -> 0.1375910373 | BW39: =IF(BA39<>"", ABS(BA39-DQ$4),"") -> 0.1519868323 | BX39: =IF(BB39<>"", ABS(BB39-DR$4),"") -> 0.04590839622 | BY39: =IF(BC39<>"", ABS(BC39-DS$4),"") -> 0.2721316744 | BZ39: =IF(BD39<>"", ABS(BD39-DT$4),"") -> 0.1693616185 | CA39: =IF(BE39<>"", ABS(BE39-DU$4),"") -> 0.2125763009 | CB39: =IF(BF39<>"", ABS(BF39-DV$4),"") -> 0.08263464639 | CC39: =IF(BG39<>"", ABS(BG39-DW$4),"") -> 0.4955682906 | CD39: =IF(BH39<>"", ABS(BH39-DX$4),"") -> 0.2705341006 | CE39: =IF(BI39<>"", ABS(BI39-DY$4),"") -> 0.04117525937 | CF39: =IF(BJ39<>"", ABS(BJ39-DZ$4),"") -> 0.1201445564 | CG39: =IF(BK39<>"", ABS(BK39-EA$4),"") -> 0.1708410866 | CH39: =IF(BL39<>"", ABS(BL39-EB$4),"") -> 0.0867791712 | CI39: =IF(BM39<>"", ABS(BM39-EC$4),"") -> 0.1024138879 | CJ39: =IF(BN39<>"", ABS(BN39-ED$4),"") -> 0.04629737142 | CK39: =IF(BO39<>"", ABS(BO39-EE$4),"") -> 0.2060865574 | CL39: =IF(AND(AT39<>"",AT39>DJ$19, AT39<DJ$16), AT39,"") -> 0.04861712985 | CM39: =IF(AND(AU39<>"",AU39>DK$19, AU39<DK$16), AU39,"") -> 0.1123586187 | CN39: =IF(AND(AV39<>"",AV39>DL$19, AV39<DL$16), AV39,"") -> -0.04276355055 | CO39: =IF(AND(AW39<>"",AW39>DM$19, AW39<DM$16), AW39,"") -> -0.02191403112 | CP39: =IF(AND(AX39<>"",AX39>DN$19, AX39<DN$16), AX39,"") ->  | CQ39: =IF(AND(AY39<>"",AY39>DO$19, AY39<DO$16), AY39,"") -> -0.05543760903 | CR39: =IF(AND(AZ39<>"",AZ39>DP$19, AZ39<DP$16), AZ39,"") -> -0.03727234096 | CS39: =IF(AND(BA39<>"",BA39>DQ$19, BA39<DQ$16), BA39,"") -> 0.105443436 | CT39: =IF(AND(BB39<>"",BB39>DR$19, BB39<DR$16), BB39,"") -> 0.1236219488 | CU39: =IF(AND(BC39<>"",BC39>DS$19, BC39<DS$16), BC39,"") -> -0.2107427056 | CV39: =IF(AND(BD39<>"",BD39>DT$19, BD39<DT$16), BD39,"") -> -0.1198329097 | CW39: =IF(AND(BE39<>"",BE39>DU$19, BE39<DU$16), BE39,"") -> -0.06232733107 | CX39: =IF(AND(BF39<>"",BF39>DV$19, BF39<DV$16), BF39,"") -> 0.6626900513 | CY39: =IF(AND(BG39<>"",BG39>DW$19, BG39<DW$16), BG39,"") -> -0.1234646324 | CZ39: =IF(AND(BH39<>"",BH39>DX$19, BH39<DX$16), BH39,"") -> -0.2105681986 | DA39: =IF(AND(BI39<>"",BI39>DY$19, BI39<DY$16), BI39,"") -> -0.03107328907 | DB39: =IF(AND(BJ39<>"",BJ39>DZ$19, BJ39<DZ$16), BJ39,"") -> 0.4754838772 | DC39: =IF(AND(BK39<>"",BK39>EA$19, BK39<EA$16), BK39,"") -> 0.2439363826 | DD39: =IF(AND(BL39<>"",BL39>EB$19, BL39<EB$16), BL39,"") -> 0.08667387561 | DE39: =IF(AND(BM39<>"",BM39>EC$19, BM39<EC$16), BM39,"") -> 0.05735314605 | DF39: =IF(AND(BN39<>"",BN39>ED$19, BN39<ED$16), BN39,"") -> 0.3561070988 | DG39: =IF(AND(BO39<>"",BO39>EE$19, BO39<EE$16), BO39,"") -> 0.09071882684
A40: 537.1024751 | B40: 893.0653846 | C40: 2811.894579 | D40: 1673.829661 | E40: 1096.992629 | F40: 753.3585168 | G40: 537.5305383 | H40: 484.2213822 | I40: 624.8649071 | J40: 1157.792155 | K40: 1190.70625 | L40: 534.4972308 | M40: 753.4161174 | N40: 278.818902 | O40: 1540.871567 | P40: 872.4611323 | Q40: 309.7142533 | R40: 846.5581577 | S40: 1317.434767 | T40: 1505.066974 | U40: 191.7646934 | V40: 379.44076 | W40: 1096.992629 | X40: =IF(AND(A40>0, $W40>0),$W40/A40, "") -> 2.042427059 | Y40: =IF(AND(B40>0, $W40>0),$W40/B40, "") -> 1.228345256 | Z40: =IF(AND(C40>0, $W40>0),$W40/C40, "") -> 0.3901258023 | AA40: =IF(AND(D40>0, $W40>0),$W40/D40, "") -> 0.6553788919 | AB40: =IF(AND(E40>0, $W40>0),$W40/E40, "") -> 1 | AC40: =IF(AND(F40>0, $W40>0),$W40/F40, "") -> 1.456136228 | AD40: =IF(AND(G40>0, $W40>0),$W40/G40, "") -> 2.040800569 | AE40: =IF(AND(H40>0, $W40>0),$W40/H40, "") -> 2.265477464 | AF40: =IF(AND(I40>0, $W40>0),$W40/I40, "") -> 1.75556767 | AG40: =IF(AND(J40>0, $W40>0),$W40/J40, "") -> 0.947486666 | AH40: =IF(AND(K40>0, $W40>0),$W40/K40, "") -> 0.9212957677 | AI40: =IF(AND(L40>0, $W40>0),$W40/L40, "") -> 2.052382249 | AJ40: =IF(AND(M40>0, $W40>0),$W40/M40, "") -> 1.456024902 | AK40: =IF(AND(N40>0, $W40>0),$W40/N40, "") -> 3.934427045 | AL40: =IF(AND(O40>0, $W40>0),$W40/O40, "") -> 0.7119299573 | AM40: =IF(AND(P40>0, $W40>0),$W40/P40, "") -> 1.257354154 | AN40: =IF(AND(Q40>0, $W40>0),$W40/Q40, "") -> 3.54195074 | AO40: =IF(AND(R40>0, $W40>0),$W40/R40, "") -> 1.295826658 | AP40: =IF(AND(S40>0, $W40>0),$W40/S40, "") -> 0.8326732043 | AQ40: =IF(AND(T40>0, $W40>0),$W40/T40, "") -> 0.7288663211 | AR40: =IF(AND(U40>0, $W40>0),$W40/U40, "") -> 5.720514081 | AS40: =IF(AND(V40>0, $W40>0),$W40/V40, "") -> 2.89107746 | AT40: =IF(X40<>"",LOG10(X40),"") -> 0.3101465556 | AU40: =IF(Y40<>"",LOG10(Y40),"") -> 0.08932045296 | AV40: =IF(Z40<>"",LOG10(Z40),"") -> -0.4087953252 | AW40: =IF(AA40<>"",LOG10(AA40),"") -> -0.1835075503 | AX40: =IF(AB40<>"",LOG10(AB40),"") -> 0 | AY40: =IF(AC40<>"",LOG10(AC40),"") -> 0.1632020069 | AZ40: =IF(AD40<>"",LOG10(AD40),"") -> 0.3098005668 | BA40: =IF(AE40<>"",LOG10(AE40),"") -> 0.3551597463 | BB40: =IF(AF40<>"",LOG10(AF40),"") -> 0.2444175743 | BC40: =IF(AG40<>"",LOG10(AG40),"") -> -0.02342689316 | BD40: =IF(AH40<>"",LOG10(AH40),"") -> -0.03560092393 | BE40: =IF(AI40<>"",LOG10(AI40),"") -> 0.3122582498 | BF40: =IF(AJ40<>"",LOG10(AJ40),"") -> 0.1631688027 | BG40: =IF(AK40<>"",LOG10(AK40),"") -> 0.5948814967 | BH40: =IF(AL40<>"",LOG10(AL40),"") -> -0.147562732 | BI40: =IF(AM40<>"",LOG10(AM40),"") -> 0.09945762083 | BJ40: =IF(AN40<>"",LOG10(AN40),"") -> 0.5492425169 | BK40: =IF(AO40<>"",LOG10(AO40),"") -> 0.1125469102 | BL40: =IF(AP40<>"",LOG10(AP40),"") -> -0.07952541084 | BM40: =IF(AQ40<>"",LOG10(AQ40),"") -> -0.1373521168 | BN40: =IF(AR40<>"",LOG10(AR40),"") -> 0.757435059 | BO40: =IF(AS40<>"",LOG10(AS40),"") -> 0.4610597278 | BP40: =IF(AT40<>"", ABS(AT40-DJ$4),"") -> 0.1113919981 | BQ40: =IF(AU40<>"", ABS(AU40-DK$4),"") -> 0.01757463305 | BR40: =IF(AV40<>"", ABS(AV40-DL$4),"") -> 0.2324496736 | BS40: =IF(AW40<>"", ABS(AW40-DM$4),"") -> 0.1688124797 | BT40: =IF(AX40<>"", ABS(AX40-DN$4),"") -> 0 | BU40: =IF(AY40<>"", ABS(AY40-DO$4),"") -> 0.0764140564 | BV40: =IF(AZ40<>"", ABS(AZ40-DP$4),"") -> 0.2094818704 | BW40: =IF(BA40<>"", ABS(BA40-DQ$4),"") -> 0.09772947793 | BX40: =IF(BB40<>"", ABS(BB40-DR$4),"") -> 0.07488722925 | BY40: =IF(BC40<>"", ABS(BC40-DS$4),"") -> 0.08481586188 | BZ40: =IF(BD40<>"", ABS(BD40-DT$4),"") -> 0.08512963279 | CA40: =IF(BE40<>"", ABS(BE40-DU$4),"") -> 0.16200928 | CB40: =IF(BF40<>"", ABS(BF40-DV$4),"") -> 0.4168866022 | CC40: =IF(BG40<>"", ABS(BG40-DW$4),"") -> 0.2227778385 | CD40: =IF(BH40<>"", ABS(BH40-DX$4),"") -> 0.207528634 | CE40: =IF(BI40<>"", ABS(BI40-DY$4),"") -> 0.08935565053 | CF40: =IF(BJ40<>"", ABS(BJ40-DZ$4),"") -> 0.1939031962 | CG40: =IF(BK40<>"", ABS(BK40-EA$4),"") -> 0.03945161415 | CH40: =IF(BL40<>"", ABS(BL40-EB$4),"") -> 0.07942011525 | CI40: =IF(BM40<>"", ABS(BM40-EC$4),"") -> 0.09229137497 | CJ40: =IF(BN40<>"", ABS(BN40-ED$4),"") -> 0.3550305888 | CK40: =IF(BO40<>"", ABS(BO40-EE$4),"") -> 0.1642543436 | CL40: =IF(AND(AT40<>"",AT40>DJ$19, AT40<DJ$16), AT40,"") -> 0.3101465556 | CM40: =IF(AND(AU40<>"",AU40>DK$19, AU40<DK$16), AU40,"") -> 0.08932045296 | CN40: =IF(AND(AV40<>"",AV40>DL$19, AV40<DL$16), AV40,"") -> -0.4087953252 | CO40: =IF(AND(AW40<>"",AW40>DM$19, AW40<DM$16), AW40,"") -> -0.1835075503 | CP40: =IF(AND(AX40<>"",AX40>DN$19, AX40<DN$16), AX40,"") ->  | CQ40: =IF(AND(AY40<>"",AY40>DO$19, AY40<DO$16), AY40,"") -> 0.1632020069 | CR40: =IF(AND(AZ40<>"",AZ40>DP$19, AZ40<DP$16), AZ40,"") -> 0.3098005668 | CS40: =IF(AND(BA40<>"",BA40>DQ$19, BA40<DQ$16), BA40,"") -> 0.3551597463 | CT40: =IF(AND(BB40<>"",BB40>DR$19, BB40<DR$16), BB40,"") -> 0.2444175743 | CU40: =IF(AND(BC40<>"",BC40>DS$19, BC40<DS$16), BC40,"") -> -0.02342689316 | CV40: =IF(AND(BD40<>"",BD40>DT$19, BD40<DT$16), BD40,"") -> -0.03560092393 | CW40: =IF(AND(BE40<>"",BE40>DU$19, BE40<DU$16), BE40,"") -> 0.3122582498 | CX40: =IF(AND(BF40<>"",BF40>DV$19, BF40<DV$16), BF40,"") -> 0.1631688027 | CY40: =IF(AND(BG40<>"",BG40>DW$19, BG40<DW$16), BG40,"") -> 0.5948814967 | CZ40: =IF(AND(BH40<>"",BH40>DX$19, BH40<DX$16), BH40,"") -> -0.147562732 | DA40: =IF(AND(BI40<>"",BI40>DY$19, BI40<DY$16), BI40,"") -> 0.09945762083 | DB40: =IF(AND(BJ40<>"",BJ40>DZ$19, BJ40<DZ$16), BJ40,"") -> 0.5492425169 | DC40: =IF(AND(BK40<>"",BK40>EA$19, BK40<EA$16), BK40,"") -> 0.1125469102 | DD40: =IF(AND(BL40<>"",BL40>EB$19, BL40<EB$16), BL40,"") -> -0.07952541084 | DE40: =IF(AND(BM40<>"",BM40>EC$19, BM40<EC$16), BM40,"") -> -0.1373521168 | DF40: =IF(AND(BN40<>"",BN40>ED$19, BN40<ED$16), BN40,"") -> 0.757435059 | DG40: =IF(AND(BO40<>"",BO40>EE$19, BO40<EE$16), BO40,"") -> 0.4610597278
A41: 340.3296692 | B41: 554.4950164 | C41: 394.4600586 | D41: 247.8655362 | E41: 528.2289176 | F41: 352.2938042 | G41: 446.6732941 | H41: 324.1377602 | I41: 420.2375991 | J41: 359.6298776 | K41: 321.7166665 | L41: 357.2977287 | M41: 225.9765781 | N41: 307.7360514 | O41: 274.3497032 | P41: 436.2110222 | Q41: 404.8790905 | R41: 429.788808 | S41: 326.144478 | T41: 371.3106958 | U41: 269.5565882 | V41: 258.2681352 | W41: 528.2289176 | X41: =IF(AND(A41>0, $W41>0),$W41/A41, "") -> 1.552109515 | Y41: =IF(AND(B41>0, $W41>0),$W41/B41, "") -> 0.9526305954 | Z41: =IF(AND(C41>0, $W41>0),$W41/C41, "") -> 1.339118895 | AA41: =IF(AND(D41>0, $W41>0),$W41/D41, "") -> 2.131110786 | AB41: =IF(AND(E41>0, $W41>0),$W41/E41, "") -> 1 | AC41: =IF(AND(F41>0, $W41>0),$W41/F41, "") -> 1.499398829 | AD41: =IF(AND(G41>0, $W41>0),$W41/G41, "") -> 1.182584508 | AE41: =IF(AND(H41>0, $W41>0),$W41/H41, "") -> 1.629643264 | AF41: =IF(AND(I41>0, $W41>0),$W41/I41, "") -> 1.256976812 | AG41: =IF(AND(J41>0, $W41>0),$W41/J41, "") -> 1.468812661 | AH41: =IF(AND(K41>0, $W41>0),$W41/K41, "") -> 1.641907221 | AI41: =IF(AND(L41>0, $W41>0),$W41/L41, "") -> 1.478399875 | AJ41: =IF(AND(M41>0, $W41>0),$W41/M41, "") -> 2.33753835 | AK41: =IF(AND(N41>0, $W41>0),$W41/N41, "") -> 1.716499952 | AL41: =IF(AND(O41>0, $W41>0),$W41/O41, "") -> 1.925385417 | AM41: =IF(AND(P41>0, $W41>0),$W41/P41, "") -> 1.210948121 | AN41: =IF(AND(Q41>0, $W41>0),$W41/Q41, "") -> 1.304658428 | AO41: =IF(AND(R41>0, $W41>0),$W41/R41, "") -> 1.229042981 | AP41: =IF(AND(S41>0, $W41>0),$W41/S41, "") -> 1.619616315 | AQ41: =IF(AND(T41>0, $W41>0),$W41/T41, "") -> 1.422606253 | AR41: =IF(AND(U41>0, $W41>0),$W41/U41, "") -> 1.959621619 | AS41: =IF(AND(V41>0, $W41>0),$W41/V41, "") -> 2.045273286 | AT41: =IF(X41<>"",LOG10(X41),"") -> 0.1909223612 | AU41: =IF(Y41<>"",LOG10(Y41),"") -> -0.02107547448 | AV41: =IF(Z41<>"",LOG10(Z41),"") -> 0.1268191379 | AW41: =IF(AA41<>"",LOG10(AA41),"") -> 0.328606027 | AX41: =IF(AB41<>"",LOG10(AB41),"") -> 0 | AY41: =IF(AC41<>"",LOG10(AC41),"") -> 0.1759171674 | AZ41: =IF(AD41<>"",LOG10(AD41),"") -> 0.07283218531 | BA41: =IF(AE41<>"",LOG10(AE41),"") -> 0.2120925459 | BB41: =IF(AF41<>"",LOG10(AF41),"") -> 0.09932726612 | BC41: =IF(AG41<>"",LOG10(AG41),"") -> 0.1669664076 | BD41: =IF(AH41<>"",LOG10(AH41),"") -> 0.2153486128 | BE41: =IF(AI41<>"",LOG10(AI41),"") -> 0.1697919173 | BF41: =IF(AJ41<>"",LOG10(AJ41),"") -> 0.3687587448 | BG41: =IF(AK41<>"",LOG10(AK41),"") -> 0.2346437957 | BH41: =IF(AL41<>"",LOG10(AL41),"") -> 0.2845176781 | BI41: =IF(AM41<>"",LOG10(AM41),"") -> 0.08312553757 | BJ41: =IF(AN41<>"",LOG10(AN41),"") -> 0.115496824 | BK41: =IF(AO41<>"",LOG10(AO41),"") -> 0.08956707083 | BL41: =IF(AP41<>"",LOG10(AP41),"") -> 0.209412143 | BM41: =IF(AQ41<>"",LOG10(AQ41),"") -> 0.1530847133 | BN41: =IF(AR41<>"",LOG10(AR41),"") -> 0.292172222 | BO41: =IF(AS41<>"",LOG10(AS41),"") -> 0.310751346 | BP41: =IF(AT41<>"", ABS(AT41-DJ$4),"") -> 0.007832196355 | BQ41: =IF(AU41<>"", ABS(AU41-DK$4),"") -> 0.0928212944 | BR41: =IF(AV41<>"", ABS(AV41-DL$4),"") -> 0.3031647895 | BS41: =IF(AW41<>"", ABS(AW41-DM$4),"") -> 0.3433010976 | BT41: =IF(AX41<>"", ABS(AX41-DN$4),"") -> 0 | BU41: =IF(AY41<>"", ABS(AY41-DO$4),"") -> 0.0891292169 | BV41: =IF(AZ41<>"", ABS(AZ41-DP$4),"") -> 0.02748651102 | BW41: =IF(BA41<>"", ABS(BA41-DQ$4),"") -> 0.04533772239 | BX41: =IF(BB41<>"", ABS(BB41-DR$4),"") -> 0.07020307893 | BY41: =IF(BC41<>"", ABS(BC41-DS$4),"") -> 0.1055774388 | BZ41: =IF(BD41<>"", ABS(BD41-DT$4),"") -> 0.1658199039 | CA41: =IF(BE41<>"", ABS(BE41-DU$4),"") -> 0.01954294746 | CB41: =IF(BF41<>"", ABS(BF41-DV$4),"") -> 0.2112966601 | CC41: =IF(BG41<>"", ABS(BG41-DW$4),"") -> 0.1374598625 | CD41: =IF(BH41<>"", ABS(BH41-DX$4),"") -> 0.2245517761 | CE41: =IF(BI41<>"", ABS(BI41-DY$4),"") -> 0.07302356728 | CF41: =IF(BJ41<>"", ABS(BJ41-DZ$4),"") -> 0.2398424967 | CG41: =IF(BK41<>"", ABS(BK41-EA$4),"") -> 0.01647177475 | CH41: =IF(BL41<>"", ABS(BL41-EB$4),"") -> 0.2095174386 | CI41: =IF(BM41<>"", ABS(BM41-EC$4),"") -> 0.1981454552 | CJ41: =IF(BN41<>"", ABS(BN41-ED$4),"") -> 0.1102322482 | CK41: =IF(BO41<>"", ABS(BO41-EE$4),"") -> 0.01394596179 | CL41: =IF(AND(AT41<>"",AT41>DJ$19, AT41<DJ$16), AT41,"") -> 0.1909223612 | CM41: =IF(AND(AU41<>"",AU41>DK$19, AU41<DK$16), AU41,"") -> -0.02107547448 | CN41: =IF(AND(AV41<>"",AV41>DL$19, AV41<DL$16), AV41,"") -> 0.1268191379 | CO41: =IF(AND(AW41<>"",AW41>DM$19, AW41<DM$16), AW41,"") -> 0.328606027 | CP41: =IF(AND(AX41<>"",AX41>DN$19, AX41<DN$16), AX41,"") ->  | CQ41: =IF(AND(AY41<>"",AY41>DO$19, AY41<DO$16), AY41,"") -> 0.1759171674 | CR41: =IF(AND(AZ41<>"",AZ41>DP$19, AZ41<DP$16), AZ41,"") -> 0.07283218531 | CS41: =IF(AND(BA41<>"",BA41>DQ$19, BA41<DQ$16), BA41,"") -> 0.2120925459 | CT41: =IF(AND(BB41<>"",BB41>DR$19, BB41<DR$16), BB41,"") -> 0.09932726612 | CU41: =IF(AND(BC41<>"",BC41>DS$19, BC41<DS$16), BC41,"") -> 0.1669664076 | CV41: =IF(AND(BD41<>"",BD41>DT$19, BD41<DT$16), BD41,"") -> 0.2153486128 | CW41: =IF(AND(BE41<>"",BE41>DU$19, BE41<DU$16), BE41,"") -> 0.1697919173 | CX41: =IF(AND(BF41<>"",BF41>DV$19, BF41<DV$16), BF41,"") -> 0.3687587448 | CY41: =IF(AND(BG41<>"",BG41>DW$19, BG41<DW$16), BG41,"") -> 0.2346437957 | CZ41: =IF(AND(BH41<>"",BH41>DX$19, BH41<DX$16), BH41,"") -> 0.2845176781 | DA41: =IF(AND(BI41<>"",BI41>DY$19, BI41<DY$16), BI41,"") -> 0.08312553757 | DB41: =IF(AND(BJ41<>"",BJ41>DZ$19, BJ41<DZ$16), BJ41,"") -> 0.115496824 | DC41: =IF(AND(BK41<>"",BK41>EA$19, BK41<EA$16), BK41,"") -> 0.08956707083 | DD41: =IF(AND(BL41<>"",BL41>EB$19, BL41<EB$16), BL41,"") -> 0.209412143 | DE41: =IF(AND(BM41<>"",BM41>EC$19, BM41<EC$16), BM41,"") -> 0.1530847133 | DF41: =IF(AND(BN41<>"",BN41>ED$19, BN41<ED$16), BN41,"") -> 0.292172222 | DG41: =IF(AND(BO41<>"",BO41>EE$19, BO41<EE$16), BO41,"") -> 0.310751346
A42: 666.3839047 | B42: 850.3074607 | C42: 1366.045174 | D42: 680.0235594 | E42: 952.0846008 | F42: 374.3023995 | G42: 576.1044802 | H42: 357.3172971 | I42: 591.7474205 | J42: 567.716662 | K42: 674.5398941 | L42: 450.5963881 | M42: 309.1718121 | N42: 292.2315745 | O42: 658.5220921 | P42: 481.50392 | Q42: 459.8806409 | R42: 846.1270218 | S42: 773.7688036 | T42: 988.1141257 | U42: 278.577301 | V42: 176.7398636 | W42: 952.0846008 | X42: =IF(AND(A42>0, $W42>0),$W42/A42, "") -> 1.428732888 | Y42: =IF(AND(B42>0, $W42>0),$W42/B42, "") -> 1.119694516 | Z42: =IF(AND(C42>0, $W42>0),$W42/C42, "") -> 0.6969642141 | AA42: =IF(AND(D42>0, $W42>0),$W42/D42, "") -> 1.400075906 | AB42: =IF(AND(E42>0, $W42>0),$W42/E42, "") -> 1 | AC42: =IF(AND(F42>0, $W42>0),$W42/F42, "") -> 2.543624092 | AD42: =IF(AND(G42>0, $W42>0),$W42/G42, "") -> 1.652624886 | AE42: =IF(AND(H42>0, $W42>0),$W42/H42, "") -> 2.664535439 | AF42: =IF(AND(I42>0, $W42>0),$W42/I42, "") -> 1.608937475 | AG42: =IF(AND(J42>0, $W42>0),$W42/J42, "") -> 1.67704185 | AH42: =IF(AND(K42>0, $W42>0),$W42/K42, "") -> 1.411457809 | AI42: =IF(AND(L42>0, $W42>0),$W42/L42, "") -> 2.112943259 | AJ42: =IF(AND(M42>0, $W42>0),$W42/M42, "") -> 3.079467673 | AK42: =IF(AND(N42>0, $W42>0),$W42/N42, "") -> 3.257979917 | AL42: =IF(AND(O42>0, $W42>0),$W42/O42, "") -> 1.445789917 | AM42: =IF(AND(P42>0, $W42>0),$W42/P42, "") -> 1.97731433 | AN42: =IF(AND(Q42>0, $W42>0),$W42/Q42, "") -> 2.070286322 | AO42: =IF(AND(R42>0, $W42>0),$W42/R42, "") -> 1.125226563 | AP42: =IF(AND(S42>0, $W42>0),$W42/S42, "") -> 1.230451003 | AQ42: =IF(AND(T42>0, $W42>0),$W42/T42, "") -> 0.9635370815 | AR42: =IF(AND(U42>0, $W42>0),$W42/U42, "") -> 3.417667547 | AS42: =IF(AND(V42>0, $W42>0),$W42/V42, "") -> 5.386926195 | AT42: =IF(X42<>"",LOG10(X42),"") -> 0.1549510419 | AU42: =IF(Y42<>"",LOG10(Y42),"") -> 0.0490995512 | AV42: =IF(Z42<>"",LOG10(Z42),"") -> -0.1567895204 | AW42: =IF(AA42<>"",LOG10(AA42),"") -> 0.1461515818 | AX42: =IF(AB42<>"",LOG10(AB42),"") -> 0 | AY42: =IF(AC42<>"",LOG10(AC42),"") -> 0.4054529297 | AZ42: =IF(AD42<>"",LOG10(AD42),"") -> 0.2181742882 | BA42: =IF(AE42<>"",LOG10(AE42),"") -> 0.4256215008 | BB42: =IF(AF42<>"",LOG10(AF42),"") -> 0.2065391674 | BC42: =IF(AG42<>"",LOG10(AG42),"") -> 0.2245439003 | BD42: =IF(AH42<>"",LOG10(AH42),"") -> 0.1496679008 | BE42: =IF(AI42<>"",LOG10(AI42),"") -> 0.3248878347 | BF42: =IF(AJ42<>"",LOG10(AJ42),"") -> 0.4884756494 | BG42: =IF(AK42<>"",LOG10(AK42),"") -> 0.5129484028 | BH42: =IF(AL42<>"",LOG10(AL42),"") -> 0.1601051916 | BI42: =IF(AM42<>"",LOG10(AM42),"") -> 0.2960757138 | BJ42: =IF(AN42<>"",LOG10(AN42),"") -> 0.3160304129 | BK42: =IF(AO42<>"",LOG10(AO42),"") -> 0.05123997602 | BL42: =IF(AP42<>"",LOG10(AP42),"") -> 0.09006432476 | BM42: =IF(AQ42<>"",LOG10(AQ42),"") -> -0.01613156698 | BN42: =IF(AR42<>"",LOG10(AR42),"") -> 0.5337298145 | BO42: =IF(AS42<>"",LOG10(AS42),"") -> 0.7313410254 | BP42: =IF(AT42<>"", ABS(AT42-DJ$4),"") -> 0.04380351561 | BQ42: =IF(AU42<>"", ABS(AU42-DK$4),"") -> 0.02264626872 | BR42: =IF(AV42<>"", ABS(AV42-DL$4),"") -> 0.01955613123 | BS42: =IF(AW42<>"", ABS(AW42-DM$4),"") -> 0.1608466523 | BT42: =IF(AX42<>"", ABS(AX42-DN$4),"") -> 0 | BU42: =IF(AY42<>"", ABS(AY42-DO$4),"") -> 0.3186649791 | BV42: =IF(AZ42<>"", ABS(AZ42-DP$4),"") -> 0.1178555919 | BW42: =IF(BA42<>"", ABS(BA42-DQ$4),"") -> 0.1681912324 | BX42: =IF(BB42<>"", ABS(BB42-DR$4),"") -> 0.03700882233 | BY42: =IF(BC42<>"", ABS(BC42-DS$4),"") -> 0.1631549316 | BZ42: =IF(BD42<>"", ABS(BD42-DT$4),"") -> 0.1001391919 | CA42: =IF(BE42<>"", ABS(BE42-DU$4),"") -> 0.1746388649 | CB42: =IF(BF42<>"", ABS(BF42-DV$4),"") -> 0.0915797555 | CC42: =IF(BG42<>"", ABS(BG42-DW$4),"") -> 0.1408447446 | CD42: =IF(BH42<>"", ABS(BH42-DX$4),"") -> 0.1001392897 | CE42: =IF(BI42<>"", ABS(BI42-DY$4),"") -> 0.2859737435 | CF42: =IF(BJ42<>"", ABS(BJ42-DZ$4),"") -> 0.03930890784 | CG42: =IF(BK42<>"", ABS(BK42-EA$4),"") -> 0.02185532005 | CH42: =IF(BL42<>"", ABS(BL42-EB$4),"") -> 0.09016962034 | CI42: =IF(BM42<>"", ABS(BM42-EC$4),"") -> 0.02892917488 | CJ42: =IF(BN42<>"", ABS(BN42-ED$4),"") -> 0.1313253443 | CK42: =IF(BO42<>"", ABS(BO42-EE$4),"") -> 0.4345356412 | CL42: =IF(AND(AT42<>"",AT42>DJ$19, AT42<DJ$16), AT42,"") -> 0.1549510419 | CM42: =IF(AND(AU42<>"",AU42>DK$19, AU42<DK$16), AU42,"") -> 0.0490995512 | CN42: =IF(AND(AV42<>"",AV42>DL$19, AV42<DL$16), AV42,"") -> -0.1567895204 | CO42: =IF(AND(AW42<>"",AW42>DM$19, AW42<DM$16), AW42,"") -> 0.1461515818 | CP42: =IF(AND(AX42<>"",AX42>DN$19, AX42<DN$16), AX42,"") ->  | CQ42: =IF(AND(AY42<>"",AY42>DO$19, AY42<DO$16), AY42,"") -> 0.4054529297 | CR42: =IF(AND(AZ42<>"",AZ42>DP$19, AZ42<DP$16), AZ42,"") -> 0.2181742882 | CS42: =IF(AND(BA42<>"",BA42>DQ$19, BA42<DQ$16), BA42,"") -> 0.4256215008 | CT42: =IF(AND(BB42<>"",BB42>DR$19, BB42<DR$16), BB42,"") -> 0.2065391674 | CU42: =IF(AND(BC42<>"",BC42>DS$19, BC42<DS$16), BC42,"") -> 0.2245439003 | CV42: =IF(AND(BD42<>"",BD42>DT$19, BD42<DT$16), BD42,"") -> 0.1496679008 | CW42: =IF(AND(BE42<>"",BE42>DU$19, BE42<DU$16), BE42,"") -> 0.3248878347 | CX42: =IF(AND(BF42<>"",BF42>DV$19, BF42<DV$16), BF42,"") -> 0.4884756494 | CY42: =IF(AND(BG42<>"",BG42>DW$19, BG42<DW$16), BG42,"") -> 0.5129484028 | CZ42: =IF(AND(BH42<>"",BH42>DX$19, BH42<DX$16), BH42,"") -> 0.1601051916 | DA42: =IF(AND(BI42<>"",BI42>DY$19, BI42<DY$16), BI42,"") -> 0.2960757138 | DB42: =IF(AND(BJ42<>"",BJ42>DZ$19, BJ42<DZ$16), BJ42,"") -> 0.3160304129 | DC42: =IF(AND(BK42<>"",BK42>EA$19, BK42<EA$16), BK42,"") -> 0.05123997602 | DD42: =IF(AND(BL42<>"",BL42>EB$19, BL42<EB$16), BL42,"") -> 0.09006432476 | DE42: =IF(AND(BM42<>"",BM42>EC$19, BM42<EC$16), BM42,"") -> -0.01613156698 | DF42: =IF(AND(BN42<>"",BN42>ED$19, BN42<ED$16), BN42,"") -> 0.5337298145 | DG42: =IF(AND(BO42<>"",BO42>EE$19, BO42<EE$16), BO42,"") -> 0.7313410254
A43: 508.9932832 | B43: 633.935036 | C43: 920.7127026 | D43: 836.8784831 | E43: 687.8428554 | F43: 649.8954336 | G43: 694.4798532 | H43: 523.9852748 | I43: 254.7375546 | J43: 547.6544828 | K43: 391.9020303 | L43: 530.3216965 | M43: 17.77626732 | N43: 177.7322314 | O43: 283.2945893 | P43: 806.7991146 | Q43: 304.1341979 | R43: 557.4261198 | S43: 573.3065244 | T43: 756.6747886 | U43: 376.016125 | V43: 575.1592116 | W43: 687.8428554 | X43: =IF(AND(A43>0, $W43>0),$W43/A43, "") -> 1.351379042 | Y43: =IF(AND(B43>0, $W43>0),$W43/B43, "") -> 1.08503682 | Z43: =IF(AND(C43>0, $W43>0),$W43/C43, "") -> 0.7470765348 | AA43: =IF(AND(D43>0, $W43>0),$W43/D43, "") -> 0.821914853 | AB43: =IF(AND(E43>0, $W43>0),$W43/E43, "") -> 1 | AC43: =IF(AND(F43>0, $W43>0),$W43/F43, "") -> 1.058390042 | AD43: =IF(AND(G43>0, $W43>0),$W43/G43, "") -> 0.9904432105 | AE43: =IF(AND(H43>0, $W43>0),$W43/H43, "") -> 1.312714094 | AF43: =IF(AND(I43>0, $W43>0),$W43/I43, "") -> 2.700202004 | AG43: =IF(AND(J43>0, $W43>0),$W43/J43, "") -> 1.255979595 | AH43: =IF(AND(K43>0, $W43>0),$W43/K43, "") -> 1.755139811 | AI43: =IF(AND(L43>0, $W43>0),$W43/L43, "") -> 1.297029444 | AJ43: =IF(AND(M43>0, $W43>0),$W43/M43, "") -> 38.69444822 | AK43: =IF(AND(N43>0, $W43>0),$W43/N43, "") -> 3.870107578 | AL43: =IF(AND(O43>0, $W43>0),$W43/O43, "") -> 2.428012681 | AM43: =IF(AND(P43>0, $W43>0),$W43/P43, "") -> 0.8525577718 | AN43: =IF(AND(Q43>0, $W43>0),$W43/Q43, "") -> 2.261642591 | AO43: =IF(AND(R43>0, $W43>0),$W43/R43, "") -> 1.233962369 | AP43: =IF(AND(S43>0, $W43>0),$W43/S43, "") -> 1.199782012 | AQ43: =IF(AND(T43>0, $W43>0),$W43/T43, "") -> 0.9090336639 | AR43: =IF(AND(U43>0, $W43>0),$W43/U43, "") -> 1.829290846 | AS43: =IF(AND(V43>0, $W43>0),$W43/V43, "") -> 1.195917307 | AT43: =IF(X43<>"",LOG10(X43),"") -> 0.1307771793 | AU43: =IF(Y43<>"",LOG10(Y43),"") -> 0.03544447583 | AV43: =IF(Z43<>"",LOG10(Z43),"") -> -0.1266349043 | AW43: =IF(AA43<>"",LOG10(AA43),"") -> -0.08517317126 | AX43: =IF(AB43<>"",LOG10(AB43),"") -> 0 | AY43: =IF(AC43<>"",LOG10(AC43),"") -> 0.02464574517 | AZ43: =IF(AD43<>"",LOG10(AD43),"") -> -0.004170420769 | BA43: =IF(AE43<>"",LOG10(AE43),"") -> 0.1181701482 | BB43: =IF(AF43<>"",LOG10(AF43),"") -> 0.4313962552 | BC43: =IF(AG43<>"",LOG10(AG43),"") -> 0.09898258374 | BD43: =IF(AH43<>"",LOG10(AH43),"") -> 0.2443117172 | BE43: =IF(AI43<>"",LOG10(AI43),"") -> 0.1129498353 | BF43: =IF(AJ43<>"",LOG10(AJ43),"") -> 1.587648658 | BG43: =IF(AK43<>"",LOG10(AK43),"") -> 0.5877230373 | BH43: =IF(AL43<>"",LOG10(AL43),"") -> 0.3852509507 | BI43: =IF(AM43<>"",LOG10(AM43),"") -> -0.0692761823 | BJ43: =IF(AN43<>"",LOG10(AN43),"") -> 0.3544239742 | BK43: =IF(AO43<>"",LOG10(AO43),"") -> 0.09130191565 | BL43: =IF(AP43<>"",LOG10(AP43),"") -> 0.07910234641 | BM43: =IF(AQ43<>"",LOG10(AQ43),"") -> -0.04142003342 | BN43: =IF(AR43<>"",LOG10(AR43),"") -> 0.2622827611 | BO43: =IF(AS43<>"",LOG10(AS43),"") -> 0.07770115092 | BP43: =IF(AT43<>"", ABS(AT43-DJ$4),"") -> 0.06797737823 | BQ43: =IF(AU43<>"", ABS(AU43-DK$4),"") -> 0.03630134409 | BR43: =IF(AV43<>"", ABS(AV43-DL$4),"") -> 0.04971074732 | BS43: =IF(AW43<>"", ABS(AW43-DM$4),"") -> 0.07047810073 | BT43: =IF(AX43<>"", ABS(AX43-DN$4),"") -> 0 | BU43: =IF(AY43<>"", ABS(AY43-DO$4),"") -> 0.06214220537 | BV43: =IF(AZ43<>"", ABS(AZ43-DP$4),"") -> 0.1044891171 | BW43: =IF(BA43<>"", ABS(BA43-DQ$4),"") -> 0.1392601202 | BX43: =IF(BB43<>"", ABS(BB43-DR$4),"") -> 0.2618659101 | BY43: =IF(BC43<>"", ABS(BC43-DS$4),"") -> 0.03759361502 | BZ43: =IF(BD43<>"", ABS(BD43-DT$4),"") -> 0.1947830084 | CA43: =IF(BE43<>"", ABS(BE43-DU$4),"") -> 0.0372991345 | CB43: =IF(BF43<>"", ABS(BF43-DV$4),"") -> 1.007593253 | CC43: =IF(BG43<>"", ABS(BG43-DW$4),"") -> 0.2156193791 | CD43: =IF(BH43<>"", ABS(BH43-DX$4),"") -> 0.3252850487 | CE43: =IF(BI43<>"", ABS(BI43-DY$4),"") -> 0.0793781526 | CF43: =IF(BJ43<>"", ABS(BJ43-DZ$4),"") -> 0.0009153465837 | CG43: =IF(BK43<>"", ABS(BK43-EA$4),"") -> 0.01820661957 | CH43: =IF(BL43<>"", ABS(BL43-EB$4),"") -> 0.07920764199 | CI43: =IF(BM43<>"", ABS(BM43-EC$4),"") -> 0.00364070845 | CJ43: =IF(BN43<>"", ABS(BN43-ED$4),"") -> 0.1401217091 | CK43: =IF(BO43<>"", ABS(BO43-EE$4),"") -> 0.2191042333 | CL43: =IF(AND(AT43<>"",AT43>DJ$19, AT43<DJ$16), AT43,"") -> 0.1307771793 | CM43: =IF(AND(AU43<>"",AU43>DK$19, AU43<DK$16), AU43,"") -> 0.03544447583 | CN43: =IF(AND(AV43<>"",AV43>DL$19, AV43<DL$16), AV43,"") -> -0.1266349043 | CO43: =IF(AND(AW43<>"",AW43>DM$19, AW43<DM$16), AW43,"") -> -0.08517317126 | CP43: =IF(AND(AX43<>"",AX43>DN$19, AX43<DN$16), AX43,"") ->  | CQ43: =IF(AND(AY43<>"",AY43>DO$19, AY43<DO$16), AY43,"") -> 0.02464574517 | CR43: =IF(AND(AZ43<>"",AZ43>DP$19, AZ43<DP$16), AZ43,"") -> -0.004170420769 | CS43: =IF(AND(BA43<>"",BA43>DQ$19, BA43<DQ$16), BA43,"") -> 0.1181701482 | CT43: =IF(AND(BB43<>"",BB43>DR$19, BB43<DR$16), BB43,"") -> 0.4313962552 | CU43: =IF(AND(BC43<>"",BC43>DS$19, BC43<DS$16), BC43,"") -> 0.09898258374 | CV43: =IF(AND(BD43<>"",BD43>DT$19, BD43<DT$16), BD43,"") -> 0.2443117172 | CW43: =IF(AND(BE43<>"",BE43>DU$19, BE43<DU$16), BE43,"") -> 0.1129498353 | CX43: =IF(AND(BF43<>"",BF43>DV$19, BF43<DV$16), BF43,"") -> 1.587648658 | CY43: =IF(AND(BG43<>"",BG43>DW$19, BG43<DW$16), BG43,"") -> 0.5877230373 | CZ43: =IF(AND(BH43<>"",BH43>DX$19, BH43<DX$16), BH43,"") -> 0.3852509507 | DA43: =IF(AND(BI43<>"",BI43>DY$19, BI43<DY$16), BI43,"") -> -0.0692761823 | DB43: =IF(AND(BJ43<>"",BJ43>DZ$19, BJ43<DZ$16), BJ43,"") -> 0.3544239742 | DC43: =IF(AND(BK43<>"",BK43>EA$19, BK43<EA$16), BK43,"") -> 0.09130191565 | DD43: =IF(AND(BL43<>"",BL43>EB$19, BL43<EB$16), BL43,"") -> 0.07910234641 | DE43: =IF(AND(BM43<>"",BM43>EC$19, BM43<EC$16), BM43,"") -> -0.04142003342 | DF43: =IF(AND(BN43<>"",BN43>ED$19, BN43<ED$16), BN43,"") -> 0.2622827611 | DG43: =IF(AND(BO43<>"",BO43>EE$19, BO43<EE$16), BO43,"") -> 0.07770115092
A44: 1978.016585 | B44: 1586.800639 | C44: 3505.320796 | D44: 3809.401162 | E44: 1994.845957 | F44: 3325.974486 | G44: 1804.684365 | H44: 1665.734353 | I44: 1500.55418 | J44: 2272.697474 | K44: 1930.116735 | L44: 2436.366176 | M44: 577.5384817 | N44: 578.3771854 | O44: 1968.059552 | P44: 2593.719105 | Q44: 2533.336117 | R44: 1984.721256 | S44: 2769.842939 | T44: 2498.72223 | U44: 1912.90171 | V44: 1381.236876 | W44: 1994.845957 | X44: =IF(AND(A44>0, $W44>0),$W44/A44, "") -> 1.008508205 | Y44: =IF(AND(B44>0, $W44>0),$W44/B44, "") -> 1.257149706 | Z44: =IF(AND(C44>0, $W44>0),$W44/C44, "") -> 0.5690908401 | AA44: =IF(AND(D44>0, $W44>0),$W44/D44, "") -> 0.5236639231 | AB44: =IF(AND(E44>0, $W44>0),$W44/E44, "") -> 1 | AC44: =IF(AND(F44>0, $W44>0),$W44/F44, "") -> 0.5997778892 | AD44: =IF(AND(G44>0, $W44>0),$W44/G44, "") -> 1.105371108 | AE44: =IF(AND(H44>0, $W44>0),$W44/H44, "") -> 1.197577485 | AF44: =IF(AND(I44>0, $W44>0),$W44/I44, "") -> 1.329406151 | AG44: =IF(AND(J44>0, $W44>0),$W44/J44, "") -> 0.8777437294 | AH44: =IF(AND(K44>0, $W44>0),$W44/K44, "") -> 1.033536429 | AI44: =IF(AND(L44>0, $W44>0),$W44/L44, "") -> 0.8187792034 | AJ44: =IF(AND(M44>0, $W44>0),$W44/M44, "") -> 3.454048553 | AK44: =IF(AND(N44>0, $W44>0),$W44/N44, "") -> 3.449039843 | AL44: =IF(AND(O44>0, $W44>0),$W44/O44, "") -> 1.013610566 | AM44: =IF(AND(P44>0, $W44>0),$W44/P44, "") -> 0.7691063974 | AN44: =IF(AND(Q44>0, $W44>0),$W44/Q44, "") -> 0.7874383284 | AO44: =IF(AND(R44>0, $W44>0),$W44/R44, "") -> 1.005101321 | AP44: =IF(AND(S44>0, $W44>0),$W44/S44, "") -> 0.7202018313 | AQ44: =IF(AND(T44>0, $W44>0),$W44/T44, "") -> 0.7983464239 | AR44: =IF(AND(U44>0, $W44>0),$W44/U44, "") -> 1.042837667 | AS44: =IF(AND(V44>0, $W44>0),$W44/V44, "") -> 1.444246089 | AT44: =IF(X44<>"",LOG10(X44),"") -> 0.003679436087 | AU44: =IF(Y44<>"",LOG10(Y44),"") -> 0.09938699811 | AV44: =IF(Z44<>"",LOG10(Z44),"") -> -0.2448184046 | AW44: =IF(AA44<>"",LOG10(AA44),"") -> -0.280947345 | AX44: =IF(AB44<>"",LOG10(AB44),"") -> 0 | AY44: =IF(AC44<>"",LOG10(AC44),"") -> -0.2220095485 | AZ44: =IF(AD44<>"",LOG10(AD44),"") -> 0.04350810901 | BA44: =IF(AE44<>"",LOG10(AE44),"") -> 0.07830362234 | BB44: =IF(AF44<>"",LOG10(AF44),"") -> 0.123657684 | BC44: =IF(AG44<>"",LOG10(AG44),"") -> -0.05663226447 | BD44: =IF(AH44<>"",LOG10(AH44),"") -> 0.0143257887 | BE44: =IF(AI44<>"",LOG10(AI44),"") -> -0.08683319677 | BF44: =IF(AJ44<>"",LOG10(AJ44),"") -> 0.5383284381 | BG44: =IF(AK44<>"",LOG10(AK44),"") -> 0.5376982114 | BH44: =IF(AL44<>"",LOG10(AL44),"") -> 0.00587112925 | BI44: =IF(AM44<>"",LOG10(AM44),"") -> -0.1140135762 | BJ44: =IF(AN44<>"",LOG10(AN44),"") -> -0.1037834498 | BK44: =IF(AO44<>"",LOG10(AO44),"") -> 0.00220984389 | BL44: =IF(AP44<>"",LOG10(AP44),"") -> -0.1425457787 | BM44: =IF(AQ44<>"",LOG10(AQ44),"") -> -0.09780861576 | BN44: =IF(AR44<>"",LOG10(AR44),"") -> 0.01821670941 | BO44: =IF(AS44<>"",LOG10(AS44),"") -> 0.1596412002 | BP44: =IF(AT44<>"", ABS(AT44-DJ$4),"") -> 0.1950751214 | BQ44: =IF(AU44<>"", ABS(AU44-DK$4),"") -> 0.0276411782 | BR44: =IF(AV44<>"", ABS(AV44-DL$4),"") -> 0.06847275299 | BS44: =IF(AW44<>"", ABS(AW44-DM$4),"") -> 0.2662522745 | BT44: =IF(AX44<>"", ABS(AX44-DN$4),"") -> 0 | BU44: =IF(AY44<>"", ABS(AY44-DO$4),"") -> 0.3087974991 | BV44: =IF(AZ44<>"", ABS(AZ44-DP$4),"") -> 0.05681058733 | BW44: =IF(BA44<>"", ABS(BA44-DQ$4),"") -> 0.179126646 | BX44: =IF(BB44<>"", ABS(BB44-DR$4),"") -> 0.04587266104 | BY44: =IF(BC44<>"", ABS(BC44-DS$4),"") -> 0.1180212332 | BZ44: =IF(BD44<>"", ABS(BD44-DT$4),"") -> 0.03520292016 | CA44: =IF(BE44<>"", ABS(BE44-DU$4),"") -> 0.2370821666 | CB44: =IF(BF44<>"", ABS(BF44-DV$4),"") -> 0.04172696682 | CC44: =IF(BG44<>"", ABS(BG44-DW$4),"") -> 0.1655945531 | CD44: =IF(BH44<>"", ABS(BH44-DX$4),"") -> 0.05409477273 | CE44: =IF(BI44<>"", ABS(BI44-DY$4),"") -> 0.1241155465 | CF44: =IF(BJ44<>"", ABS(BJ44-DZ$4),"") -> 0.4591227706 | CG44: =IF(BK44<>"", ABS(BK44-EA$4),"") -> 0.07088545219 | CH44: =IF(BL44<>"", ABS(BL44-EB$4),"") -> 0.1424404831 | CI44: =IF(BM44<>"", ABS(BM44-EC$4),"") -> 0.05274787389 | CJ44: =IF(BN44<>"", ABS(BN44-ED$4),"") -> 0.3841877608 | CK44: =IF(BO44<>"", ABS(BO44-EE$4),"") -> 0.137164184 | CL44: =IF(AND(AT44<>"",AT44>DJ$19, AT44<DJ$16), AT44,"") -> 0.003679436087 | CM44: =IF(AND(AU44<>"",AU44>DK$19, AU44<DK$16), AU44,"") -> 0.09938699811 | CN44: =IF(AND(AV44<>"",AV44>DL$19, AV44<DL$16), AV44,"") -> -0.2448184046 | CO44: =IF(AND(AW44<>"",AW44>DM$19, AW44<DM$16), AW44,"") -> -0.280947345 | CP44: =IF(AND(AX44<>"",AX44>DN$19, AX44<DN$16), AX44,"") ->  | CQ44: =IF(AND(AY44<>"",AY44>DO$19, AY44<DO$16), AY44,"") -> -0.2220095485 | CR44: =IF(AND(AZ44<>"",AZ44>DP$19, AZ44<DP$16), AZ44,"") -> 0.04350810901 | CS44: =IF(AND(BA44<>"",BA44>DQ$19, BA44<DQ$16), BA44,"") -> 0.07830362234 | CT44: =IF(AND(BB44<>"",BB44>DR$19, BB44<DR$16), BB44,"") -> 0.123657684 | CU44: =IF(AND(BC44<>"",BC44>DS$19, BC44<DS$16), BC44,"") -> -0.05663226447 | CV44: =IF(AND(BD44<>"",BD44>DT$19, BD44<DT$16), BD44,"") -> 0.0143257887 | CW44: =IF(AND(BE44<>"",BE44>DU$19, BE44<DU$16), BE44,"") -> -0.08683319677 | CX44: =IF(AND(BF44<>"",BF44>DV$19, BF44<DV$16), BF44,"") -> 0.5383284381 | CY44: =IF(AND(BG44<>"",BG44>DW$19, BG44<DW$16), BG44,"") -> 0.5376982114 | CZ44: =IF(AND(BH44<>"",BH44>DX$19, BH44<DX$16), BH44,"") -> 0.00587112925 | DA44: =IF(AND(BI44<>"",BI44>DY$19, BI44<DY$16), BI44,"") -> -0.1140135762 | DB44: =IF(AND(BJ44<>"",BJ44>DZ$19, BJ44<DZ$16), BJ44,"") -> -0.1037834498 | DC44: =IF(AND(BK44<>"",BK44>EA$19, BK44<EA$16), BK44,"") -> 0.00220984389 | DD44: =IF(AND(BL44<>"",BL44>EB$19, BL44<EB$16), BL44,"") -> -0.1425457787 | DE44: =IF(AND(BM44<>"",BM44>EC$19, BM44<EC$16), BM44,"") -> -0.09780861576 | DF44: =IF(AND(BN44<>"",BN44>ED$19, BN44<ED$16), BN44,"") -> 0.01821670941 | DG44: =IF(AND(BO44<>"",BO44>EE$19, BO44<EE$16), BO44,"") -> 0.1596412002
A45: 484.5316342 | B45: 831.2291168 | C45: 441.0595973 | D45: 344.2100647 | E45: 719.9542845 | F45: 500.7046223 | G45: 547.3976306 | H45: 429.8176093 | I45: 755.3158252 | J45: 486.5629841 | K45: 408.173158 | L45: 533.2771067 | M45: 421.4603067 | N45: 394.1387906 | O45: 387.9672196 | P45: 581.645159 | Q45: 599.1859723 | R45: 568.4805727 | S45: 428.3180433 | T45: 479.1318283 | U45: 308.3320659 | V45: 410.5196036 | W45: 719.9542845 | X45: =IF(AND(A45>0, $W45>0),$W45/A45, "") -> 1.485876739 | Y45: =IF(AND(B45>0, $W45>0),$W45/B45, "") -> 0.866132177 | Z45: =IF(AND(C45>0, $W45>0),$W45/C45, "") -> 1.632328803 | AA45: =IF(AND(D45>0, $W45>0),$W45/D45, "") -> 2.091613111 | AB45: =IF(AND(E45>0, $W45>0),$W45/E45, "") -> 1 | AC45: =IF(AND(F45>0, $W45>0),$W45/F45, "") -> 1.437882241 | AD45: =IF(AND(G45>0, $W45>0),$W45/G45, "") -> 1.315230911 | AE45: =IF(AND(H45>0, $W45>0),$W45/H45, "") -> 1.675022774 | AF45: =IF(AND(I45>0, $W45>0),$W45/I45, "") -> 0.9531831063 | AG45: =IF(AND(J45>0, $W45>0),$W45/J45, "") -> 1.479673358 | AH45: =IF(AND(K45>0, $W45>0),$W45/K45, "") -> 1.763845246 | AI45: =IF(AND(L45>0, $W45>0),$W45/L45, "") -> 1.350056613 | AJ45: =IF(AND(M45>0, $W45>0),$W45/M45, "") -> 1.708237462 | AK45: =IF(AND(N45>0, $W45>0),$W45/N45, "") -> 1.826651681 | AL45: =IF(AND(O45>0, $W45>0),$W45/O45, "") -> 1.85570906 | AM45: =IF(AND(P45>0, $W45>0),$W45/P45, "") -> 1.237789524 | AN45: =IF(AND(Q45>0, $W45>0),$W45/Q45, "") -> 1.201553971 | AO45: =IF(AND(R45>0, $W45>0),$W45/R45, "") -> 1.266453629 | AP45: =IF(AND(S45>0, $W45>0),$W45/S45, "") -> 1.680887125 | AQ45: =IF(AND(T45>0, $W45>0),$W45/T45, "") -> 1.502622539 | AR45: =IF(AND(U45>0, $W45>0),$W45/U45, "") -> 2.334996467 | AS45: =IF(AND(V45>0, $W45>0),$W45/V45, "") -> 1.75376347 | AT45: =IF(X45<>"",LOG10(X45),"") -> 0.1719827839 | AU45: =IF(Y45<>"",LOG10(Y45),"") -> -0.06241582698 | AV45: =IF(Z45<>"",LOG10(Z45),"") -> 0.2128076439 | AW45: =IF(AA45<>"",LOG10(AA45),"") -> 0.3204813556 | AX45: =IF(AB45<>"",LOG10(AB45),"") -> 0 | AY45: =IF(AC45<>"",LOG10(AC45),"") -> 0.1577233199 | AZ45: =IF(AD45<>"",LOG10(AD45),"") -> 0.1190020073 | BA45: =IF(AE45<>"",LOG10(AE45),"") -> 0.2240207163 | BB45: =IF(AF45<>"",LOG10(AF45),"") -> -0.02082366346 | BC45: =IF(AG45<>"",LOG10(AG45),"") -> 0.1701658542 | BD45: =IF(AH45<>"",LOG10(AH45),"") -> 0.246460479 | BE45: =IF(AI45<>"",LOG10(AI45),"") -> 0.1303519805 | BF45: =IF(AJ45<>"",LOG10(AJ45),"") -> 0.2325482417 | BG45: =IF(AK45<>"",LOG10(AK45),"") -> 0.2616557409 | BH45: =IF(AL45<>"",LOG10(AL45),"") -> 0.2685098881 | BI45: =IF(AM45<>"",LOG10(AM45),"") -> 0.09264680274 | BJ45: =IF(AN45<>"",LOG10(AN45),"") -> 0.07974328313 | BK45: =IF(AO45<>"",LOG10(AO45),"") -> 0.1025892929 | BL45: =IF(AP45<>"",LOG10(AP45),"") -> 0.2255385507 | BM45: =IF(AQ45<>"",LOG10(AQ45),"") -> 0.1768498989 | BN45: =IF(AR45<>"",LOG10(AR45),"") -> 0.3682862277 | BO45: =IF(AS45<>"",LOG10(AS45),"") -> 0.2439710197 | BP45: =IF(AT45<>"", ABS(AT45-DJ$4),"") -> 0.02677177359 | BQ45: =IF(AU45<>"", ABS(AU45-DK$4),"") -> 0.1341616469 | BR45: =IF(AV45<>"", ABS(AV45-DL$4),"") -> 0.3891532955 | BS45: =IF(AW45<>"", ABS(AW45-DM$4),"") -> 0.3351764261 | BT45: =IF(AX45<>"", ABS(AX45-DN$4),"") -> 0 | BU45: =IF(AY45<>"", ABS(AY45-DO$4),"") -> 0.07093536941 | BV45: =IF(AZ45<>"", ABS(AZ45-DP$4),"") -> 0.01868331099 | BW45: =IF(BA45<>"", ABS(BA45-DQ$4),"") -> 0.03340955206 | BX45: =IF(BB45<>"", ABS(BB45-DR$4),"") -> 0.1903540085 | BY45: =IF(BC45<>"", ABS(BC45-DS$4),"") -> 0.1087768855 | BZ45: =IF(BD45<>"", ABS(BD45-DT$4),"") -> 0.1969317701 | CA45: =IF(BE45<>"", ABS(BE45-DU$4),"") -> 0.01989698932 | CB45: =IF(BF45<>"", ABS(BF45-DV$4),"") -> 0.3475071632 | CC45: =IF(BG45<>"", ABS(BG45-DW$4),"") -> 0.1104479173 | CD45: =IF(BH45<>"", ABS(BH45-DX$4),"") -> 0.2085439861 | CE45: =IF(BI45<>"", ABS(BI45-DY$4),"") -> 0.08254483244 | CF45: =IF(BJ45<>"", ABS(BJ45-DZ$4),"") -> 0.2755960376 | CG45: =IF(BK45<>"", ABS(BK45-EA$4),"") -> 0.0294939968 | CH45: =IF(BL45<>"", ABS(BL45-EB$4),"") -> 0.2256438462 | CI45: =IF(BM45<>"", ABS(BM45-EC$4),"") -> 0.2219106408 | CJ45: =IF(BN45<>"", ABS(BN45-ED$4),"") -> 0.0341182425 | CK45: =IF(BO45<>"", ABS(BO45-EE$4),"") -> 0.05283436456 | CL45: =IF(AND(AT45<>"",AT45>DJ$19, AT45<DJ$16), AT45,"") -> 0.1719827839 | CM45: =IF(AND(AU45<>"",AU45>DK$19, AU45<DK$16), AU45,"") -> -0.06241582698 | CN45: =IF(AND(AV45<>"",AV45>DL$19, AV45<DL$16), AV45,"") -> 0.2128076439 | CO45: =IF(AND(AW45<>"",AW45>DM$19, AW45<DM$16), AW45,"") -> 0.3204813556 | CP45: =IF(AND(AX45<>"",AX45>DN$19, AX45<DN$16), AX45,"") ->  | CQ45: =IF(AND(AY45<>"",AY45>DO$19, AY45<DO$16), AY45,"") -> 0.1577233199 | CR45: =IF(AND(AZ45<>"",AZ45>DP$19, AZ45<DP$16), AZ45,"") -> 0.1190020073 | CS45: =IF(AND(BA45<>"",BA45>DQ$19, BA45<DQ$16), BA45,"") -> 0.2240207163 | CT45: =IF(AND(BB45<>"",BB45>DR$19, BB45<DR$16), BB45,"") -> -0.02082366346 | CU45: =IF(AND(BC45<>"",BC45>DS$19, BC45<DS$16), BC45,"") -> 0.1701658542 | CV45: =IF(AND(BD45<>"",BD45>DT$19, BD45<DT$16), BD45,"") -> 0.246460479 | CW45: =IF(AND(BE45<>"",BE45>DU$19, BE45<DU$16), BE45,"") -> 0.1303519805 | CX45: =IF(AND(BF45<>"",BF45>DV$19, BF45<DV$16), BF45,"") -> 0.2325482417 | CY45: =IF(AND(BG45<>"",BG45>DW$19, BG45<DW$16), BG45,"") -> 0.2616557409 | CZ45: =IF(AND(BH45<>"",BH45>DX$19, BH45<DX$16), BH45,"") -> 0.2685098881 | DA45: =IF(AND(BI45<>"",BI45>DY$19, BI45<DY$16), BI45,"") -> 0.09264680274 | DB45: =IF(AND(BJ45<>"",BJ45>DZ$19, BJ45<DZ$16), BJ45,"") -> 0.07974328313 | DC45: =IF(AND(BK45<>"",BK45>EA$19, BK45<EA$16), BK45,"") -> 0.1025892929 | DD45: =IF(AND(BL45<>"",BL45>EB$19, BL45<EB$16), BL45,"") -> 0.2255385507 | DE45: =IF(AND(BM45<>"",BM45>EC$19, BM45<EC$16), BM45,"") -> 0.1768498989 | DF45: =IF(AND(BN45<>"",BN45>ED$19, BN45<ED$16), BN45,"") -> 0.3682862277 | DG45: =IF(AND(BO45<>"",BO45>EE$19, BO45<EE$16), BO45,"") -> 0.2439710197
A46: 1506.326262 | B46: 1586.998903 | C46: 2625.00719 | D46: 1459.643342 | E46: 1306.882421 | F46: 3179.263345 | G46: 1918.201237 | H46: 2541.518797 | I46: 859.7178752 | J46: 1570.278177 | K46: 2512.854245 | L46: 3073.566197 | M46: 350.8163982 | N46: 428.5973975 | O46: 1643.225916 | P46: 5923.137065 | Q46: 754.7149468 | R46: 2606.375019 | S46: 2641.807724 | T46: 997.2263798 | U46: 622.1210129 | V46: 1337.108557 | W46: 1306.882421 | X46: =IF(AND(A46>0, $W46>0),$W46/A46, "") -> 0.8675958551 | Y46: =IF(AND(B46>0, $W46>0),$W46/B46, "") -> 0.823492958 | Z46: =IF(AND(C46>0, $W46>0),$W46/C46, "") -> 0.4978586062 | AA46: =IF(AND(D46>0, $W46>0),$W46/D46, "") -> 0.8953436659 | AB46: =IF(AND(E46>0, $W46>0),$W46/E46, "") -> 1 | AC46: =IF(AND(F46>0, $W46>0),$W46/F46, "") -> 0.4110645389 | AD46: =IF(AND(G46>0, $W46>0),$W46/G46, "") -> 0.6813062132 | AE46: =IF(AND(H46>0, $W46>0),$W46/H46, "") -> 0.5142131637 | AF46: =IF(AND(I46>0, $W46>0),$W46/I46, "") -> 1.520129404 | AG46: =IF(AND(J46>0, $W46>0),$W46/J46, "") -> 0.8322617231 | AH46: =IF(AND(K46>0, $W46>0),$W46/K46, "") -> 0.5200788798 | AI46: =IF(AND(L46>0, $W46>0),$W46/L46, "") -> 0.4252006748 | AJ46: =IF(AND(M46>0, $W46>0),$W46/M46, "") -> 3.725260358 | AK46: =IF(AND(N46>0, $W46>0),$W46/N46, "") -> 3.049207551 | AL46: =IF(AND(O46>0, $W46>0),$W46/O46, "") -> 0.7953151225 | AM46: =IF(AND(P46>0, $W46>0),$W46/P46, "") -> 0.2206402463 | AN46: =IF(AND(Q46>0, $W46>0),$W46/Q46, "") -> 1.731623875 | AO46: =IF(AND(R46>0, $W46>0),$W46/R46, "") -> 0.5014176438 | AP46: =IF(AND(S46>0, $W46>0),$W46/S46, "") -> 0.4946924825 | AQ46: =IF(AND(T46>0, $W46>0),$W46/T46, "") -> 1.310517298 | AR46: =IF(AND(U46>0, $W46>0),$W46/U46, "") -> 2.100688441 | AS46: =IF(AND(V46>0, $W46>0),$W46/V46, "") -> 0.9773944042 | AT46: =IF(X46<>"",LOG10(X46),"") -> -0.06168253147 | AU46: =IF(Y46<>"",LOG10(Y46),"") -> -0.08434011031 | AV46: =IF(Z46<>"",LOG10(Z46),"") -> -0.3028939811 | AW46: =IF(AA46<>"",LOG10(AA46),"") -> -0.04801023444 | AX46: =IF(AB46<>"",LOG10(AB46),"") -> 0 | AY46: =IF(AC46<>"",LOG10(AC46),"") -> -0.3860899867 | AZ46: =IF(AD46<>"",LOG10(AD46),"") -> -0.1666576505 | BA46: =IF(AE46<>"",LOG10(AE46),"") -> -0.2888568097 | BB46: =IF(AF46<>"",LOG10(AF46),"") -> 0.1818805596 | BC46: =IF(AG46<>"",LOG10(AG46),"") -> -0.07974007872 | BD46: =IF(AH46<>"",LOG10(AH46),"") -> -0.2839307824 | BE46: =IF(AI46<>"",LOG10(AI46),"") -> -0.3714060549 | BF46: =IF(AJ46<>"",LOG10(AJ46),"") -> 0.5711566309 | BG46: =IF(AK46<>"",LOG10(AK46),"") -> 0.4841869866 | BH46: =IF(AL46<>"",LOG10(AL46),"") -> -0.09946075956 | BI46: =IF(AM46<>"",LOG10(AM46),"") -> -0.6563152663 | BJ46: =IF(AN46<>"",LOG10(AN46),"") -> 0.2384535652 | BK46: =IF(AO46<>"",LOG10(AO46),"") -> -0.2998003882 | BL46: =IF(AP46<>"",LOG10(AP46),"") -> -0.3056646893 | BM46: =IF(AQ46<>"",LOG10(AQ46),"") -> 0.1174427578 | BN46: =IF(AR46<>"",LOG10(AR46),"") -> 0.3223616458 | BO46: =IF(AS46<>"",LOG10(AS46),"") -> -0.009930151713 | BP46: =IF(AT46<>"", ABS(AT46-DJ$4),"") -> 0.260437089 | BQ46: =IF(AU46<>"", ABS(AU46-DK$4),"") -> 0.1560859302 | BR46: =IF(AV46<>"", ABS(AV46-DL$4),"") -> 0.1265483295 | BS46: =IF(AW46<>"", ABS(AW46-DM$4),"") -> 0.0333151639 | BT46: =IF(AX46<>"", ABS(AX46-DN$4),"") -> 0 | BU46: =IF(AY46<>"", ABS(AY46-DO$4),"") -> 0.4728779372 | BV46: =IF(AZ46<>"", ABS(AZ46-DP$4),"") -> 0.2669763468 | BW46: =IF(BA46<>"", ABS(BA46-DQ$4),"") -> 0.5462870781 | BX46: =IF(BB46<>"", ABS(BB46-DR$4),"") -> 0.01235021455 | BY46: =IF(BC46<>"", ABS(BC46-DS$4),"") -> 0.1411290474 | BZ46: =IF(BD46<>"", ABS(BD46-DT$4),"") -> 0.3334594913 | CA46: =IF(BE46<>"", ABS(BE46-DU$4),"") -> 0.5216550248 | CB46: =IF(BF46<>"", ABS(BF46-DV$4),"") -> 0.008898774008 | CC46: =IF(BG46<>"", ABS(BG46-DW$4),"") -> 0.1120833284 | CD46: =IF(BH46<>"", ABS(BH46-DX$4),"") -> 0.1594266615 | CE46: =IF(BI46<>"", ABS(BI46-DY$4),"") -> 0.6664172366 | CF46: =IF(BJ46<>"", ABS(BJ46-DZ$4),"") -> 0.1168857556 | CG46: =IF(BK46<>"", ABS(BK46-EA$4),"") -> 0.3728956843 | CH46: =IF(BL46<>"", ABS(BL46-EB$4),"") -> 0.3055593937 | CI46: =IF(BM46<>"", ABS(BM46-EC$4),"") -> 0.1625034997 | CJ46: =IF(BN46<>"", ABS(BN46-ED$4),"") -> 0.08004282436 | CK46: =IF(BO46<>"", ABS(BO46-EE$4),"") -> 0.3067355359 | CL46: =IF(AND(AT46<>"",AT46>DJ$19, AT46<DJ$16), AT46,"") -> -0.06168253147 | CM46: =IF(AND(AU46<>"",AU46>DK$19, AU46<DK$16), AU46,"") -> -0.08434011031 | CN46: =IF(AND(AV46<>"",AV46>DL$19, AV46<DL$16), AV46,"") -> -0.3028939811 | CO46: =IF(AND(AW46<>"",AW46>DM$19, AW46<DM$16), AW46,"") -> -0.04801023444 | CP46: =IF(AND(AX46<>"",AX46>DN$19, AX46<DN$16), AX46,"") ->  | CQ46: =IF(AND(AY46<>"",AY46>DO$19, AY46<DO$16), AY46,"") -> -0.3860899867 | CR46: =IF(AND(AZ46<>"",AZ46>DP$19, AZ46<DP$16), AZ46,"") -> -0.1666576505 | CS46: =IF(AND(BA46<>"",BA46>DQ$19, BA46<DQ$16), BA46,"") -> -0.2888568097 | CT46: =IF(AND(BB46<>"",BB46>DR$19, BB46<DR$16), BB46,"") -> 0.1818805596 | CU46: =IF(AND(BC46<>"",BC46>DS$19, BC46<DS$16), BC46,"") -> -0.07974007872 | CV46: =IF(AND(BD46<>"",BD46>DT$19, BD46<DT$16), BD46,"") -> -0.2839307824 | CW46: =IF(AND(BE46<>"",BE46>DU$19, BE46<DU$16), BE46,"") -> -0.3714060549 | CX46: =IF(AND(BF46<>"",BF46>DV$19, BF46<DV$16), BF46,"") -> 0.5711566309 | CY46: =IF(AND(BG46<>"",BG46>DW$19, BG46<DW$16), BG46,"") -> 0.4841869866 | CZ46: =IF(AND(BH46<>"",BH46>DX$19, BH46<DX$16), BH46,"") -> -0.09946075956 | DA46: =IF(AND(BI46<>"",BI46>DY$19, BI46<DY$16), BI46,"") ->  | DB46: =IF(AND(BJ46<>"",BJ46>DZ$19, BJ46<DZ$16), BJ46,"") -> 0.2384535652 | DC46: =IF(AND(BK46<>"",BK46>EA$19, BK46<EA$16), BK46,"") -> -0.2998003882 | DD46: =IF(AND(BL46<>"",BL46>EB$19, BL46<EB$16), BL46,"") -> -0.3056646893 | DE46: =IF(AND(BM46<>"",BM46>EC$19, BM46<EC$16), BM46,"") -> 0.1174427578 | DF46: =IF(AND(BN46<>"",BN46>ED$19, BN46<ED$16), BN46,"") -> 0.3223616458 | DG46: =IF(AND(BO46<>"",BO46>EE$19, BO46<EE$16), BO46,"") -> -0.009930151713
A47: 460.8536155 | B47: 984.9448181 | C47: 746.5936932 | D47: 577.3208929 | E47: 982.1761693 | F47: 656.0847507 | G47: 779.597964 | H47: 485.5461402 | I47: 623.4114154 | J47: 624.5353091 | K47: 429.5908546 | L47: 752.8964684 | M47: 479.4843087 | N47: 536.3272251 | O47: 332.6642804 | P47: 853.8580334 | Q47: 517.7118635 | R47: 775.2221942 | S47: 545.7128571 | T47: 809.1034179 | U47: 814.6362382 | V47: 444.9145745 | W47: 982.1761693 | X47: =IF(AND(A47>0, $W47>0),$W47/A47, "") -> 2.131210728 | Y47: =IF(AND(B47>0, $W47>0),$W47/B47, "") -> 0.9971890316 | Z47: =IF(AND(C47>0, $W47>0),$W47/C47, "") -> 1.315543083 | AA47: =IF(AND(D47>0, $W47>0),$W47/D47, "") -> 1.70126559 | AB47: =IF(AND(E47>0, $W47>0),$W47/E47, "") -> 1 | AC47: =IF(AND(F47>0, $W47>0),$W47/F47, "") -> 1.497026365 | AD47: =IF(AND(G47>0, $W47>0),$W47/G47, "") -> 1.259849582 | AE47: =IF(AND(H47>0, $W47>0),$W47/H47, "") -> 2.022827674 | AF47: =IF(AND(I47>0, $W47>0),$W47/I47, "") -> 1.57548634 | AG47: =IF(AND(J47>0, $W47>0),$W47/J47, "") -> 1.572651146 | AH47: =IF(AND(K47>0, $W47>0),$W47/K47, "") -> 2.286306048 | AI47: =IF(AND(L47>0, $W47>0),$W47/L47, "") -> 1.304530185 | AJ47: =IF(AND(M47>0, $W47>0),$W47/M47, "") -> 2.048401066 | AK47: =IF(AND(N47>0, $W47>0),$W47/N47, "") -> 1.831300227 | AL47: =IF(AND(O47>0, $W47>0),$W47/O47, "") -> 2.952454553 | AM47: =IF(AND(P47>0, $W47>0),$W47/P47, "") -> 1.150280411 | AN47: =IF(AND(Q47>0, $W47>0),$W47/Q47, "") -> 1.897148276 | AO47: =IF(AND(R47>0, $W47>0),$W47/R47, "") -> 1.266960849 | AP47: =IF(AND(S47>0, $W47>0),$W47/S47, "") -> 1.799803975 | AQ47: =IF(AND(T47>0, $W47>0),$W47/T47, "") -> 1.213906835 | AR47: =IF(AND(U47>0, $W47>0),$W47/U47, "") -> 1.205662262 | AS47: =IF(AND(V47>0, $W47>0),$W47/V47, "") -> 2.207561239 | AT47: =IF(X47<>"",LOG10(X47),"") -> 0.3286263936 | AU47: =IF(Y47<>"",LOG10(Y47),"") -> -0.001222507105 | AV47: =IF(Z47<>"",LOG10(Z47),"") -> 0.1191050756 | AW47: =IF(AA47<>"",LOG10(AA47),"") -> 0.2307721179 | AX47: =IF(AB47<>"",LOG10(AB47),"") -> 0 | AY47: =IF(AC47<>"",LOG10(AC47),"") -> 0.1752294489 | AZ47: =IF(AD47<>"",LOG10(AD47),"") -> 0.1003186963 | BA47: =IF(AE47<>"",LOG10(AE47),"") -> 0.3059588864 | BB47: =IF(AF47<>"",LOG10(AF47),"") -> 0.1974146421 | BC47: =IF(AG47<>"",LOG10(AG47),"") -> 0.1966323956 | BD47: =IF(AH47<>"",LOG10(AH47),"") -> 0.3591343653 | BE47: =IF(AI47<>"",LOG10(AI47),"") -> 0.1154541325 | BF47: =IF(AJ47<>"",LOG10(AJ47),"") -> 0.3114149933 | BG47: =IF(AK47<>"",LOG10(AK47),"") -> 0.2627595493 | BH47: =IF(AL47<>"",LOG10(AL47),"") -> 0.4701832212 | BI47: =IF(AM47<>"",LOG10(AM47),"") -> 0.06080372375 | BJ47: =IF(AN47<>"",LOG10(AN47),"") -> 0.2781012754 | BK47: =IF(AO47<>"",LOG10(AO47),"") -> 0.1027631947 | BL47: =IF(AP47<>"",LOG10(AP47),"") -> 0.2552252066 | BM47: =IF(AQ47<>"",LOG10(AQ47),"") -> 0.08418535675 | BN47: =IF(AR47<>"",LOG10(AR47),"") -> 0.08122566727 | BO47: =IF(AS47<>"",LOG10(AS47),"") -> 0.34391276 | BP47: =IF(AT47<>"", ABS(AT47-DJ$4),"") -> 0.129871836 | BQ47: =IF(AU47<>"", ABS(AU47-DK$4),"") -> 0.07296832702 | BR47: =IF(AV47<>"", ABS(AV47-DL$4),"") -> 0.2954507272 | BS47: =IF(AW47<>"", ABS(AW47-DM$4),"") -> 0.2454671884 | BT47: =IF(AX47<>"", ABS(AX47-DN$4),"") -> 0 | BU47: =IF(AY47<>"", ABS(AY47-DO$4),"") -> 0.08844149836 | BV47: =IF(AZ47<>"", ABS(AZ47-DP$4),"") -> 0 | BW47: =IF(BA47<>"", ABS(BA47-DQ$4),"") -> 0.04852861808 | BX47: =IF(BB47<>"", ABS(BB47-DR$4),"") -> 0.02788429706 | BY47: =IF(BC47<>"", ABS(BC47-DS$4),"") -> 0.1352434269 | BZ47: =IF(BD47<>"", ABS(BD47-DT$4),"") -> 0.3096056564 | CA47: =IF(BE47<>"", ABS(BE47-DU$4),"") -> 0.03479483729 | CB47: =IF(BF47<>"", ABS(BF47-DV$4),"") -> 0.2686404116 | CC47: =IF(BG47<>"", ABS(BG47-DW$4),"") -> 0.1093441089 | CD47: =IF(BH47<>"", ABS(BH47-DX$4),"") -> 0.4102173193 | CE47: =IF(BI47<>"", ABS(BI47-DY$4),"") -> 0.05070175346 | CF47: =IF(BJ47<>"", ABS(BJ47-DZ$4),"") -> 0.07723804529 | CG47: =IF(BK47<>"", ABS(BK47-EA$4),"") -> 0.02966789862 | CH47: =IF(BL47<>"", ABS(BL47-EB$4),"") -> 0.2553305022 | CI47: =IF(BM47<>"", ABS(BM47-EC$4),"") -> 0.1292460986 | CJ47: =IF(BN47<>"", ABS(BN47-ED$4),"") -> 0.3211788029 | CK47: =IF(BO47<>"", ABS(BO47-EE$4),"") -> 0.04710737575 | CL47: =IF(AND(AT47<>"",AT47>DJ$19, AT47<DJ$16), AT47,"") -> 0.3286263936 | CM47: =IF(AND(AU47<>"",AU47>DK$19, AU47<DK$16), AU47,"") -> -0.001222507105 | CN47: =IF(AND(AV47<>"",AV47>DL$19, AV47<DL$16), AV47,"") -> 0.1191050756 | CO47: =IF(AND(AW47<>"",AW47>DM$19, AW47<DM$16), AW47,"") -> 0.2307721179 | CP47: =IF(AND(AX47<>"",AX47>DN$19, AX47<DN$16), AX47,"") ->  | CQ47: =IF(AND(AY47<>"",AY47>DO$19, AY47<DO$16), AY47,"") -> 0.1752294489 | CR47: =IF(AND(AZ47<>"",AZ47>DP$19, AZ47<DP$16), AZ47,"") -> 0.1003186963 | CS47: =IF(AND(BA47<>"",BA47>DQ$19, BA47<DQ$16), BA47,"") -> 0.3059588864 | CT47: =IF(AND(BB47<>"",BB47>DR$19, BB47<DR$16), BB47,"") -> 0.1974146421 | CU47: =IF(AND(BC47<>"",BC47>DS$19, BC47<DS$16), BC47,"") -> 0.1966323956 | CV47: =IF(AND(BD47<>"",BD47>DT$19, BD47<DT$16), BD47,"") -> 0.3591343653 | CW47: =IF(AND(BE47<>"",BE47>DU$19, BE47<DU$16), BE47,"") -> 0.1154541325 | CX47: =IF(AND(BF47<>"",BF47>DV$19, BF47<DV$16), BF47,"") -> 0.3114149933 | CY47: =IF(AND(BG47<>"",BG47>DW$19, BG47<DW$16), BG47,"") -> 0.2627595493 | CZ47: =IF(AND(BH47<>"",BH47>DX$19, BH47<DX$16), BH47,"") -> 0.4701832212 | DA47: =IF(AND(BI47<>"",BI47>DY$19, BI47<DY$16), BI47,"") -> 0.06080372375 | DB47: =IF(AND(BJ47<>"",BJ47>DZ$19, BJ47<DZ$16), BJ47,"") -> 0.2781012754 | DC47: =IF(AND(BK47<>"",BK47>EA$19, BK47<EA$16), BK47,"") -> 0.1027631947 | DD47: =IF(AND(BL47<>"",BL47>EB$19, BL47<EB$16), BL47,"") -> 0.2552252066 | DE47: =IF(AND(BM47<>"",BM47>EC$19, BM47<EC$16), BM47,"") -> 0.08418535675 | DF47: =IF(AND(BN47<>"",BN47>ED$19, BN47<ED$16), BN47,"") -> 0.08122566727 | DG47: =IF(AND(BO47<>"",BO47>EE$19, BO47<EE$16), BO47,"") -> 0.34391276
A48: 477.4797091 | B48: 1184.439211 | C48: 1765.715051 | D48: 949.6848149 | E48: 1116.118683 | F48: 780.6161477 | G48: 850.3924889 | H48: 588.802452 | I48: 623.5230811 | J48: 763.0995723 | K48: 531.2094559 | L48: 631.4469539 | M48: 259.0508084 | N48: 350.7396248 | O48: 489.7153925 | P48: 1160.437147 | Q48: 508.1803102 | R48: 944.383253 | S48: 813.8170214 | T48: 1214.31477 | U48: 438.1647761 | V48: 634.6411283 | W48: 1116.118683 | X48: =IF(AND(A48>0, $W48>0),$W48/A48, "") -> 2.337520656 | Y48: =IF(AND(B48>0, $W48>0),$W48/B48, "") -> 0.9423182486 | Z48: =IF(AND(C48>0, $W48>0),$W48/C48, "") -> 0.6321057761 | AA48: =IF(AND(D48>0, $W48>0),$W48/D48, "") -> 1.175251689 | AB48: =IF(AND(E48>0, $W48>0),$W48/E48, "") -> 1 | AC48: =IF(AND(F48>0, $W48>0),$W48/F48, "") -> 1.429791948 | AD48: =IF(AND(G48>0, $W48>0),$W48/G48, "") -> 1.312474766 | AE48: =IF(AND(H48>0, $W48>0),$W48/H48, "") -> 1.895574108 | AF48: =IF(AND(I48>0, $W48>0),$W48/I48, "") -> 1.790019835 | AG48: =IF(AND(J48>0, $W48>0),$W48/J48, "") -> 1.462612119 | AH48: =IF(AND(K48>0, $W48>0),$W48/K48, "") -> 2.101089637 | AI48: =IF(AND(L48>0, $W48>0),$W48/L48, "") -> 1.767557316 | AJ48: =IF(AND(M48>0, $W48>0),$W48/M48, "") -> 4.308493341 | AK48: =IF(AND(N48>0, $W48>0),$W48/N48, "") -> 3.182185883 | AL48: =IF(AND(O48>0, $W48>0),$W48/O48, "") -> 2.279117013 | AM48: =IF(AND(P48>0, $W48>0),$W48/P48, "") -> 0.9618088197 | AN48: =IF(AND(Q48>0, $W48>0),$W48/Q48, "") -> 2.196304462 | AO48: =IF(AND(R48>0, $W48>0),$W48/R48, "") -> 1.181849296 | AP48: =IF(AND(S48>0, $W48>0),$W48/S48, "") -> 1.371461463 | AQ48: =IF(AND(T48>0, $W48>0),$W48/T48, "") -> 0.9191345691 | AR48: =IF(AND(U48>0, $W48>0),$W48/U48, "") -> 2.547257889 | AS48: =IF(AND(V48>0, $W48>0),$W48/V48, "") -> 1.758661128 | AT48: =IF(X48<>"",LOG10(X48),"") -> 0.3687554572 | AU48: =IF(Y48<>"",LOG10(Y48),"") -> -0.02580239841 | AV48: =IF(Z48<>"",LOG10(Z48),"") -> -0.1992102412 | AW48: =IF(AA48<>"",LOG10(AA48),"") -> 0.07013088398 | AX48: =IF(AB48<>"",LOG10(AB48),"") -> 0 | AY48: =IF(AC48<>"",LOG10(AC48),"") -> 0.1552728471 | AZ48: =IF(AD48<>"",LOG10(AD48),"") -> 0.1180909622 | BA48: =IF(AE48<>"",LOG10(AE48),"") -> 0.2777407679 | BB48: =IF(AF48<>"",LOG10(AF48),"") -> 0.2528578433 | BC48: =IF(AG48<>"",LOG10(AG48),"") -> 0.1651291677 | BD48: =IF(AH48<>"",LOG10(AH48),"") -> 0.3224445807 | BE48: =IF(AI48<>"",LOG10(AI48),"") -> 0.2473735053 | BF48: =IF(AJ48<>"",LOG10(AJ48),"") -> 0.634325426 | BG48: =IF(AK48<>"",LOG10(AK48),"") -> 0.5027255448 | BH48: =IF(AL48<>"",LOG10(AL48),"") -> 0.3577666231 | BI48: =IF(AM48<>"",LOG10(AM48),"") -> -0.01691124478 | BJ48: =IF(AN48<>"",LOG10(AN48),"") -> 0.3416925438 | BK48: =IF(AO48<>"",LOG10(AO48),"") -> 0.07256210082 | BL48: =IF(AP48<>"",LOG10(AP48),"") -> 0.1371836088 | BM48: =IF(AQ48<>"",LOG10(AQ48),"") -> -0.03662089954 | BN48: =IF(AR48<>"",LOG10(AR48),"") -> 0.406072916 | BO48: =IF(AS48<>"",LOG10(AS48),"") -> 0.2451821645 | BP48: =IF(AT48<>"", ABS(AT48-DJ$4),"") -> 0.1700008997 | BQ48: =IF(AU48<>"", ABS(AU48-DK$4),"") -> 0.09754821833 | BR48: =IF(AV48<>"", ABS(AV48-DL$4),"") -> 0.02286458956 | BS48: =IF(AW48<>"", ABS(AW48-DM$4),"") -> 0.08482595452 | BT48: =IF(AX48<>"", ABS(AX48-DN$4),"") -> 0 | BU48: =IF(AY48<>"", ABS(AY48-DO$4),"") -> 0.06848489651 | BV48: =IF(AZ48<>"", ABS(AZ48-DP$4),"") -> 0.01777226589 | BW48: =IF(BA48<>"", ABS(BA48-DQ$4),"") -> 0.0203104996 | BX48: =IF(BB48<>"", ABS(BB48-DR$4),"") -> 0.08332749829 | BY48: =IF(BC48<>"", ABS(BC48-DS$4),"") -> 0.103740199 | BZ48: =IF(BD48<>"", ABS(BD48-DT$4),"") -> 0.2729158718 | CA48: =IF(BE48<>"", ABS(BE48-DU$4),"") -> 0.09712453549 | CB48: =IF(BF48<>"", ABS(BF48-DV$4),"") -> 0.05427002111 | CC48: =IF(BG48<>"", ABS(BG48-DW$4),"") -> 0.1306218866 | CD48: =IF(BH48<>"", ABS(BH48-DX$4),"") -> 0.2978007211 | CE48: =IF(BI48<>"", ABS(BI48-DY$4),"") -> 0.02701321508 | CF48: =IF(BJ48<>"", ABS(BJ48-DZ$4),"") -> 0.01364677691 | CG48: =IF(BK48<>"", ABS(BK48-EA$4),"") -> 0.0005331952544 | CH48: =IF(BL48<>"", ABS(BL48-EB$4),"") -> 0.1372889043 | CI48: =IF(BM48<>"", ABS(BM48-EC$4),"") -> 0.008439842328 | CJ48: =IF(BN48<>"", ABS(BN48-ED$4),"") -> 0.003668445788 | CK48: =IF(BO48<>"", ABS(BO48-EE$4),"") -> 0.05162321977 | CL48: =IF(AND(AT48<>"",AT48>DJ$19, AT48<DJ$16), AT48,"") -> 0.3687554572 | CM48: =IF(AND(AU48<>"",AU48>DK$19, AU48<DK$16), AU48,"") -> -0.02580239841 | CN48: =IF(AND(AV48<>"",AV48>DL$19, AV48<DL$16), AV48,"") -> -0.1992102412 | CO48: =IF(AND(AW48<>"",AW48>DM$19, AW48<DM$16), AW48,"") -> 0.07013088398 | CP48: =IF(AND(AX48<>"",AX48>DN$19, AX48<DN$16), AX48,"") ->  | CQ48: =IF(AND(AY48<>"",AY48>DO$19, AY48<DO$16), AY48,"") -> 0.1552728471 | CR48: =IF(AND(AZ48<>"",AZ48>DP$19, AZ48<DP$16), AZ48,"") -> 0.1180909622 | CS48: =IF(AND(BA48<>"",BA48>DQ$19, BA48<DQ$16), BA48,"") -> 0.2777407679 | CT48: =IF(AND(BB48<>"",BB48>DR$19, BB48<DR$16), BB48,"") -> 0.2528578433 | CU48: =IF(AND(BC48<>"",BC48>DS$19, BC48<DS$16), BC48,"") -> 0.1651291677 | CV48: =IF(AND(BD48<>"",BD48>DT$19, BD48<DT$16), BD48,"") -> 0.3224445807 | CW48: =IF(AND(BE48<>"",BE48>DU$19, BE48<DU$16), BE48,"") -> 0.2473735053 | CX48: =IF(AND(BF48<>"",BF48>DV$19, BF48<DV$16), BF48,"") -> 0.634325426 | CY48: =IF(AND(BG48<>"",BG48>DW$19, BG48<DW$16), BG48,"") -> 0.5027255448 | CZ48: =IF(AND(BH48<>"",BH48>DX$19, BH48<DX$16), BH48,"") -> 0.3577666231 | DA48: =IF(AND(BI48<>"",BI48>DY$19, BI48<DY$16), BI48,"") -> -0.01691124478 | DB48: =IF(AND(BJ48<>"",BJ48>DZ$19, BJ48<DZ$16), BJ48,"") -> 0.3416925438 | DC48: =IF(AND(BK48<>"",BK48>EA$19, BK48<EA$16), BK48,"") -> 0.07256210082 | DD48: =IF(AND(BL48<>"",BL48>EB$19, BL48<EB$16), BL48,"") -> 0.1371836088 | DE48: =IF(AND(BM48<>"",BM48>EC$19, BM48<EC$16), BM48,"") -> -0.03662089954 | DF48: =IF(AND(BN48<>"",BN48>ED$19, BN48<ED$16), BN48,"") -> 0.406072916 | DG48: =IF(AND(BO48<>"",BO48>EE$19, BO48<EE$16), BO48,"") -> 0.2451821645
A49: 265.3060103 | B49: 321.82499 | C49: 328.4809711 | D49: 309.077259 | E49: 468.4618998 | F49: 406.53828 | G49: 464.3049727 | H49: 244.2546487 | I49: 579.8562952 | J49: 762.8370047 | K49: 587.6319137 | L49: 719.1719803 | M49: 330.9559832 | N49: 913.4933938 | O49: 915.1374904 | P49: 407.8044522 | Q49: 129.5263665 | R49: 255.0054559 | S49: 232.7846003 | T49: 250.8780968 | U49: 113.8620618 | V49: 159.4276232 | W49: 468.4618998 | X49: =IF(AND(A49>0, $W49>0),$W49/A49, "") -> 1.765741753 | Y49: =IF(AND(B49>0, $W49>0),$W49/B49, "") -> 1.455641775 | Z49: =IF(AND(C49>0, $W49>0),$W49/C49, "") -> 1.426146234 | AA49: =IF(AND(D49>0, $W49>0),$W49/D49, "") -> 1.515678965 | AB49: =IF(AND(E49>0, $W49>0),$W49/E49, "") -> 1 | AC49: =IF(AND(F49>0, $W49>0),$W49/F49, "") -> 1.152319284 | AD49: =IF(AND(G49>0, $W49>0),$W49/G49, "") -> 1.00895301 | AE49: =IF(AND(H49>0, $W49>0),$W49/H49, "") -> 1.917924192 | AF49: =IF(AND(I49>0, $W49>0),$W49/I49, "") -> 0.8078930999 | AG49: =IF(AND(J49>0, $W49>0),$W49/J49, "") -> 0.6141048441 | AH49: =IF(AND(K49>0, $W49>0),$W49/K49, "") -> 0.797202958 | AI49: =IF(AND(L49>0, $W49>0),$W49/L49, "") -> 0.6513906446 | AJ49: =IF(AND(M49>0, $W49>0),$W49/M49, "") -> 1.415480981 | AK49: =IF(AND(N49>0, $W49>0),$W49/N49, "") -> 0.512824617 | AL49: =IF(AND(O49>0, $W49>0),$W49/O49, "") -> 0.5119032984 | AM49: =IF(AND(P49>0, $W49>0),$W49/P49, "") -> 1.148741504 | AN49: =IF(AND(Q49>0, $W49>0),$W49/Q49, "") -> 3.616730032 | AO49: =IF(AND(R49>0, $W49>0),$W49/R49, "") -> 1.837066184 | AP49: =IF(AND(S49>0, $W49>0),$W49/S49, "") -> 2.012426506 | AQ49: =IF(AND(T49>0, $W49>0),$W49/T49, "") -> 1.867288957 | AR49: =IF(AND(U49>0, $W49>0),$W49/U49, "") -> 4.11429314 | AS49: =IF(AND(V49>0, $W49>0),$W49/V49, "") -> 2.938398569 | AT49: =IF(X49<>"",LOG10(X49),"") -> 0.2469271866 | AU49: =IF(Y49<>"",LOG10(Y49),"") -> 0.1630545109 | AV49: =IF(Z49<>"",LOG10(Z49),"") -> 0.1541640594 | AW49: =IF(AA49<>"",LOG10(AA49),"") -> 0.1806072233 | AX49: =IF(AB49<>"",LOG10(AB49),"") -> 0 | AY49: =IF(AC49<>"",LOG10(AC49),"") -> 0.06157282991 | AZ49: =IF(AD49<>"",LOG10(AD49),"") -> 0.003870940337 | BA49: =IF(AE49<>"",LOG10(AE49),"") -> 0.2828314372 | BB49: =IF(AF49<>"",LOG10(AF49),"") -> -0.09264610112 | BC49: =IF(AG49<>"",LOG10(AG49),"") -> -0.2117574769 | BD49: =IF(AH49<>"",LOG10(AH49),"") -> -0.09843109853 | BE49: =IF(AI49<>"",LOG10(AI49),"") -> -0.1861584832 | BF49: =IF(AJ49<>"",LOG10(AJ49),"") -> 0.1509040384 | BG49: =IF(AK49<>"",LOG10(AK49),"") -> -0.2900311357 | BH49: =IF(AL49<>"",LOG10(AL49),"") -> -0.2908120721 | BI49: =IF(AM49<>"",LOG10(AM49),"") -> 0.06022231242 | BJ49: =IF(AN49<>"",LOG10(AN49),"") -> 0.5583160924 | BK49: =IF(AO49<>"",LOG10(AO49),"") -> 0.264124803 | BL49: =IF(AP49<>"",LOG10(AP49),"") -> 0.3037200289 | BM49: =IF(AQ49<>"",LOG10(AQ49),"") -> 0.2712115289 | BN49: =IF(AR49<>"",LOG10(AR49),"") -> 0.6142952316 | BO49: =IF(AS49<>"",LOG10(AS49),"") -> 0.4681107038 | BP49: =IF(AT49<>"", ABS(AT49-DJ$4),"") -> 0.04817262904 | BQ49: =IF(AU49<>"", ABS(AU49-DK$4),"") -> 0.09130869095 | BR49: =IF(AV49<>"", ABS(AV49-DL$4),"") -> 0.330509711 | BS49: =IF(AW49<>"", ABS(AW49-DM$4),"") -> 0.1953022938 | BT49: =IF(AX49<>"", ABS(AX49-DN$4),"") -> 0 | BU49: =IF(AY49<>"", ABS(AY49-DO$4),"") -> 0.02521512063 | BV49: =IF(AZ49<>"", ABS(AZ49-DP$4),"") -> 0.096447756 | BW49: =IF(BA49<>"", ABS(BA49-DQ$4),"") -> 0.02540116887 | BX49: =IF(BB49<>"", ABS(BB49-DR$4),"") -> 0.2621764462 | BY49: =IF(BC49<>"", ABS(BC49-DS$4),"") -> 0.2731464456 | BZ49: =IF(BD49<>"", ABS(BD49-DT$4),"") -> 0.1479598074 | CA49: =IF(BE49<>"", ABS(BE49-DU$4),"") -> 0.336407453 | CB49: =IF(BF49<>"", ABS(BF49-DV$4),"") -> 0.4291513665 | CC49: =IF(BG49<>"", ABS(BG49-DW$4),"") -> 0.6621347939 | CD49: =IF(BH49<>"", ABS(BH49-DX$4),"") -> 0.3507779741 | CE49: =IF(BI49<>"", ABS(BI49-DY$4),"") -> 0.05012034212 | CF49: =IF(BJ49<>"", ABS(BJ49-DZ$4),"") -> 0.2029767717 | CG49: =IF(BK49<>"", ABS(BK49-EA$4),"") -> 0.1910295069 | CH49: =IF(BL49<>"", ABS(BL49-EB$4),"") -> 0.3038253245 | CI49: =IF(BM49<>"", ABS(BM49-EC$4),"") -> 0.3162722707 | CJ49: =IF(BN49<>"", ABS(BN49-ED$4),"") -> 0.2118907614 | CK49: =IF(BO49<>"", ABS(BO49-EE$4),"") -> 0.1713053195 | CL49: =IF(AND(AT49<>"",AT49>DJ$19, AT49<DJ$16), AT49,"") -> 0.2469271866 | CM49: =IF(AND(AU49<>"",AU49>DK$19, AU49<DK$16), AU49,"") -> 0.1630545109 | CN49: =IF(AND(AV49<>"",AV49>DL$19, AV49<DL$16), AV49,"") -> 0.1541640594 | CO49: =IF(AND(AW49<>"",AW49>DM$19, AW49<DM$16), AW49,"") -> 0.1806072233 | CP49: =IF(AND(AX49<>"",AX49>DN$19, AX49<DN$16), AX49,"") ->  | CQ49: =IF(AND(AY49<>"",AY49>DO$19, AY49<DO$16), AY49,"") -> 0.06157282991 | CR49: =IF(AND(AZ49<>"",AZ49>DP$19, AZ49<DP$16), AZ49,"") -> 0.003870940337 | CS49: =IF(AND(BA49<>"",BA49>DQ$19, BA49<DQ$16), BA49,"") -> 0.2828314372 | CT49: =IF(AND(BB49<>"",BB49>DR$19, BB49<DR$16), BB49,"") -> -0.09264610112 | CU49: =IF(AND(BC49<>"",BC49>DS$19, BC49<DS$16), BC49,"") -> -0.2117574769 | CV49: =IF(AND(BD49<>"",BD49>DT$19, BD49<DT$16), BD49,"") -> -0.09843109853 | CW49: =IF(AND(BE49<>"",BE49>DU$19, BE49<DU$16), BE49,"") -> -0.1861584832 | CX49: =IF(AND(BF49<>"",BF49>DV$19, BF49<DV$16), BF49,"") -> 0.1509040384 | CY49: =IF(AND(BG49<>"",BG49>DW$19, BG49<DW$16), BG49,"") -> -0.2900311357 | CZ49: =IF(AND(BH49<>"",BH49>DX$19, BH49<DX$16), BH49,"") -> -0.2908120721 | DA49: =IF(AND(BI49<>"",BI49>DY$19, BI49<DY$16), BI49,"") -> 0.06022231242 | DB49: =IF(AND(BJ49<>"",BJ49>DZ$19, BJ49<DZ$16), BJ49,"") -> 0.5583160924 | DC49: =IF(AND(BK49<>"",BK49>EA$19, BK49<EA$16), BK49,"") -> 0.264124803 | DD49: =IF(AND(BL49<>"",BL49>EB$19, BL49<EB$16), BL49,"") -> 0.3037200289 | DE49: =IF(AND(BM49<>"",BM49>EC$19, BM49<EC$16), BM49,"") -> 0.2712115289 | DF49: =IF(AND(BN49<>"",BN49>ED$19, BN49<ED$16), BN49,"") -> 0.6142952316 | DG49: =IF(AND(BO49<>"",BO49>EE$19, BO49<EE$16), BO49,"") -> 0.4681107038
